Workbook

Sheet input➡

Sheet 施設コード
A1: 参照する期間 | B1: 集計タイプ | C1: =IF(B2<>"",B2,"集計タイプを選択してください") -> 回答エリア | D1: 都道府県 | E1: 6分類 | F1: 市町村
A2: 3月 | B2: 回答エリア | C2: 福井駅前 エリア | D2: 福井県 | E2: =IFERROR(IF($C$1="回答エリア",VLOOKUP($C2,【M】エリア!$E$2:$H$121,3,FALSE),"▼選択してください。"),"▼選択してください。") -> 福井市・永平寺町 | F2: =IFERROR(IF($C$1="DMO","▼選択してください。",VLOOKUP($C2,【M】エリア!$E$2:$H$121,2,FALSE)),"▼選択してください。") -> 福井市
B21: エリア一覧
B22: ID | C22: QRコード名 | D22: 市町 | E22: =IF($B$2="回答エリア",T(【M】エリア!$H1:$H1),T(【M】エリア!$B1:$B1)) -> DMO（rawデータから自動更新）
B23: =IF($B$2="回答エリア",【M】エリア!$D2,【M】エリア!$A2) -> 01 | C23: =T(IF($B$2="回答エリア",【M】エリア!$E2,"")) -> 福井駅前 エリア | D23: =T(IF($B$2="回答エリア",【M】エリア!$F2,"")) -> 福井市 | E23: =T(IF($B$2="回答エリア",【M】エリア!$H2,【M】エリア!$B2)) -> 
B24: =IF($B$2="回答エリア",【M】エリア!$D3,【M】エリア!$A3) -> 02 | C24: =T(IF($B$2="回答エリア",【M】エリア!$E3,"")) -> 福井駅前 エリア（宿泊施設） | D24: =T(IF($B$2="回答エリア",【M】エリア!$F3,"")) -> 福井市 | E24: =T(IF($B$2="回答エリア",【M】エリア!$H3,【M】エリア!$B3)) -> 
B25: =IF($B$2="回答エリア",【M】エリア!$D4,【M】エリア!$A4) -> 03 | C25: =T(IF($B$2="回答エリア",【M】エリア!$E4,"")) -> 北ノ庄 エリア | D25: =T(IF($B$2="回答エリア",【M】エリア!$F4,"")) -> 福井市 | E25: =T(IF($B$2="回答エリア",【M】エリア!$H4,【M】エリア!$B4)) -> 
B26: =IF($B$2="回答エリア",【M】エリア!$D5,【M】エリア!$A5) -> 04 | C26: =T(IF($B$2="回答エリア",【M】エリア!$E5,"")) -> 名勝 養浩館庭園 エリア | D26: =T(IF($B$2="回答エリア",【M】エリア!$F5,"")) -> 福井市 | E26: =T(IF($B$2="回答エリア",【M】エリア!$H5,【M】エリア!$B5)) -> 
B27: =IF($B$2="回答エリア",【M】エリア!$D6,【M】エリア!$A6) -> 05 | C27: =T(IF($B$2="回答エリア",【M】エリア!$E6,"")) -> ふくい鮮いちば エリア | D27: =T(IF($B$2="回答エリア",【M】エリア!$F6,"")) -> 福井市 | E27: =T(IF($B$2="回答エリア",【M】エリア!$H6,【M】エリア!$B6)) -> 
B28: =IF($B$2="回答エリア",【M】エリア!$D7,【M】エリア!$A7) -> 06 | C28: =T(IF($B$2="回答エリア",【M】エリア!$E7,"")) -> 一乗谷朝倉氏遺跡 エリア | D28: =T(IF($B$2="回答エリア",【M】エリア!$F7,"")) -> 福井市 | E28: =T(IF($B$2="回答エリア",【M】エリア!$H7,【M】エリア!$B7)) -> 
B29: =IF($B$2="回答エリア",【M】エリア!$D8,【M】エリア!$A8) -> 07 | C29: =T(IF($B$2="回答エリア",【M】エリア!$E8,"")) -> 越前海岸 北部 エリア | D29: =T(IF($B$2="回答エリア",【M】エリア!$F8,"")) -> 福井市 | E29: =T(IF($B$2="回答エリア",【M】エリア!$H8,【M】エリア!$B8)) -> 
B30: =IF($B$2="回答エリア",【M】エリア!$D9,【M】エリア!$A9) -> 08 | C30: =T(IF($B$2="回答エリア",【M】エリア!$E9,"")) -> 大安禅寺 エリア | D30: =T(IF($B$2="回答エリア",【M】エリア!$F9,"")) -> 福井市 | E30: =T(IF($B$2="回答エリア",【M】エリア!$H9,【M】エリア!$B9)) -> 
B31: =IF($B$2="回答エリア",【M】エリア!$D10,【M】エリア!$A10) -> 09 | C31: =T(IF($B$2="回答エリア",【M】エリア!$E10,"")) -> 三国湊 エリア | D31: =T(IF($B$2="回答エリア",【M】エリア!$F10,"")) -> 坂井市 | E31: =T(IF($B$2="回答エリア",【M】エリア!$H10,【M】エリア!$B10)) -> (一社)DMOさかい観光局
B32: =IF($B$2="回答エリア",【M】エリア!$D11,【M】エリア!$A11) -> 10 | C32: =T(IF($B$2="回答エリア",【M】エリア!$E11,"")) -> 東尋坊 エリア | D32: =T(IF($B$2="回答エリア",【M】エリア!$F11,"")) -> 坂井市 | E32: =T(IF($B$2="回答エリア",【M】エリア!$H11,【M】エリア!$B11)) -> (一社)DMOさかい観光局
B33: =IF($B$2="回答エリア",【M】エリア!$D12,【M】エリア!$A12) -> 11 | C33: =T(IF($B$2="回答エリア",【M】エリア!$E12,"")) -> 越前松島水族館 エリア | D33: =T(IF($B$2="回答エリア",【M】エリア!$F12,"")) -> 坂井市 | E33: =T(IF($B$2="回答エリア",【M】エリア!$H12,【M】エリア!$B12)) -> (一社)DMOさかい観光局
B34: =IF($B$2="回答エリア",【M】エリア!$D13,【M】エリア!$A13) -> 12 | C34: =T(IF($B$2="回答エリア",【M】エリア!$E13,"")) -> 芝政ワールド エリア | D34: =T(IF($B$2="回答エリア",【M】エリア!$F13,"")) -> 坂井市 | E34: =T(IF($B$2="回答エリア",【M】エリア!$H13,【M】エリア!$B13)) -> (一社)DMOさかい観光局
B35: =IF($B$2="回答エリア",【M】エリア!$D14,【M】エリア!$A14) -> 13 | C35: =T(IF($B$2="回答エリア",【M】エリア!$E14,"")) -> 丸岡城 エリア | D35: =T(IF($B$2="回答エリア",【M】エリア!$F14,"")) -> 坂井市 | E35: =T(IF($B$2="回答エリア",【M】エリア!$H14,【M】エリア!$B14)) -> (一社)DMOさかい観光局
B36: =IF($B$2="回答エリア",【M】エリア!$D15,【M】エリア!$A15) -> 14 | C36: =T(IF($B$2="回答エリア",【M】エリア!$E15,"")) -> 花の駅 ゆりの里公園 エリア | D36: =T(IF($B$2="回答エリア",【M】エリア!$F15,"")) -> 坂井市 | E36: =T(IF($B$2="回答エリア",【M】エリア!$H15,【M】エリア!$B15)) -> (一社)DMOさかい観光局
B37: =IF($B$2="回答エリア",【M】エリア!$D16,【M】エリア!$A16) -> 15 | C37: =T(IF($B$2="回答エリア",【M】エリア!$E16,"")) -> 道の駅みくに ふれあいパーク三里浜 エリア | D37: =T(IF($B$2="回答エリア",【M】エリア!$F16,"")) -> 坂井市 | E37: =T(IF($B$2="回答エリア",【M】エリア!$H16,【M】エリア!$B16)) -> (一社)DMOさかい観光局
B38: =IF($B$2="回答エリア",【M】エリア!$D17,【M】エリア!$A17) -> 16 | C38: =T(IF($B$2="回答エリア",【M】エリア!$E17,"")) -> JR芦原温泉駅 エリア | D38: =T(IF($B$2="回答エリア",【M】エリア!$F17,"")) -> あわら市 | E38: =T(IF($B$2="回答エリア",【M】エリア!$H17,【M】エリア!$B17)) -> 
B39: =IF($B$2="回答エリア",【M】エリア!$D18,【M】エリア!$A18) -> 17 | C39: =T(IF($B$2="回答エリア",【M】エリア!$E18,"")) -> あわら湯のまち エリア | D39: =T(IF($B$2="回答エリア",【M】エリア!$F18,"")) -> あわら市 | E39: =T(IF($B$2="回答エリア",【M】エリア!$H18,【M】エリア!$B18)) -> 
B40: =IF($B$2="回答エリア",【M】エリア!$D19,【M】エリア!$A19) -> 18 | C40: =T(IF($B$2="回答エリア",【M】エリア!$E19,"")) -> フルーツライン エリア | D40: =T(IF($B$2="回答エリア",【M】エリア!$F19,"")) -> あわら市 | E40: =T(IF($B$2="回答エリア",【M】エリア!$H19,【M】エリア!$B19)) -> 
B41: =IF($B$2="回答エリア",【M】エリア!$D20,【M】エリア!$A20) -> 19 | C41: =T(IF($B$2="回答エリア",【M】エリア!$E20,"")) -> 波松 エリア | D41: =T(IF($B$2="回答エリア",【M】エリア!$F20,"")) -> あわら市 | E41: =T(IF($B$2="回答エリア",【M】エリア!$H20,【M】エリア!$B20)) -> 
B42: =IF($B$2="回答エリア",【M】エリア!$D21,【M】エリア!$A21) -> 20 | C42: =T(IF($B$2="回答エリア",【M】エリア!$E21,"")) -> 北潟湖 エリア | D42: =T(IF($B$2="回答エリア",【M】エリア!$F21,"")) -> あわら市 | E42: =T(IF($B$2="回答エリア",【M】エリア!$H21,【M】エリア!$B21)) -> 
B43: =IF($B$2="回答エリア",【M】エリア!$D22,【M】エリア!$A22) -> 21 | C43: =T(IF($B$2="回答エリア",【M】エリア!$E22,"")) -> 越前大野城・城下町 エリア | D43: =T(IF($B$2="回答エリア",【M】エリア!$F22,"")) -> 大野市 | E43: =T(IF($B$2="回答エリア",【M】エリア!$H22,【M】エリア!$B22)) -> 
B44: =IF($B$2="回答エリア",【M】エリア!$D23,【M】エリア!$A23) -> 22 | C44: =T(IF($B$2="回答エリア",【M】エリア!$E23,"")) -> 道の駅「越前おおの荒島の郷」 エリア | D44: =T(IF($B$2="回答エリア",【M】エリア!$F23,"")) -> 大野市 | E44: =T(IF($B$2="回答エリア",【M】エリア!$H23,【M】エリア!$B23)) -> 
B45: =IF($B$2="回答エリア",【M】エリア!$D24,【M】エリア!$A24) -> 23 | C45: =T(IF($B$2="回答エリア",【M】エリア!$E24,"")) -> JR九頭竜湖駅 エリア | D45: =T(IF($B$2="回答エリア",【M】エリア!$F24,"")) -> 大野市 | E45: =T(IF($B$2="回答エリア",【M】エリア!$H24,【M】エリア!$B24)) -> 
B46: =IF($B$2="回答エリア",【M】エリア!$D25,【M】エリア!$A25) -> 24 | C46: =T(IF($B$2="回答エリア",【M】エリア!$E25,"")) -> 六呂師高原 エリア | D46: =T(IF($B$2="回答エリア",【M】エリア!$F25,"")) -> 大野市 | E46: =T(IF($B$2="回答エリア",【M】エリア!$H25,【M】エリア!$B25)) -> 
B47: =IF($B$2="回答エリア",【M】エリア!$D26,【M】エリア!$A26) -> 25 | C47: =T(IF($B$2="回答エリア",【M】エリア!$E26,"")) -> スーベニアショップふらぷとる エリア | D47: =T(IF($B$2="回答エリア",【M】エリア!$F26,"")) -> 勝山市 | E47: =T(IF($B$2="回答エリア",【M】エリア!$H26,【M】エリア!$B26)) -> 勝山市観光まちづくり(株)
B48: =IF($B$2="回答エリア",【M】エリア!$D27,【M】エリア!$A27) -> 25 | C48: =T(IF($B$2="回答エリア",【M】エリア!$E27,"")) -> かつやま恐竜の森 エリア | D48: =T(IF($B$2="回答エリア",【M】エリア!$F27,"")) -> 勝山市 | E48: =T(IF($B$2="回答エリア",【M】エリア!$H27,【M】エリア!$B27)) -> 勝山市観光まちづくり(株)
B49: =IF($B$2="回答エリア",【M】エリア!$D28,【M】エリア!$A28) -> 26 | C49: =T(IF($B$2="回答エリア",【M】エリア!$E28,"")) -> 道の駅「恐竜渓谷かつやま」 エリア | D49: =T(IF($B$2="回答エリア",【M】エリア!$F28,"")) -> 勝山市 | E49: =T(IF($B$2="回答エリア",【M】エリア!$H28,【M】エリア!$B28)) -> 勝山市観光まちづくり(株)
B50: =IF($B$2="回答エリア",【M】エリア!$D29,【M】エリア!$A29) -> 27 | C50: =T(IF($B$2="回答エリア",【M】エリア!$E29,"")) -> スキージャム勝山 エリア | D50: =T(IF($B$2="回答エリア",【M】エリア!$F29,"")) -> 勝山市 | E50: =T(IF($B$2="回答エリア",【M】エリア!$H29,【M】エリア!$B29)) -> 勝山市観光まちづくり(株)
B51: =IF($B$2="回答エリア",【M】エリア!$D30,【M】エリア!$A30) -> 28 | C51: =T(IF($B$2="回答エリア",【M】エリア!$E30,"")) -> 越前大仏 エリア | D51: =T(IF($B$2="回答エリア",【M】エリア!$F30,"")) -> 勝山市 | E51: =T(IF($B$2="回答エリア",【M】エリア!$H30,【M】エリア!$B30)) -> 勝山市観光まちづくり(株)
B52: =IF($B$2="回答エリア",【M】エリア!$D31,【M】エリア!$A31) -> 29 | C52: =T(IF($B$2="回答エリア",【M】エリア!$E31,"")) -> 平泉寺白山神社 エリア | D52: =T(IF($B$2="回答エリア",【M】エリア!$F31,"")) -> 勝山市 | E52: =T(IF($B$2="回答エリア",【M】エリア!$H31,【M】エリア!$B31)) -> 勝山市観光まちづくり(株)
B53: =IF($B$2="回答エリア",【M】エリア!$D32,【M】エリア!$A32) -> 30 | C53: =T(IF($B$2="回答エリア",【M】エリア!$E32,"")) -> はたや記念館 ゆめおーれ勝山 エリア | D53: =T(IF($B$2="回答エリア",【M】エリア!$F32,"")) -> 勝山市 | E53: =T(IF($B$2="回答エリア",【M】エリア!$H32,【M】エリア!$B32)) -> 勝山市観光まちづくり(株)
B54: =IF($B$2="回答エリア",【M】エリア!$D33,【M】エリア!$A33) -> 31 | C54: =T(IF($B$2="回答エリア",【M】エリア!$E33,"")) -> えちぜん鉄道 永平寺口駅 エリア | D54: =T(IF($B$2="回答エリア",【M】エリア!$F33,"")) -> 永平寺町 | E54: =T(IF($B$2="回答エリア",【M】エリア!$H33,【M】エリア!$B33)) -> 
B55: =IF($B$2="回答エリア",【M】エリア!$D34,【M】エリア!$A34) -> 32 | C55: =T(IF($B$2="回答エリア",【M】エリア!$E34,"")) -> 九頭竜川 エリア（鮎・釣り） | D55: =T(IF($B$2="回答エリア",【M】エリア!$F34,"")) -> 永平寺町 | E55: =T(IF($B$2="回答エリア",【M】エリア!$H34,【M】エリア!$B34)) -> 
B56: =IF($B$2="回答エリア",【M】エリア!$D35,【M】エリア!$A35) -> 33 | C56: =T(IF($B$2="回答エリア",【M】エリア!$E35,"")) -> えちぜん鉄道 松岡駅 エリア | D56: =T(IF($B$2="回答エリア",【M】エリア!$F35,"")) -> 永平寺町 | E56: =T(IF($B$2="回答エリア",【M】エリア!$H35,【M】エリア!$B35)) -> 
B57: =IF($B$2="回答エリア",【M】エリア!$D36,【M】エリア!$A36) -> 34 | C57: =T(IF($B$2="回答エリア",【M】エリア!$E36,"")) -> 大本山 永平寺 エリア | D57: =T(IF($B$2="回答エリア",【M】エリア!$F36,"")) -> 永平寺町 | E57: =T(IF($B$2="回答エリア",【M】エリア!$H36,【M】エリア!$B36)) -> 
B58: =IF($B$2="回答エリア",【M】エリア!$D37,【M】エリア!$A37) -> 35 | C58: =T(IF($B$2="回答エリア",【M】エリア!$E37,"")) -> 道の駅「禅の里」 エリア | D58: =T(IF($B$2="回答エリア",【M】エリア!$F37,"")) -> 永平寺町 | E58: =T(IF($B$2="回答エリア",【M】エリア!$H37,【M】エリア!$B37)) -> 
B59: =IF($B$2="回答エリア",【M】エリア!$D38,【M】エリア!$A38) -> 36 | C59: =T(IF($B$2="回答エリア",【M】エリア!$E38,"")) -> 越前和紙の里 エリア | D59: =T(IF($B$2="回答エリア",【M】エリア!$F38,"")) -> 越前市 | E59: =T(IF($B$2="回答エリア",【M】エリア!$H38,【M】エリア!$B38)) -> 
B60: =IF($B$2="回答エリア",【M】エリア!$D39,【M】エリア!$A39) -> 37 | C60: =T(IF($B$2="回答エリア",【M】エリア!$E39,"")) -> 越前そばの里 エリア | D60: =T(IF($B$2="回答エリア",【M】エリア!$F39,"")) -> 越前市 | E60: =T(IF($B$2="回答エリア",【M】エリア!$H39,【M】エリア!$B39)) -> 
B61: =IF($B$2="回答エリア",【M】エリア!$D40,【M】エリア!$A40) -> 38 | C61: =T(IF($B$2="回答エリア",【M】エリア!$E40,"")) -> 北陸新幹線 越前たけふ駅 エリア | D61: =T(IF($B$2="回答エリア",【M】エリア!$F40,"")) -> 越前市 | E61: =T(IF($B$2="回答エリア",【M】エリア!$H40,【M】エリア!$B40)) -> 
B62: =IF($B$2="回答エリア",【M】エリア!$D41,【M】エリア!$A41) -> 39 | C62: =T(IF($B$2="回答エリア",【M】エリア!$E41,"")) -> タケフナイフビレッジ エリア | D62: =T(IF($B$2="回答エリア",【M】エリア!$F41,"")) -> 越前市 | E62: =T(IF($B$2="回答エリア",【M】エリア!$H41,【M】エリア!$B41)) -> 
B63: =IF($B$2="回答エリア",【M】エリア!$D42,【M】エリア!$A42) -> 40 | C63: =T(IF($B$2="回答エリア",【M】エリア!$E42,"")) -> 武生駅 エリア | D63: =T(IF($B$2="回答エリア",【M】エリア!$F42,"")) -> 越前市 | E63: =T(IF($B$2="回答エリア",【M】エリア!$H42,【M】エリア!$B42)) -> 
B64: =IF($B$2="回答エリア",【M】エリア!$D43,【M】エリア!$A43) -> 41 | C64: =T(IF($B$2="回答エリア",【M】エリア!$E43,"")) -> 紫式部公園 エリア | D64: =T(IF($B$2="回答エリア",【M】エリア!$F43,"")) -> 越前市 | E64: =T(IF($B$2="回答エリア",【M】エリア!$H43,【M】エリア!$B43)) -> 
B65: =IF($B$2="回答エリア",【M】エリア!$D44,【M】エリア!$A44) -> 42 | C65: =T(IF($B$2="回答エリア",【M】エリア!$E44,"")) -> だるまちゃん広場 エリア | D65: =T(IF($B$2="回答エリア",【M】エリア!$F44,"")) -> 越前市 | E65: =T(IF($B$2="回答エリア",【M】エリア!$H44,【M】エリア!$B44)) -> 
B66: =IF($B$2="回答エリア",【M】エリア!$D45,【M】エリア!$A45) -> 43 | C66: =T(IF($B$2="回答エリア",【M】エリア!$E45,"")) -> 刃物の里 エリア | D66: =T(IF($B$2="回答エリア",【M】エリア!$F45,"")) -> 越前市 | E66: =T(IF($B$2="回答エリア",【M】エリア!$H45,【M】エリア!$B45)) -> 
B67: =IF($B$2="回答エリア",【M】エリア!$D46,【M】エリア!$A46) -> 44 | C67: =T(IF($B$2="回答エリア",【M】エリア!$E46,"")) -> 道の駅「西山公園」 エリア | D67: =T(IF($B$2="回答エリア",【M】エリア!$F46,"")) -> 鯖江市 | E67: =T(IF($B$2="回答エリア",【M】エリア!$H46,【M】エリア!$B46)) -> 
B68: =IF($B$2="回答エリア",【M】エリア!$D47,【M】エリア!$A47) -> 45 | C68: =T(IF($B$2="回答エリア",【M】エリア!$E47,"")) -> メガネストリート エリア | D68: =T(IF($B$2="回答エリア",【M】エリア!$F47,"")) -> 鯖江市 | E68: =T(IF($B$2="回答エリア",【M】エリア!$H47,【M】エリア!$B47)) -> 
B69: =IF($B$2="回答エリア",【M】エリア!$D48,【M】エリア!$A48) -> 46 | C69: =T(IF($B$2="回答エリア",【M】エリア!$E48,"")) -> うるしの里 エリア | D69: =T(IF($B$2="回答エリア",【M】エリア!$F48,"")) -> 鯖江市 | E69: =T(IF($B$2="回答エリア",【M】エリア!$H48,【M】エリア!$B48)) -> 
B70: =IF($B$2="回答エリア",【M】エリア!$D49,【M】エリア!$A49) -> 47 | C70: =T(IF($B$2="回答エリア",【M】エリア!$E49,"")) -> まちの市場 こってコテいけだ エリア | D70: =T(IF($B$2="回答エリア",【M】エリア!$F49,"")) -> 池田町 | E70: =T(IF($B$2="回答エリア",【M】エリア!$H49,【M】エリア!$B49)) -> （一財）いけだ農村観光公社
B71: =IF($B$2="回答エリア",【M】エリア!$D50,【M】エリア!$A50) -> 48 | C71: =T(IF($B$2="回答エリア",【M】エリア!$E50,"")) -> かずら橋 エリア | D71: =T(IF($B$2="回答エリア",【M】エリア!$F50,"")) -> 池田町 | E71: =T(IF($B$2="回答エリア",【M】エリア!$H50,【M】エリア!$B50)) -> （一財）いけだ農村観光公社
B72: =IF($B$2="回答エリア",【M】エリア!$D51,【M】エリア!$A51) -> 49 | C72: =T(IF($B$2="回答エリア",【M】エリア!$E51,"")) -> 道の駅「越前」 エリア | D72: =T(IF($B$2="回答エリア",【M】エリア!$F51,"")) -> 越前町 | E72: =T(IF($B$2="回答エリア",【M】エリア!$H51,【M】エリア!$B51)) -> 一般社団法人 越前町観光連盟（DMO ECHIZEN）
B73: =IF($B$2="回答エリア",【M】エリア!$D52,【M】エリア!$A52) -> 50 | C73: =T(IF($B$2="回答エリア",【M】エリア!$E52,"")) -> 道の駅「パークイン丹生ヶ丘」 エリア | D73: =T(IF($B$2="回答エリア",【M】エリア!$F52,"")) -> 越前町 | E73: =T(IF($B$2="回答エリア",【M】エリア!$H52,【M】エリア!$B52)) -> 一般社団法人 越前町観光連盟（DMO ECHIZEN）
B74: =IF($B$2="回答エリア",【M】エリア!$D53,【M】エリア!$A53) -> 51 | C74: =T(IF($B$2="回答エリア",【M】エリア!$E53,"")) -> 劔神社 エリア | D74: =T(IF($B$2="回答エリア",【M】エリア!$F53,"")) -> 越前町 | E74: =T(IF($B$2="回答エリア",【M】エリア!$H53,【M】エリア!$B53)) -> 一般社団法人 越前町観光連盟（DMO ECHIZEN）
B75: =IF($B$2="回答エリア",【M】エリア!$D54,【M】エリア!$A54) -> 52 | C75: =T(IF($B$2="回答エリア",【M】エリア!$E54,"")) -> 越前陶芸村 エリア | D75: =T(IF($B$2="回答エリア",【M】エリア!$F54,"")) -> 越前町 | E75: =T(IF($B$2="回答エリア",【M】エリア!$H54,【M】エリア!$B54)) -> 一般社団法人 越前町観光連盟（DMO ECHIZEN）
B76: =IF($B$2="回答エリア",【M】エリア!$D55,【M】エリア!$A55) -> 53 | C76: =T(IF($B$2="回答エリア",【M】エリア!$E55,"")) -> 越前海岸 越前岬 エリア | D76: =T(IF($B$2="回答エリア",【M】エリア!$F55,"")) -> 越前町 | E76: =T(IF($B$2="回答エリア",【M】エリア!$H55,【M】エリア!$B55)) -> 一般社団法人 越前町観光連盟（DMO ECHIZEN）
B77: =IF($B$2="回答エリア",【M】エリア!$D56,【M】エリア!$A56) -> 54 | C77: =T(IF($B$2="回答エリア",【M】エリア!$E56,"")) -> 越前漁港 エリア | D77: =T(IF($B$2="回答エリア",【M】エリア!$F56,"")) -> 越前町 | E77: =T(IF($B$2="回答エリア",【M】エリア!$H56,【M】エリア!$B56)) -> 一般社団法人 越前町観光連盟（DMO ECHIZEN）
B78: =IF($B$2="回答エリア",【M】エリア!$D57,【M】エリア!$A57) -> 55 | C78: =T(IF($B$2="回答エリア",【M】エリア!$E57,"")) -> 越前海岸 茂原民宿街 エリア | D78: =T(IF($B$2="回答エリア",【M】エリア!$F57,"")) -> 越前町 | E78: =T(IF($B$2="回答エリア",【M】エリア!$H57,【M】エリア!$B57)) -> 一般社団法人 越前町観光連盟（DMO ECHIZEN）
B79: =IF($B$2="回答エリア",【M】エリア!$D58,【M】エリア!$A58) -> 56 | C79: =T(IF($B$2="回答エリア",【M】エリア!$E58,"")) -> 越前海岸 高佐米ノ旅館街 エリア | D79: =T(IF($B$2="回答エリア",【M】エリア!$F58,"")) -> 越前町 | E79: =T(IF($B$2="回答エリア",【M】エリア!$H58,【M】エリア!$B58)) -> 一般社団法人 越前町観光連盟（DMO ECHIZEN）
B80: =IF($B$2="回答エリア",【M】エリア!$D59,【M】エリア!$A59) -> 57 | C80: =T(IF($B$2="回答エリア",【M】エリア!$E59,"")) -> 越前海岸 くりや旅館街 エリア | D80: =T(IF($B$2="回答エリア",【M】エリア!$F59,"")) -> 越前町 | E80: =T(IF($B$2="回答エリア",【M】エリア!$H59,【M】エリア!$B59)) -> 一般社団法人 越前町観光連盟（DMO ECHIZEN）
B81: =IF($B$2="回答エリア",【M】エリア!$D60,【M】エリア!$A60) -> 58 | C81: =T(IF($B$2="回答エリア",【M】エリア!$E60,"")) -> 道の駅「南えちぜん山海里」 エリア | D81: =T(IF($B$2="回答エリア",【M】エリア!$F60,"")) -> 南越前町 | E81: =T(IF($B$2="回答エリア",【M】エリア!$H60,【M】エリア!$B60)) -> 
B82: =IF($B$2="回答エリア",【M】エリア!$D61,【M】エリア!$A61) -> 59 | C82: =T(IF($B$2="回答エリア",【M】エリア!$E61,"")) -> 北前船主の館 右近家 エリア | D82: =T(IF($B$2="回答エリア",【M】エリア!$F61,"")) -> 南越前町 | E82: =T(IF($B$2="回答エリア",【M】エリア!$H61,【M】エリア!$B61)) -> 
B83: =IF($B$2="回答エリア",【M】エリア!$D62,【M】エリア!$A62) -> 60 | C83: =T(IF($B$2="回答エリア",【M】エリア!$E62,"")) -> 今庄宿 エリア | D83: =T(IF($B$2="回答エリア",【M】エリア!$F62,"")) -> 南越前町 | E83: =T(IF($B$2="回答エリア",【M】エリア!$H62,【M】エリア!$B62)) -> 
B84: =IF($B$2="回答エリア",【M】エリア!$D63,【M】エリア!$A63) -> 61 | C84: =T(IF($B$2="回答エリア",【M】エリア!$E63,"")) -> 日本海さかな街 エリア | D84: =T(IF($B$2="回答エリア",【M】エリア!$F63,"")) -> 敦賀市 | E84: =T(IF($B$2="回答エリア",【M】エリア!$H63,【M】エリア!$B63)) -> 
B85: =IF($B$2="回答エリア",【M】エリア!$D64,【M】エリア!$A64) -> 62 | C85: =T(IF($B$2="回答エリア",【M】エリア!$E64,"")) -> 神楽通り エリア | D85: =T(IF($B$2="回答エリア",【M】エリア!$F64,"")) -> 敦賀市 | E85: =T(IF($B$2="回答エリア",【M】エリア!$H64,【M】エリア!$B64)) -> 
B86: =IF($B$2="回答エリア",【M】エリア!$D65,【M】エリア!$A65) -> 63 | C86: =T(IF($B$2="回答エリア",【M】エリア!$E65,"")) -> JR敦賀駅前 エリア | D86: =T(IF($B$2="回答エリア",【M】エリア!$F65,"")) -> 敦賀市 | E86: =T(IF($B$2="回答エリア",【M】エリア!$H65,【M】エリア!$B65)) -> 
B87: =IF($B$2="回答エリア",【M】エリア!$D66,【M】エリア!$A66) -> 64 | C87: =T(IF($B$2="回答エリア",【M】エリア!$E66,"")) -> 金ヶ崎 エリア | D87: =T(IF($B$2="回答エリア",【M】エリア!$F66,"")) -> 敦賀市 | E87: =T(IF($B$2="回答エリア",【M】エリア!$H66,【M】エリア!$B66)) -> 
B88: =IF($B$2="回答エリア",【M】エリア!$D67,【M】エリア!$A67) -> 65 | C88: =T(IF($B$2="回答エリア",【M】エリア!$E67,"")) -> 敦賀市立博物館 エリア | D88: =T(IF($B$2="回答エリア",【M】エリア!$F67,"")) -> 敦賀市 | E88: =T(IF($B$2="回答エリア",【M】エリア!$H67,【M】エリア!$B67)) -> 
B89: =IF($B$2="回答エリア",【M】エリア!$D68,【M】エリア!$A68) -> 66 | C89: =T(IF($B$2="回答エリア",【M】エリア!$E68,"")) -> 水島 エリア | D89: =T(IF($B$2="回答エリア",【M】エリア!$F68,"")) -> 敦賀市 | E89: =T(IF($B$2="回答エリア",【M】エリア!$H68,【M】エリア!$B68)) -> 
B90: =IF($B$2="回答エリア",【M】エリア!$D69,【M】エリア!$A69) -> 67 | C90: =T(IF($B$2="回答エリア",【M】エリア!$E69,"")) -> 小浜市 阿納 エリア | D90: =T(IF($B$2="回答エリア",【M】エリア!$F69,"")) -> 小浜市 | E90: =T(IF($B$2="回答エリア",【M】エリア!$H69,【M】エリア!$B69)) -> (株)まちづくり小浜
B91: =IF($B$2="回答エリア",【M】エリア!$D70,【M】エリア!$A70) -> 68 | C91: =T(IF($B$2="回答エリア",【M】エリア!$E70,"")) -> 道の駅「若狭おばま」 エリア | D91: =T(IF($B$2="回答エリア",【M】エリア!$F70,"")) -> 小浜市 | E91: =T(IF($B$2="回答エリア",【M】エリア!$H70,【M】エリア!$B70)) -> (株)まちづくり小浜
B92: =IF($B$2="回答エリア",【M】エリア!$D71,【M】エリア!$A71) -> 69 | C92: =T(IF($B$2="回答エリア",【M】エリア!$E71,"")) -> 小浜 エリア（宿泊施設） | D92: =T(IF($B$2="回答エリア",【M】エリア!$F71,"")) -> 小浜市 | E92: =T(IF($B$2="回答エリア",【M】エリア!$H71,【M】エリア!$B71)) -> (株)まちづくり小浜
B93: =IF($B$2="回答エリア",【M】エリア!$D72,【M】エリア!$A72) -> 70 | C93: =T(IF($B$2="回答エリア",【M】エリア!$E72,"")) -> 若狭フィッシャーマンズワーフ エリア | D93: =T(IF($B$2="回答エリア",【M】エリア!$F72,"")) -> 小浜市 | E93: =T(IF($B$2="回答エリア",【M】エリア!$H72,【M】エリア!$B72)) -> (株)まちづくり小浜
B94: =IF($B$2="回答エリア",【M】エリア!$D73,【M】エリア!$A73) -> 71 | C94: =T(IF($B$2="回答エリア",【M】エリア!$E73,"")) -> 御食国若狭おばま食文化館 エリア | D94: =T(IF($B$2="回答エリア",【M】エリア!$F73,"")) -> 小浜市 | E94: =T(IF($B$2="回答エリア",【M】エリア!$H73,【M】エリア!$B73)) -> (株)まちづくり小浜
B95: =IF($B$2="回答エリア",【M】エリア!$D74,【M】エリア!$A74) -> 72 | C95: =T(IF($B$2="回答エリア",【M】エリア!$E74,"")) -> 小浜市まちの駅 エリア | D95: =T(IF($B$2="回答エリア",【M】エリア!$F74,"")) -> 小浜市 | E95: =T(IF($B$2="回答エリア",【M】エリア!$H74,【M】エリア!$B74)) -> (株)まちづくり小浜
B96: =IF($B$2="回答エリア",【M】エリア!$D75,【M】エリア!$A75) -> 73 | C96: =T(IF($B$2="回答エリア",【M】エリア!$E75,"")) -> 明通寺 エリア | D96: =T(IF($B$2="回答エリア",【M】エリア!$F75,"")) -> 小浜市 | E96: =T(IF($B$2="回答エリア",【M】エリア!$H75,【M】エリア!$B75)) -> (株)まちづくり小浜
B97: =IF($B$2="回答エリア",【M】エリア!$D76,【M】エリア!$A76) -> 74 | C97: =T(IF($B$2="回答エリア",【M】エリア!$E76,"")) -> 箸のふるさと館WAKASA エリア | D97: =T(IF($B$2="回答エリア",【M】エリア!$F76,"")) -> 小浜市 | E97: =T(IF($B$2="回答エリア",【M】エリア!$H76,【M】エリア!$B76)) -> (株)まちづくり小浜
B98: =IF($B$2="回答エリア",【M】エリア!$D77,【M】エリア!$A77) -> 75 | C98: =T(IF($B$2="回答エリア",【M】エリア!$E77,"")) -> 美浜町レイクセンター エリア | D98: =T(IF($B$2="回答エリア",【M】エリア!$F77,"")) -> 美浜町 | E98: =T(IF($B$2="回答エリア",【M】エリア!$H77,【M】エリア!$B77)) -> 三方五湖DMO(株)
B99: =IF($B$2="回答エリア",【M】エリア!$D78,【M】エリア!$A78) -> 75 | C99: =T(IF($B$2="回答エリア",【M】エリア!$E78,"")) -> 水晶浜 エリア | D99: =T(IF($B$2="回答エリア",【M】エリア!$F78,"")) -> 美浜町 | E99: =T(IF($B$2="回答エリア",【M】エリア!$H78,【M】エリア!$B78)) -> 三方五湖DMO(株)
B100: =IF($B$2="回答エリア",【M】エリア!$D79,【M】エリア!$A79) -> 77 | C100: =T(IF($B$2="回答エリア",【M】エリア!$E79,"")) -> レインボーライン エリア | D100: =T(IF($B$2="回答エリア",【M】エリア!$F79,"")) -> 美浜町 | E100: =T(IF($B$2="回答エリア",【M】エリア!$H79,【M】エリア!$B79)) -> 三方五湖DMO(株)
B101: =IF($B$2="回答エリア",【M】エリア!$D80,【M】エリア!$A80) -> 78 | C101: =T(IF($B$2="回答エリア",【M】エリア!$E80,"")) -> 若狭海遊バザール 千鳥苑 エリア | D101: =T(IF($B$2="回答エリア",【M】エリア!$F80,"")) -> 美浜町 | E101: =T(IF($B$2="回答エリア",【M】エリア!$H80,【M】エリア!$B80)) -> 三方五湖DMO(株)
B102: =IF($B$2="回答エリア",【M】エリア!$D81,【M】エリア!$A81) -> 79 | C102: =T(IF($B$2="回答エリア",【M】エリア!$E81,"")) -> JR美浜駅 エリア | D102: =T(IF($B$2="回答エリア",【M】エリア!$F81,"")) -> 美浜町 | E102: =T(IF($B$2="回答エリア",【M】エリア!$H81,【M】エリア!$B81)) -> 三方五湖DMO(株)
B103: =IF($B$2="回答エリア",【M】エリア!$D82,【M】エリア!$A82) -> 80 | C103: =T(IF($B$2="回答エリア",【M】エリア!$E82,"")) -> 新庄 渓流の里 エリア | D103: =T(IF($B$2="回答エリア",【M】エリア!$F82,"")) -> 美浜町 | E103: =T(IF($B$2="回答エリア",【M】エリア!$H82,【M】エリア!$B82)) -> 三方五湖DMO(株)
B104: =IF($B$2="回答エリア",【M】エリア!$D83,【M】エリア!$A83) -> 81 | C104: =T(IF($B$2="回答エリア",【M】エリア!$E83,"")) -> 熊川宿 エリア | D104: =T(IF($B$2="回答エリア",【M】エリア!$F83,"")) -> 若狭町 | E104: =T(IF($B$2="回答エリア",【M】エリア!$H83,【M】エリア!$B83)) -> 三方五湖DMO(株)
B105: =IF($B$2="回答エリア",【M】エリア!$D84,【M】エリア!$A84) -> 82 | C105: =T(IF($B$2="回答エリア",【M】エリア!$E84,"")) -> 湖上館パムコ（水月湖）エリア | D105: =T(IF($B$2="回答エリア",【M】エリア!$F84,"")) -> 若狭町 | E105: =T(IF($B$2="回答エリア",【M】エリア!$H84,【M】エリア!$B84)) -> 三方五湖DMO(株)
B106: =IF($B$2="回答エリア",【M】エリア!$D85,【M】エリア!$A85) -> 83 | C106: =T(IF($B$2="回答エリア",【M】エリア!$E85,"")) -> 道の駅「三方五湖」 エリア | D106: =T(IF($B$2="回答エリア",【M】エリア!$F85,"")) -> 若狭町 | E106: =T(IF($B$2="回答エリア",【M】エリア!$H85,【M】エリア!$B85)) -> 三方五湖DMO(株)
B107: =IF($B$2="回答エリア",【M】エリア!$D86,【M】エリア!$A86) -> 84 | C107: =T(IF($B$2="回答エリア",【M】エリア!$E86,"")) -> うみんぴあ大飯 エリア | D107: =T(IF($B$2="回答エリア",【M】エリア!$F86,"")) -> おおい町 | E107: =T(IF($B$2="回答エリア",【M】エリア!$H86,【M】エリア!$B86)) -> 
B108: =IF($B$2="回答エリア",【M】エリア!$D87,【M】エリア!$A87) -> 85 | C108: =T(IF($B$2="回答エリア",【M】エリア!$E87,"")) -> 若州一滴文庫 エリア | D108: =T(IF($B$2="回答エリア",【M】エリア!$F87,"")) -> おおい町 | E108: =T(IF($B$2="回答エリア",【M】エリア!$H87,【M】エリア!$B87)) -> 
B109: =IF($B$2="回答エリア",【M】エリア!$D88,【M】エリア!$A88) -> 86 | C109: =T(IF($B$2="回答エリア",【M】エリア!$E88,"")) -> 名田庄 エリア | D109: =T(IF($B$2="回答エリア",【M】エリア!$F88,"")) -> おおい町 | E109: =T(IF($B$2="回答エリア",【M】エリア!$H88,【M】エリア!$B88)) -> 
B110: =IF($B$2="回答エリア",【M】エリア!$D89,【M】エリア!$A89) -> 87 | C110: =T(IF($B$2="回答エリア",【M】エリア!$E89,"")) -> 赤礁崎オートキャンプ場 エリア | D110: =T(IF($B$2="回答エリア",【M】エリア!$F89,"")) -> おおい町 | E110: =T(IF($B$2="回答エリア",【M】エリア!$H89,【M】エリア!$B89)) -> 
B111: =IF($B$2="回答エリア",【M】エリア!$D90,【M】エリア!$A90) -> 88 | C111: =T(IF($B$2="回答エリア",【M】エリア!$E90,"")) -> 道の駅「シーサイド高浜」 エリア | D111: =T(IF($B$2="回答エリア",【M】エリア!$F90,"")) -> 高浜町 | E111: =T(IF($B$2="回答エリア",【M】エリア!$H90,【M】エリア!$B90)) -> 
B112: =IF($B$2="回答エリア",【M】エリア!$D91,【M】エリア!$A91) -> 89 | C112: =T(IF($B$2="回答エリア",【M】エリア!$E91,"")) -> 若狭和田 エリア | D112: =T(IF($B$2="回答エリア",【M】エリア!$F91,"")) -> 高浜町 | E112: =T(IF($B$2="回答エリア",【M】エリア!$H91,【M】エリア!$B91)) -> 
B113: =IF($B$2="回答エリア",【M】エリア!$D92,【M】エリア!$A92) -> 90 | C113: =T(IF($B$2="回答エリア",【M】エリア!$E92,"")) -> 若狭高浜 エリア | D113: =T(IF($B$2="回答エリア",【M】エリア!$F92,"")) -> 高浜町 | E113: =T(IF($B$2="回答エリア",【M】エリア!$H92,【M】エリア!$B92)) -> 
B114: =IF($B$2="回答エリア",【M】エリア!$D93,【M】エリア!$A93) -> 0 | C114: =T(IF($B$2="回答エリア",【M】エリア!$E93,"")) ->  | D114: =T(IF($B$2="回答エリア",【M】エリア!$F93,"")) ->  | E114: =T(IF($B$2="回答エリア",【M】エリア!$H93,【M】エリア!$B93)) -> 
B115: =IF($B$2="回答エリア",【M】エリア!$D94,【M】エリア!$A94) -> 0 | C115: =T(IF($B$2="回答エリア",【M】エリア!$E94,"")) ->  | D115: =T(IF($B$2="回答エリア",【M】エリア!$F94,"")) ->  | E115: =T(IF($B$2="回答エリア",【M】エリア!$H94,【M】エリア!$B94)) -> 
B116: =IF($B$2="回答エリア",【M】エリア!$D95,【M】エリア!$A95) -> 0 | C116: =T(IF($B$2="回答エリア",【M】エリア!$E95,"")) ->  | D116: =T(IF($B$2="回答エリア",【M】エリア!$F95,"")) ->  | E116: =T(IF($B$2="回答エリア",【M】エリア!$H95,【M】エリア!$B95)) -> 
B117: =IF($B$2="回答エリア",【M】エリア!$D96,【M】エリア!$A96) -> 0 | C117: =T(IF($B$2="回答エリア",【M】エリア!$E96,"")) ->  | D117: =T(IF($B$2="回答エリア",【M】エリア!$F96,"")) ->  | E117: =T(IF($B$2="回答エリア",【M】エリア!$H96,【M】エリア!$B96)) -> 
B118: =IF($B$2="回答エリア",【M】エリア!$D97,【M】エリア!$A97) -> 0 | C118: =T(IF($B$2="回答エリア",【M】エリア!$E97,"")) ->  | D118: =T(IF($B$2="回答エリア",【M】エリア!$F97,"")) ->  | E118: =T(IF($B$2="回答エリア",【M】エリア!$H97,【M】エリア!$B97)) -> 
B119: =IF($B$2="回答エリア",【M】エリア!$D98,【M】エリア!$A98) -> 0 | C119: =T(IF($B$2="回答エリア",【M】エリア!$E98,"")) ->  | D119: =T(IF($B$2="回答エリア",【M】エリア!$F98,"")) ->  | E119: =T(IF($B$2="回答エリア",【M】エリア!$H98,【M】エリア!$B98)) -> 
B120: =IF($B$2="回答エリア",【M】エリア!$D99,【M】エリア!$A99) -> 0 | C120: =T(IF($B$2="回答エリア",【M】エリア!$E99,"")) ->  | D120: =T(IF($B$2="回答エリア",【M】エリア!$F99,"")) ->  | E120: =T(IF($B$2="回答エリア",【M】エリア!$H99,【M】エリア!$B99)) -> 
B121: =IF($B$2="回答エリア",【M】エリア!$D100,【M】エリア!$A100) -> 0 | C121: =T(IF($B$2="回答エリア",【M】エリア!$E100,"")) ->  | D121: =T(IF($B$2="回答エリア",【M】エリア!$F100,"")) ->  | E121: =T(IF($B$2="回答エリア",【M】エリア!$H100,【M】エリア!$B100)) -> 
B122: =IF($B$2="回答エリア",【M】エリア!$D101,【M】エリア!$A101) -> 0 | C122: =T(IF($B$2="回答エリア",【M】エリア!$E101,"")) ->  | D122: =T(IF($B$2="回答エリア",【M】エリア!$F101,"")) ->  | E122: =T(IF($B$2="回答エリア",【M】エリア!$H101,【M】エリア!$B101)) -> 
B123: =IF($B$2="回答エリア",【M】エリア!$D102,【M】エリア!$A102) -> 0 | C123: =T(IF($B$2="回答エリア",【M】エリア!$E102,"")) ->  | D123: =T(IF($B$2="回答エリア",【M】エリア!$F102,"")) ->  | E123: =T(IF($B$2="回答エリア",【M】エリア!$H102,【M】エリア!$B102)) -> 
B124: =IF($B$2="回答エリア",【M】エリア!$D103,【M】エリア!$A103) -> 0 | C124: =T(IF($B$2="回答エリア",【M】エリア!$E103,"")) ->  | D124: =T(IF($B$2="回答エリア",【M】エリア!$F103,"")) ->  | E124: =T(IF($B$2="回答エリア",【M】エリア!$H103,【M】エリア!$B103)) -> 
B125: =IF($B$2="回答エリア",【M】エリア!$D104,【M】エリア!$A104) -> 0 | C125: =T(IF($B$2="回答エリア",【M】エリア!$E104,"")) ->  | D125: =T(IF($B$2="回答エリア",【M】エリア!$F104,"")) ->  | E125: =T(IF($B$2="回答エリア",【M】エリア!$H104,【M】エリア!$B104)) -> 
B126: =IF($B$2="回答エリア",【M】エリア!$D105,【M】エリア!$A105) -> 0 | C126: =T(IF($B$2="回答エリア",【M】エリア!$E105,"")) ->  | D126: =T(IF($B$2="回答エリア",【M】エリア!$F105,"")) ->  | E126: =T(IF($B$2="回答エリア",【M】エリア!$H105,【M】エリア!$B105)) -> 
B127: =IF($B$2="回答エリア",【M】エリア!$D106,【M】エリア!$A106) -> 0 | C127: =T(IF($B$2="回答エリア",【M】エリア!$E106,"")) ->  | D127: =T(IF($B$2="回答エリア",【M】エリア!$F106,"")) ->  | E127: =T(IF($B$2="回答エリア",【M】エリア!$H106,【M】エリア!$B106)) -> 
B128: =IF($B$2="回答エリア",【M】エリア!$D107,【M】エリア!$A107) -> 0 | C128: =T(IF($B$2="回答エリア",【M】エリア!$E107,"")) ->  | D128: =T(IF($B$2="回答エリア",【M】エリア!$F107,"")) ->  | E128: =T(IF($B$2="回答エリア",【M】エリア!$H107,【M】エリア!$B107)) -> 
B129: =IF($B$2="回答エリア",【M】エリア!$D108,【M】エリア!$A108) -> 0 | C129: =T(IF($B$2="回答エリア",【M】エリア!$E108,"")) ->  | D129: =T(IF($B$2="回答エリア",【M】エリア!$F108,"")) ->  | E129: =T(IF($B$2="回答エリア",【M】エリア!$H108,【M】エリア!$B108)) -> 
B130: =IF($B$2="回答エリア",【M】エリア!$D109,【M】エリア!$A109) -> 0 | C130: =T(IF($B$2="回答エリア",【M】エリア!$E109,"")) ->  | D130: =T(IF($B$2="回答エリア",【M】エリア!$F109,"")) ->  | E130: =T(IF($B$2="回答エリア",【M】エリア!$H109,【M】エリア!$B109)) -> 
B131: =IF($B$2="回答エリア",【M】エリア!$D110,【M】エリア!$A110) -> 0 | C131: =T(IF($B$2="回答エリア",【M】エリア!$E110,"")) ->  | D131: =T(IF($B$2="回答エリア",【M】エリア!$F110,"")) ->  | E131: =T(IF($B$2="回答エリア",【M】エリア!$H110,【M】エリア!$B110)) -> 
B132: =IF($B$2="回答エリア",【M】エリア!$D111,【M】エリア!$A111) -> 0 | C132: =T(IF($B$2="回答エリア",【M】エリア!$E111,"")) ->  | D132: =T(IF($B$2="回答エリア",【M】エリア!$F111,"")) ->  | E132: =T(IF($B$2="回答エリア",【M】エリア!$H111,【M】エリア!$B111)) -> 
B133: =IF($B$2="回答エリア",【M】エリア!$D112,【M】エリア!$A112) -> 0 | C133: =T(IF($B$2="回答エリア",【M】エリア!$E112,"")) ->  | D133: =T(IF($B$2="回答エリア",【M】エリア!$F112,"")) ->  | E133: =T(IF($B$2="回答エリア",【M】エリア!$H112,【M】エリア!$B112)) -> 
B134: =IF($B$2="回答エリア",【M】エリア!$D113,【M】エリア!$A113) -> 0 | C134: =T(IF($B$2="回答エリア",【M】エリア!$E113,"")) ->  | D134: =T(IF($B$2="回答エリア",【M】エリア!$F113,"")) ->  | E134: =T(IF($B$2="回答エリア",【M】エリア!$H113,【M】エリア!$B113)) -> 
B135: =IF($B$2="回答エリア",【M】エリア!$D114,【M】エリア!$A114) -> 0 | C135: =T(IF($B$2="回答エリア",【M】エリア!$E114,"")) ->  | D135: =T(IF($B$2="回答エリア",【M】エリア!$F114,"")) ->  | E135: =T(IF($B$2="回答エリア",【M】エリア!$H114,【M】エリア!$B114)) -> 
B136: =IF($B$2="回答エリア",【M】エリア!$D115,【M】エリア!$A115) -> 0 | C136: =T(IF($B$2="回答エリア",【M】エリア!$E115,"")) ->  | D136: =T(IF($B$2="回答エリア",【M】エリア!$F115,"")) ->  | E136: =T(IF($B$2="回答エリア",【M】エリア!$H115,【M】エリア!$B115)) -> 
B137: =IF($B$2="回答エリア",【M】エリア!$D116,【M】エリア!$A116) -> 0 | C137: =T(IF($B$2="回答エリア",【M】エリア!$E116,"")) ->  | D137: =T(IF($B$2="回答エリア",【M】エリア!$F116,"")) ->  | E137: =T(IF($B$2="回答エリア",【M】エリア!$H116,【M】エリア!$B116)) -> 
B138: =IF($B$2="回答エリア",【M】エリア!$D117,【M】エリア!$A117) -> 0 | C138: =T(IF($B$2="回答エリア",【M】エリア!$E117,"")) ->  | D138: =T(IF($B$2="回答エリア",【M】エリア!$F117,"")) ->  | E138: =T(IF($B$2="回答エリア",【M】エリア!$H117,【M】エリア!$B117)) -> 
B139: =IF($B$2="回答エリア",【M】エリア!$D118,【M】エリア!$A118) -> 0 | C139: =T(IF($B$2="回答エリア",【M】エリア!$E118,"")) ->  | D139: =T(IF($B$2="回答エリア",【M】エリア!$F118,"")) ->  | E139: =T(IF($B$2="回答エリア",【M】エリア!$H118,【M】エリア!$B118)) -> 
B140: =IF($B$2="回答エリア",【M】エリア!$D119,【M】エリア!$A119) -> 0 | C140: =T(IF($B$2="回答エリア",【M】エリア!$E119,"")) ->  | D140: =T(IF($B$2="回答エリア",【M】エリア!$F119,"")) ->  | E140: =T(IF($B$2="回答エリア",【M】エリア!$H119,【M】エリア!$B119)) -> 
B141: =IF($B$2="回答エリア",【M】エリア!$D120,【M】エリア!$A120) -> 0 | C141: =T(IF($B$2="回答エリア",【M】エリア!$E120,"")) ->  | D141: =T(IF($B$2="回答エリア",【M】エリア!$F120,"")) ->  | E141: =T(IF($B$2="回答エリア",【M】エリア!$H120,【M】エリア!$B120)) -> 
B142: =IF($B$2="回答エリア",【M】エリア!$D121,【M】エリア!$A121) -> 0 | C142: =T(IF($B$2="回答エリア",【M】エリア!$E121,"")) ->  | D142: =T(IF($B$2="回答エリア",【M】エリア!$F121,"")) ->  | E142: =T(IF($B$2="回答エリア",【M】エリア!$H121,【M】エリア!$B121)) -> 

Sheet output➡

Sheet 回答数
C1: 回答月 | R1: 集計区分 | T1: 回答数 | U1: 回答月
C2: 4月 | D2: 5月 | E2: 6月 | F2: 7月 | G2: 8月 | H2: 9月 | I2: 10月 | J2: 11月 | K2: 12月 | L2: 1月 | M2: 2月 | N2: 3月 | O2: 合計 | U2: 4月 | W2: 5月 | Y2: 6月 | AA2: 7月 | AC2: 8月 | AE2: 9月 | AG2: 10月 | AI2: 11月 | AK2: 12月 | AM2: 1月 | AO2: 2月 | AQ2: 3月 | AS2: 合計
A3: =【M】エリア!$L$2 -> 福井県 | B3: 単月 | C3: =VLOOKUP($A3,$S$3:$AS$95,MATCH(C$2,$S$2:$AS$2,0),FALSE) -> 3241件 | D3: =VLOOKUP($A3,$S$3:$AS$95,MATCH(D$2,$S$2:$AS$2,0),FALSE) -> 2939件 | E3: 2330件 | F3: 1900件 | G3: 2610件 | H3: 2665件 | I3: 2220件 | J3: 2548件 | K3: 1948件 | L3: 1465件 | M3: 1373件 | N3: 2725件 | O3: 27964件 | R3: 都道府県 | S3: =【M】エリア!$L$2 -> 福井県 | U3: =IF(ISBLANK($S3), "", COUNTIFS(INDEX(rawデータ範囲, , MATCH($U$1,表頭範囲, 0)),U$2 )) -> 3241件 | W3: 2939件 | Y3: 2330件 | AA3: 1900件 | AC3: 2610件 | AE3: 2665件 | AG3: 2220件 | AI3: 2548件 | AK3: 1948件 | AM3: 1465件 | AO3: 1373件 | AQ3: 2725件 | AS3: =SUM($U3:$AQ3) -> 27964件
B4: 累計 | C4: =C3 -> 3241件 | D4: =C4+D3 -> 6180件 | E4: =D4+E3 -> 8510件 | F4: 10410件 | G4: 13020件 | H4: 15685件 | I4: 17905件 | J4: 20453件 | K4: 22401件 | L4: 23866件 | M4: 25239件 | N4: 27964件 | O4: =N4+O3 -> 55928件 | R4: =【M】エリア!$J$2 -> 6分類 | S4: =【M】エリア!$L$3 -> 福井市・永平寺町 | U4: =IF($S4="", "", COUNTIFS( INDEX(rawデータ範囲, , MATCH($R4,表頭範囲, 0)), $S4, INDEX(rawデータ範囲, , MATCH($U$1,表頭範囲, 0)),U$2 ) ) -> 497件 | W4: 575件 | Y4: 514件 | AA4: 383件 | AC4: 547件 | AE4: 580件 | AG4: 447件 | AI4: 609件 | AK4: 368件 | AM4: 301件 | AO4: 263件 | AQ4: 535件 | AS4: =IF(ISBLANK($S4), "",SUM($U4:$AQ4)) -> 5619件
A5: =【M】エリア!$L$3 -> 福井市・永平寺町 | B5: 単月 | C5: =VLOOKUP($A5,$S$3:$AS$95,MATCH(C$2,$S$2:$AS$2,0),FALSE) -> 497件 | D5: 575件 | E5: 514件 | F5: 383件 | G5: 547件 | H5: 580件 | I5: 447件 | J5: 609件 | K5: 368件 | L5: 301件 | M5: 263件 | N5: 535件 | O5: 5619件 | R5: 市町村 | S5: =【M】エリア!$L$4 -> 福井市 | U5: 384件 | W5: 322件 | Y5: 287件 | AA5: 211件 | AC5: 285件 | AE5: 316件 | AG5: 248件 | AI5: 324件 | AK5: 219件 | AM5: 161件 | AO5: 151件 | AQ5: 288件 | AS5: =IF($S5="", "",SUM($U5:$AQ5)) -> 3196件
B6: 累計 | C6: =C5 -> 497件 | D6: =C6+D5 -> 1072件 | E6: =D6+E5 -> 1586件 | F6: =E6+F5 -> 1969件 | G6: =F6+G5 -> 2516件 | H6: =G6+H5 -> 3096件 | I6: =H6+I5 -> 3543件 | J6: =I6+J5 -> 4152件 | K6: =J6+K5 -> 4520件 | L6: =K6+L5 -> 4821件 | M6: =L6+M5 -> 5084件 | N6: =M6+N5 -> 5619件 | O6: 11238件 | R6: 回答エリア | S6: =IF(【M】エリア!$E2<>"",【M】エリア!$E2,"") -> 福井駅前 エリア | U6: =IF($S6="", "", COUNTIFS( INDEX(rawデータ範囲, , MATCH($R6,表頭範囲, 0)), $S6, INDEX(rawデータ範囲, , MATCH($U$1,表頭範囲, 0)),U$2 ) ) -> 164件 | W6: 158件 | Y6: 123件 | AA6: 75件 | AC6: 103件 | AE6: 110件 | AG6: 103件 | AI6: 128件 | AK6: 100件 | AM6: 71件 | AO6: 68件 | AQ6: 115件 | AS6: =IF($S6="", "",SUM($U6:$AQ6)) -> 1318件
A7: =【M】エリア!$L$4 -> 福井市 | B7: 単月 | C7: =VLOOKUP($A7,$S$3:$AS$95,MATCH(C$2,$S$2:$AS$2,0),FALSE) -> 384件 | D7: 322件 | E7: 287件 | F7: 211件 | G7: 285件 | H7: 316件 | I7: 248件 | J7: 324件 | K7: 219件 | L7: 161件 | M7: 151件 | N7: 288件 | O7: 3196件 | R7: 回答エリア | S7: =IF(【M】エリア!$E3<>"",【M】エリア!$E3,"") -> 福井駅前 エリア（宿泊施設） | U7: 52件 | W7: 42件 | Y7: 37件 | AA7: 36件 | AC7: 38件 | AE7: 34件 | AG7: 22件 | AI7: 49件 | AK7: 30件 | AM7: 21件 | AO7: 23件 | AQ7: 36件 | AS7: 420件
B8: 累計 | C8: =C7 -> 384件 | D8: =C8+D7 -> 706件 | E8: =D8+E7 -> 993件 | F8: =E8+F7 -> 1204件 | G8: =F8+G7 -> 1489件 | H8: =G8+H7 -> 1805件 | I8: =H8+I7 -> 2053件 | J8: =I8+J7 -> 2377件 | K8: =J8+K7 -> 2596件 | L8: =K8+L7 -> 2757件 | M8: =L8+M7 -> 2908件 | N8: =M8+N7 -> 3196件 | O8: =N8+O7 -> 6392件 | R8: 回答エリア | S8: =IF(【M】エリア!$E4<>"",【M】エリア!$E4,"") -> 北ノ庄 エリア | U8: 14件 | W8: 11件 | Y8: 15件 | AA8: 4件 | AC8: 11件 | AE8: 21件 | AG8: 18件 | AI8: 14件 | AK8: 17件 | AM8: 11件 | AO8: 10件 | AQ8: 13件 | AS8: 159件
A9: =【M】エリア!$L$5 -> 福井駅前 エリア | B9: 単月 | C9: =VLOOKUP($A9,$S$3:$AS$95,MATCH(C$2,$S$2:$AS$2,0),FALSE) -> 164件 | D9: 158件 | E9: 123件 | F9: 75件 | G9: 103件 | H9: 110件 | I9: 103件 | J9: 128件 | K9: 100件 | L9: 71件 | M9: 68件 | N9: 115件 | O9: 1318件 | R9: 回答エリア | S9: =IF(【M】エリア!$E5<>"",【M】エリア!$E5,"") -> 名勝 養浩館庭園 エリア | U9: 14件 | W9: 23件 | Y9: 19件 | AA9: 12件 | AC9: 16件 | AE9: 14件 | AG9: 12件 | AI9: 11件 | AK9: 12件 | AM9: 8件 | AO9: 9件 | AQ9: 19件 | AS9: 169件
B10: 累計 | C10: =C9 -> 164件 | D10: =C10+D9 -> 322件 | E10: =D10+E9 -> 445件 | F10: =E10+F9 -> 520件 | G10: =F10+G9 -> 623件 | H10: =G10+H9 -> 733件 | I10: =H10+I9 -> 836件 | J10: =I10+J9 -> 964件 | K10: =J10+K9 -> 1064件 | L10: =K10+L9 -> 1135件 | M10: =L10+M9 -> 1203件 | N10: =M10+N9 -> 1318件 | O10: =N10+O9 -> 2636件 | R10: 回答エリア | S10: =IF(【M】エリア!$E6<>"",【M】エリア!$E6,"") -> ふくい鮮いちば エリア | U10: 28件 | W10: 17件 | Y10: 14件 | AA10: 15件 | AC10: 22件 | AE10: 44件 | AG10: 17件 | AI10: 40件 | AK10: 24件 | AM10: 9件 | AO10: 8件 | AQ10: 20件 | AS10: 258件
R11: 回答エリア | S11: =IF(【M】エリア!$E7<>"",【M】エリア!$E7,"") -> 一乗谷朝倉氏遺跡 エリア | U11: 97件 | W11: 59件 | Y11: 63件 | AA11: 50件 | AC11: 83件 | AE11: 76件 | AG11: 68件 | AI11: 73件 | AK11: 30件 | AM11: 33件 | AO11: 26件 | AQ11: 71件 | AS11: 729件
R12: 回答エリア | S12: =IF(【M】エリア!$E8<>"",【M】エリア!$E8,"") -> 越前海岸 北部 エリア | U12: 14件 | W12: 12件 | Y12: 12件 | AA12: 16件 | AC12: 12件 | AE12: 15件 | AG12: 5件 | AI12: 9件 | AK12: 6件 | AM12: 7件 | AO12: 5件 | AQ12: 13件 | AS12: 126件
R13: 回答エリア | S13: =IF(【M】エリア!$E9<>"",【M】エリア!$E9,"") -> 大安禅寺 エリア | U13: 1件 | W13: 0件 | Y13: 4件 | AA13: 3件 | AC13: 0件 | AE13: 2件 | AG13: 3件 | AI13: 0件 | AK13: 0件 | AM13: 1件 | AO13: 2件 | AQ13: 1件 | AS13: 17件
R14: 回答エリア | S14: =IF(【M】エリア!$E10<>"",【M】エリア!$E10,"") -> 三国湊 エリア | U14: =IF($S14="", "", COUNTIFS( INDEX(rawデータ範囲, , MATCH($R14,表頭範囲, 0)), $S14, INDEX(rawデータ範囲, , MATCH($U$1,表頭範囲, 0)),U$2 ) ) -> 52件 | W14: 49件 | Y14: 34件 | AA14: 16件 | AC14: 32件 | AE14: 52件 | AG14: 50件 | AI14: 36件 | AK14: 55件 | AM14: 41件 | AO14: 31件 | AQ14: 44件 | AS14: 492件
R15: 回答エリア | S15: =IF(【M】エリア!$E11<>"",【M】エリア!$E11,"") -> 東尋坊 エリア | U15: 68件 | W15: 66件 | Y15: 49件 | AA15: 39件 | AC15: 42件 | AE15: 41件 | AG15: 27件 | AI15: 37件 | AK15: 16件 | AM15: 17件 | AO15: 9件 | AQ15: 29件 | AS15: 440件
R16: 回答エリア | S16: =IF(【M】エリア!$E12<>"",【M】エリア!$E12,"") -> 越前松島水族館 エリア | U16: 29件 | W16: 27件 | Y16: 26件 | AA16: 23件 | AC16: 18件 | AE16: 23件 | AG16: 7件 | AI16: 14件 | AK16: 8件 | AM16: 9件 | AO16: 14件 | AQ16: 16件 | AS16: 214件
R17: 回答エリア | S17: =IF(【M】エリア!$E13<>"",【M】エリア!$E13,"") -> 芝政ワールド エリア | U17: 12件 | W17: 17件 | Y17: 9件 | AA17: 9件 | AC17: 13件 | AE17: 9件 | AG17: 4件 | AI17: 3件 | AK17: 4件 | AM17: 1件 | AO17: 3件 | AQ17: 4件 | AS17: 88件
R18: 回答エリア | S18: =IF(【M】エリア!$E14<>"",【M】エリア!$E14,"") -> 丸岡城 エリア | U18: 94件 | W18: 44件 | Y18: 54件 | AA18: 31件 | AC18: 40件 | AE18: 70件 | AG18: 48件 | AI18: 57件 | AK18: 31件 | AM18: 32件 | AO18: 20件 | AQ18: 63件 | AS18: 584件
R19: 回答エリア | S19: =IF(【M】エリア!$E15<>"",【M】エリア!$E15,"") -> 花の駅 ゆりの里公園 エリア | U19: 26件 | W19: 29件 | Y19: 37件 | AA19: 15件 | AC19: 77件 | AE19: 36件 | AG19: 27件 | AI19: 24件 | AK19: 14件 | AM19: 17件 | AO19: 25件 | AQ19: 27件 | AS19: 354件
R20: 回答エリア | S20: =IF(【M】エリア!$E16<>"",【M】エリア!$E16,"") -> 道の駅みくに ふれあいパーク三里浜 エリア | U20: 55件 | W20: 47件 | Y20: 50件 | AA20: 28件 | AC20: 36件 | AE20: 45件 | AG20: 19件 | AI20: 26件 | AK20: 10件 | AM20: 9件 | AO20: 6件 | AQ20: 7件 | AS20: 338件
R21: 回答エリア | S21: =IF(【M】エリア!$E17<>"",【M】エリア!$E17,"") -> JR芦原温泉駅 エリア | U21: 57件 | W21: 26件 | Y21: 25件 | AA21: 22件 | AC21: 22件 | AE21: 20件 | AG21: 7件 | AI21: 13件 | AK21: 18件 | AM21: 8件 | AO21: 20件 | AQ21: 18件 | AS21: 256件
R22: 回答エリア | S22: =IF(【M】エリア!$E18<>"",【M】エリア!$E18,"") -> あわら湯のまち エリア | U22: 289件 | W22: 183件 | Y22: 183件 | AA22: 171件 | AC22: 198件 | AE22: 197件 | AG22: 164件 | AI22: 169件 | AK22: 159件 | AM22: 120件 | AO22: 141件 | AQ22: 172件 | AS22: 2146件
R23: 回答エリア | S23: =IF(【M】エリア!$E19<>"",【M】エリア!$E19,"") -> フルーツライン エリア | U23: 17件 | W23: 24件 | Y23: 45件 | AA23: 19件 | AC23: 18件 | AE23: 30件 | AG23: 13件 | AI23: 16件 | AK23: 11件 | AM23: 14件 | AO23: 8件 | AQ23: 14件 | AS23: 229件
R24: 回答エリア | S24: =IF(【M】エリア!$E20<>"",【M】エリア!$E20,"") -> 波松 エリア | U24: =IF($S24="", "", COUNTIFS( INDEX(rawデータ範囲, , MATCH($R24,表頭範囲, 0)), $S24, INDEX(rawデータ範囲, , MATCH($U$1,表頭範囲, 0)),U$2 ) ) -> 1件 | W24: 0件 | Y24: 1件 | AA24: 3件 | AC24: 1件 | AE24: 0件 | AG24: 2件 | AI24: 0件 | AK24: 0件 | AM24: 0件 | AO24: 0件 | AQ24: 0件 | AS24: 8件
R25: 回答エリア | S25: =IF(【M】エリア!$E21<>"",【M】エリア!$E21,"") -> 北潟湖 エリア | U25: 33件 | W25: 27件 | Y25: 44件 | AA25: 23件 | AC25: 26件 | AE25: 32件 | AG25: 12件 | AI25: 21件 | AK25: 11件 | AM25: 15件 | AO25: 16件 | AQ25: 34件 | AS25: 294件
R26: 回答エリア | S26: =IF(【M】エリア!$E22<>"",【M】エリア!$E22,"") -> 越前大野城・城下町 エリア | U26: 104件 | W26: 87件 | Y26: 59件 | AA26: 56件 | AC26: 52件 | AE26: 52件 | AG26: 68件 | AI26: 94件 | AK26: 17件 | AM26: 17件 | AO26: 16件 | AQ26: 33件 | AS26: 655件
R27: 回答エリア | S27: =IF(【M】エリア!$E23<>"",【M】エリア!$E23,"") -> 道の駅「越前おおの荒島の郷」 エリア | U27: 61件 | W27: 68件 | Y27: 47件 | AA27: 47件 | AC27: 49件 | AE27: 53件 | AG27: 46件 | AI27: 78件 | AK27: 17件 | AM27: 26件 | AO27: 14件 | AQ27: 23件 | AS27: 529件
R28: 回答エリア | S28: =IF(【M】エリア!$E24<>"",【M】エリア!$E24,"") -> JR九頭竜湖駅 エリア | U28: 26件 | W28: 31件 | Y28: 21件 | AA28: 14件 | AC28: 19件 | AE28: 27件 | AG28: 36件 | AI28: 32件 | AK28: 6件 | AM28: 1件 | AO28: 2件 | AQ28: 6件 | AS28: 221件
R29: 回答エリア | S29: =IF(【M】エリア!$E25<>"",【M】エリア!$E25,"") -> 六呂師高原 エリア | U29: 3件 | W29: 16件 | Y29: 1件 | AA29: 6件 | AC29: 12件 | AE29: 8件 | AG29: 4件 | AI29: 10件 | AK29: 0件 | AM29: 1件 | AO29: 1件 | AQ29: 5件 | AS29: 67件
R30: 回答エリア | S30: =IF(【M】エリア!$E26<>"",【M】エリア!$E26,"") -> スーベニアショップふらぷとる エリア | U30: 90件 | W30: 60件 | Y30: 29件 | AA30: 50件 | AC30: 48件 | AE30: 28件 | AG30: 24件 | AI30: 0件 | AK30: 0件 | AM30: 0件 | AO30: 0件 | AQ30: 0件 | AS30: 329件
R31: 回答エリア | S31: =IF(【M】エリア!$E27<>"",【M】エリア!$E27,"") -> かつやま恐竜の森 エリア | U31: 0件 | W31: 0件 | Y31: 0件 | AA31: 0件 | AC31: 0件 | AE31: 0件 | AG31: 0件 | AI31: 31件 | AK31: 145件 | AM31: 110件 | AO31: 103件 | AQ31: 279件 | AS31: 668件
R32: 回答エリア | S32: =IF(【M】エリア!$E28<>"",【M】エリア!$E28,"") -> 道の駅「恐竜渓谷かつやま」 エリア | U32: 65件 | W32: 53件 | Y32: 40件 | AA32: 22件 | AC32: 26件 | AE32: 28件 | AG32: 29件 | AI32: 32件 | AK32: 22件 | AM32: 23件 | AO32: 38件 | AQ32: 45件 | AS32: 423件
R33: 回答エリア | S33: =IF(【M】エリア!$E29<>"",【M】エリア!$E29,"") -> スキージャム勝山 エリア | U33: 11件 | W33: 8件 | Y33: 2件 | AA33: 3件 | AC33: 6件 | AE33: 2件 | AG33: 5件 | AI33: 3件 | AK33: 7件 | AM33: 7件 | AO33: 21件 | AQ33: 24件 | AS33: 99件
R34: 回答エリア | S34: =IF(【M】エリア!$E30<>"",【M】エリア!$E30,"") -> 越前大仏 エリア | U34: =IF($S34="", "", COUNTIFS( INDEX(rawデータ範囲, , MATCH($R34,表頭範囲, 0)), $S34, INDEX(rawデータ範囲, , MATCH($U$1,表頭範囲, 0)),U$2 ) ) -> 5件 | W34: 13件 | Y34: 9件 | AA34: 11件 | AC34: 4件 | AE34: 15件 | AG34: 14件 | AI34: 20件 | AK34: 9件 | AM34: 4件 | AO34: 6件 | AQ34: 12件 | AS34: 122件
R35: 回答エリア | S35: =IF(【M】エリア!$E31<>"",【M】エリア!$E31,"") -> 平泉寺白山神社 エリア | U35: 20件 | W35: 27件 | Y35: 17件 | AA35: 21件 | AC35: 9件 | AE35: 7件 | AG35: 7件 | AI35: 11件 | AK35: 3件 | AM35: 4件 | AO35: 3件 | AQ35: 4件 | AS35: 133件
R36: 回答エリア | S36: =IF(【M】エリア!$E32<>"",【M】エリア!$E32,"") -> はたや記念館 ゆめおーれ勝山 エリア | U36: 14件 | W36: 23件 | Y36: 21件 | AA36: 11件 | AC36: 17件 | AE36: 9件 | AG36: 20件 | AI36: 12件 | AK36: 8件 | AM36: 6件 | AO36: 8件 | AQ36: 12件 | AS36: 161件
R37: 回答エリア | S37: =IF(【M】エリア!$E33<>"",【M】エリア!$E33,"") -> えちぜん鉄道 永平寺口駅 エリア | U37: 20件 | W37: 8件 | Y37: 18件 | AA37: 12件 | AC37: 7件 | AE37: 9件 | AG37: 5件 | AI37: 8件 | AK37: 5件 | AM37: 6件 | AO37: 5件 | AQ37: 10件 | AS37: 113件
R38: 回答エリア | S38: =IF(【M】エリア!$E34<>"",【M】エリア!$E34,"") -> 九頭竜川 エリア（鮎・釣り） | U38: 0件 | W38: 0件 | Y38: 0件 | AA38: 0件 | AC38: 1件 | AE38: 0件 | AG38: 0件 | AI38: 0件 | AK38: 0件 | AM38: 0件 | AO38: 0件 | AQ38: 0件 | AS38: 1件
R39: 回答エリア | S39: =IF(【M】エリア!$E35<>"",【M】エリア!$E35,"") -> えちぜん鉄道 松岡駅 エリア | U39: 22件 | W39: 20件 | Y39: 25件 | AA39: 14件 | AC39: 25件 | AE39: 26件 | AG39: 12件 | AI39: 16件 | AK39: 9件 | AM39: 5件 | AO39: 7件 | AQ39: 12件 | AS39: 193件
R40: 回答エリア | S40: =IF(【M】エリア!$E36<>"",【M】エリア!$E36,"") -> 大本山 永平寺 エリア | U40: 55件 | W40: 211件 | Y40: 171件 | AA40: 139件 | AC40: 216件 | AE40: 200件 | AG40: 172件 | AI40: 238件 | AK40: 120件 | AM40: 112件 | AO40: 79件 | AQ40: 184件 | AS40: 1897件
R41: 回答エリア | S41: =IF(【M】エリア!$E37<>"",【M】エリア!$E37,"") -> 道の駅「禅の里」 エリア | U41: 16件 | W41: 14件 | Y41: 13件 | AA41: 7件 | AC41: 13件 | AE41: 29件 | AG41: 10件 | AI41: 23件 | AK41: 15件 | AM41: 17件 | AO41: 21件 | AQ41: 41件 | AS41: 219件
R42: 回答エリア | S42: =IF(【M】エリア!$E38<>"",【M】エリア!$E38,"") -> 越前和紙の里 エリア | U42: 13件 | W42: 8件 | Y42: 8件 | AA42: 5件 | AC42: 15件 | AE42: 13件 | AG42: 7件 | AI42: 17件 | AK42: 17件 | AM42: 4件 | AO42: 9件 | AQ42: 11件 | AS42: 127件
R43: 回答エリア | S43: =IF(【M】エリア!$E39<>"",【M】エリア!$E39,"") -> 越前そばの里 エリア | U43: 100件 | W43: 67件 | Y43: 36件 | AA43: 32件 | AC43: 150件 | AE43: 149件 | AG43: 115件 | AI43: 189件 | AK43: 276件 | AM43: 130件 | AO43: 193件 | AQ43: 328件 | AS43: 1765件
R44: 回答エリア | S44: =IF(【M】エリア!$E40<>"",【M】エリア!$E40,"") -> 北陸新幹線 越前たけふ駅 エリア | U44: =IF($S44="", "", COUNTIFS( INDEX(rawデータ範囲, , MATCH($R44,表頭範囲, 0)), $S44, INDEX(rawデータ範囲, , MATCH($U$1,表頭範囲, 0)),U$2 ) ) -> 57件 | W44: 46件 | Y44: 46件 | AA44: 24件 | AC44: 37件 | AE44: 44件 | AG44: 36件 | AI44: 43件 | AK44: 28件 | AM44: 35件 | AO44: 22件 | AQ44: 41件 | AS44: 459件
R45: 回答エリア | S45: =IF(【M】エリア!$E41<>"",【M】エリア!$E41,"") -> タケフナイフビレッジ エリア | U45: 13件 | W45: 7件 | Y45: 12件 | AA45: 1件 | AC45: 12件 | AE45: 38件 | AG45: 9件 | AI45: 5件 | AK45: 2件 | AM45: 0件 | AO45: 2件 | AQ45: 17件 | AS45: 118件
R46: 回答エリア | S46: =IF(【M】エリア!$E42<>"",【M】エリア!$E42,"") -> 武生駅 エリア | U46: 14件 | W46: 8件 | Y46: 7件 | AA46: 6件 | AC46: 3件 | AE46: 5件 | AG46: 3件 | AI46: 5件 | AK46: 10件 | AM46: 7件 | AO46: 1件 | AQ46: 2件 | AS46: 71件
R47: 回答エリア | S47: =IF(【M】エリア!$E43<>"",【M】エリア!$E43,"") -> 紫式部公園 エリア | U47: 89件 | W47: 76件 | Y47: 65件 | AA47: 29件 | AC47: 37件 | AE47: 36件 | AG47: 29件 | AI47: 38件 | AK47: 22件 | AM47: 11件 | AO47: 6件 | AQ47: 18件 | AS47: 456件
R48: 回答エリア | S48: =IF(【M】エリア!$E44<>"",【M】エリア!$E44,"") -> だるまちゃん広場 エリア | U48: 15件 | W48: 11件 | Y48: 7件 | AA48: 3件 | AC48: 10件 | AE48: 8件 | AG48: 18件 | AI48: 11件 | AK48: 5件 | AM48: 6件 | AO48: 2件 | AQ48: 3件 | AS48: 99件
R49: 回答エリア | S49: =IF(【M】エリア!$E45<>"",【M】エリア!$E45,"") -> 刃物の里 エリア | U49: 5件 | W49: 4件 | Y49: 2件 | AA49: 1件 | AC49: 0件 | AE49: 0件 | AG49: 0件 | AI49: 0件 | AK49: 0件 | AM49: 0件 | AO49: 0件 | AQ49: 6件 | AS49: 18件
R50: 回答エリア | S50: =IF(【M】エリア!$E46<>"",【M】エリア!$E46,"") -> 道の駅「西山公園」 エリア | U50: 46件 | W50: 43件 | Y50: 22件 | AA50: 18件 | AC50: 25件 | AE50: 17件 | AG50: 30件 | AI50: 21件 | AK50: 11件 | AM50: 13件 | AO50: 5件 | AQ50: 8件 | AS50: 259件
R51: 回答エリア | S51: =IF(【M】エリア!$E47<>"",【M】エリア!$E47,"") -> メガネストリート エリア | U51: 15件 | W51: 6件 | Y51: 17件 | AA51: 15件 | AC51: 12件 | AE51: 24件 | AG51: 0件 | AI51: 5件 | AK51: 11件 | AM51: 5件 | AO51: 6件 | AQ51: 10件 | AS51: 126件
R52: 回答エリア | S52: =IF(【M】エリア!$E48<>"",【M】エリア!$E48,"") -> うるしの里 エリア | U52: 7件 | W52: 13件 | Y52: 6件 | AA52: 3件 | AC52: 13件 | AE52: 9件 | AG52: 10件 | AI52: 6件 | AK52: 5件 | AM52: 1件 | AO52: 1件 | AQ52: 12件 | AS52: 86件
R53: 回答エリア | S53: =IF(【M】エリア!$E49<>"",【M】エリア!$E49,"") -> まちの市場 こってコテいけだ エリア | U53: 34件 | W53: 36件 | Y53: 30件 | AA53: 28件 | AC53: 44件 | AE53: 30件 | AG53: 16件 | AI53: 20件 | AK53: 10件 | AM53: 10件 | AO53: 5件 | AQ53: 6件 | AS53: 269件
R54: 回答エリア | S54: =IF(【M】エリア!$E50<>"",【M】エリア!$E50,"") -> かずら橋 エリア | U54: =IF($S54="", "", COUNTIFS( INDEX(rawデータ範囲, , MATCH($R54,表頭範囲, 0)), $S54, INDEX(rawデータ範囲, , MATCH($U$1,表頭範囲, 0)),U$2 ) ) -> 43件 | W54: 87件 | Y54: 79件 | AA54: 72件 | AC54: 92件 | AE54: 59件 | AG54: 33件 | AI54: 48件 | AK54: 24件 | AM54: 16件 | AO54: 7件 | AQ54: 16件 | AS54: 576件
R55: 回答エリア | S55: =IF(【M】エリア!$E51<>"",【M】エリア!$E51,"") -> 道の駅「越前」 エリア | U55: 67件 | W55: 48件 | Y55: 35件 | AA55: 27件 | AC55: 55件 | AE55: 52件 | AG55: 45件 | AI55: 75件 | AK55: 46件 | AM55: 47件 | AO55: 32件 | AQ55: 73件 | AS55: 602件
R56: 回答エリア | S56: =IF(【M】エリア!$E52<>"",【M】エリア!$E52,"") -> 道の駅「パークイン丹生ヶ丘」 エリア | U56: 32件 | W56: 29件 | Y56: 48件 | AA56: 27件 | AC56: 17件 | AE56: 25件 | AG56: 17件 | AI56: 12件 | AK56: 9件 | AM56: 12件 | AO56: 7件 | AQ56: 25件 | AS56: 260件
R57: 回答エリア | S57: =IF(【M】エリア!$E53<>"",【M】エリア!$E53,"") -> 劔神社 エリア | U57: 40件 | W57: 27件 | Y57: 9件 | AA57: 5件 | AC57: 4件 | AE57: 9件 | AG57: 7件 | AI57: 12件 | AK57: 4件 | AM57: 2件 | AO57: 1件 | AQ57: 10件 | AS57: 130件
R58: 回答エリア | S58: =IF(【M】エリア!$E54<>"",【M】エリア!$E54,"") -> 越前陶芸村 エリア | U58: 30件 | W58: 26件 | Y58: 7件 | AA58: 6件 | AC58: 16件 | AE58: 19件 | AG58: 22件 | AI58: 16件 | AK58: 7件 | AM58: 6件 | AO58: 4件 | AQ58: 18件 | AS58: 177件
R59: 回答エリア | S59: =IF(【M】エリア!$E55<>"",【M】エリア!$E55,"") -> 越前海岸 越前岬 エリア | U59: 17件 | W59: 15件 | Y59: 0件 | AA59: 1件 | AC59: 2件 | AE59: 3件 | AG59: 0件 | AI59: 3件 | AK59: 3件 | AM59: 31件 | AO59: 10件 | AQ59: 24件 | AS59: 109件
R60: 回答エリア | S60: =IF(【M】エリア!$E56<>"",【M】エリア!$E56,"") -> 越前漁港 エリア | U60: 8件 | W60: 0件 | Y60: 4件 | AA60: 0件 | AC60: 0件 | AE60: 1件 | AG60: 2件 | AI60: 3件 | AK60: 0件 | AM60: 0件 | AO60: 0件 | AQ60: 0件 | AS60: 18件
R61: 回答エリア | S61: =IF(【M】エリア!$E57<>"",【M】エリア!$E57,"") -> 越前海岸 茂原民宿街 エリア | U61: 1件 | W61: 0件 | Y61: 0件 | AA61: 1件 | AC61: 3件 | AE61: 1件 | AG61: 0件 | AI61: 1件 | AK61: 0件 | AM61: 1件 | AO61: 0件 | AQ61: 0件 | AS61: 8件
R62: 回答エリア | S62: =IF(【M】エリア!$E58<>"",【M】エリア!$E58,"") -> 越前海岸 高佐米ノ旅館街 エリア | U62: 10件 | W62: 2件 | Y62: 4件 | AA62: 8件 | AC62: 4件 | AE62: 4件 | AG62: 7件 | AI62: 4件 | AK62: 2件 | AM62: 0件 | AO62: 2件 | AQ62: 5件 | AS62: 52件
R63: 回答エリア | S63: =IF(【M】エリア!$E59<>"",【M】エリア!$E59,"") -> 越前海岸 くりや旅館街 エリア | U63: 5件 | W63: 3件 | Y63: 1件 | AA63: 3件 | AC63: 8件 | AE63: 6件 | AG63: 9件 | AI63: 11件 | AK63: 9件 | AM63: 6件 | AO63: 1件 | AQ63: 5件 | AS63: 67件
R64: 回答エリア | S64: =IF(【M】エリア!$E60<>"",【M】エリア!$E60,"") -> 道の駅「南えちぜん山海里」 エリア | U64: =IF($S64="", "", COUNTIFS( INDEX(rawデータ範囲, , MATCH($R64,表頭範囲, 0)), $S64, INDEX(rawデータ範囲, , MATCH($U$1,表頭範囲, 0)),U$2 ) ) -> 94件 | W64: 92件 | Y64: 55件 | AA64: 49件 | AC64: 54件 | AE64: 63件 | AG64: 56件 | AI64: 81件 | AK64: 44件 | AM64: 41件 | AO64: 51件 | AQ64: 80件 | AS64: 760件
R65: 回答エリア | S65: =IF(【M】エリア!$E61<>"",【M】エリア!$E61,"") -> 北前船主の館 右近家 エリア | U65: 7件 | W65: 2件 | Y65: 4件 | AA65: 1件 | AC65: 4件 | AE65: 4件 | AG65: 2件 | AI65: 6件 | AK65: 12件 | AM65: 3件 | AO65: 2件 | AQ65: 8件 | AS65: 55件
R66: 回答エリア | S66: =IF(【M】エリア!$E62<>"",【M】エリア!$E62,"") -> 今庄宿 エリア | U66: 6件 | W66: 12件 | Y66: 2件 | AA66: 9件 | AC66: 5件 | AE66: 7件 | AG66: 5件 | AI66: 1件 | AK66: 6件 | AM66: 3件 | AO66: 1件 | AQ66: 7件 | AS66: 64件
R67: 回答エリア | S67: =IF(【M】エリア!$E63<>"",【M】エリア!$E63,"") -> 日本海さかな街 エリア | U67: 41件 | W67: 33件 | Y67: 23件 | AA67: 13件 | AC67: 7件 | AE67: 7件 | AG67: 25件 | AI67: 9件 | AK67: 13件 | AM67: 7件 | AO67: 7件 | AQ67: 12件 | AS67: 197件
R68: 回答エリア | S68: =IF(【M】エリア!$E64<>"",【M】エリア!$E64,"") -> 神楽通り エリア | U68: 34件 | W68: 13件 | Y68: 5件 | AA68: 5件 | AC68: 7件 | AE68: 11件 | AG68: 2件 | AI68: 5件 | AK68: 4件 | AM68: 3件 | AO68: 0件 | AQ68: 10件 | AS68: 99件
R69: 回答エリア | S69: =IF(【M】エリア!$E65<>"",【M】エリア!$E65,"") -> JR敦賀駅前 エリア | U69: 59件 | W69: 44件 | Y69: 36件 | AA69: 31件 | AC69: 32件 | AE69: 34件 | AG69: 33件 | AI69: 27件 | AK69: 38件 | AM69: 18件 | AO69: 27件 | AQ69: 45件 | AS69: 424件
R70: 回答エリア | S70: =IF(【M】エリア!$E66<>"",【M】エリア!$E66,"") -> 金ヶ崎 エリア | U70: 70件 | W70: 67件 | Y70: 42件 | AA70: 29件 | AC70: 39件 | AE70: 58件 | AG70: 31件 | AI70: 62件 | AK70: 46件 | AM70: 33件 | AO70: 31件 | AQ70: 67件 | AS70: =IF($S70="", "",SUM($U70:$AQ70)) -> 575件
R71: 回答エリア | S71: =IF(【M】エリア!$E67<>"",【M】エリア!$E67,"") -> 敦賀市立博物館 エリア | U71: 16件 | W71: 14件 | Y71: 9件 | AA71: 12件 | AC71: 18件 | AE71: 18件 | AG71: 5件 | AI71: 13件 | AK71: 10件 | AM71: 2件 | AO71: 11件 | AQ71: 20件 | AS71: 148件
R72: 回答エリア | S72: =IF(【M】エリア!$E68<>"",【M】エリア!$E68,"") -> 水島 エリア | U72: 1件 | W72: 1件 | Y72: 1件 | AA72: 7件 | AC72: 2件 | AE72: 1件 | AG72: 0件 | AI72: 0件 | AK72: 0件 | AM72: 0件 | AO72: 0件 | AQ72: 0件 | AS72: 13件
R73: 回答エリア | S73: =IF(【M】エリア!$E69<>"",【M】エリア!$E69,"") -> 小浜市 阿納 エリア | U73: 37件 | W73: 14件 | Y73: 18件 | AA73: 28件 | AC73: 27件 | AE73: 23件 | AG73: 28件 | AI73: 33件 | AK73: 44件 | AM73: 31件 | AO73: 31件 | AQ73: 31件 | AS73: 345件
R74: 回答エリア | S74: =IF(【M】エリア!$E70<>"",【M】エリア!$E70,"") -> 道の駅「若狭おばま」 エリア | U74: =IF($S74="", "", COUNTIFS( INDEX(rawデータ範囲, , MATCH($R74,表頭範囲, 0)), $S74, INDEX(rawデータ範囲, , MATCH($U$1,表頭範囲, 0)),U$2 ) ) -> 75件 | W74: 44件 | Y74: 33件 | AA74: 35件 | AC74: 52件 | AE74: 53件 | AG74: 56件 | AI74: 39件 | AK74: 54件 | AM74: 31件 | AO74: 17件 | AQ74: 50件 | AS74: 539件
R75: 回答エリア | S75: =IF(【M】エリア!$E71<>"",【M】エリア!$E71,"") -> 小浜 エリア（宿泊施設） | U75: 30件 | W75: 28件 | Y75: 16件 | AA75: 19件 | AC75: 20件 | AE75: 10件 | AG75: 16件 | AI75: 16件 | AK75: 12件 | AM75: 10件 | AO75: 8件 | AQ75: 26件 | AS75: 211件
R76: 回答エリア | S76: =IF(【M】エリア!$E72<>"",【M】エリア!$E72,"") -> 若狭フィッシャーマンズワーフ エリア | U76: 22件 | W76: 33件 | Y76: 20件 | AA76: 21件 | AC76: 15件 | AE76: 30件 | AG76: 22件 | AI76: 17件 | AK76: 17件 | AM76: 6件 | AO76: 13件 | AQ76: 20件 | AS76: 236件
R77: 回答エリア | S77: =IF(【M】エリア!$E73<>"",【M】エリア!$E73,"") -> 御食国若狭おばま食文化館 エリア | U77: 24件 | W77: 35件 | Y77: 10件 | AA77: 19件 | AC77: 32件 | AE77: 21件 | AG77: 14件 | AI77: 13件 | AK77: 13件 | AM77: 11件 | AO77: 13件 | AQ77: 24件 | AS77: 229件
R78: 回答エリア | S78: =IF(【M】エリア!$E74<>"",【M】エリア!$E74,"") -> 小浜市まちの駅 エリア | U78: 6件 | W78: 10件 | Y78: 1件 | AA78: 0件 | AC78: 4件 | AE78: 5件 | AG78: 10件 | AI78: 2件 | AK78: 5件 | AM78: 7件 | AO78: 11件 | AQ78: 7件 | AS78: 68件
R79: 回答エリア | S79: =IF(【M】エリア!$E75<>"",【M】エリア!$E75,"") -> 明通寺 エリア | U79: 46件 | W79: 76件 | Y79: 32件 | AA79: 46件 | AC79: 51件 | AE79: 44件 | AG79: 84件 | AI79: 62件 | AK79: 32件 | AM79: 25件 | AO79: 5件 | AQ79: 37件 | AS79: 540件
R80: 回答エリア | S80: =IF(【M】エリア!$E76<>"",【M】エリア!$E76,"") -> 箸のふるさと館WAKASA エリア | U80: 5件 | W80: 3件 | Y80: 3件 | AA80: 1件 | AC80: 1件 | AE80: 3件 | AG80: 3件 | AI80: 0件 | AK80: 0件 | AM80: 1件 | AO80: 2件 | AQ80: 3件 | AS80: 25件
R81: 回答エリア | S81: =IF(【M】エリア!$E77<>"",【M】エリア!$E77,"") -> 美浜町レイクセンター エリア | U81: 2件 | W81: 2件 | Y81: 0件 | AA81: 0件 | AC81: 28件 | AE81: 49件 | AG81: 13件 | AI81: 11件 | AK81: 1件 | AM81: 0件 | AO81: 0件 | AQ81: 8件 | AS81: 114件
R82: 回答エリア | S82: =IF(【M】エリア!$E78<>"",【M】エリア!$E78,"") -> 水晶浜 エリア | U82: 8件 | W82: 21件 | Y82: 5件 | AA82: 6件 | AC82: 2件 | AE82: 2件 | AG82: 0件 | AI82: 3件 | AK82: 2件 | AM82: 0件 | AO82: 0件 | AQ82: 1件 | AS82: 50件
R83: 回答エリア | S83: =IF(【M】エリア!$E79<>"",【M】エリア!$E79,"") -> レインボーライン エリア | U83: 47件 | W83: 31件 | Y83: 42件 | AA83: 30件 | AC83: 48件 | AE83: 37件 | AG83: 69件 | AI83: 56件 | AK83: 12件 | AM83: 18件 | AO83: 5件 | AQ83: 53件 | AS83: 448件
R84: 回答エリア | S84: =IF(【M】エリア!$E80<>"",【M】エリア!$E80,"") -> 若狭海遊バザール 千鳥苑 エリア | U84: =IF($S84="", "", COUNTIFS( INDEX(rawデータ範囲, , MATCH($R84,表頭範囲, 0)), $S84, INDEX(rawデータ範囲, , MATCH($U$1,表頭範囲, 0)),U$2 ) ) -> 14件 | W84: 2件 | Y84: 11件 | AA84: 7件 | AC84: 9件 | AE84: 7件 | AG84: 5件 | AI84: 6件 | AK84: 2件 | AM84: 5件 | AO84: 5件 | AQ84: 6件 | AS84: 79件
R85: 回答エリア | S85: =IF(【M】エリア!$E81<>"",【M】エリア!$E81,"") -> JR美浜駅 エリア | U85: 51件 | W85: 51件 | Y85: 37件 | AA85: 41件 | AC85: 70件 | AE85: 79件 | AG85: 54件 | AI85: 32件 | AK85: 32件 | AM85: 25件 | AO85: 11件 | AQ85: 32件 | AS85: 515件
R86: 回答エリア | S86: =IF(【M】エリア!$E82<>"",【M】エリア!$E82,"") -> 新庄 渓流の里 エリア | U86: 0件 | W86: 0件 | Y86: 2件 | AA86: 0件 | AC86: 0件 | AE86: 0件 | AG86: 0件 | AI86: 0件 | AK86: 0件 | AM86: 0件 | AO86: 0件 | AQ86: 0件 | AS86: 2件
R87: 回答エリア | S87: =IF(【M】エリア!$E83<>"",【M】エリア!$E83,"") -> 熊川宿 エリア | U87: 48件 | W87: 48件 | Y87: 31件 | AA87: 25件 | AC87: 35件 | AE87: 31件 | AG87: 41件 | AI87: 20件 | AK87: 17件 | AM87: 10件 | AO87: 11件 | AQ87: 20件 | AS87: 337件
R88: 回答エリア | S88: =IF(【M】エリア!$E84<>"",【M】エリア!$E84,"") -> 湖上館パムコ（水月湖）エリア | U88: 13件 | W88: 15件 | Y88: 23件 | AA88: 15件 | AC88: 24件 | AE88: 15件 | AG88: 13件 | AI88: 17件 | AK88: 7件 | AM88: 7件 | AO88: 3件 | AQ88: 8件 | AS88: 160件
R89: 回答エリア | S89: =IF(【M】エリア!$E85<>"",【M】エリア!$E85,"") -> 道の駅「三方五湖」 エリア | U89: 63件 | W89: 66件 | Y89: 46件 | AA89: 51件 | AC89: 60件 | AE89: 58件 | AG89: 51件 | AI89: 51件 | AK89: 34件 | AM89: 18件 | AO89: 10件 | AQ89: 33件 | AS89: 541件
R90: 回答エリア | S90: =IF(【M】エリア!$E86<>"",【M】エリア!$E86,"") -> うみんぴあ大飯 エリア | U90: 68件 | W90: 52件 | Y90: 28件 | AA90: 25件 | AC90: 39件 | AE90: 37件 | AG90: 45件 | AI90: 38件 | AK90: 36件 | AM90: 11件 | AO90: 8件 | AQ90: 30件 | AS90: 417件
R91: 回答エリア | S91: =IF(【M】エリア!$E87<>"",【M】エリア!$E87,"") -> 若州一滴文庫 エリア | U91: 10件 | W91: 9件 | Y91: 3件 | AA91: 2件 | AC91: 1件 | AE91: 2件 | AG91: 1件 | AI91: 2件 | AK91: 1件 | AM91: 0件 | AO91: 2件 | AQ91: 2件 | AS91: 35件
R92: 回答エリア | S92: =IF(【M】エリア!$E88<>"",【M】エリア!$E88,"") -> 名田庄 エリア | U92: 15件 | W92: 28件 | Y92: 12件 | AA92: 12件 | AC92: 19件 | AE92: 12件 | AG92: 20件 | AI92: 12件 | AK92: 6件 | AM92: 4件 | AO92: 1件 | AQ92: 21件 | AS92: 162件
R93: 回答エリア | S93: =IF(【M】エリア!$E89<>"",【M】エリア!$E89,"") -> 赤礁崎オートキャンプ場 エリア | U93: 2件 | W93: 0件 | Y93: 0件 | AA93: 2件 | AC93: 1件 | AE93: 0件 | AG93: 0件 | AI93: 1件 | AK93: 0件 | AM93: 0件 | AO93: 1件 | AQ93: 0件 | AS93: 7件
R94: 回答エリア | S94: =IF(【M】エリア!$E90<>"",【M】エリア!$E90,"") -> 道の駅「シーサイド高浜」 エリア | U94: =IF($S94="", "", COUNTIFS( INDEX(rawデータ範囲, , MATCH($R94,表頭範囲, 0)), $S94, INDEX(rawデータ範囲, , MATCH($U$1,表頭範囲, 0)),U$2 ) ) -> 16件 | W94: 24件 | Y94: 13件 | AA94: 16件 | AC94: 19件 | AE94: 10件 | AG94: 12件 | AI94: 14件 | AK94: 7件 | AM94: 4件 | AO94: 2件 | AQ94: 12件 | AS94: 149件
R95: 回答エリア | S95: =IF(【M】エリア!$E91<>"",【M】エリア!$E91,"") -> 若狭和田 エリア | U95: 8件 | W95: 4件 | Y95: 4件 | AA95: 3件 | AC95: 4件 | AE95: 1件 | AG95: 4件 | AI95: 1件 | AK95: 0件 | AM95: 3件 | AO95: 0件 | AQ95: 3件 | AS95: 35件
R96: 回答エリア | S96: =IF(【M】エリア!$E92<>"",【M】エリア!$E92,"") -> 若狭高浜 エリア | U96: 13件 | W96: 3件 | Y96: 1件 | AA96: 2件 | AC96: 10件 | AE96: 17件 | AG96: 5件 | AI96: 5件 | AK96: 1件 | AM96: 2件 | AO96: 0件 | AQ96: 5件 | AS96: 64件
R97: 回答エリア | S97: =IF(【M】エリア!$E93<>"",【M】エリア!$E93,"") -> 
R98: 回答エリア | S98: =IF(【M】エリア!$E94<>"",【M】エリア!$E94,"") -> 
R99: 回答エリア | S99: =IF(【M】エリア!$E95<>"",【M】エリア!$E95,"") -> 
R100: 回答エリア | S100: =IF(【M】エリア!$E96<>"",【M】エリア!$E96,"") -> 
R101: 回答エリア | S101: =IF(【M】エリア!$E97<>"",【M】エリア!$E97,"") -> 
R102: 回答エリア | S102: =IF(【M】エリア!$E98<>"",【M】エリア!$E98,"") -> 
R103: 回答エリア | S103: =IF(【M】エリア!$E99<>"",【M】エリア!$E99,"") -> 
R104: 回答エリア | S104: =IF(【M】エリア!$E100<>"",【M】エリア!$E100,"") ->  | U104: =IF($S104="", "", COUNTIFS( INDEX(rawデータ範囲, , MATCH($R104,表頭範囲, 0)), $S104, INDEX(rawデータ範囲, , MATCH($U$1,表頭範囲, 0)),U$2 ) ) -> 
R105: 回答エリア | S105: =IF(【M】エリア!$E101<>"",【M】エリア!$E101,"") -> 
R106: 回答エリア | S106: =IF(【M】エリア!$E102<>"",【M】エリア!$E102,"") -> 
R107: 回答エリア | S107: =IF(【M】エリア!$E103<>"",【M】エリア!$E103,"") -> 
R108: 回答エリア | S108: =IF(【M】エリア!$E104<>"",【M】エリア!$E104,"") -> 
R109: 回答エリア | S109: =IF(【M】エリア!$E105<>"",【M】エリア!$E105,"") -> 
R110: 回答エリア | S110: =IF(【M】エリア!$E106<>"",【M】エリア!$E106,"") -> 
R111: 回答エリア | S111: =IF(【M】エリア!$E107<>"",【M】エリア!$E107,"") -> 
R112: 回答エリア | S112: =IF(【M】エリア!$E108<>"",【M】エリア!$E108,"") -> 
R113: 回答エリア | S113: =IF(【M】エリア!$E109<>"",【M】エリア!$E109,"") -> 
R114: 回答エリア | S114: =IF(【M】エリア!$E110<>"",【M】エリア!$E110,"") ->  | U114: =IF($S114="", "", COUNTIFS( INDEX(rawデータ範囲, , MATCH($R114,表頭範囲, 0)), $S114, INDEX(rawデータ範囲, , MATCH($U$1,表頭範囲, 0)),U$2 ) ) -> 
R115: 回答エリア | S115: =IF(【M】エリア!$E111<>"",【M】エリア!$E111,"") -> 
R116: 回答エリア | S116: =IF(【M】エリア!$E112<>"",【M】エリア!$E112,"") -> 
R117: 回答エリア | S117: =IF(【M】エリア!$E113<>"",【M】エリア!$E113,"") -> 
R118: 回答エリア | S118: =IF(【M】エリア!$E114<>"",【M】エリア!$E114,"") -> 
R119: 回答エリア | S119: =IF(【M】エリア!$E115<>"",【M】エリア!$E115,"") -> 
R120: 回答エリア | S120: =IF(【M】エリア!$E116<>"",【M】エリア!$E116,"") -> 
R121: 回答エリア | S121: =IF(【M】エリア!$E117<>"",【M】エリア!$E117,"") -> 
R122: 回答エリア | S122: =IF(【M】エリア!$E118<>"",【M】エリア!$E118,"") -> 
R123: 回答エリア | S123: =IF(【M】エリア!$E119<>"",【M】エリア!$E119,"") -> 
R124: 回答エリア | S124: =IF(【M】エリア!$E120<>"",【M】エリア!$E120,"") -> 
R125: 回答エリア | S125: =IF(【M】エリア!$E121<>"",【M】エリア!$E121,"") -> 

Sheet NPS
A1: =施設コード!$A$2 -> 3月 | G1: 4月 | H1: 5月 | I1: 6月 | J1: 7月 | K1: 8月 | L1: 9月 | M1: 10月 | N1: 11月 | O1: 12月 | P1: 1月 | Q1: 2月 | R1: 3月 | S1: 通年 | V1: =IFERROR(MATCH($A$1,$BE$2:$BQ$2,0),"-") -> 12 | X1: 集計区分 | Z1: NPS | AA1: 回答月 | AO1: Rank | AP1: 回答月 | BD1: （処理用_順位） | BE1: 回答月
A2: 順位 | B2: 回答エリア | C2: NPS | D2: 回答数 | F2: =【M】エリア!$L$2 -> 福井県 | G2: =IF(ISNUMBER(AA3),AA3,"-") -> 8.4 | H2: =IF(ISNUMBER(AB3),AB3,"-") -> 13.2 | I2: =IF(ISNUMBER(AC3),AC3,"-") -> 11.7 | J2: =IF(ISNUMBER(AD3),AD3,"-") -> 14.1 | K2: =IF(ISNUMBER(AE3),AE3,"-") -> 18.4 | L2: =IF(ISNUMBER(AF3),AF3,"-") -> 18.8 | M2: =IF(ISNUMBER(AG3),AG3,"-") -> 18.8 | N2: =IF(ISNUMBER(AH3),AH3,"-") -> 15.1 | O2: =IF(ISNUMBER(AI3),AI3,"-") -> 25.1 | P2: =IF(ISNUMBER(AJ3),AJ3,"-") -> 22.9 | Q2: =IF(ISNUMBER(AK3),AK3,"-") -> 18.5 | R2: =IF(ISNUMBER(AL3),AL3,"-") -> 23.2 | S2: =IF(ISNUMBER(AM3),AM3,"-") -> 16.8 | V2: ↑X位置/↓Y位置決定 | AA2: 4月 | AB2: 5月 | AC2: 6月 | AD2: 7月 | AE2: 8月 | AF2: 9月 | AG2: 10月 | AH2: 11月 | AI2: 12月 | AJ2: 1月 | AK2: 2月 | AL2: 3月 | AM2: 通年 | AP2: 4月 | AQ2: 5月 | AR2: 6月 | AS2: 7月 | AT2: 8月 | AU2: 9月 | AV2: 10月 | AW2: 11月 | AX2: 12月 | AY2: 1月 | AZ2: 2月 | BA2: 3月 | BB2: 通年 | BE2: 4月 | BF2: 5月 | BG2: 6月 | BH2: 7月 | BI2: 8月 | BJ2: 9月 | BK2: 10月 | BL2: 11月 | BM2: 12月 | BN2: 1月 | BO2: 2月 | BP2: 3月 | BQ2: 通年
A3: =IFERROR(INDEX($AP$6:$BB$125,$V3,$V$1),"") -> 1 | B3: =IFERROR(INDEX($Y$6:$Y$125,$V3,1),"") -> 六呂師高原 エリア | C3: =IFERROR(INDEX($AA$6:$AM$125,$V3,$V$1),"") -> 80.0 | D3: =IFERROR(INDEX(【D】NPS!$GP$7:$HB$126,$V3,$V$1),"") -> 5件 | F3: =【M】エリア!$L$3 -> 福井市・永平寺町 | G3: =IF(ISNUMBER(AA4),AA4,"-") -> 17.9 | H3: 23.5 | I3: 15.6 | J3: 19.1 | K3: 17.6 | L3: 23.8 | M3: 33.3 | N3: 20.4 | O3: 28.8 | P3: 20.6 | Q3: 23.2 | R3: 26.4 | S3: 22.3 | V3: =IFERROR(MATCH(ROW(B3)-2,INDEX($BE$6:$BQ$125,,$V$1),0),"-") -> 24 | X3: 都道府県 | Y3: =【M】エリア!$L$2 -> 福井県 | AA3: =IF($Y3<>"", INDEX(NPSデータ範囲, MATCH($Y3,NPS表側範囲,0), MATCH(AA$2&$Z$1,NPS表頭範囲,0) ),"") -> 8.4 | AB3: 13.2 | AC3: 11.7 | AD3: 14.1 | AE3: 18.4 | AF3: 18.8 | AG3: 18.8 | AH3: 15.1 | AI3: 25.1 | AJ3: 22.9 | AK3: 18.5 | AL3: 23.2 | AM3: 16.8 | AP3: - | AQ3: - | AR3: - | AS3: - | AT3: - | AU3: - | AV3: - | AW3: - | AX3: - | AY3: - | AZ3: - | BA3: - | BB3: - | BE3: - | BF3: - | BG3: - | BH3: - | BI3: - | BJ3: - | BK3: - | BL3: - | BM3: - | BN3: - | BO3: - | BP3: - | BQ3: -
A4: =IFERROR(INDEX($AP$6:$BB$125,$V4,$V$1),"") -> 1 | B4: =IFERROR(INDEX($Y$6:$Y$125,$V4,1),"") -> 若狭高浜 エリア | C4: =IFERROR(INDEX($AA$6:$AM$125,$V4,$V$1),"") -> 80.0 | D4: =IFERROR(INDEX(【D】NPS!$GP$7:$HB$126,$V4,$V$1),"") -> 5件 | F4: =【M】エリア!$L$4 -> 福井市 | G4: 20.3 | H4: 14.0 | I4: 9.8 | J4: 17.1 | K4: 11.6 | L4: 18.0 | M4: 27.8 | N4: 14.2 | O4: 26.0 | P4: 25.5 | Q4: 13.9 | R4: 29.5 | S4: 18.6 | V4: 91 | X4: =【M】エリア!$J$2 -> 6分類 | Y4: =【M】エリア!$L$3 -> 福井市・永平寺町 | AA4: 17.9 | AB4: 23.5 | AC4: 15.6 | AD4: 19.1 | AE4: 17.6 | AF4: 23.8 | AG4: 33.3 | AH4: 20.4 | AI4: 28.8 | AJ4: 20.6 | AK4: 23.2 | AL4: 26.4 | AM4: 22.3 | AP4: - | AQ4: - | AR4: - | AS4: - | AT4: - | AU4: - | AV4: - | AW4: - | AX4: - | AY4: - | AZ4: - | BA4: - | BB4: - | BE4: - | BF4: - | BG4: - | BH4: - | BI4: - | BJ4: - | BK4: - | BL4: - | BM4: - | BN4: - | BO4: - | BP4: - | BQ4: -
A5: =IFERROR(INDEX($AP$6:$BB$125,$V5,$V$1),"") -> 3 | B5: =IFERROR(INDEX($Y$6:$Y$125,$V5,1),"") -> 平泉寺白山神社 エリア | C5: =IFERROR(INDEX($AA$6:$AM$125,$V5,$V$1),"") -> 75.0 | D5: =IFERROR(INDEX(【D】NPS!$GP$7:$HB$126,$V5,$V$1),"") -> 4件 | F5: =【M】エリア!$L$5 -> 福井駅前 エリア | G5: =IFERROR(INDEX(AA$6:AA$125,MATCH($F5,$Y$6:$Y$125,0),1),"-") -> 20.7 | H5: =IFERROR(INDEX(AB$6:AB$125,MATCH($F5,$Y$6:$Y$125,0),1),"-") -> 19.6 | I5: 13.0 | J5: 21.3 | K5: 18.4 | L5: 18.2 | M5: 28.2 | N5: 22.7 | O5: 33.0 | P5: 23.9 | Q5: 20.6 | R5: 38.3 | S5: 22.9 | V5: 30 | X5: 市町村 | Y5: =【M】エリア!$L$4 -> 福井市 | AA5: 20.3 | AB5: 14.0 | AC5: 9.8 | AD5: 17.1 | AE5: 11.6 | AF5: 18.0 | AG5: 27.8 | AH5: 14.2 | AI5: 26.0 | AJ5: 25.5 | AK5: 13.9 | AL5: 29.5 | AM5: 18.6 | AP5: - | AQ5: - | AR5: - | AS5: - | AT5: - | AU5: - | AV5: - | AW5: - | AX5: - | AY5: - | AZ5: - | BA5: - | BB5: - | BE5: - | BF5: - | BG5: - | BH5: - | BI5: - | BJ5: - | BK5: - | BL5: - | BM5: - | BN5: - | BO5: - | BP5: - | BQ5: -
A6: =IFERROR(INDEX($AP$6:$BB$125,$V6,$V$1),"") -> 4 | B6: =IFERROR(INDEX($Y$6:$Y$125,$V6,1),"") -> だるまちゃん広場 エリア | C6: =IFERROR(INDEX($AA$6:$AM$125,$V6,$V$1),"") -> 66.7 | D6: =IFERROR(INDEX(【D】NPS!$GP$7:$HB$126,$V6,$V$1),"") -> 3件 | V6: 43 | X6: 回答エリア | Y6: =IF(【M】エリア!$E2<>"",【M】エリア!$E2,"") -> 福井駅前 エリア | AA6: 20.7 | AB6: 19.6 | AC6: 13.0 | AD6: 21.3 | AE6: 18.4 | AF6: 18.2 | AG6: 28.2 | AH6: 22.7 | AI6: 33.0 | AJ6: 23.9 | AK6: 20.6 | AL6: 38.3 | AM6: 22.9 | AP6: =IF($Y6<>"", INDEX(NPSデータ範囲, MATCH($Y6,NPS表側範囲,0), MATCH(AP$2&$AO$1,NPS表頭範囲,0) ),"") -> 26 | AQ6: 26 | AR6: 35 | AS6: 25 | AT6: 42 | AU6: 38 | AV6: 25 | AW6: 25 | AX6: 24 | AY6: 30 | AZ6: 28 | BA6: 17 | BB6: 24 | BE6: =IF($Y6<>"", INDEX(NPSデータ範囲, MATCH($Y6,NPS表側範囲,0), MATCH(BE$2&$BD$1,NPS表頭範囲,0) ),"") -> 26 | BF6: 26 | BG6: 35 | BH6: 25 | BI6: 42 | BJ6: 38 | BK6: 25 | BL6: 25 | BM6: 24 | BN6: 30 | BO6: 28 | BP6: 17 | BQ6: 24
A7: =IFERROR(INDEX($AP$6:$BB$125,$V7,$V$1),"") -> 4 | B7: =IFERROR(INDEX($Y$6:$Y$125,$V7,1),"") -> 箸のふるさと館WAKASA エリア | C7: =IFERROR(INDEX($AA$6:$AM$125,$V7,$V$1),"") -> 66.7 | D7: =IFERROR(INDEX(【D】NPS!$GP$7:$HB$126,$V7,$V$1),"") -> 3件 | V7: 75 | X7: 回答エリア | Y7: =IF(【M】エリア!$E3<>"",【M】エリア!$E3,"") -> 福井駅前 エリア（宿泊施設） | AA7: 38.5 | AB7: 11.9 | AC7: 8.1 | AD7: 11.1 | AE7: 18.4 | AF7: 11.8 | AG7: 40.9 | AH7: 28.6 | AI7: -3.3 | AJ7: 28.6 | AK7: 4.3 | AL7: 22.2 | AM7: 19.0 | AP7: 9 | AQ7: 37 | AR7: 39 | AS7: 42 | AT7: 43 | AU7: 46 | AV7: 13 | AW7: 16 | AX7: 68 | AY7: 25 | AZ7: 44 | BA7: 38 | BB7: 31 | BE7: 9 | BF7: 37 | BG7: 39 | BH7: 42 | BI7: 43 | BJ7: 46 | BK7: 13 | BL7: 16 | BM7: 68 | BN7: 25 | BO7: 44 | BP7: 38 | BQ7: 31
A8: =IFERROR(INDEX($AP$6:$BB$125,$V8,$V$1),"") -> 4 | B8: =IFERROR(INDEX($Y$6:$Y$125,$V8,1),"") -> 若狭和田 エリア | C8: =IFERROR(INDEX($AA$6:$AM$125,$V8,$V$1),"") -> 66.7 | D8: =IFERROR(INDEX(【D】NPS!$GP$7:$HB$126,$V8,$V$1),"") -> 3件 | V8: 90 | X8: 回答エリア | Y8: =IF(【M】エリア!$E4<>"",【M】エリア!$E4,"") -> 北ノ庄 エリア | AA8: 7.1 | AB8: -18.2 | AC8: 0.0 | AD8: 0.0 | AE8: 36.4 | AF8: 33.3 | AG8: 22.2 | AH8: 0.0 | AI8: 29.4 | AJ8: 45.5 | AK8: 20.0 | AL8: 30.8 | AM8: 18.9 | AP8: 44 | AQ8: 75 | AR8: 49 | AS8: 55 | AT8: 16 | AU8: 17 | AV8: 36 | AW8: 51 | AX8: 30 | AY8: 15 | AZ8: 29 | BA8: 26 | BB8: 32 | BE8: 44 | BF8: 75 | BG8: 49 | BH8: 55 | BI8: 16 | BJ8: 17 | BK8: 36 | BL8: 51 | BM8: 30 | BN8: 15 | BO8: 29 | BP8: 26 | BQ8: 32
A9: =IFERROR(INDEX($AP$6:$BB$125,$V9,$V$1),"") -> 7 | B9: =IFERROR(INDEX($Y$6:$Y$125,$V9,1),"") -> スキージャム勝山 エリア | C9: =IFERROR(INDEX($AA$6:$AM$125,$V9,$V$1),"") -> 62.5 | D9: =IFERROR(INDEX(【D】NPS!$GP$7:$HB$126,$V9,$V$1),"") -> 24件 | V9: 28 | X9: 回答エリア | Y9: =IF(【M】エリア!$E5<>"",【M】エリア!$E5,"") -> 名勝 養浩館庭園 エリア | AA9: 28.6 | AB9: 4.3 | AC9: 15.8 | AD9: 25.0 | AE9: -12.5 | AF9: 35.7 | AG9: 33.3 | AH9: 9.1 | AI9: 16.7 | AJ9: 12.5 | AK9: 44.4 | AL9: 52.6 | AM9: 21.3 | AP9: 18 | AQ9: 50 | AR9: 29 | AS9: 20 | AT9: 74 | AU9: 14 | AV9: 18 | AW9: 42 | AX9: 45 | AY9: 37 | AZ9: 12 | BA9: 10 | BB9: 27 | BE9: 18 | BF9: 50 | BG9: 29 | BH9: 20 | BI9: 74 | BJ9: 14 | BK9: 18 | BL9: 42 | BM9: 45 | BN9: 37 | BO9: 12 | BP9: 10 | BQ9: 27
A10: =IFERROR(INDEX($AP$6:$BB$125,$V10,$V$1),"") -> 8 | B10: =IFERROR(INDEX($Y$6:$Y$125,$V10,1),"") -> メガネストリート エリア | C10: =IFERROR(INDEX($AA$6:$AM$125,$V10,$V$1),"") -> 60.0 | D10: =IFERROR(INDEX(【D】NPS!$GP$7:$HB$126,$V10,$V$1),"") -> 10件 | V10: 46 | X10: 回答エリア | Y10: =IF(【M】エリア!$E6<>"",【M】エリア!$E6,"") -> ふくい鮮いちば エリア | AA10: 17.9 | AB10: -23.5 | AC10: 14.3 | AD10: 20.0 | AE10: -4.5 | AF10: 20.5 | AG10: 41.2 | AH10: 25.0 | AI10: 41.7 | AJ10: 33.3 | AK10: -12.5 | AL10: 35.0 | AM10: 19.4 | AP10: 29 | AQ10: 79 | AR10: 33 | AS10: 28 | AT10: 68 | AU10: 34 | AV10: 12 | AW10: 18 | AX10: 17 | AY10: 21 | AZ10: 60 | BA10: 23 | BB10: 30 | BE10: 29 | BF10: 79 | BG10: 33 | BH10: 28 | BI10: 68 | BJ10: 34 | BK10: 12 | BL10: 18 | BM10: 17 | BN10: 21 | BO10: 60 | BP10: 23 | BQ10: 30
A11: =IFERROR(INDEX($AP$6:$BB$125,$V11,$V$1),"") -> 9 | B11: =IFERROR(INDEX($Y$6:$Y$125,$V11,1),"") -> 東尋坊 エリア | C11: =IFERROR(INDEX($AA$6:$AM$125,$V11,$V$1),"") -> 55.2 | D11: =IFERROR(INDEX(【D】NPS!$GP$7:$HB$126,$V11,$V$1),"") -> 29件 | V11: 10 | X11: 回答エリア | Y11: =IF(【M】エリア!$E7<>"",【M】エリア!$E7,"") -> 一乗谷朝倉氏遺跡 エリア | AA11: 8.2 | AB11: 13.6 | AC11: 12.7 | AD11: 10.0 | AE11: 8.4 | AF11: 10.5 | AG11: 20.6 | AH11: -9.6 | AI11: 16.7 | AJ11: 30.3 | AK11: 15.4 | AL11: 16.9 | AM11: 11.2 | AP11: 40 | AQ11: 36 | AR11: 36 | AS11: 44 | AT11: 54 | AU11: 50 | AV11: 37 | AW11: 68 | AX11: 45 | AY11: 23 | AZ11: 33 | BA11: 43 | BB11: 46 | BE11: 40 | BF11: 36 | BG11: 36 | BH11: 44 | BI11: 54 | BJ11: 50 | BK11: 37 | BL11: 68 | BM11: 46 | BN11: 23 | BO11: 33 | BP11: 43 | BQ11: 46
A12: =IFERROR(INDEX($AP$6:$BB$125,$V12,$V$1),"") -> 10 | B12: =IFERROR(INDEX($Y$6:$Y$125,$V12,1),"") -> 名勝 養浩館庭園 エリア | C12: =IFERROR(INDEX($AA$6:$AM$125,$V12,$V$1),"") -> 52.6 | D12: =IFERROR(INDEX(【D】NPS!$GP$7:$HB$126,$V12,$V$1),"") -> 19件 | V12: 4 | X12: 回答エリア | Y12: =IF(【M】エリア!$E8<>"",【M】エリア!$E8,"") -> 越前海岸 北部 エリア | AA12: 35.7 | AB12: 50.0 | AC12: -41.7 | AD12: 37.5 | AE12: -8.3 | AF12: 33.3 | AG12: 60.0 | AH12: -11.1 | AI12: 50.0 | AJ12: 0.0 | AK12: -20.0 | AL12: 0.0 | AM12: 15.9 | AP12: 13 | AQ12: 3 | AR12: 80 | AS12: 8 | AT12: 71 | AU12: 17 | AV12: 6 | AW12: 70 | AX12: 9 | AY12: 47 | AZ12: 63 | BA12: 57 | BB12: 39 | BE12: 13 | BF12: 3 | BG12: 80 | BH12: 8 | BI12: 71 | BJ12: 18 | BK12: 6 | BL12: 70 | BM12: 9 | BN12: 47 | BO12: 63 | BP12: 57 | BQ12: 39
A13: =IFERROR(INDEX($AP$6:$BB$125,$V13,$V$1),"") -> 11 | B13: =IFERROR(INDEX($Y$6:$Y$125,$V13,1),"") -> 越前松島水族館 エリア | C13: =IFERROR(INDEX($AA$6:$AM$125,$V13,$V$1),"") -> 50.0 | D13: =IFERROR(INDEX(【D】NPS!$GP$7:$HB$126,$V13,$V$1),"") -> 16件 | V13: 11 | X13: 回答エリア | Y13: =IF(【M】エリア!$E9<>"",【M】エリア!$E9,"") -> 大安禅寺 エリア | AA13: =IF($Y13<>"", INDEX(NPSデータ範囲, MATCH($Y13,NPS表側範囲,0), MATCH(AA$2&$Z$1,NPS表頭範囲,0) ),"") -> 100.0 | AB13: - | AC13: 25.0 | AD13: -33.3 | AE13: - | AF13: -50.0 | AG13: -33.3 | AH13: - | AI13: - | AJ13: -100.0 | AK13: -100.0 | AL13: 0.0 | AM13: -23.5 | AP13: 1 | AQ13: - | AR13: 19 | AS13: 81 | AT13: - | AU13: 82 | AV13: 76 | AW13: - | AX13: - | AY13: 75 | AZ13: 73 | BA13: 57 | BB13: 91 | BE13: 1 | BF13: - | BG13: 19 | BH13: 81 | BI13: - | BJ13: 82 | BK13: 76 | BL13: - | BM13: - | BN13: 75 | BO13: 73 | BP13: 58 | BQ13: 91
A14: =IFERROR(INDEX($AP$6:$BB$125,$V14,$V$1),"") -> 11 | B14: =IFERROR(INDEX($Y$6:$Y$125,$V14,1),"") -> 道の駅「西山公園」 エリア | C14: =IFERROR(INDEX($AA$6:$AM$125,$V14,$V$1),"") -> 50.0 | D14: =IFERROR(INDEX(【D】NPS!$GP$7:$HB$126,$V14,$V$1),"") -> 8件 | V14: 45 | X14: 回答エリア | Y14: =IF(【M】エリア!$E10<>"",【M】エリア!$E10,"") -> 三国湊 エリア | AA14: 15.4 | AB14: 8.2 | AC14: -5.9 | AD14: -6.3 | AE14: 28.1 | AF14: 3.8 | AG14: 32.0 | AH14: 16.7 | AI14: 30.9 | AJ14: 4.9 | AK14: -9.7 | AL14: 15.9 | AM14: 13.2 | AP14: 30 | AQ14: 42 | AR14: 64 | AS14: 69 | AT14: 25 | AU14: 60 | AV14: 20 | AW14: 31 | AX14: 28 | AY14: 45 | AZ14: 57 | BA14: 46 | BB14: 44 | BE14: 30 | BF14: 42 | BG14: 64 | BH14: 69 | BI14: 25 | BJ14: 60 | BK14: 20 | BL14: 31 | BM14: 28 | BN14: 45 | BO14: 57 | BP14: 46 | BQ14: 44
A15: =IFERROR(INDEX($AP$6:$BB$125,$V15,$V$1),"") -> 13 | B15: =IFERROR(INDEX($Y$6:$Y$125,$V15,1),"") -> かつやま恐竜の森 エリア | C15: =IFERROR(INDEX($AA$6:$AM$125,$V15,$V$1),"") -> 45.9 | D15: =IFERROR(INDEX(【D】NPS!$GP$7:$HB$126,$V15,$V$1),"") -> 279件 | V15: 26 | X15: 回答エリア | Y15: =IF(【M】エリア!$E11<>"",【M】エリア!$E11,"") -> 東尋坊 エリア | AA15: 0.0 | AB15: 19.7 | AC15: 10.2 | AD15: 5.1 | AE15: 23.8 | AF15: 24.4 | AG15: 0.0 | AH15: 24.3 | AI15: 18.8 | AJ15: 0.0 | AK15: 22.2 | AL15: 55.2 | AM15: 15.9 | AP15: 52 | AQ15: 25 | AR15: 38 | AS15: 52 | AT15: 35 | AU15: 30 | AV15: 50 | AW15: 20 | AX15: 41 | AY15: 47 | AZ15: 26 | BA15: 9 | BB15: 38 | BE15: 52 | BF15: 25 | BG15: 38 | BH15: 52 | BI15: 35 | BJ15: 30 | BK15: 50 | BL15: 20 | BM15: 41 | BN15: 48 | BO15: 26 | BP15: 9 | BQ15: 38
A16: =IFERROR(INDEX($AP$6:$BB$125,$V16,$V$1),"") -> 14 | B16: =IFERROR(INDEX($Y$6:$Y$125,$V16,1),"") -> 道の駅「越前おおの荒島の郷」 エリア | C16: =IFERROR(INDEX($AA$6:$AM$125,$V16,$V$1),"") -> 43.5 | D16: =IFERROR(INDEX(【D】NPS!$GP$7:$HB$126,$V16,$V$1),"") -> 23件 | V16: 22 | X16: 回答エリア | Y16: =IF(【M】エリア!$E12<>"",【M】エリア!$E12,"") -> 越前松島水族館 エリア | AA16: 37.9 | AB16: 33.3 | AC16: 50.0 | AD16: 21.7 | AE16: 50.0 | AF16: 17.4 | AG16: 14.3 | AH16: 7.1 | AI16: 25.0 | AJ16: -33.3 | AK16: 21.4 | AL16: 50.0 | AM16: 29.4 | AP16: =IF($Y16<>"", INDEX(NPSデータ範囲, MATCH($Y16,NPS表側範囲,0), MATCH(AP$2&$AO$1,NPS表頭範囲,0) ),"") -> 10 | AQ16: 15 | AR16: 6 | AS16: 23 | AT16: 6 | AU16: 39 | AV16: 41 | AW16: 46 | AX16: 32 | AY16: 71 | AZ16: 27 | BA16: 11 | BB16: 11 | BE16: =IF($Y16<>"", INDEX(NPSデータ範囲, MATCH($Y16,NPS表側範囲,0), MATCH(BE$2&$BD$1,NPS表頭範囲,0) ),"") -> 10 | BF16: 15 | BG16: 6 | BH16: 23 | BI16: 6 | BJ16: 39 | BK16: 41 | BL16: 46 | BM16: 32 | BN16: 71 | BO16: 27 | BP16: 11 | BQ16: 11
A17: =IFERROR(INDEX($AP$6:$BB$125,$V17,$V$1),"") -> 15 | B17: =IFERROR(INDEX($Y$6:$Y$125,$V17,1),"") -> 越前海岸 くりや旅館街 エリア | C17: =IFERROR(INDEX($AA$6:$AM$125,$V17,$V$1),"") -> 40.0 | D17: =IFERROR(INDEX(【D】NPS!$GP$7:$HB$126,$V17,$V$1),"") -> 5件 | V17: 58 | X17: 回答エリア | Y17: =IF(【M】エリア!$E13<>"",【M】エリア!$E13,"") -> 芝政ワールド エリア | AA17: 33.3 | AB17: 52.9 | AC17: -22.2 | AD17: 11.1 | AE17: 46.2 | AF17: 33.3 | AG17: 75.0 | AH17: 0.0 | AI17: -25.0 | AJ17: -100.0 | AK17: 33.3 | AL17: 0.0 | AM17: 26.1 | AP17: 14 | AQ17: 2 | AR17: 71 | AS17: 42 | AT17: 11 | AU17: 17 | AV17: 5 | AW17: 51 | AX17: 75 | AY17: 75 | AZ17: 19 | BA17: 57 | BB17: 19 | BE17: 14 | BF17: 2 | BG17: 71 | BH17: 43 | BI17: 11 | BJ17: 19 | BK17: 5 | BL17: 52 | BM17: 75 | BN17: 76 | BO17: 19 | BP17: 59 | BQ17: 19
A18: =IFERROR(INDEX($AP$6:$BB$125,$V18,$V$1),"") -> 15 | B18: =IFERROR(INDEX($Y$6:$Y$125,$V18,1),"") -> 道の駅「南えちぜん山海里」 エリア | C18: =IFERROR(INDEX($AA$6:$AM$125,$V18,$V$1),"") -> 40.0 | D18: =IFERROR(INDEX(【D】NPS!$GP$7:$HB$126,$V18,$V$1),"") -> 80件 | V18: 59 | X18: 回答エリア | Y18: =IF(【M】エリア!$E14<>"",【M】エリア!$E14,"") -> 丸岡城 エリア | AA18: 2.1 | AB18: 9.1 | AC18: 16.7 | AD18: 16.1 | AE18: 22.5 | AF18: 7.1 | AG18: 0.0 | AH18: 15.8 | AI18: 9.7 | AJ18: 21.9 | AK18: -10.0 | AL18: -1.6 | AM18: 8.6 | AP18: 50 | AQ18: 40 | AR18: 28 | AS18: 34 | AT18: 37 | AU18: 54 | AV18: 50 | AW18: 32 | AX18: 53 | AY18: 33 | AZ18: 58 | BA18: 66 | BB18: 54 | BE18: 50 | BF18: 40 | BG18: 28 | BH18: 34 | BI18: 37 | BJ18: 54 | BK18: 51 | BL18: 32 | BM18: 53 | BN18: 33 | BO18: 58 | BP18: 66 | BQ18: 54
A19: =IFERROR(INDEX($AP$6:$BB$125,$V19,$V$1),"") -> 17 | B19: =IFERROR(INDEX($Y$6:$Y$125,$V19,1),"") -> 福井駅前 エリア | C19: =IFERROR(INDEX($AA$6:$AM$125,$V19,$V$1),"") -> 38.3 | D19: =IFERROR(INDEX(【D】NPS!$GP$7:$HB$126,$V19,$V$1),"") -> 115件 | V19: 1 | X19: 回答エリア | Y19: =IF(【M】エリア!$E15<>"",【M】エリア!$E15,"") -> 花の駅 ゆりの里公園 エリア | AA19: 19.2 | AB19: 3.4 | AC19: 35.1 | AD19: 0.0 | AE19: 18.2 | AF19: 30.6 | AG19: -11.1 | AH19: 12.5 | AI19: 50.0 | AJ19: 11.8 | AK19: -8.0 | AL19: 29.6 | AM19: 16.7 | AP19: 28 | AQ19: 51 | AR19: 12 | AS19: 55 | AT19: 44 | AU19: 22 | AV19: 68 | AW19: 39 | AX19: 9 | AY19: 40 | AZ19: 56 | BA19: 32 | BB19: 36 | BE19: 28 | BF19: 51 | BG19: 12 | BH19: 56 | BI19: 44 | BJ19: 22 | BK19: 68 | BL19: 39 | BM19: 10 | BN19: 40 | BO19: 56 | BP19: 32 | BQ19: 36
A20: =IFERROR(INDEX($AP$6:$BB$125,$V20,$V$1),"") -> 18 | B20: =IFERROR(INDEX($Y$6:$Y$125,$V20,1),"") -> 道の駅「恐竜渓谷かつやま」 エリア | C20: =IFERROR(INDEX($AA$6:$AM$125,$V20,$V$1),"") -> 37.8 | D20: =IFERROR(INDEX(【D】NPS!$GP$7:$HB$126,$V20,$V$1),"") -> 45件 | V20: 27 | X20: 回答エリア | Y20: =IF(【M】エリア!$E16<>"",【M】エリア!$E16,"") -> 道の駅みくに ふれあいパーク三里浜 エリア | AA20: -20.0 | AB20: 6.4 | AC20: 4.0 | AD20: 14.3 | AE20: 13.9 | AF20: 0.0 | AG20: -10.5 | AH20: 3.8 | AI20: 20.0 | AJ20: 11.1 | AK20: -50.0 | AL20: 14.3 | AM20: 0.9 | AP20: 78 | AQ20: 45 | AR20: 44 | AS20: 35 | AT20: 53 | AU20: 62 | AV20: 67 | AW20: 50 | AX20: 37 | AY20: 41 | AZ20: 70 | BA20: 48 | BB20: 69 | BE20: 78 | BF20: 45 | BG20: 44 | BH20: 35 | BI20: 53 | BJ20: 62 | BK20: 67 | BL20: 50 | BM20: 37 | BN20: 41 | BO20: 70 | BP20: 48 | BQ20: 69
A21: =IFERROR(INDEX($AP$6:$BB$125,$V21,$V$1),"") -> 19 | B21: =IFERROR(INDEX($Y$6:$Y$125,$V21,1),"") -> かずら橋 エリア | C21: =IFERROR(INDEX($AA$6:$AM$125,$V21,$V$1),"") -> 37.5 | D21: =IFERROR(INDEX(【D】NPS!$GP$7:$HB$126,$V21,$V$1),"") -> 16件 | V21: 49 | X21: 回答エリア | Y21: =IF(【M】エリア!$E17<>"",【M】エリア!$E17,"") -> JR芦原温泉駅 エリア | AA21: -19.3 | AB21: 7.7 | AC21: 4.0 | AD21: -18.2 | AE21: 36.4 | AF21: 15.0 | AG21: 28.6 | AH21: -15.4 | AI21: 44.4 | AJ21: 25.0 | AK21: 5.0 | AL21: 11.1 | AM21: 4.7 | AP21: 76 | AQ21: 43 | AR21: 45 | AS21: 78 | AT21: 16 | AU21: 40 | AV21: 23 | AW21: 72 | AX21: 14 | AY21: 29 | AZ21: 43 | BA21: 50 | BB21: 62 | BE21: 76 | BF21: 43 | BG21: 45 | BH21: 78 | BI21: 17 | BJ21: 40 | BK21: 23 | BL21: 72 | BM21: 14 | BN21: 29 | BO21: 43 | BP21: 50 | BQ21: 62
A22: =IFERROR(INDEX($AP$6:$BB$125,$V22,$V$1),"") -> 19 | B22: =IFERROR(INDEX($Y$6:$Y$125,$V22,1),"") -> 美浜町レイクセンター エリア | C22: =IFERROR(INDEX($AA$6:$AM$125,$V22,$V$1),"") -> 37.5 | D22: =IFERROR(INDEX(【D】NPS!$GP$7:$HB$126,$V22,$V$1),"") -> 8件 | V22: 76 | X22: 回答エリア | Y22: =IF(【M】エリア!$E18<>"",【M】エリア!$E18,"") -> あわら湯のまち エリア | AA22: 21.1 | AB22: 16.9 | AC22: 30.6 | AD22: 27.5 | AE22: 35.9 | AF22: 38.1 | AG22: 31.1 | AH22: 24.3 | AI22: 18.9 | AJ22: 40.0 | AK22: 16.3 | AL22: 23.3 | AM22: 26.7 | AP22: 25 | AQ22: 28 | AR22: 16 | AS22: 17 | AT22: 18 | AU22: 13 | AV22: 21 | AW22: 21 | AX22: 40 | AY22: 17 | AZ22: 32 | BA22: 37 | BB22: 17 | BE22: 25 | BF22: 28 | BG22: 16 | BH22: 17 | BI22: 18 | BJ22: 13 | BK22: 21 | BL22: 21 | BM22: 40 | BN22: 17 | BO22: 32 | BP22: 37 | BQ22: 17
A23: =IFERROR(INDEX($AP$6:$BB$125,$V23,$V$1),"") -> 21 | B23: =IFERROR(INDEX($Y$6:$Y$125,$V23,1),"") -> レインボーライン エリア | C23: =IFERROR(INDEX($AA$6:$AM$125,$V23,$V$1),"") -> 35.8 | D23: =IFERROR(INDEX(【D】NPS!$GP$7:$HB$126,$V23,$V$1),"") -> 53件 | V23: 78 | X23: 回答エリア | Y23: =IF(【M】エリア!$E19<>"",【M】エリア!$E19,"") -> フルーツライン エリア | AA23: =IF($Y23<>"", INDEX(NPSデータ範囲, MATCH($Y23,NPS表側範囲,0), MATCH(AA$2&$Z$1,NPS表頭範囲,0) ),"") -> -17.6 | AB23: -8.3 | AC23: 22.2 | AD23: 5.3 | AE23: -5.6 | AF23: 6.7 | AG23: 23.1 | AH23: -6.3 | AI23: 18.2 | AJ23: -42.9 | AK23: -25.0 | AL23: 28.6 | AM23: 3.1 | AP23: 75 | AQ23: 66 | AR23: 22 | AS23: 51 | AT23: 70 | AU23: 56 | AV23: 33 | AW23: 65 | AX23: 42 | AY23: 72 | AZ23: 66 | BA23: 33 | BB23: 66 | BE23: 75 | BF23: 66 | BG23: 22 | BH23: 51 | BI23: 70 | BJ23: 56 | BK23: 33 | BL23: 65 | BM23: 42 | BN23: 72 | BO23: 66 | BP23: 33 | BQ23: 66
A24: =IFERROR(INDEX($AP$6:$BB$125,$V24,$V$1),"") -> 22 | B24: =IFERROR(INDEX($Y$6:$Y$125,$V24,1),"") -> 小浜市 阿納 エリア | C24: =IFERROR(INDEX($AA$6:$AM$125,$V24,$V$1),"") -> 35.5 | D24: =IFERROR(INDEX(【D】NPS!$GP$7:$HB$126,$V24,$V$1),"") -> 31件 | V24: 68 | X24: 回答エリア | Y24: =IF(【M】エリア!$E20<>"",【M】エリア!$E20,"") -> 波松 エリア | AA24: -100.0 | AB24: - | AC24: 100.0 | AD24: 33.3 | AE24: -100.0 | AF24: - | AG24: 100.0 | AH24: - | AI24: - | AJ24: - | AK24: - | AL24: - | AM24: 25.0 | AP24: 88 | AQ24: - | AR24: 1 | AS24: 13 | AT24: 84 | AU24: - | AV24: 1 | AW24: - | AX24: - | AY24: - | AZ24: - | BA24: - | BB24: 20 | BE24: 88 | BF24: - | BG24: 1 | BH24: 13 | BI24: 84 | BJ24: - | BK24: 1 | BL24: - | BM24: - | BN24: - | BO24: - | BP24: - | BQ24: 20
A25: =IFERROR(INDEX($AP$6:$BB$125,$V25,$V$1),"") -> 23 | B25: =IFERROR(INDEX($Y$6:$Y$125,$V25,1),"") -> ふくい鮮いちば エリア | C25: =IFERROR(INDEX($AA$6:$AM$125,$V25,$V$1),"") -> 35.0 | D25: =IFERROR(INDEX(【D】NPS!$GP$7:$HB$126,$V25,$V$1),"") -> 20件 | V25: 5 | X25: 回答エリア | Y25: =IF(【M】エリア!$E21<>"",【M】エリア!$E21,"") -> 北潟湖 エリア | AA25: 15.2 | AB25: -11.1 | AC25: 0.0 | AD25: -8.7 | AE25: 0.0 | AF25: 31.3 | AG25: -8.3 | AH25: 14.3 | AI25: 27.3 | AJ25: -6.7 | AK25: 6.3 | AL25: 20.6 | AM25: 7.5 | AP25: 33 | AQ25: 68 | AR25: 49 | AS25: 72 | AT25: 60 | AU25: 21 | AV25: 65 | AW25: 35 | AX25: 31 | AY25: 60 | AZ25: 42 | BA25: 40 | BB25: 57 | BE25: 33 | BF25: 68 | BG25: 50 | BH25: 72 | BI25: 60 | BJ25: 21 | BK25: 65 | BL25: 35 | BM25: 31 | BN25: 60 | BO25: 42 | BP25: 40 | BQ25: 57
A26: =IFERROR(INDEX($AP$6:$BB$125,$V26,$V$1),"") -> 24 | B26: =IFERROR(INDEX($Y$6:$Y$125,$V26,1),"") -> まちの市場 こってコテいけだ エリア | C26: =IFERROR(INDEX($AA$6:$AM$125,$V26,$V$1),"") -> 33.3 | D26: =IFERROR(INDEX(【D】NPS!$GP$7:$HB$126,$V26,$V$1),"") -> 6件 | V26: 48 | X26: 回答エリア | Y26: =IF(【M】エリア!$E22<>"",【M】エリア!$E22,"") -> 越前大野城・城下町 エリア | AA26: 3.8 | AB26: 4.6 | AC26: 0.0 | AD26: -7.1 | AE26: 1.9 | AF26: 23.1 | AG26: 19.1 | AH26: 12.8 | AI26: 23.5 | AJ26: 29.4 | AK26: -6.3 | AL26: 15.2 | AM26: 8.4 | AP26: =IF($Y26<>"", INDEX(NPSデータ範囲, MATCH($Y26,NPS表側範囲,0), MATCH(AP$2&$AO$1,NPS表頭範囲,0) ),"") -> 48 | AQ26: 49 | AR26: 49 | AS26: 70 | AT26: 59 | AU26: 31 | AV26: 38 | AW26: 37 | AX26: 34 | AY26: 24 | AZ26: 55 | BA26: 47 | BB26: 55 | BE26: =IF($Y26<>"", INDEX(NPSデータ範囲, MATCH($Y26,NPS表側範囲,0), MATCH(BE$2&$BD$1,NPS表頭範囲,0) ),"") -> 48 | BF26: 49 | BG26: 51 | BH26: 70 | BI26: 59 | BJ26: 31 | BK26: 38 | BL26: 37 | BM26: 34 | BN26: 24 | BO26: 55 | BP26: 47 | BQ26: 55
A27: =IFERROR(INDEX($AP$6:$BB$125,$V27,$V$1),"") -> 25 | B27: =IFERROR(INDEX($Y$6:$Y$125,$V27,1),"") -> 紫式部公園 エリア | C27: =IFERROR(INDEX($AA$6:$AM$125,$V27,$V$1),"") -> 33.3 | D27: =IFERROR(INDEX(【D】NPS!$GP$7:$HB$126,$V27,$V$1),"") -> 18件 | V27: 42 | X27: 回答エリア | Y27: =IF(【M】エリア!$E23<>"",【M】エリア!$E23,"") -> 道の駅「越前おおの荒島の郷」 エリア | AA27: 24.6 | AB27: 27.9 | AC27: 14.9 | AD27: 27.7 | AE27: 34.7 | AF27: 54.7 | AG27: 32.6 | AH27: 32.1 | AI27: 52.9 | AJ27: 34.6 | AK27: 35.7 | AL27: 43.5 | AM27: 32.7 | AP27: 22 | AQ27: 18 | AR27: 32 | AS27: 16 | AT27: 19 | AU27: 6 | AV27: 19 | AW27: 14 | AX27: 8 | AY27: 20 | AZ27: 17 | BA27: 14 | BB27: 8 | BE27: 22 | BF27: 18 | BG27: 32 | BH27: 16 | BI27: 19 | BJ27: 6 | BK27: 19 | BL27: 14 | BM27: 8 | BN27: 20 | BO27: 17 | BP27: 14 | BQ27: 8
A28: =IFERROR(INDEX($AP$6:$BB$125,$V28,$V$1),"") -> 26 | B28: =IFERROR(INDEX($Y$6:$Y$125,$V28,1),"") -> 北ノ庄 エリア | C28: =IFERROR(INDEX($AA$6:$AM$125,$V28,$V$1),"") -> 30.8 | D28: =IFERROR(INDEX(【D】NPS!$GP$7:$HB$126,$V28,$V$1),"") -> 13件 | V28: 3 | X28: 回答エリア | Y28: =IF(【M】エリア!$E24<>"",【M】エリア!$E24,"") -> JR九頭竜湖駅 エリア | AA28: -23.1 | AB28: -19.4 | AC28: -4.8 | AD28: -14.3 | AE28: -26.3 | AF28: -3.7 | AG28: -16.7 | AH28: -6.3 | AI28: -50.0 | AJ28: -100.0 | AK28: 0.0 | AL28: 0.0 | AM28: -14.9 | AP28: 80 | AQ28: 76 | AR28: 62 | AS28: 76 | AT28: 79 | AU28: 67 | AV28: 71 | AW28: 65 | AX28: 76 | AY28: 75 | AZ28: 45 | BA28: 57 | BB28: 87 | BE28: 80 | BF28: 76 | BG28: 62 | BH28: 76 | BI28: 79 | BJ28: 67 | BK28: 71 | BL28: 66 | BM28: 76 | BN28: 77 | BO28: 45 | BP28: 60 | BQ28: 87
A29: =IFERROR(INDEX($AP$6:$BB$125,$V29,$V$1),"") -> 27 | B29: =IFERROR(INDEX($Y$6:$Y$125,$V29,1),"") -> 大本山 永平寺 エリア | C29: =IFERROR(INDEX($AA$6:$AM$125,$V29,$V$1),"") -> 30.4 | D29: =IFERROR(INDEX(【D】NPS!$GP$7:$HB$126,$V29,$V$1),"") -> 184件 | V29: 35 | X29: 回答エリア | Y29: =IF(【M】エリア!$E25<>"",【M】エリア!$E25,"") -> 六呂師高原 エリア | AA29: -33.3 | AB29: 6.3 | AC29: 0.0 | AD29: -16.7 | AE29: 25.0 | AF29: 25.0 | AG29: -50.0 | AH29: -10.0 | AI29: - | AJ29: -100.0 | AK29: 0.0 | AL29: 80.0 | AM29: 6.0 | AP29: 85 | AQ29: 46 | AR29: 49 | AS29: 77 | AT29: 29 | AU29: 28 | AV29: 79 | AW29: 69 | AX29: - | AY29: 75 | AZ29: 45 | BA29: 1 | BB29: 60 | BE29: 85 | BF29: 46 | BG29: 52 | BH29: 77 | BI29: 29 | BJ29: 28 | BK29: 79 | BL29: 69 | BM29: - | BN29: 78 | BO29: 46 | BP29: 1 | BQ29: 60
A30: =IFERROR(INDEX($AP$6:$BB$125,$V30,$V$1),"") -> 28 | B30: =IFERROR(INDEX($Y$6:$Y$125,$V30,1),"") -> 道の駅「越前」 エリア | C30: =IFERROR(INDEX($AA$6:$AM$125,$V30,$V$1),"") -> 30.1 | D30: =IFERROR(INDEX(【D】NPS!$GP$7:$HB$126,$V30,$V$1),"") -> 73件 | V30: 50 | X30: 回答エリア | Y30: =IF(【M】エリア!$E26<>"",【M】エリア!$E26,"") -> スーベニアショップふらぷとる エリア | AA30: 10.0 | AB30: 10.0 | AC30: 10.3 | AD30: 10.0 | AE30: 2.1 | AF30: 14.3 | AG30: 12.5 | AH30: - | AI30: - | AJ30: - | AK30: - | AL30: - | AM30: 9.4 | AP30: 39 | AQ30: 39 | AR30: 37 | AS30: 44 | AT30: 58 | AU30: 41 | AV30: 44 | AW30: - | AX30: - | AY30: - | AZ30: - | BA30: - | BB30: 51 | BE30: 39 | BF30: 39 | BG30: 37 | BH30: 45 | BI30: 58 | BJ30: 41 | BK30: 44 | BL30: - | BM30: - | BN30: - | BO30: - | BP30: - | BQ30: 51
A31: =IFERROR(INDEX($AP$6:$BB$125,$V31,$V$1),"") -> 29 | B31: =IFERROR(INDEX($Y$6:$Y$125,$V31,1),"") -> 劔神社 エリア | C31: =IFERROR(INDEX($AA$6:$AM$125,$V31,$V$1),"") -> 30.0 | D31: =IFERROR(INDEX(【D】NPS!$GP$7:$HB$126,$V31,$V$1),"") -> 10件 | V31: 52 | X31: 回答エリア | Y31: =IF(【M】エリア!$E27<>"",【M】エリア!$E27,"") -> かつやま恐竜の森 エリア | AA31: - | AB31: - | AC31: - | AD31: - | AE31: - | AF31: - | AG31: - | AH31: 6.5 | AI31: 34.5 | AJ31: 46.4 | AK31: 48.5 | AL31: 45.9 | AM31: 42.1 | AP31: - | AQ31: - | AR31: - | AS31: - | AT31: - | AU31: - | AV31: - | AW31: 47 | AX31: 21 | AY31: 14 | AZ31: 10 | BA31: 13 | BB31: 4 | BE31: - | BF31: - | BG31: - | BH31: - | BI31: - | BJ31: - | BK31: - | BL31: 47 | BM31: 21 | BN31: 14 | BO31: 10 | BP31: 13 | BQ31: 4
A32: =IFERROR(INDEX($AP$6:$BB$125,$V32,$V$1),"") -> 29 | B32: =IFERROR(INDEX($Y$6:$Y$125,$V32,1),"") -> 道の駅「若狭おばま」 エリア | C32: =IFERROR(INDEX($AA$6:$AM$125,$V32,$V$1),"") -> 30.0 | D32: =IFERROR(INDEX(【D】NPS!$GP$7:$HB$126,$V32,$V$1),"") -> 50件 | V32: 69 | X32: 回答エリア | Y32: =IF(【M】エリア!$E28<>"",【M】エリア!$E28,"") -> 道の駅「恐竜渓谷かつやま」 エリア | AA32: 1.5 | AB32: 24.5 | AC32: 15.0 | AD32: 31.8 | AE32: 38.5 | AF32: 28.6 | AG32: 10.3 | AH32: 18.8 | AI32: 18.2 | AJ32: 4.3 | AK32: 31.6 | AL32: 37.8 | AM32: 20.8 | AP32: 51 | AQ32: 22 | AR32: 31 | AS32: 15 | AT32: 15 | AU32: 25 | AV32: 46 | AW32: 29 | AX32: 42 | AY32: 46 | AZ32: 21 | BA32: 18 | BB32: 29 | BE32: 51 | BF32: 22 | BG32: 31 | BH32: 15 | BI32: 15 | BJ32: 25 | BK32: 46 | BL32: 29 | BM32: 43 | BN32: 46 | BO32: 21 | BP32: 18 | BQ32: 29
A33: =IFERROR(INDEX($AP$6:$BB$125,$V33,$V$1),"") -> 31 | B33: =IFERROR(INDEX($Y$6:$Y$125,$V33,1),"") -> 明通寺 エリア | C33: =IFERROR(INDEX($AA$6:$AM$125,$V33,$V$1),"") -> 29.7 | D33: =IFERROR(INDEX(【D】NPS!$GP$7:$HB$126,$V33,$V$1),"") -> 37件 | V33: 74 | X33: 回答エリア | Y33: =IF(【M】エリア!$E29<>"",【M】エリア!$E29,"") -> スキージャム勝山 エリア | AA33: =IF($Y33<>"", INDEX(NPSデータ範囲, MATCH($Y33,NPS表側範囲,0), MATCH(AA$2&$Z$1,NPS表頭範囲,0) ),"") -> 0.0 | AB33: 25.0 | AC33: 0.0 | AD33: 0.0 | AE33: 16.7 | AF33: 100.0 | AG33: -20.0 | AH33: 66.7 | AI33: 71.4 | AJ33: 42.9 | AK33: 38.1 | AL33: 62.5 | AM33: 37.4 | AP33: 52 | AQ33: 20 | AR33: 49 | AS33: 55 | AT33: 46 | AU33: 1 | AV33: 72 | AW33: 2 | AX33: 3 | AY33: 16 | AZ33: 15 | BA33: 7 | BB33: 6 | BE33: 53 | BF33: 20 | BG33: 53 | BH33: 57 | BI33: 46 | BJ33: 1 | BK33: 72 | BL33: 2 | BM33: 3 | BN33: 16 | BO33: 15 | BP33: 7 | BQ33: 6
A34: =IFERROR(INDEX($AP$6:$BB$125,$V34,$V$1),"") -> 32 | B34: =IFERROR(INDEX($Y$6:$Y$125,$V34,1),"") -> 花の駅 ゆりの里公園 エリア | C34: =IFERROR(INDEX($AA$6:$AM$125,$V34,$V$1),"") -> 29.6 | D34: =IFERROR(INDEX(【D】NPS!$GP$7:$HB$126,$V34,$V$1),"") -> 27件 | V34: 14 | X34: 回答エリア | Y34: =IF(【M】エリア!$E30<>"",【M】エリア!$E30,"") -> 越前大仏 エリア | AA34: -20.0 | AB34: 7.7 | AC34: 22.2 | AD34: 9.1 | AE34: 0.0 | AF34: -13.3 | AG34: -21.4 | AH34: 40.0 | AI34: 33.3 | AJ34: 0.0 | AK34: 33.3 | AL34: 8.3 | AM34: 9.8 | AP34: 77 | AQ34: 43 | AR34: 23 | AS34: 48 | AT34: 60 | AU34: 72 | AV34: 73 | AW34: 5 | AX34: 23 | AY34: 47 | AZ34: 18 | BA34: 55 | BB34: 50 | BE34: 77 | BF34: 44 | BG34: 23 | BH34: 48 | BI34: 61 | BJ34: 72 | BK34: 73 | BL34: 5 | BM34: 23 | BN34: 49 | BO34: 18 | BP34: 55 | BQ34: 50
A35: =IFERROR(INDEX($AP$6:$BB$125,$V35,$V$1),"") -> 33 | B35: =IFERROR(INDEX($Y$6:$Y$125,$V35,1),"") -> フルーツライン エリア | C35: =IFERROR(INDEX($AA$6:$AM$125,$V35,$V$1),"") -> 28.6 | D35: =IFERROR(INDEX(【D】NPS!$GP$7:$HB$126,$V35,$V$1),"") -> 14件 | V35: =IFERROR(MATCH(ROW(B35)-2,INDEX($BE$6:$BQ$125,,$V$1),0),"-") -> 18 | X35: 回答エリア | Y35: =IF(【M】エリア!$E31<>"",【M】エリア!$E31,"") -> 平泉寺白山神社 エリア | AA35: 0.0 | AB35: 44.4 | AC35: 17.6 | AD35: 19.0 | AE35: 55.6 | AF35: 71.4 | AG35: 28.6 | AH35: 0.0 | AI35: 66.7 | AJ35: 50.0 | AK35: 100.0 | AL35: 75.0 | AM35: 30.8 | AP35: 52 | AQ35: 6 | AR35: 26 | AS35: 30 | AT35: 4 | AU35: 4 | AV35: 23 | AW35: 51 | AX35: 4 | AY35: 11 | AZ35: 1 | BA35: 3 | BB35: 9 | BE35: 54 | BF35: 6 | BG35: 26 | BH35: 30 | BI35: 4 | BJ35: 4 | BK35: 24 | BL35: 53 | BM35: 4 | BN35: 11 | BO35: 1 | BP35: 3 | BQ35: 9
A36: =IFERROR(INDEX($AP$6:$BB$125,$V36,$V$1),"") -> 34 | B36: =IFERROR(INDEX($Y$6:$Y$125,$V36,1),"") -> 越前そばの里 エリア | C36: =IFERROR(INDEX($AA$6:$AM$125,$V36,$V$1),"") -> 25.6 | D36: =IFERROR(INDEX(【D】NPS!$GP$7:$HB$126,$V36,$V$1),"") -> 328件 | V36: 38 | X36: 回答エリア | Y36: =IF(【M】エリア!$E32<>"",【M】エリア!$E32,"") -> はたや記念館 ゆめおーれ勝山 エリア | AA36: 28.6 | AB36: 0.0 | AC36: 47.6 | AD36: 27.3 | AE36: 17.6 | AF36: 44.4 | AG36: 0.0 | AH36: 8.3 | AI36: -12.5 | AJ36: 83.3 | AK36: 37.5 | AL36: 25.0 | AM36: 21.7 | AP36: =IF($Y36<>"", INDEX(NPSデータ範囲, MATCH($Y36,NPS表側範囲,0), MATCH(AP$2&$AO$1,NPS表頭範囲,0) ),"") -> 18 | AQ36: 53 | AR36: 8 | AS36: 18 | AT36: 45 | AU36: 10 | AV36: 50 | AW36: 43 | AX36: 71 | AY36: 4 | AZ36: 16 | BA36: 35 | BB36: 26 | BE36: =IF($Y36<>"", INDEX(NPSデータ範囲, MATCH($Y36,NPS表側範囲,0), MATCH(BE$2&$BD$1,NPS表頭範囲,0) ),"") -> 19 | BF36: 53 | BG36: 8 | BH36: 18 | BI36: 45 | BJ36: 10 | BK36: 52 | BL36: 43 | BM36: 71 | BN36: 4 | BO36: 16 | BP36: 35 | BQ36: 26
A37: =IFERROR(INDEX($AP$6:$BB$125,$V37,$V$1),"") -> 35 | B37: =IFERROR(INDEX($Y$6:$Y$125,$V37,1),"") -> はたや記念館 ゆめおーれ勝山 エリア | C37: =IFERROR(INDEX($AA$6:$AM$125,$V37,$V$1),"") -> 25.0 | D37: =IFERROR(INDEX(【D】NPS!$GP$7:$HB$126,$V37,$V$1),"") -> 12件 | V37: 31 | X37: 回答エリア | Y37: =IF(【M】エリア!$E33<>"",【M】エリア!$E33,"") -> えちぜん鉄道 永平寺口駅 エリア | AA37: -10.0 | AB37: 0.0 | AC37: 0.0 | AD37: 16.7 | AE37: 0.0 | AF37: 44.4 | AG37: 0.0 | AH37: -25.0 | AI37: 0.0 | AJ37: -16.7 | AK37: 0.0 | AL37: 20.0 | AM37: 2.7 | AP37: 68 | AQ37: 53 | AR37: 49 | AS37: 32 | AT37: 60 | AU37: 10 | AV37: 50 | AW37: 76 | AX37: 58 | AY37: 63 | AZ37: 45 | BA37: 41 | BB37: 67 | BE37: 68 | BF37: 54 | BG37: 54 | BH37: 32 | BI37: 62 | BJ37: 11 | BK37: 53 | BL37: 76 | BM37: 58 | BN37: 63 | BO37: 47 | BP37: 41 | BQ37: 67
A38: =IFERROR(INDEX($AP$6:$BB$125,$V38,$V$1),"") -> 35 | B38: =IFERROR(INDEX($Y$6:$Y$125,$V38,1),"") -> 湖上館パムコ（水月湖）エリア | C38: =IFERROR(INDEX($AA$6:$AM$125,$V38,$V$1),"") -> 25.0 | D38: =IFERROR(INDEX(【D】NPS!$GP$7:$HB$126,$V38,$V$1),"") -> 8件 | V38: 83 | X38: 回答エリア | Y38: =IF(【M】エリア!$E34<>"",【M】エリア!$E34,"") -> 九頭竜川 エリア（鮎・釣り） | AA38: - | AB38: - | AC38: - | AD38: - | AE38: 0.0 | AF38: - | AG38: - | AH38: - | AI38: - | AJ38: - | AK38: - | AL38: - | AM38: 0.0 | AP38: - | AQ38: - | AR38: - | AS38: - | AT38: 60 | AU38: - | AV38: - | AW38: - | AX38: - | AY38: - | AZ38: - | BA38: - | BB38: 70 | BE38: - | BF38: - | BG38: - | BH38: - | BI38: 63 | BJ38: - | BK38: - | BL38: - | BM38: - | BN38: - | BO38: - | BP38: - | BQ38: 70
A39: =IFERROR(INDEX($AP$6:$BB$125,$V39,$V$1),"") -> 37 | B39: =IFERROR(INDEX($Y$6:$Y$125,$V39,1),"") -> あわら湯のまち エリア | C39: =IFERROR(INDEX($AA$6:$AM$125,$V39,$V$1),"") -> 23.3 | D39: =IFERROR(INDEX(【D】NPS!$GP$7:$HB$126,$V39,$V$1),"") -> 172件 | V39: 17 | X39: 回答エリア | Y39: =IF(【M】エリア!$E35<>"",【M】エリア!$E35,"") -> えちぜん鉄道 松岡駅 エリア | AA39: 22.7 | AB39: 35.0 | AC39: 8.0 | AD39: -7.1 | AE39: 16.0 | AF39: 19.2 | AG39: 25.0 | AH39: 0.0 | AI39: 11.1 | AJ39: 0.0 | AK39: 28.6 | AL39: 16.7 | AM39: 15.5 | AP39: 24 | AQ39: 11 | AR39: 40 | AS39: 70 | AT39: 49 | AU39: 36 | AV39: 29 | AW39: 51 | AX39: 52 | AY39: 47 | AZ39: 24 | BA39: 44 | BB39: 40 | BE39: 24 | BF39: 11 | BG39: 40 | BH39: 71 | BI39: 49 | BJ39: 36 | BK39: 29 | BL39: 54 | BM39: 52 | BN39: 50 | BO39: 24 | BP39: 44 | BQ39: 40
A40: =IFERROR(INDEX($AP$6:$BB$125,$V40,$V$1),"") -> 38 | B40: =IFERROR(INDEX($Y$6:$Y$125,$V40,1),"") -> 福井駅前 エリア（宿泊施設） | C40: =IFERROR(INDEX($AA$6:$AM$125,$V40,$V$1),"") -> 22.2 | D40: =IFERROR(INDEX(【D】NPS!$GP$7:$HB$126,$V40,$V$1),"") -> 36件 | V40: 2 | X40: 回答エリア | Y40: =IF(【M】エリア!$E36<>"",【M】エリア!$E36,"") -> 大本山 永平寺 エリア | AA40: 29.1 | AB40: 40.8 | AC40: 31.6 | AD40: 25.9 | AE40: 29.2 | AF40: 35.0 | AG40: 44.8 | AH40: 34.0 | AI40: 37.5 | AJ40: 23.2 | AK40: 41.8 | AL40: 30.4 | AM40: 33.9 | AP40: 17 | AQ40: 7 | AR40: 15 | AS40: 19 | AT40: 24 | AU40: 15 | AV40: 8 | AW40: 8 | AX40: 19 | AY40: 31 | AZ40: 13 | BA40: 27 | BB40: 7 | BE40: 17 | BF40: 7 | BG40: 15 | BH40: 19 | BI40: 24 | BJ40: 15 | BK40: 8 | BL40: 8 | BM40: 19 | BN40: 31 | BO40: 13 | BP40: 27 | BQ40: 7
A41: =IFERROR(INDEX($AP$6:$BB$125,$V41,$V$1),"") -> 39 | B41: =IFERROR(INDEX($Y$6:$Y$125,$V41,1),"") -> JR美浜駅 エリア | C41: =IFERROR(INDEX($AA$6:$AM$125,$V41,$V$1),"") -> 21.9 | D41: =IFERROR(INDEX(【D】NPS!$GP$7:$HB$126,$V41,$V$1),"") -> 32件 | V41: 80 | X41: 回答エリア | Y41: =IF(【M】エリア!$E37<>"",【M】エリア!$E37,"") -> 道の駅「禅の里」 エリア | AA41: -50.0 | AB41: -21.4 | AC41: -30.8 | AD41: 0.0 | AE41: -30.8 | AF41: 6.9 | AG41: 0.0 | AH41: -4.3 | AI41: 20.0 | AJ41: -23.5 | AK41: 23.8 | AL41: -9.8 | AM41: -8.2 | AP41: 87 | AQ41: 78 | AR41: 77 | AS41: 55 | AT41: 81 | AU41: 55 | AV41: 50 | AW41: 64 | AX41: 37 | AY41: 68 | AZ41: 25 | BA41: 71 | BB41: 83 | BE41: 87 | BF41: 78 | BG41: 77 | BH41: 58 | BI41: 81 | BJ41: 55 | BK41: 54 | BL41: 64 | BM41: 38 | BN41: 68 | BO41: 25 | BP41: 71 | BQ41: 83
A42: =IFERROR(INDEX($AP$6:$BB$125,$V42,$V$1),"") -> 40 | B42: =IFERROR(INDEX($Y$6:$Y$125,$V42,1),"") -> 北潟湖 エリア | C42: =IFERROR(INDEX($AA$6:$AM$125,$V42,$V$1),"") -> 20.6 | D42: =IFERROR(INDEX(【D】NPS!$GP$7:$HB$126,$V42,$V$1),"") -> 34件 | V42: 20 | X42: 回答エリア | Y42: =IF(【M】エリア!$E38<>"",【M】エリア!$E38,"") -> 越前和紙の里 エリア | AA42: 0.0 | AB42: -37.5 | AC42: -25.0 | AD42: 0.0 | AE42: 33.3 | AF42: -7.7 | AG42: -28.6 | AH42: 0.0 | AI42: 5.9 | AJ42: -25.0 | AK42: -11.1 | AL42: 9.1 | AM42: -2.4 | AP42: 52 | AQ42: 81 | AR42: 73 | AS42: 55 | AT42: 21 | AU42: 68 | AV42: 75 | AW42: 51 | AX42: 56 | AY42: 69 | AZ42: 59 | BA42: 52 | BB42: 78 | BE42: 55 | BF42: 81 | BG42: 73 | BH42: 59 | BI42: 21 | BJ42: 68 | BK42: 75 | BL42: 55 | BM42: 56 | BN42: 69 | BO42: 59 | BP42: 52 | BQ42: 78
A43: =IFERROR(INDEX($AP$6:$BB$125,$V43,$V$1),"") -> 41 | B43: =IFERROR(INDEX($Y$6:$Y$125,$V43,1),"") -> えちぜん鉄道 永平寺口駅 エリア | C43: =IFERROR(INDEX($AA$6:$AM$125,$V43,$V$1),"") -> 20.0 | D43: =IFERROR(INDEX(【D】NPS!$GP$7:$HB$126,$V43,$V$1),"") -> 10件 | V43: 32 | X43: 回答エリア | Y43: =IF(【M】エリア!$E39<>"",【M】エリア!$E39,"") -> 越前そばの里 エリア | AA43: =IF($Y43<>"", INDEX(NPSデータ範囲, MATCH($Y43,NPS表側範囲,0), MATCH(AA$2&$Z$1,NPS表頭範囲,0) ),"") -> 24.0 | AB43: 9.0 | AC43: 13.9 | AD43: 6.3 | AE43: 24.0 | AF43: 20.8 | AG43: 13.0 | AH43: 24.3 | AI43: 31.2 | AJ43: 36.2 | AK43: 29.0 | AL43: 25.6 | AM43: 24.8 | AP43: 23 | AQ43: 41 | AR43: 34 | AS43: 50 | AT43: 34 | AU43: 33 | AV43: 43 | AW43: 19 | AX43: 27 | AY43: 19 | AZ43: 23 | BA43: 34 | BB43: 22 | BE43: 23 | BF43: 41 | BG43: 34 | BH43: 50 | BI43: 34 | BJ43: 33 | BK43: 43 | BL43: 19 | BM43: 27 | BN43: 19 | BO43: 23 | BP43: 34 | BQ43: 22
A44: =IFERROR(INDEX($AP$6:$BB$125,$V44,$V$1),"") -> 42 | B44: =IFERROR(INDEX($Y$6:$Y$125,$V44,1),"") -> 名田庄 エリア | C44: =IFERROR(INDEX($AA$6:$AM$125,$V44,$V$1),"") -> 19.0 | D44: =IFERROR(INDEX(【D】NPS!$GP$7:$HB$126,$V44,$V$1),"") -> 21件 | V44: 87 | X44: 回答エリア | Y44: =IF(【M】エリア!$E40<>"",【M】エリア!$E40,"") -> 北陸新幹線 越前たけふ駅 エリア | AA44: -1.8 | AB44: 0.0 | AC44: 2.2 | AD44: 12.5 | AE44: 0.0 | AF44: 4.5 | AG44: -5.6 | AH44: 14.0 | AI44: 35.7 | AJ44: 5.7 | AK44: 31.8 | AL44: 2.4 | AM44: 6.3 | AP44: 59 | AQ44: 53 | AR44: 48 | AS44: 41 | AT44: 60 | AU44: 59 | AV44: 63 | AW44: 36 | AX44: 20 | AY44: 44 | AZ44: 20 | BA44: 56 | BB44: 58 | BE44: 59 | BF44: 55 | BG44: 48 | BH44: 41 | BI44: 64 | BJ44: 59 | BK44: 63 | BL44: 36 | BM44: 20 | BN44: 44 | BO44: 20 | BP44: 56 | BQ44: 58
A45: =IFERROR(INDEX($AP$6:$BB$125,$V45,$V$1),"") -> 43 | B45: =IFERROR(INDEX($Y$6:$Y$125,$V45,1),"") -> 一乗谷朝倉氏遺跡 エリア | C45: =IFERROR(INDEX($AA$6:$AM$125,$V45,$V$1),"") -> 16.9 | D45: =IFERROR(INDEX(【D】NPS!$GP$7:$HB$126,$V45,$V$1),"") -> 71件 | V45: 6 | X45: 回答エリア | Y45: =IF(【M】エリア!$E41<>"",【M】エリア!$E41,"") -> タケフナイフビレッジ エリア | AA45: -23.1 | AB45: 0.0 | AC45: 16.7 | AD45: 0.0 | AE45: 33.3 | AF45: 18.4 | AG45: 0.0 | AH45: 20.0 | AI45: 0.0 | AJ45: - | AK45: 50.0 | AL45: -41.2 | AM45: 4.2 | AP45: 80 | AQ45: 53 | AR45: 27 | AS45: 55 | AT45: 20 | AU45: 37 | AV45: 50 | AW45: 27 | AX45: 58 | AY45: - | AZ45: 8 | BA45: 77 | BB45: 64 | BE45: 81 | BF45: 56 | BG45: 27 | BH45: 60 | BI45: 20 | BJ45: 37 | BK45: 55 | BL45: 27 | BM45: 59 | BN45: - | BO45: 8 | BP45: 77 | BQ45: 64
A46: =IFERROR(INDEX($AP$6:$BB$125,$V46,$V$1),"") -> 44 | B46: =IFERROR(INDEX($Y$6:$Y$125,$V46,1),"") -> えちぜん鉄道 松岡駅 エリア | C46: =IFERROR(INDEX($AA$6:$AM$125,$V46,$V$1),"") -> 16.7 | D46: =IFERROR(INDEX(【D】NPS!$GP$7:$HB$126,$V46,$V$1),"") -> 12件 | V46: 34 | X46: 回答エリア | Y46: =IF(【M】エリア!$E42<>"",【M】エリア!$E42,"") -> 武生駅 エリア | AA46: -7.1 | AB46: -12.5 | AC46: -28.6 | AD46: -50.0 | AE46: 33.3 | AF46: 20.0 | AG46: 100.0 | AH46: 40.0 | AI46: 0.0 | AJ46: -14.3 | AK46: 100.0 | AL46: 0.0 | AM46: 0.0 | AP46: =IF($Y46<>"", INDEX(NPSデータ範囲, MATCH($Y46,NPS表側範囲,0), MATCH(AP$2&$AO$1,NPS表頭範囲,0) ),"") -> 64 | AQ46: 70 | AR46: 75 | AS46: 83 | AT46: 21 | AU46: 35 | AV46: 1 | AW46: 5 | AX46: 58 | AY46: 62 | AZ46: 1 | BA46: 57 | BB46: 70 | BE46: =IF($Y46<>"", INDEX(NPSデータ範囲, MATCH($Y46,NPS表側範囲,0), MATCH(BE$2&$BD$1,NPS表頭範囲,0) ),"") -> 64 | BF46: 70 | BG46: 75 | BH46: 83 | BI46: 22 | BJ46: 35 | BK46: 2 | BL46: 6 | BM46: 60 | BN46: 62 | BO46: 2 | BP46: 61 | BQ46: 71
A47: =IFERROR(INDEX($AP$6:$BB$125,$V47,$V$1),"") -> 45 | B47: =IFERROR(INDEX($Y$6:$Y$125,$V47,1),"") -> 越前陶芸村 エリア | C47: =IFERROR(INDEX($AA$6:$AM$125,$V47,$V$1),"") -> 16.7 | D47: =IFERROR(INDEX(【D】NPS!$GP$7:$HB$126,$V47,$V$1),"") -> 18件 | V47: 53 | X47: 回答エリア | Y47: =IF(【M】エリア!$E43<>"",【M】エリア!$E43,"") -> 紫式部公園 エリア | AA47: 5.6 | AB47: -15.8 | AC47: 4.6 | AD47: -3.4 | AE47: -18.9 | AF47: -11.1 | AG47: -27.6 | AH47: -13.2 | AI47: -18.2 | AJ47: -18.2 | AK47: -66.7 | AL47: 33.3 | AM47: -7.2 | AP47: 47 | AQ47: 72 | AR47: 42 | AS47: 68 | AT47: 76 | AU47: 71 | AV47: 74 | AW47: 71 | AX47: 72 | AY47: 66 | AZ47: 71 | BA47: 25 | BB47: 82 | BE47: 47 | BF47: 72 | BG47: 42 | BH47: 68 | BI47: 76 | BJ47: 71 | BK47: 74 | BL47: 71 | BM47: 72 | BN47: 66 | BO47: 71 | BP47: 25 | BQ47: 82
A48: =IFERROR(INDEX($AP$6:$BB$125,$V48,$V$1),"") -> 46 | B48: =IFERROR(INDEX($Y$6:$Y$125,$V48,1),"") -> 三国湊 エリア | C48: =IFERROR(INDEX($AA$6:$AM$125,$V48,$V$1),"") -> 15.9 | D48: =IFERROR(INDEX(【D】NPS!$GP$7:$HB$126,$V48,$V$1),"") -> 44件 | V48: 9 | X48: 回答エリア | Y48: =IF(【M】エリア!$E44<>"",【M】エリア!$E44,"") -> だるまちゃん広場 エリア | AA48: 0.0 | AB48: 0.0 | AC48: 0.0 | AD48: 66.7 | AE48: -20.0 | AF48: -25.0 | AG48: 11.1 | AH48: -18.2 | AI48: -20.0 | AJ48: -16.7 | AK48: 100.0 | AL48: 66.7 | AM48: 0.0 | AP48: 52 | AQ48: 53 | AR48: 49 | AS48: 2 | AT48: 77 | AU48: 77 | AV48: 45 | AW48: 73 | AX48: 73 | AY48: 63 | AZ48: 1 | BA48: 4 | BB48: 70 | BE48: 56 | BF48: 57 | BG48: 55 | BH48: 2 | BI48: 77 | BJ48: 77 | BK48: 45 | BL48: 73 | BM48: 73 | BN48: 64 | BO48: 3 | BP48: 4 | BQ48: 72
A49: =IFERROR(INDEX($AP$6:$BB$125,$V49,$V$1),"") -> 47 | B49: =IFERROR(INDEX($Y$6:$Y$125,$V49,1),"") -> 越前大野城・城下町 エリア | C49: =IFERROR(INDEX($AA$6:$AM$125,$V49,$V$1),"") -> 15.2 | D49: =IFERROR(INDEX(【D】NPS!$GP$7:$HB$126,$V49,$V$1),"") -> 33件 | V49: 21 | X49: 回答エリア | Y49: =IF(【M】エリア!$E45<>"",【M】エリア!$E45,"") -> 刃物の里 エリア | AA49: 40.0 | AB49: 0.0 | AC49: -50.0 | AD49: 0.0 | AE49: - | AF49: - | AG49: - | AH49: - | AI49: - | AJ49: - | AK49: - | AL49: -16.7 | AM49: 0.0 | AP49: 7 | AQ49: 53 | AR49: 82 | AS49: 55 | AT49: - | AU49: - | AV49: - | AW49: - | AX49: - | AY49: - | AZ49: - | BA49: 73 | BB49: 70 | BE49: 7 | BF49: 58 | BG49: 82 | BH49: 61 | BI49: - | BJ49: - | BK49: - | BL49: - | BM49: - | BN49: - | BO49: - | BP49: 73 | BQ49: 73
A50: =IFERROR(INDEX($AP$6:$BB$125,$V50,$V$1),"") -> 48 | B50: =IFERROR(INDEX($Y$6:$Y$125,$V50,1),"") -> 道の駅みくに ふれあいパーク三里浜 エリア | C50: =IFERROR(INDEX($AA$6:$AM$125,$V50,$V$1),"") -> 14.3 | D50: =IFERROR(INDEX(【D】NPS!$GP$7:$HB$126,$V50,$V$1),"") -> 7件 | V50: 15 | X50: 回答エリア | Y50: =IF(【M】エリア!$E46<>"",【M】エリア!$E46,"") -> 道の駅「西山公園」 エリア | AA50: 6.5 | AB50: 14.0 | AC50: -13.6 | AD50: 0.0 | AE50: 16.0 | AF50: 11.8 | AG50: 3.3 | AH50: 9.5 | AI50: 45.5 | AJ50: -7.7 | AK50: 0.0 | AL50: 50.0 | AM50: 8.9 | AP50: 46 | AQ50: 34 | AR50: 69 | AS50: 55 | AT50: 48 | AU50: 47 | AV50: 49 | AW50: 41 | AX50: 13 | AY50: 61 | AZ50: 45 | BA50: 11 | BB50: 53 | BE50: 46 | BF50: 34 | BG50: 69 | BH50: 62 | BI50: 48 | BJ50: 47 | BK50: 49 | BL50: 41 | BM50: 13 | BN50: 61 | BO50: 48 | BP50: 12 | BQ50: 53
A51: =IFERROR(INDEX($AP$6:$BB$125,$V51,$V$1),"") -> 49 | B51: =IFERROR(INDEX($Y$6:$Y$125,$V51,1),"") -> うみんぴあ大飯 エリア | C51: =IFERROR(INDEX($AA$6:$AM$125,$V51,$V$1),"") -> 13.3 | D51: =IFERROR(INDEX(【D】NPS!$GP$7:$HB$126,$V51,$V$1),"") -> 30件 | V51: 85 | X51: 回答エリア | Y51: =IF(【M】エリア!$E47<>"",【M】エリア!$E47,"") -> メガネストリート エリア | AA51: 13.3 | AB51: -16.7 | AC51: 0.0 | AD51: 0.0 | AE51: -8.3 | AF51: 33.3 | AG51: - | AH51: 20.0 | AI51: 18.2 | AJ51: 80.0 | AK51: -66.7 | AL51: 60.0 | AM51: 13.5 | AP51: 37 | AQ51: 73 | AR51: 49 | AS51: 55 | AT51: 72 | AU51: 17 | AV51: - | AW51: 27 | AX51: 42 | AY51: 5 | AZ51: 71 | BA51: 8 | BB51: 42 | BE51: 37 | BF51: 73 | BG51: 56 | BH51: 63 | BI51: 72 | BJ51: 20 | BK51: - | BL51: 28 | BM51: 44 | BN51: 5 | BO51: 72 | BP51: 8 | BQ51: 42
A52: =IFERROR(INDEX($AP$6:$BB$125,$V52,$V$1),"") -> 50 | B52: =IFERROR(INDEX($Y$6:$Y$125,$V52,1),"") -> JR芦原温泉駅 エリア | C52: =IFERROR(INDEX($AA$6:$AM$125,$V52,$V$1),"") -> 11.1 | D52: =IFERROR(INDEX(【D】NPS!$GP$7:$HB$126,$V52,$V$1),"") -> 18件 | V52: 16 | X52: 回答エリア | Y52: =IF(【M】エリア!$E48<>"",【M】エリア!$E48,"") -> うるしの里 エリア | AA52: -14.3 | AB52: 23.1 | AC52: 33.3 | AD52: 0.0 | AE52: 46.2 | AF52: -11.1 | AG52: 0.0 | AH52: 0.0 | AI52: -80.0 | AJ52: 100.0 | AK52: 100.0 | AL52: -25.0 | AM52: 4.7 | AP52: 70 | AQ52: 23 | AR52: 13 | AS52: 55 | AT52: 11 | AU52: 70 | AV52: 50 | AW52: 51 | AX52: 77 | AY52: 1 | AZ52: 1 | BA52: 75 | BB52: 63 | BE52: 70 | BF52: 23 | BG52: 13 | BH52: 64 | BI52: 12 | BJ52: 70 | BK52: 56 | BL52: 56 | BM52: 77 | BN52: 1 | BO52: 4 | BP52: 75 | BQ52: 63
A53: =IFERROR(INDEX($AP$6:$BB$125,$V53,$V$1),"") -> 51 | B53: =IFERROR(INDEX($Y$6:$Y$125,$V53,1),"") -> 熊川宿 エリア | C53: =IFERROR(INDEX($AA$6:$AM$125,$V53,$V$1),"") -> 10.0 | D53: =IFERROR(INDEX(【D】NPS!$GP$7:$HB$126,$V53,$V$1),"") -> 20件 | V53: 82 | X53: 回答エリア | Y53: =IF(【M】エリア!$E49<>"",【M】エリア!$E49,"") -> まちの市場 こってコテいけだ エリア | AA53: =IF($Y53<>"", INDEX(NPSデータ範囲, MATCH($Y53,NPS表側範囲,0), MATCH(AA$2&$Z$1,NPS表頭範囲,0) ),"") -> 2.9 | AB53: -16.7 | AC53: 6.7 | AD53: 3.6 | AE53: 2.3 | AF53: 10.0 | AG53: 6.3 | AH53: -20.0 | AI53: 20.0 | AJ53: 10.0 | AK53: 60.0 | AL53: 33.3 | AM53: 2.6 | AP53: 49 | AQ53: 73 | AR53: 41 | AS53: 54 | AT53: 57 | AU53: 52 | AV53: 48 | AW53: 74 | AX53: 37 | AY53: 42 | AZ53: 7 | BA53: 24 | BB53: 68 | BE53: 49 | BF53: 74 | BG53: 41 | BH53: 54 | BI53: 57 | BJ53: 52 | BK53: 48 | BL53: 74 | BM53: 39 | BN53: 42 | BO53: 7 | BP53: 24 | BQ53: 68
A54: =IFERROR(INDEX($AP$6:$BB$125,$V54,$V$1),"") -> 52 | B54: =IFERROR(INDEX($Y$6:$Y$125,$V54,1),"") -> 越前和紙の里 エリア | C54: =IFERROR(INDEX($AA$6:$AM$125,$V54,$V$1),"") -> 9.1 | D54: =IFERROR(INDEX(【D】NPS!$GP$7:$HB$126,$V54,$V$1),"") -> 11件 | V54: 37 | X54: 回答エリア | Y54: =IF(【M】エリア!$E50<>"",【M】エリア!$E50,"") -> かずら橋 エリア | AA54: 14.0 | AB54: 11.5 | AC54: 15.2 | AD54: -9.7 | AE54: 19.6 | AF54: -3.4 | AG54: 24.2 | AH54: 14.6 | AI54: -4.2 | AJ54: 0.0 | AK54: 14.3 | AL54: 37.5 | AM54: 10.1 | AP54: 36 | AQ54: 38 | AR54: 30 | AS54: 74 | AT54: 40 | AU54: 66 | AV54: 32 | AW54: 34 | AX54: 69 | AY54: 47 | AZ54: 34 | BA54: 19 | BB54: 47 | BE54: 36 | BF54: 38 | BG54: 30 | BH54: 74 | BI54: 40 | BJ54: 66 | BK54: 32 | BL54: 34 | BM54: 69 | BN54: 51 | BO54: 34 | BP54: 19 | BQ54: 47
A55: =IFERROR(INDEX($AP$6:$BB$125,$V55,$V$1),"") -> 53 | B55: =IFERROR(INDEX($Y$6:$Y$125,$V55,1),"") -> 越前海岸 越前岬 エリア | C55: =IFERROR(INDEX($AA$6:$AM$125,$V55,$V$1),"") -> 8.3 | D55: =IFERROR(INDEX(【D】NPS!$GP$7:$HB$126,$V55,$V$1),"") -> 24件 | V55: 54 | X55: 回答エリア | Y55: =IF(【M】エリア!$E51<>"",【M】エリア!$E51,"") -> 道の駅「越前」 エリア | AA55: -6.0 | AB55: 16.7 | AC55: -11.4 | AD55: 48.1 | AE55: 14.5 | AF55: 46.2 | AG55: 13.3 | AH55: 8.0 | AI55: 23.9 | AJ55: 27.7 | AK55: 9.4 | AL55: 30.1 | AM55: 17.6 | AP55: 61 | AQ55: 29 | AR55: 66 | AS55: 6 | AT55: 51 | AU55: 9 | AV55: 42 | AW55: 44 | AX55: 33 | AY55: 27 | AZ55: 37 | BA55: 28 | BB55: 33 | BE55: 61 | BF55: 29 | BG55: 66 | BH55: 6 | BI55: 51 | BJ55: 9 | BK55: 42 | BL55: 44 | BM55: 33 | BN55: 27 | BO55: 37 | BP55: 28 | BQ55: 33
A56: =IFERROR(INDEX($AP$6:$BB$125,$V56,$V$1),"") -> 53 | B56: =IFERROR(INDEX($Y$6:$Y$125,$V56,1),"") -> 御食国若狭おばま食文化館 エリア | C56: =IFERROR(INDEX($AA$6:$AM$125,$V56,$V$1),"") -> 8.3 | D56: =IFERROR(INDEX(【D】NPS!$GP$7:$HB$126,$V56,$V$1),"") -> 24件 | V56: 72 | X56: 回答エリア | Y56: =IF(【M】エリア!$E52<>"",【M】エリア!$E52,"") -> 道の駅「パークイン丹生ヶ丘」 エリア | AA56: -9.4 | AB56: -20.7 | AC56: -29.2 | AD56: -11.1 | AE56: -29.4 | AF56: -32.0 | AG56: -5.9 | AH56: -8.3 | AI56: -11.1 | AJ56: -16.7 | AK56: -28.6 | AL56: -8.0 | AM56: -18.5 | AP56: =IF($Y56<>"", INDEX(NPSデータ範囲, MATCH($Y56,NPS表側範囲,0), MATCH(AP$2&$AO$1,NPS表頭範囲,0) ),"") -> 66 | AQ56: 77 | AR56: 76 | AS56: 75 | AT56: 80 | AU56: 79 | AV56: 64 | AW56: 67 | AX56: 70 | AY56: 65 | AZ56: 67 | BA56: 70 | BB56: 88 | BE56: =IF($Y56<>"", INDEX(NPSデータ範囲, MATCH($Y56,NPS表側範囲,0), MATCH(BE$2&$BD$1,NPS表頭範囲,0) ),"") -> 66 | BF56: 77 | BG56: 76 | BH56: 75 | BI56: 80 | BJ56: 79 | BK56: 64 | BL56: 67 | BM56: 70 | BN56: 65 | BO56: 67 | BP56: 70 | BQ56: 88
A57: =IFERROR(INDEX($AP$6:$BB$125,$V57,$V$1),"") -> 55 | B57: =IFERROR(INDEX($Y$6:$Y$125,$V57,1),"") -> 越前大仏 エリア | C57: =IFERROR(INDEX($AA$6:$AM$125,$V57,$V$1),"") -> 8.3 | D57: =IFERROR(INDEX(【D】NPS!$GP$7:$HB$126,$V57,$V$1),"") -> 12件 | V57: 29 | X57: 回答エリア | Y57: =IF(【M】エリア!$E53<>"",【M】エリア!$E53,"") -> 劔神社 エリア | AA57: -7.5 | AB57: 33.3 | AC57: -22.2 | AD57: -40.0 | AE57: -25.0 | AF57: 22.2 | AG57: 0.0 | AH57: 25.0 | AI57: 0.0 | AJ57: 0.0 | AK57: -100.0 | AL57: 30.0 | AM57: 6.2 | AP57: 65 | AQ57: 13 | AR57: 71 | AS57: 82 | AT57: 78 | AU57: 32 | AV57: 50 | AW57: 17 | AX57: 58 | AY57: 47 | AZ57: 73 | BA57: 29 | BB57: 59 | BE57: 65 | BF57: 13 | BG57: 72 | BH57: 82 | BI57: 78 | BJ57: 32 | BK57: 57 | BL57: 17 | BM57: 61 | BN57: 52 | BO57: 74 | BP57: 29 | BQ57: 59
A58: =IFERROR(INDEX($AP$6:$BB$125,$V58,$V$1),"") -> 56 | B58: =IFERROR(INDEX($Y$6:$Y$125,$V58,1),"") -> 北陸新幹線 越前たけふ駅 エリア | C58: =IFERROR(INDEX($AA$6:$AM$125,$V58,$V$1),"") -> 2.4 | D58: =IFERROR(INDEX(【D】NPS!$GP$7:$HB$126,$V58,$V$1),"") -> 41件 | V58: 39 | X58: 回答エリア | Y58: =IF(【M】エリア!$E54<>"",【M】エリア!$E54,"") -> 越前陶芸村 エリア | AA58: 6.7 | AB58: 34.6 | AC58: 71.4 | AD58: 16.7 | AE58: 25.0 | AF58: 10.5 | AG58: 22.7 | AH58: 31.3 | AI58: 42.9 | AJ58: 50.0 | AK58: 0.0 | AL58: 16.7 | AM58: 23.7 | AP58: 45 | AQ58: 12 | AR58: 4 | AS58: 32 | AT58: 29 | AU58: 51 | AV58: 35 | AW58: 15 | AX58: 16 | AY58: 11 | AZ58: 45 | BA58: 45 | BB58: 23 | BE58: 45 | BF58: 12 | BG58: 4 | BH58: 33 | BI58: 30 | BJ58: 51 | BK58: 35 | BL58: 15 | BM58: 16 | BN58: 12 | BO58: 49 | BP58: 45 | BQ58: 23
A59: =IFERROR(INDEX($AP$6:$BB$125,$V59,$V$1),"") -> 57 | B59: =IFERROR(INDEX($Y$6:$Y$125,$V59,1),"") -> 越前海岸 北部 エリア | C59: =IFERROR(INDEX($AA$6:$AM$125,$V59,$V$1),"") -> 0.0 | D59: =IFERROR(INDEX(【D】NPS!$GP$7:$HB$126,$V59,$V$1),"") -> 13件 | V59: 7 | X59: 回答エリア | Y59: =IF(【M】エリア!$E55<>"",【M】エリア!$E55,"") -> 越前海岸 越前岬 エリア | AA59: -23.5 | AB59: 40.0 | AC59: - | AD59: -100.0 | AE59: 50.0 | AF59: 66.7 | AG59: - | AH59: 33.3 | AI59: 66.7 | AJ59: -3.2 | AK59: 20.0 | AL59: 8.3 | AM59: 9.2 | AP59: 82 | AQ59: 8 | AR59: - | AS59: 85 | AT59: 6 | AU59: 5 | AV59: - | AW59: 10 | AX59: 4 | AY59: 58 | AZ59: 29 | BA59: 53 | BB59: 52 | BE59: 82 | BF59: 8 | BG59: - | BH59: 85 | BI59: 7 | BJ59: 5 | BK59: - | BL59: 10 | BM59: 5 | BN59: 58 | BO59: 30 | BP59: 53 | BQ59: 52
A60: =IFERROR(INDEX($AP$6:$BB$125,$V60,$V$1),"") -> 57 | B60: =IFERROR(INDEX($Y$6:$Y$125,$V60,1),"") -> 大安禅寺 エリア | C60: =IFERROR(INDEX($AA$6:$AM$125,$V60,$V$1),"") -> 0.0 | D60: =IFERROR(INDEX(【D】NPS!$GP$7:$HB$126,$V60,$V$1),"") -> 1件 | V60: 8 | X60: 回答エリア | Y60: =IF(【M】エリア!$E56<>"",【M】エリア!$E56,"") -> 越前漁港 エリア | AA60: 37.5 | AB60: - | AC60: 75.0 | AD60: - | AE60: - | AF60: 0.0 | AG60: -100.0 | AH60: 33.3 | AI60: - | AJ60: - | AK60: - | AL60: - | AM60: 27.8 | AP60: 11 | AQ60: - | AR60: 3 | AS60: - | AT60: - | AU60: 62 | AV60: 81 | AW60: 10 | AX60: - | AY60: - | AZ60: - | BA60: - | BB60: 15 | BE60: 11 | BF60: - | BG60: 3 | BH60: - | BI60: - | BJ60: 63 | BK60: 81 | BL60: 11 | BM60: - | BN60: - | BO60: - | BP60: - | BQ60: 15
A61: =IFERROR(INDEX($AP$6:$BB$125,$V61,$V$1),"") -> 57 | B61: =IFERROR(INDEX($Y$6:$Y$125,$V61,1),"") -> 芝政ワールド エリア | C61: =IFERROR(INDEX($AA$6:$AM$125,$V61,$V$1),"") -> 0.0 | D61: =IFERROR(INDEX(【D】NPS!$GP$7:$HB$126,$V61,$V$1),"") -> 4件 | V61: 12 | X61: 回答エリア | Y61: =IF(【M】エリア!$E57<>"",【M】エリア!$E57,"") -> 越前海岸 茂原民宿街 エリア | AA61: 100.0 | AB61: - | AC61: - | AD61: 0.0 | AE61: 66.7 | AF61: -100.0 | AG61: - | AH61: 0.0 | AI61: - | AJ61: 0.0 | AK61: - | AL61: - | AM61: 25.0 | AP61: 1 | AQ61: - | AR61: - | AS61: 55 | AT61: 3 | AU61: 85 | AV61: - | AW61: 51 | AX61: - | AY61: 47 | AZ61: - | BA61: - | BB61: 20 | BE61: 2 | BF61: - | BG61: - | BH61: 65 | BI61: 3 | BJ61: 85 | BK61: - | BL61: 57 | BM61: - | BN61: 53 | BO61: - | BP61: - | BQ61: 21
A62: =IFERROR(INDEX($AP$6:$BB$125,$V62,$V$1),"") -> 57 | B62: =IFERROR(INDEX($Y$6:$Y$125,$V62,1),"") -> JR九頭竜湖駅 エリア | C62: =IFERROR(INDEX($AA$6:$AM$125,$V62,$V$1),"") -> 0.0 | D62: =IFERROR(INDEX(【D】NPS!$GP$7:$HB$126,$V62,$V$1),"") -> 6件 | V62: 23 | X62: 回答エリア | Y62: =IF(【M】エリア!$E58<>"",【M】エリア!$E58,"") -> 越前海岸 高佐米ノ旅館街 エリア | AA62: 30.0 | AB62: 50.0 | AC62: 50.0 | AD62: 12.5 | AE62: 50.0 | AF62: -25.0 | AG62: 57.1 | AH62: -25.0 | AI62: 100.0 | AJ62: - | AK62: 50.0 | AL62: 0.0 | AM62: 26.9 | AP62: 16 | AQ62: 3 | AR62: 6 | AS62: 39 | AT62: 6 | AU62: 77 | AV62: 7 | AW62: 76 | AX62: 1 | AY62: - | AZ62: 8 | BA62: 57 | BB62: 16 | BE62: 16 | BF62: 4 | BG62: 7 | BH62: 39 | BI62: 8 | BJ62: 78 | BK62: 7 | BL62: 77 | BM62: 1 | BN62: - | BO62: 9 | BP62: 62 | BQ62: 16
A63: =IFERROR(INDEX($AP$6:$BB$125,$V63,$V$1),"") -> 57 | B63: =IFERROR(INDEX($Y$6:$Y$125,$V63,1),"") -> 武生駅 エリア | C63: =IFERROR(INDEX($AA$6:$AM$125,$V63,$V$1),"") -> 0.0 | D63: =IFERROR(INDEX(【D】NPS!$GP$7:$HB$126,$V63,$V$1),"") -> 2件 | V63: 41 | X63: 回答エリア | Y63: =IF(【M】エリア!$E59<>"",【M】エリア!$E59,"") -> 越前海岸 くりや旅館街 エリア | AA63: =IF($Y63<>"", INDEX(NPSデータ範囲, MATCH($Y63,NPS表側範囲,0), MATCH(AA$2&$Z$1,NPS表頭範囲,0) ),"") -> 40.0 | AB63: 100.0 | AC63: 0.0 | AD63: 33.3 | AE63: 25.0 | AF63: 50.0 | AG63: 44.4 | AH63: 18.2 | AI63: 66.7 | AJ63: 66.7 | AK63: 0.0 | AL63: 40.0 | AM63: 43.3 | AP63: 7 | AQ63: 1 | AR63: 49 | AS63: 13 | AT63: 29 | AU63: 7 | AV63: 9 | AW63: 30 | AX63: 4 | AY63: 8 | AZ63: 45 | BA63: 15 | BB63: 2 | BE63: 8 | BF63: 1 | BG63: 57 | BH63: 14 | BI63: 31 | BJ63: 7 | BK63: 9 | BL63: 30 | BM63: 6 | BN63: 8 | BO63: 50 | BP63: 15 | BQ63: 2
A64: =IFERROR(INDEX($AP$6:$BB$125,$V64,$V$1),"") -> 57 | B64: =IFERROR(INDEX($Y$6:$Y$125,$V64,1),"") -> 越前海岸 高佐米ノ旅館街 エリア | C64: =IFERROR(INDEX($AA$6:$AM$125,$V64,$V$1),"") -> 0.0 | D64: =IFERROR(INDEX(【D】NPS!$GP$7:$HB$126,$V64,$V$1),"") -> 5件 | V64: 57 | X64: 回答エリア | Y64: =IF(【M】エリア!$E60<>"",【M】エリア!$E60,"") -> 道の駅「南えちぜん山海里」 エリア | AA64: 20.2 | AB64: 15.2 | AC64: 29.1 | AD64: 24.5 | AE64: 42.6 | AF64: 30.2 | AG64: 26.8 | AH64: 32.1 | AI64: 40.9 | AJ64: 56.1 | AK64: 13.7 | AL64: 40.0 | AM64: 29.5 | AP64: 27 | AQ64: 31 | AR64: 17 | AS64: 21 | AT64: 14 | AU64: 24 | AV64: 27 | AW64: 13 | AX64: 18 | AY64: 10 | AZ64: 35 | BA64: 15 | BB64: 10 | BE64: 27 | BF64: 31 | BG64: 17 | BH64: 21 | BI64: 14 | BJ64: 24 | BK64: 27 | BL64: 13 | BM64: 18 | BN64: 10 | BO64: 35 | BP64: 16 | BQ64: 10
A65: =IFERROR(INDEX($AP$6:$BB$125,$V65,$V$1),"") -> 57 | B65: =IFERROR(INDEX($Y$6:$Y$125,$V65,1),"") -> JR敦賀駅前 エリア | C65: =IFERROR(INDEX($AA$6:$AM$125,$V65,$V$1),"") -> 0.0 | D65: =IFERROR(INDEX(【D】NPS!$GP$7:$HB$126,$V65,$V$1),"") -> 45件 | V65: 64 | X65: 回答エリア | Y65: =IF(【M】エリア!$E61<>"",【M】エリア!$E61,"") -> 北前船主の館 右近家 エリア | AA65: -14.3 | AB65: -50.0 | AC65: 25.0 | AD65: 0.0 | AE65: 25.0 | AF65: 25.0 | AG65: 0.0 | AH65: 33.3 | AI65: 8.3 | AJ65: -66.7 | AK65: -100.0 | AL65: -62.5 | AM65: -9.1 | AP65: 70 | AQ65: 82 | AR65: 19 | AS65: 55 | AT65: 29 | AU65: 28 | AV65: 50 | AW65: 9 | AX65: 54 | AY65: 74 | AZ65: 73 | BA65: 82 | BB65: 84 | BE65: 71 | BF65: 82 | BG65: 20 | BH65: 66 | BI65: 32 | BJ65: 29 | BK65: 58 | BL65: 9 | BM65: 54 | BN65: 74 | BO65: 75 | BP65: 82 | BQ65: 84
A66: =IFERROR(INDEX($AP$6:$BB$125,$V66,$V$1),"") -> 57 | B66: =IFERROR(INDEX($Y$6:$Y$125,$V66,1),"") -> 道の駅「三方五湖」 エリア | C66: =IFERROR(INDEX($AA$6:$AM$125,$V66,$V$1),"") -> 0.0 | D66: =IFERROR(INDEX(【D】NPS!$GP$7:$HB$126,$V66,$V$1),"") -> 33件 | V66: 84 | X66: 回答エリア | Y66: =IF(【M】エリア!$E62<>"",【M】エリア!$E62,"") -> 今庄宿 エリア | AA66: -16.7 | AB66: 25.0 | AC66: -100.0 | AD66: 22.2 | AE66: 20.0 | AF66: 14.3 | AG66: -60.0 | AH66: 100.0 | AI66: 16.7 | AJ66: 0.0 | AK66: -100.0 | AL66: -57.1 | AM66: -3.1 | AP66: =IF($Y66<>"", INDEX(NPSデータ範囲, MATCH($Y66,NPS表側範囲,0), MATCH(AP$2&$AO$1,NPS表頭範囲,0) ),"") -> 74 | AQ66: 20 | AR66: 84 | AS66: 22 | AT66: 39 | AU66: 42 | AV66: 80 | AW66: 1 | AX66: 47 | AY66: 47 | AZ66: 73 | BA66: 81 | BB66: 79 | BE66: =IF($Y66<>"", INDEX(NPSデータ範囲, MATCH($Y66,NPS表側範囲,0), MATCH(BE$2&$BD$1,NPS表頭範囲,0) ),"") -> 74 | BF66: 21 | BG66: 84 | BH66: 22 | BI66: 39 | BJ66: 42 | BK66: 80 | BL66: 1 | BM66: 47 | BN66: 54 | BO66: 76 | BP66: 81 | BQ66: 79
A67: =IFERROR(INDEX($AP$6:$BB$125,$V67,$V$1),"") -> 57 | B67: =IFERROR(INDEX($Y$6:$Y$125,$V67,1),"") -> 若州一滴文庫 エリア | C67: =IFERROR(INDEX($AA$6:$AM$125,$V67,$V$1),"") -> 0.0 | D67: =IFERROR(INDEX(【D】NPS!$GP$7:$HB$126,$V67,$V$1),"") -> 2件 | V67: =IFERROR(MATCH(ROW(B67)-2,INDEX($BE$6:$BQ$125,,$V$1),0),"-") -> 86 | X67: 回答エリア | Y67: =IF(【M】エリア!$E63<>"",【M】エリア!$E63,"") -> 日本海さかな街 エリア | AA67: -14.6 | AB67: 33.3 | AC67: 4.3 | AD67: 7.7 | AE67: 0.0 | AF67: -14.3 | AG67: -12.0 | AH67: 11.1 | AI67: 15.4 | AJ67: 28.6 | AK67: -42.9 | AL67: -41.7 | AM67: 0.0 | AP67: 73 | AQ67: 13 | AR67: 43 | AS67: 49 | AT67: 60 | AU67: 73 | AV67: 69 | AW67: 40 | AX67: 49 | AY67: 25 | AZ67: 69 | BA67: 78 | BB67: 70 | BE67: 73 | BF67: 14 | BG67: 43 | BH67: 49 | BI67: 65 | BJ67: 73 | BK67: 69 | BL67: 40 | BM67: 49 | BN67: 26 | BO67: 69 | BP67: 78 | BQ67: 74
A68: =IFERROR(INDEX($AP$6:$BB$125,$V68,$V$1),"") -> 66 | B68: =IFERROR(INDEX($Y$6:$Y$125,$V68,1),"") -> 丸岡城 エリア | C68: =IFERROR(INDEX($AA$6:$AM$125,$V68,$V$1),"") -> (1.6) | D68: =IFERROR(INDEX(【D】NPS!$GP$7:$HB$126,$V68,$V$1),"") -> 63件 | V68: 13 | X68: 回答エリア | Y68: =IF(【M】エリア!$E64<>"",【M】エリア!$E64,"") -> 神楽通り エリア | AA68: -11.8 | AB68: 15.4 | AC68: -20.0 | AD68: 20.0 | AE68: 14.3 | AF68: -9.1 | AG68: 100.0 | AH68: -60.0 | AI68: 50.0 | AJ68: 66.7 | AK68: - | AL68: -50.0 | AM68: -4.0 | AP68: 69 | AQ68: 30 | AR68: 70 | AS68: 29 | AT68: 52 | AU68: 69 | AV68: 1 | AW68: 81 | AX68: 9 | AY68: 8 | AZ68: - | BA68: 79 | BB68: 80 | BE68: 69 | BF68: 30 | BG68: 70 | BH68: 29 | BI68: 52 | BJ68: 69 | BK68: 3 | BL68: 81 | BM68: 11 | BN68: 9 | BO68: - | BP68: 79 | BQ68: 80
A69: =IFERROR(INDEX($AP$6:$BB$125,$V69,$V$1),"") -> 67 | B69: =IFERROR(INDEX($Y$6:$Y$125,$V69,1),"") -> 小浜 エリア（宿泊施設） | C69: =IFERROR(INDEX($AA$6:$AM$125,$V69,$V$1),"") -> (3.8) | D69: =IFERROR(INDEX(【D】NPS!$GP$7:$HB$126,$V69,$V$1),"") -> 26件 | V69: 70 | X69: 回答エリア | Y69: =IF(【M】エリア!$E65<>"",【M】エリア!$E65,"") -> JR敦賀駅前 エリア | AA69: -3.4 | AB69: 13.6 | AC69: -8.3 | AD69: -9.7 | AE69: 43.8 | AF69: 11.8 | AG69: 0.0 | AH69: 7.4 | AI69: 31.6 | AJ69: 22.2 | AK69: 29.6 | AL69: 0.0 | AM69: 9.9 | AP69: 60 | AQ69: 35 | AR69: 65 | AS69: 73 | AT69: 13 | AU69: 47 | AV69: 50 | AW69: 45 | AX69: 25 | AY69: 32 | AZ69: 22 | BA69: 57 | BB69: 49 | BE69: 60 | BF69: 35 | BG69: 65 | BH69: 73 | BI69: 13 | BJ69: 48 | BK69: 59 | BL69: 45 | BM69: 25 | BN69: 32 | BO69: 22 | BP69: 63 | BQ69: 49
A70: =IFERROR(INDEX($AP$6:$BB$125,$V70,$V$1),"") -> 68 | B70: =IFERROR(INDEX($Y$6:$Y$125,$V70,1),"") -> 敦賀市立博物館 エリア | C70: =IFERROR(INDEX($AA$6:$AM$125,$V70,$V$1),"") -> (5.0) | D70: =IFERROR(INDEX(【D】NPS!$GP$7:$HB$126,$V70,$V$1),"") -> 20件 | V70: 66 | X70: 回答エリア | Y70: =IF(【M】エリア!$E66<>"",【M】エリア!$E66,"") -> 金ヶ崎 エリア | AA70: -7.1 | AB70: -11.9 | AC70: -11.9 | AD70: 13.8 | AE70: 0.0 | AF70: 12.1 | AG70: -9.7 | AH70: -1.6 | AI70: 6.5 | AJ70: 9.1 | AK70: 6.5 | AL70: -6.0 | AM70: -1.2 | AP70: 63 | AQ70: 69 | AR70: 67 | AS70: 37 | AT70: 60 | AU70: 45 | AV70: 66 | AW70: 63 | AX70: 55 | AY70: 43 | AZ70: 41 | BA70: 69 | BB70: 77 | BE70: 63 | BF70: 69 | BG70: 67 | BH70: 37 | BI70: 66 | BJ70: 45 | BK70: 66 | BL70: 63 | BM70: 55 | BN70: 43 | BO70: 41 | BP70: 69 | BQ70: 77
A71: =IFERROR(INDEX($AP$6:$BB$125,$V71,$V$1),"") -> 69 | B71: =IFERROR(INDEX($Y$6:$Y$125,$V71,1),"") -> 金ヶ崎 エリア | C71: =IFERROR(INDEX($AA$6:$AM$125,$V71,$V$1),"") -> (6.0) | D71: =IFERROR(INDEX(【D】NPS!$GP$7:$HB$126,$V71,$V$1),"") -> 67件 | V71: 65 | X71: 回答エリア | Y71: =IF(【M】エリア!$E67<>"",【M】エリア!$E67,"") -> 敦賀市立博物館 エリア | AA71: 31.3 | AB71: 14.3 | AC71: -33.3 | AD71: 33.3 | AE71: 16.7 | AF71: -22.2 | AG71: 0.0 | AH71: 0.0 | AI71: 30.0 | AJ71: 100.0 | AK71: -36.4 | AL71: -5.0 | AM71: 4.7 | AP71: 15 | AQ71: 32 | AR71: 78 | AS71: 11 | AT71: 47 | AU71: 76 | AV71: 50 | AW71: 51 | AX71: 29 | AY71: 1 | AZ71: 68 | BA71: 68 | BB71: 61 | BE71: 15 | BF71: 32 | BG71: 78 | BH71: 11 | BI71: 47 | BJ71: 76 | BK71: 60 | BL71: 58 | BM71: 29 | BN71: 2 | BO71: 68 | BP71: 68 | BQ71: 61
A72: =IFERROR(INDEX($AP$6:$BB$125,$V72,$V$1),"") -> 70 | B72: =IFERROR(INDEX($Y$6:$Y$125,$V72,1),"") -> 道の駅「パークイン丹生ヶ丘」 エリア | C72: =IFERROR(INDEX($AA$6:$AM$125,$V72,$V$1),"") -> (8.0) | D72: =IFERROR(INDEX(【D】NPS!$GP$7:$HB$126,$V72,$V$1),"") -> 25件 | V72: 51 | X72: 回答エリア | Y72: =IF(【M】エリア!$E68<>"",【M】エリア!$E68,"") -> 水島 エリア | AA72: 100.0 | AB72: 0.0 | AC72: 0.0 | AD72: 85.7 | AE72: 50.0 | AF72: 100.0 | AG72: - | AH72: - | AI72: - | AJ72: - | AK72: - | AL72: - | AM72: 69.2 | AP72: 1 | AQ72: 53 | AR72: 49 | AS72: 1 | AT72: 6 | AU72: 1 | AV72: - | AW72: - | AX72: - | AY72: - | AZ72: - | BA72: - | BB72: 1 | BE72: 3 | BF72: 59 | BG72: 58 | BH72: 1 | BI72: 9 | BJ72: 2 | BK72: - | BL72: - | BM72: - | BN72: - | BO72: - | BP72: - | BQ72: 1
A73: =IFERROR(INDEX($AP$6:$BB$125,$V73,$V$1),"") -> 71 | B73: =IFERROR(INDEX($Y$6:$Y$125,$V73,1),"") -> 道の駅「禅の里」 エリア | C73: =IFERROR(INDEX($AA$6:$AM$125,$V73,$V$1),"") -> (9.8) | D73: =IFERROR(INDEX(【D】NPS!$GP$7:$HB$126,$V73,$V$1),"") -> 41件 | V73: 36 | X73: 回答エリア | Y73: =IF(【M】エリア!$E69<>"",【M】エリア!$E69,"") -> 小浜市 阿納 エリア | AA73: =IF($Y73<>"", INDEX(NPSデータ範囲, MATCH($Y73,NPS表側範囲,0), MATCH(AA$2&$Z$1,NPS表頭範囲,0) ),"") -> 8.1 | AB73: 14.3 | AC73: 22.2 | AD73: 17.9 | AE73: 51.9 | AF73: 30.4 | AG73: 17.9 | AH73: 21.2 | AI73: 43.2 | AJ73: 25.8 | AK73: 45.2 | AL73: 35.5 | AM73: 28.7 | AP73: 41 | AQ73: 32 | AR73: 23 | AS73: 31 | AT73: 5 | AU73: 23 | AV73: 39 | AW73: 26 | AX73: 15 | AY73: 28 | AZ73: 11 | BA73: 22 | BB73: 13 | BE73: 41 | BF73: 33 | BG73: 24 | BH73: 31 | BI73: 5 | BJ73: 23 | BK73: 39 | BL73: 26 | BM73: 15 | BN73: 28 | BO73: 11 | BP73: 22 | BQ73: 13
A74: =IFERROR(INDEX($AP$6:$BB$125,$V74,$V$1),"") -> 72 | B74: =IFERROR(INDEX($Y$6:$Y$125,$V74,1),"") -> 若狭フィッシャーマンズワーフ エリア | C74: =IFERROR(INDEX($AA$6:$AM$125,$V74,$V$1),"") -> (10.0) | D74: =IFERROR(INDEX(【D】NPS!$GP$7:$HB$126,$V74,$V$1),"") -> 20件 | V74: 71 | X74: 回答エリア | Y74: =IF(【M】エリア!$E70<>"",【M】エリア!$E70,"") -> 道の駅「若狭おばま」 エリア | AA74: 14.7 | AB74: 27.3 | AC74: 27.3 | AD74: 34.3 | AE74: 19.2 | AF74: 13.2 | AG74: 35.7 | AH74: 23.1 | AI74: 31.5 | AJ74: 38.7 | AK74: 41.2 | AL74: 30.0 | AM74: 26.2 | AP74: 35 | AQ74: 19 | AR74: 18 | AS74: 10 | AT74: 41 | AU74: 44 | AV74: 16 | AW74: 24 | AX74: 26 | AY74: 18 | AZ74: 14 | BA74: 29 | BB74: 18 | BE74: 35 | BF74: 19 | BG74: 18 | BH74: 10 | BI74: 41 | BJ74: 44 | BK74: 16 | BL74: 24 | BM74: 26 | BN74: 18 | BO74: 14 | BP74: 30 | BQ74: 18
A75: =IFERROR(INDEX($AP$6:$BB$125,$V75,$V$1),"") -> 73 | B75: =IFERROR(INDEX($Y$6:$Y$125,$V75,1),"") -> 刃物の里 エリア | C75: =IFERROR(INDEX($AA$6:$AM$125,$V75,$V$1),"") -> (16.7) | D75: =IFERROR(INDEX(【D】NPS!$GP$7:$HB$126,$V75,$V$1),"") -> 6件 | V75: 44 | X75: 回答エリア | Y75: =IF(【M】エリア!$E71<>"",【M】エリア!$E71,"") -> 小浜 エリア（宿泊施設） | AA75: 10.0 | AB75: 0.0 | AC75: 25.0 | AD75: 21.1 | AE75: -5.0 | AF75: 80.0 | AG75: 25.0 | AH75: 12.5 | AI75: 33.3 | AJ75: 20.0 | AK75: -12.5 | AL75: -3.8 | AM75: 13.3 | AP75: 38 | AQ75: 53 | AR75: 19 | AS75: 26 | AT75: 69 | AU75: 3 | AV75: 29 | AW75: 38 | AX75: 22 | AY75: 34 | AZ75: 60 | BA75: 67 | BB75: 43 | BE75: 38 | BF75: 60 | BG75: 21 | BH75: 26 | BI75: 69 | BJ75: 3 | BK75: 30 | BL75: 38 | BM75: 22 | BN75: 34 | BO75: 61 | BP75: 67 | BQ75: 43
A76: =IFERROR(INDEX($AP$6:$BB$125,$V76,$V$1),"") -> 73 | B76: =IFERROR(INDEX($Y$6:$Y$125,$V76,1),"") -> 若狭海遊バザール 千鳥苑 エリア | C76: =IFERROR(INDEX($AA$6:$AM$125,$V76,$V$1),"") -> (16.7) | D76: =IFERROR(INDEX(【D】NPS!$GP$7:$HB$126,$V76,$V$1),"") -> 6件 | V76: 79 | X76: 回答エリア | Y76: =IF(【M】エリア!$E72<>"",【M】エリア!$E72,"") -> 若狭フィッシャーマンズワーフ エリア | AA76: -22.7 | AB76: -9.1 | AC76: -5.0 | AD76: 14.3 | AE76: -13.3 | AF76: 3.3 | AG76: -4.5 | AH76: 23.5 | AI76: 0.0 | AJ76: -50.0 | AK76: -23.1 | AL76: -10.0 | AM76: -5.1 | AP76: =IF($Y76<>"", INDEX(NPSデータ範囲, MATCH($Y76,NPS表側範囲,0), MATCH(AP$2&$AO$1,NPS表頭範囲,0) ),"") -> 79 | AQ76: 67 | AR76: 63 | AS76: 35 | AT76: 75 | AU76: 61 | AV76: 62 | AW76: 22 | AX76: 58 | AY76: 73 | AZ76: 65 | BA76: 72 | BB76: 81 | BE76: =IF($Y76<>"", INDEX(NPSデータ範囲, MATCH($Y76,NPS表側範囲,0), MATCH(BE$2&$BD$1,NPS表頭範囲,0) ),"") -> 79 | BF76: 67 | BG76: 63 | BH76: 36 | BI76: 75 | BJ76: 61 | BK76: 62 | BL76: 22 | BM76: 62 | BN76: 73 | BO76: 65 | BP76: 72 | BQ76: 81
A77: =IFERROR(INDEX($AP$6:$BB$125,$V77,$V$1),"") -> 75 | B77: =IFERROR(INDEX($Y$6:$Y$125,$V77,1),"") -> うるしの里 エリア | C77: =IFERROR(INDEX($AA$6:$AM$125,$V77,$V$1),"") -> (25.0) | D77: =IFERROR(INDEX(【D】NPS!$GP$7:$HB$126,$V77,$V$1),"") -> 12件 | V77: 47 | X77: 回答エリア | Y77: =IF(【M】エリア!$E73<>"",【M】エリア!$E73,"") -> 御食国若狭おばま食文化館 エリア | AA77: 25.0 | AB77: 5.7 | AC77: 40.0 | AD77: 21.1 | AE77: 25.0 | AF77: 4.8 | AG77: 35.7 | AH77: 15.4 | AI77: 15.4 | AJ77: 18.2 | AK77: 7.7 | AL77: 8.3 | AM77: 17.0 | AP77: 21 | AQ77: 48 | AR77: 10 | AS77: 26 | AT77: 29 | AU77: 58 | AV77: 16 | AW77: 33 | AX77: 49 | AY77: 36 | AZ77: 40 | BA77: 53 | BB77: 35 | BE77: 21 | BF77: 48 | BG77: 10 | BH77: 27 | BI77: 33 | BJ77: 58 | BK77: 17 | BL77: 33 | BM77: 50 | BN77: 36 | BO77: 40 | BP77: 54 | BQ77: 35
A78: =IFERROR(INDEX($AP$6:$BB$125,$V78,$V$1),"") -> 76 | B78: =IFERROR(INDEX($Y$6:$Y$125,$V78,1),"") -> 小浜市まちの駅 エリア | C78: =IFERROR(INDEX($AA$6:$AM$125,$V78,$V$1),"") -> (28.6) | D78: =IFERROR(INDEX(【D】NPS!$GP$7:$HB$126,$V78,$V$1),"") -> 7件 | V78: 73 | X78: 回答エリア | Y78: =IF(【M】エリア!$E74<>"",【M】エリア!$E74,"") -> 小浜市まちの駅 エリア | AA78: -33.3 | AB78: -50.0 | AC78: 100.0 | AD78: - | AE78: -100.0 | AF78: 0.0 | AG78: -40.0 | AH78: 50.0 | AI78: -20.0 | AJ78: 0.0 | AK78: 18.2 | AL78: -28.6 | AM78: -20.6 | AP78: 86 | AQ78: 82 | AR78: 1 | AS78: - | AT78: 84 | AU78: 62 | AV78: 78 | AW78: 3 | AX78: 73 | AY78: 47 | AZ78: 31 | BA78: 76 | BB78: 90 | BE78: 86 | BF78: 83 | BG78: 2 | BH78: - | BI78: 85 | BJ78: 64 | BK78: 78 | BL78: 3 | BM78: 74 | BN78: 55 | BO78: 31 | BP78: 76 | BQ78: 90
A79: =IFERROR(INDEX($AP$6:$BB$125,$V79,$V$1),"") -> 77 | B79: =IFERROR(INDEX($Y$6:$Y$125,$V79,1),"") -> タケフナイフビレッジ エリア | C79: =IFERROR(INDEX($AA$6:$AM$125,$V79,$V$1),"") -> (41.2) | D79: =IFERROR(INDEX(【D】NPS!$GP$7:$HB$126,$V79,$V$1),"") -> 17件 | V79: 40 | X79: 回答エリア | Y79: =IF(【M】エリア!$E75<>"",【M】エリア!$E75,"") -> 明通寺 エリア | AA79: 15.2 | AB79: 21.1 | AC79: -12.5 | AD79: 21.7 | AE79: 23.5 | AF79: 13.6 | AG79: 26.2 | AH79: 6.5 | AI79: 3.1 | AJ79: 12.0 | AK79: 0.0 | AL79: 29.7 | AM79: 16.3 | AP79: 32 | AQ79: 24 | AR79: 68 | AS79: 23 | AT79: 36 | AU79: 43 | AV79: 28 | AW79: 47 | AX79: 57 | AY79: 38 | AZ79: 45 | BA79: 31 | BB79: 37 | BE79: 32 | BF79: 24 | BG79: 68 | BH79: 24 | BI79: 36 | BJ79: 43 | BK79: 28 | BL79: 48 | BM79: 57 | BN79: 38 | BO79: 51 | BP79: 31 | BQ79: 37
A80: =IFERROR(INDEX($AP$6:$BB$125,$V80,$V$1),"") -> 78 | B80: =IFERROR(INDEX($Y$6:$Y$125,$V80,1),"") -> 日本海さかな街 エリア | C80: =IFERROR(INDEX($AA$6:$AM$125,$V80,$V$1),"") -> (41.7) | D80: =IFERROR(INDEX(【D】NPS!$GP$7:$HB$126,$V80,$V$1),"") -> 12件 | V80: 62 | X80: 回答エリア | Y80: =IF(【M】エリア!$E76<>"",【M】エリア!$E76,"") -> 箸のふるさと館WAKASA エリア | AA80: 0.0 | AB80: 33.3 | AC80: -33.3 | AD80: 0.0 | AE80: -100.0 | AF80: -33.3 | AG80: -33.3 | AH80: - | AI80: - | AJ80: 100.0 | AK80: 0.0 | AL80: 66.7 | AM80: 0.0 | AP80: 52 | AQ80: 15 | AR80: 78 | AS80: 55 | AT80: 84 | AU80: 80 | AV80: 76 | AW80: - | AX80: - | AY80: 1 | AZ80: 45 | BA80: 4 | BB80: 70 | BE80: 57 | BF80: 16 | BG80: 79 | BH80: 67 | BI80: 86 | BJ80: 80 | BK80: 77 | BL80: - | BM80: - | BN80: 3 | BO80: 52 | BP80: 5 | BQ80: 75
A81: =IFERROR(INDEX($AP$6:$BB$125,$V81,$V$1),"") -> 79 | B81: =IFERROR(INDEX($Y$6:$Y$125,$V81,1),"") -> 神楽通り エリア | C81: =IFERROR(INDEX($AA$6:$AM$125,$V81,$V$1),"") -> (50.0) | D81: =IFERROR(INDEX(【D】NPS!$GP$7:$HB$126,$V81,$V$1),"") -> 10件 | V81: 63 | X81: 回答エリア | Y81: =IF(【M】エリア!$E77<>"",【M】エリア!$E77,"") -> 美浜町レイクセンター エリア | AA81: 100.0 | AB81: 50.0 | AC81: - | AD81: - | AE81: 21.4 | AF81: 34.7 | AG81: 30.8 | AH81: 0.0 | AI81: 0.0 | AJ81: - | AK81: - | AL81: 37.5 | AM81: 28.9 | AP81: 1 | AQ81: 3 | AR81: - | AS81: - | AT81: 38 | AU81: 16 | AV81: 22 | AW81: 51 | AX81: 58 | AY81: - | AZ81: - | BA81: 19 | BB81: 12 | BE81: 4 | BF81: 5 | BG81: - | BH81: - | BI81: 38 | BJ81: 16 | BK81: 22 | BL81: 59 | BM81: 63 | BN81: - | BO81: - | BP81: 20 | BQ81: 12
A82: =IFERROR(INDEX($AP$6:$BB$125,$V82,$V$1),"") -> 80 | B82: =IFERROR(INDEX($Y$6:$Y$125,$V82,1),"") -> 道の駅「シーサイド高浜」 エリア | C82: =IFERROR(INDEX($AA$6:$AM$125,$V82,$V$1),"") -> (50.0) | D82: =IFERROR(INDEX(【D】NPS!$GP$7:$HB$126,$V82,$V$1),"") -> 12件 | V82: 89 | X82: 回答エリア | Y82: =IF(【M】エリア!$E78<>"",【M】エリア!$E78,"") -> 水晶浜 エリア | AA82: -25.0 | AB82: -4.8 | AC82: 60.0 | AD82: 33.3 | AE82: 50.0 | AF82: 50.0 | AG82: - | AH82: 0.0 | AI82: 50.0 | AJ82: - | AK82: - | AL82: -100.0 | AM82: 8.0 | AP82: 83 | AQ82: 65 | AR82: 5 | AS82: 11 | AT82: 6 | AU82: 7 | AV82: - | AW82: 51 | AX82: 9 | AY82: - | AZ82: - | BA82: 83 | BB82: 56 | BE82: 83 | BF82: 65 | BG82: 5 | BH82: 12 | BI82: 10 | BJ82: 8 | BK82: - | BL82: 60 | BM82: 12 | BN82: - | BO82: - | BP82: 83 | BQ82: 56
A83: =IFERROR(INDEX($AP$6:$BB$125,$V83,$V$1),"") -> 81 | B83: =IFERROR(INDEX($Y$6:$Y$125,$V83,1),"") -> 今庄宿 エリア | C83: =IFERROR(INDEX($AA$6:$AM$125,$V83,$V$1),"") -> (57.1) | D83: =IFERROR(INDEX(【D】NPS!$GP$7:$HB$126,$V83,$V$1),"") -> 7件 | V83: 61 | X83: 回答エリア | Y83: =IF(【M】エリア!$E79<>"",【M】エリア!$E79,"") -> レインボーライン エリア | AA83: =IF($Y83<>"", INDEX(NPSデータ範囲, MATCH($Y83,NPS表側範囲,0), MATCH(AA$2&$Z$1,NPS表頭範囲,0) ),"") -> 25.5 | AB83: 38.7 | AC83: 40.5 | AD83: 46.7 | AE83: 27.1 | AF83: 43.2 | AG83: 43.5 | AH83: 32.1 | AI83: 58.3 | AJ83: 77.8 | AK83: 0.0 | AL83: 35.8 | AM83: 38.4 | AP83: 20 | AQ83: 10 | AR83: 9 | AS83: 7 | AT83: 26 | AU83: 12 | AV83: 11 | AW83: 12 | AX83: 7 | AY83: 6 | AZ83: 45 | BA83: 21 | BB83: 5 | BE83: 20 | BF83: 10 | BG83: 9 | BH83: 7 | BI83: 26 | BJ83: 12 | BK83: 11 | BL83: 12 | BM83: 7 | BN83: 6 | BO83: 53 | BP83: 21 | BQ83: 5
A84: =IFERROR(INDEX($AP$6:$BB$125,$V84,$V$1),"") -> 82 | B84: =IFERROR(INDEX($Y$6:$Y$125,$V84,1),"") -> 北前船主の館 右近家 エリア | C84: =IFERROR(INDEX($AA$6:$AM$125,$V84,$V$1),"") -> (62.5) | D84: =IFERROR(INDEX(【D】NPS!$GP$7:$HB$126,$V84,$V$1),"") -> 8件 | V84: 60 | X84: 回答エリア | Y84: =IF(【M】エリア!$E80<>"",【M】エリア!$E80,"") -> 若狭海遊バザール 千鳥苑 エリア | AA84: -14.3 | AB84: 0.0 | AC84: -27.3 | AD84: -28.6 | AE84: -33.3 | AF84: -42.9 | AG84: 40.0 | AH84: -33.3 | AI84: 0.0 | AJ84: -20.0 | AK84: -20.0 | AL84: -16.7 | AM84: -20.3 | AP84: 72 | AQ84: 53 | AR84: 74 | AS84: 80 | AT84: 83 | AU84: 81 | AV84: 14 | AW84: 79 | AX84: 58 | AY84: 67 | AZ84: 63 | BA84: 73 | BB84: 89 | BE84: 72 | BF84: 61 | BG84: 74 | BH84: 80 | BI84: 83 | BJ84: 81 | BK84: 14 | BL84: 79 | BM84: 64 | BN84: 67 | BO84: 64 | BP84: 74 | BQ84: 89
A85: =IFERROR(INDEX($AP$6:$BB$125,$V85,$V$1),"") -> 83 | B85: =IFERROR(INDEX($Y$6:$Y$125,$V85,1),"") -> 水晶浜 エリア | C85: =IFERROR(INDEX($AA$6:$AM$125,$V85,$V$1),"") -> (100.0) | D85: =IFERROR(INDEX(【D】NPS!$GP$7:$HB$126,$V85,$V$1),"") -> 1件 | V85: 77 | X85: 回答エリア | Y85: =IF(【M】エリア!$E81<>"",【M】エリア!$E81,"") -> JR美浜駅 エリア | AA85: 7.8 | AB85: 2.0 | AC85: 2.7 | AD85: 9.8 | AE85: 25.7 | AF85: 11.4 | AG85: 16.7 | AH85: 0.0 | AI85: 15.6 | AJ85: 12.0 | AK85: 9.1 | AL85: 21.9 | AM85: 12.0 | AP85: 42 | AQ85: 52 | AR85: 47 | AS85: 47 | AT85: 28 | AU85: 49 | AV85: 40 | AW85: 51 | AX85: 48 | AY85: 38 | AZ85: 38 | BA85: 39 | BB85: 45 | BE85: 42 | BF85: 52 | BG85: 47 | BH85: 47 | BI85: 28 | BJ85: 49 | BK85: 40 | BL85: 61 | BM85: 48 | BN85: 39 | BO85: 38 | BP85: 39 | BQ85: 45
A86: =IFERROR(INDEX($AP$6:$BB$125,$V86,$V$1),"") ->  | B86: =IFERROR(INDEX($Y$6:$Y$125,$V86,1),"") ->  | C86: =IFERROR(INDEX($AA$6:$AM$125,$V86,$V$1),"") ->  | D86: =IFERROR(INDEX(【D】NPS!$GP$7:$HB$126,$V86,$V$1),"") ->  | V86: - | X86: 回答エリア | Y86: =IF(【M】エリア!$E82<>"",【M】エリア!$E82,"") -> 新庄 渓流の里 エリア | AA86: - | AB86: - | AC86: 0.0 | AD86: - | AE86: - | AF86: - | AG86: - | AH86: - | AI86: - | AJ86: - | AK86: - | AL86: - | AM86: 0.0 | AP86: =IF($Y86<>"", INDEX(NPSデータ範囲, MATCH($Y86,NPS表側範囲,0), MATCH(AP$2&$AO$1,NPS表頭範囲,0) ),"") -> - | AQ86: - | AR86: 49 | AS86: - | AT86: - | AU86: - | AV86: - | AW86: - | AX86: - | AY86: - | AZ86: - | BA86: - | BB86: 70 | BE86: =IF($Y86<>"", INDEX(NPSデータ範囲, MATCH($Y86,NPS表側範囲,0), MATCH(BE$2&$BD$1,NPS表頭範囲,0) ),"") -> - | BF86: - | BG86: 59 | BH86: - | BI86: - | BJ86: - | BK86: - | BL86: - | BM86: - | BN86: - | BO86: - | BP86: - | BQ86: 76
A87: =IFERROR(INDEX($AP$6:$BB$125,$V87,$V$1),"") ->  | B87: =IFERROR(INDEX($Y$6:$Y$125,$V87,1),"") ->  | C87: =IFERROR(INDEX($AA$6:$AM$125,$V87,$V$1),"") ->  | D87: =IFERROR(INDEX(【D】NPS!$GP$7:$HB$126,$V87,$V$1),"") ->  | V87: - | X87: 回答エリア | Y87: =IF(【M】エリア!$E83<>"",【M】エリア!$E83,"") -> 熊川宿 エリア | AA87: -6.3 | AB87: 6.3 | AC87: 3.2 | AD87: 4.0 | AE87: -11.4 | AF87: 6.5 | AG87: 26.8 | AH87: -25.0 | AI87: 11.8 | AJ87: 20.0 | AK87: 9.1 | AL87: 10.0 | AM87: 3.9 | AP87: 62 | AQ87: 46 | AR87: 46 | AS87: 53 | AT87: 73 | AU87: 57 | AV87: 26 | AW87: 76 | AX87: 51 | AY87: 34 | AZ87: 38 | BA87: 51 | BB87: 65 | BE87: 62 | BF87: 47 | BG87: 46 | BH87: 53 | BI87: 73 | BJ87: 57 | BK87: 26 | BL87: 78 | BM87: 51 | BN87: 35 | BO87: 39 | BP87: 51 | BQ87: 65
A88: =IFERROR(INDEX($AP$6:$BB$125,$V88,$V$1),"") ->  | B88: =IFERROR(INDEX($Y$6:$Y$125,$V88,1),"") ->  | C88: =IFERROR(INDEX($AA$6:$AM$125,$V88,$V$1),"") ->  | D88: =IFERROR(INDEX(【D】NPS!$GP$7:$HB$126,$V88,$V$1),"") ->  | V88: - | X88: 回答エリア | Y88: =IF(【M】エリア!$E84<>"",【M】エリア!$E84,"") -> 湖上館パムコ（水月湖）エリア | AA88: 7.7 | AB88: 40.0 | AC88: 39.1 | AD88: 13.3 | AE88: 4.2 | AF88: 26.7 | AG88: 23.1 | AH88: 23.5 | AI88: 0.0 | AJ88: 71.4 | AK88: -100.0 | AL88: 25.0 | AM88: 21.3 | AP88: 43 | AQ88: 8 | AR88: 11 | AS88: 38 | AT88: 56 | AU88: 26 | AV88: 33 | AW88: 22 | AX88: 58 | AY88: 7 | AZ88: 73 | BA88: 35 | BB88: 28 | BE88: 43 | BF88: 9 | BG88: 11 | BH88: 38 | BI88: 56 | BJ88: 26 | BK88: 34 | BL88: 23 | BM88: 65 | BN88: 7 | BO88: 77 | BP88: 36 | BQ88: 28
A89: =IFERROR(INDEX($AP$6:$BB$125,$V89,$V$1),"") ->  | B89: =IFERROR(INDEX($Y$6:$Y$125,$V89,1),"") ->  | C89: =IFERROR(INDEX($AA$6:$AM$125,$V89,$V$1),"") ->  | D89: =IFERROR(INDEX(【D】NPS!$GP$7:$HB$126,$V89,$V$1),"") ->  | V89: - | X89: 回答エリア | Y89: =IF(【M】エリア!$E85<>"",【M】エリア!$E85,"") -> 道の駅「三方五湖」 エリア | AA89: -9.5 | AB89: 18.2 | AC89: 19.6 | AD89: 9.8 | AE89: 15.0 | AF89: 25.9 | AG89: 0.0 | AH89: 5.9 | AI89: 20.6 | AJ89: -5.6 | AK89: 10.0 | AL89: 0.0 | AM89: 10.0 | AP89: 67 | AQ89: 27 | AR89: 25 | AS89: 46 | AT89: 50 | AU89: 27 | AV89: 50 | AW89: 49 | AX89: 36 | AY89: 59 | AZ89: 36 | BA89: 57 | BB89: 48 | BE89: 67 | BF89: 27 | BG89: 25 | BH89: 46 | BI89: 50 | BJ89: 27 | BK89: 61 | BL89: 49 | BM89: 36 | BN89: 59 | BO89: 36 | BP89: 64 | BQ89: 48
A90: =IFERROR(INDEX($AP$6:$BB$125,$V90,$V$1),"") ->  | B90: =IFERROR(INDEX($Y$6:$Y$125,$V90,1),"") ->  | C90: =IFERROR(INDEX($AA$6:$AM$125,$V90,$V$1),"") ->  | D90: =IFERROR(INDEX(【D】NPS!$GP$7:$HB$126,$V90,$V$1),"") ->  | V90: - | X90: 回答エリア | Y90: =IF(【M】エリア!$E86<>"",【M】エリア!$E86,"") -> うみんぴあ大飯 エリア | AA90: 14.7 | AB90: 32.7 | AC90: -3.6 | AD90: 36.0 | AE90: 7.7 | AF90: 8.1 | AG90: 44.4 | AH90: 0.0 | AI90: 22.2 | AJ90: 0.0 | AK90: -12.5 | AL90: 13.3 | AM90: 17.3 | AP90: 34 | AQ90: 17 | AR90: 61 | AS90: 9 | AT90: 55 | AU90: 53 | AV90: 9 | AW90: 51 | AX90: 35 | AY90: 47 | AZ90: 60 | BA90: 49 | BB90: 34 | BE90: 34 | BF90: 17 | BG90: 61 | BH90: 9 | BI90: 55 | BJ90: 53 | BK90: 10 | BL90: 62 | BM90: 35 | BN90: 56 | BO90: 62 | BP90: 49 | BQ90: 34
A91: =IFERROR(INDEX($AP$6:$BB$125,$V91,$V$1),"") ->  | B91: =IFERROR(INDEX($Y$6:$Y$125,$V91,1),"") ->  | C91: =IFERROR(INDEX($AA$6:$AM$125,$V91,$V$1),"") ->  | D91: =IFERROR(INDEX(【D】NPS!$GP$7:$HB$126,$V91,$V$1),"") ->  | V91: - | X91: 回答エリア | Y91: =IF(【M】エリア!$E87<>"",【M】エリア!$E87,"") -> 若州一滴文庫 エリア | AA91: 90.0 | AB91: -33.3 | AC91: 33.3 | AD91: -50.0 | AE91: 0.0 | AF91: -50.0 | AG91: 100.0 | AH91: 50.0 | AI91: 100.0 | AJ91: - | AK91: 100.0 | AL91: 0.0 | AM91: 28.6 | AP91: 5 | AQ91: 80 | AR91: 14 | AS91: 83 | AT91: 60 | AU91: 82 | AV91: 1 | AW91: 3 | AX91: 1 | AY91: - | AZ91: 1 | BA91: 57 | BB91: 14 | BE91: 5 | BF91: 80 | BG91: 14 | BH91: 84 | BI91: 67 | BJ91: 83 | BK91: 4 | BL91: 4 | BM91: 2 | BN91: - | BO91: 5 | BP91: 65 | BQ91: 14
A92: =IFERROR(INDEX($AP$6:$BB$125,$V92,$V$1),"") ->  | B92: =IFERROR(INDEX($Y$6:$Y$125,$V92,1),"") ->  | C92: =IFERROR(INDEX($AA$6:$AM$125,$V92,$V$1),"") ->  | D92: =IFERROR(INDEX(【D】NPS!$GP$7:$HB$126,$V92,$V$1),"") ->  | V92: - | X92: 回答エリア | Y92: =IF(【M】エリア!$E88<>"",【M】エリア!$E88,"") -> 名田庄 エリア | AA92: 0.0 | AB92: -14.3 | AC92: 0.0 | AD92: -25.0 | AE92: -31.6 | AF92: -58.3 | AG92: -15.0 | AH92: -33.3 | AI92: 0.0 | AJ92: 50.0 | AK92: 0.0 | AL92: 19.0 | AM92: -13.0 | AP92: 52 | AQ92: 71 | AR92: 49 | AS92: 79 | AT92: 82 | AU92: 84 | AV92: 70 | AW92: 80 | AX92: 58 | AY92: 11 | AZ92: 45 | BA92: 42 | BB92: 86 | BE92: 58 | BF92: 71 | BG92: 60 | BH92: 79 | BI92: 82 | BJ92: 84 | BK92: 70 | BL92: 80 | BM92: 66 | BN92: 13 | BO92: 54 | BP92: 42 | BQ92: 86
A93: =IFERROR(INDEX($AP$6:$BB$125,$V93,$V$1),"") ->  | B93: =IFERROR(INDEX($Y$6:$Y$125,$V93,1),"") ->  | C93: =IFERROR(INDEX($AA$6:$AM$125,$V93,$V$1),"") ->  | D93: =IFERROR(INDEX(【D】NPS!$GP$7:$HB$126,$V93,$V$1),"") ->  | V93: - | X93: 回答エリア | Y93: =IF(【M】エリア!$E89<>"",【M】エリア!$E89,"") -> 赤礁崎オートキャンプ場 エリア | AA93: =IF($Y93<>"", INDEX(NPSデータ範囲, MATCH($Y93,NPS表側範囲,0), MATCH(AA$2&$Z$1,NPS表頭範囲,0) ),"") -> 50.0 | AB93: - | AC93: - | AD93: 50.0 | AE93: 100.0 | AF93: - | AG93: - | AH93: -100.0 | AI93: - | AJ93: - | AK93: 100.0 | AL93: - | AM93: 42.9 | AP93: 6 | AQ93: - | AR93: - | AS93: 4 | AT93: 1 | AU93: - | AV93: - | AW93: 82 | AX93: - | AY93: - | AZ93: 1 | BA93: - | BB93: 3 | BE93: 6 | BF93: - | BG93: - | BH93: 4 | BI93: 1 | BJ93: - | BK93: - | BL93: 82 | BM93: - | BN93: - | BO93: 6 | BP93: - | BQ93: 3
A94: =IFERROR(INDEX($AP$6:$BB$125,$V94,$V$1),"") ->  | B94: =IFERROR(INDEX($Y$6:$Y$125,$V94,1),"") ->  | C94: =IFERROR(INDEX($AA$6:$AM$125,$V94,$V$1),"") ->  | D94: =IFERROR(INDEX(【D】NPS!$GP$7:$HB$126,$V94,$V$1),"") ->  | V94: - | X94: 回答エリア | Y94: =IF(【M】エリア!$E90<>"",【M】エリア!$E90,"") -> 道の駅「シーサイド高浜」 エリア | AA94: -31.3 | AB94: -4.2 | AC94: -46.2 | AD94: 12.5 | AE94: 26.3 | AF94: -20.0 | AG94: 8.3 | AH94: -21.4 | AI94: 0.0 | AJ94: -25.0 | AK94: -100.0 | AL94: -50.0 | AM94: -12.1 | AP94: 84 | AQ94: 64 | AR94: 81 | AS94: 39 | AT94: 27 | AU94: 75 | AV94: 47 | AW94: 75 | AX94: 58 | AY94: 69 | AZ94: 73 | BA94: 80 | BB94: 85 | BE94: 84 | BF94: 64 | BG94: 81 | BH94: 40 | BI94: 27 | BJ94: 75 | BK94: 47 | BL94: 75 | BM94: 67 | BN94: 70 | BO94: 78 | BP94: 80 | BQ94: 85
A95: =IFERROR(INDEX($AP$6:$BB$125,$V95,$V$1),"") ->  | B95: =IFERROR(INDEX($Y$6:$Y$125,$V95,1),"") ->  | C95: =IFERROR(INDEX($AA$6:$AM$125,$V95,$V$1),"") ->  | D95: =IFERROR(INDEX(【D】NPS!$GP$7:$HB$126,$V95,$V$1),"") ->  | V95: - | X95: 回答エリア | Y95: =IF(【M】エリア!$E91<>"",【M】エリア!$E91,"") -> 若狭和田 エリア | AA95: 37.5 | AB95: 0.0 | AC95: -75.0 | AD95: 66.7 | AE95: 75.0 | AF95: 0.0 | AG95: 25.0 | AH95: -100.0 | AI95: - | AJ95: 33.3 | AK95: - | AL95: 66.7 | AM95: 22.9 | AP95: 11 | AQ95: 53 | AR95: 83 | AS95: 2 | AT95: 2 | AU95: 62 | AV95: 29 | AW95: 82 | AX95: - | AY95: 21 | AZ95: - | BA95: 4 | BB95: 25 | BE95: 12 | BF95: 62 | BG95: 83 | BH95: 3 | BI95: 2 | BJ95: 65 | BK95: 31 | BL95: 83 | BM95: - | BN95: 22 | BO95: - | BP95: 6 | BQ95: 25
A96: =IFERROR(INDEX($AP$6:$BB$125,$V96,$V$1),"") ->  | B96: =IFERROR(INDEX($Y$6:$Y$125,$V96,1),"") ->  | C96: =IFERROR(INDEX($AA$6:$AM$125,$V96,$V$1),"") ->  | D96: =IFERROR(INDEX(【D】NPS!$GP$7:$HB$126,$V96,$V$1),"") ->  | V96: - | X96: 回答エリア | Y96: =IF(【M】エリア!$E92<>"",【M】エリア!$E92,"") -> 若狭高浜 エリア | AA96: 15.4 | AB96: 0.0 | AC96: -100.0 | AD96: 50.0 | AE96: 30.0 | AF96: -17.6 | AG96: 40.0 | AH96: 40.0 | AI96: -100.0 | AJ96: 0.0 | AK96: - | AL96: 80.0 | AM96: 14.1 | AP96: =IF($Y96<>"", INDEX(NPSデータ範囲, MATCH($Y96,NPS表側範囲,0), MATCH(AP$2&$AO$1,NPS表頭範囲,0) ),"") -> 30 | AQ96: 53 | AR96: 84 | AS96: 4 | AT96: 23 | AU96: 74 | AV96: 14 | AW96: 5 | AX96: 78 | AY96: 47 | AZ96: - | BA96: 1 | BB96: 41 | BE96: =IF($Y96<>"", INDEX(NPSデータ範囲, MATCH($Y96,NPS表側範囲,0), MATCH(BE$2&$BD$1,NPS表頭範囲,0) ),"") -> 31 | BF96: 63 | BG96: 85 | BH96: 5 | BI96: 23 | BJ96: 74 | BK96: 15 | BL96: 7 | BM96: 78 | BN96: 57 | BO96: - | BP96: 2 | BQ96: 41
A97: =IFERROR(INDEX($AP$6:$BB$125,$V97,$V$1),"") ->  | B97: =IFERROR(INDEX($Y$6:$Y$125,$V97,1),"") ->  | C97: =IFERROR(INDEX($AA$6:$AM$125,$V97,$V$1),"") ->  | D97: =IFERROR(INDEX(【D】NPS!$GP$7:$HB$126,$V97,$V$1),"") ->  | V97: - | X97: 回答エリア | Y97: =IF(【M】エリア!$E93<>"",【M】エリア!$E93,"") -> 
A98: =IFERROR(INDEX($AP$6:$BB$125,$V98,$V$1),"") ->  | B98: =IFERROR(INDEX($Y$6:$Y$125,$V98,1),"") ->  | C98: =IFERROR(INDEX($AA$6:$AM$125,$V98,$V$1),"") ->  | D98: =IFERROR(INDEX(【D】NPS!$GP$7:$HB$126,$V98,$V$1),"") ->  | V98: - | X98: 回答エリア | Y98: =IF(【M】エリア!$E94<>"",【M】エリア!$E94,"") -> 
A99: =IFERROR(INDEX($AP$6:$BB$125,$V99,$V$1),"") ->  | B99: =IFERROR(INDEX($Y$6:$Y$125,$V99,1),"") ->  | C99: =IFERROR(INDEX($AA$6:$AM$125,$V99,$V$1),"") ->  | D99: =IFERROR(INDEX(【D】NPS!$GP$7:$HB$126,$V99,$V$1),"") ->  | V99: =IFERROR(MATCH(ROW(B99)-2,INDEX($BE$6:$BQ$125,,$V$1),0),"-") -> - | X99: 回答エリア | Y99: =IF(【M】エリア!$E95<>"",【M】エリア!$E95,"") -> 
A100: =IFERROR(INDEX($AP$6:$BB$125,$V100,$V$1),"") ->  | B100: =IFERROR(INDEX($Y$6:$Y$125,$V100,1),"") ->  | C100: =IFERROR(INDEX($AA$6:$AM$125,$V100,$V$1),"") ->  | D100: =IFERROR(INDEX(【D】NPS!$GP$7:$HB$126,$V100,$V$1),"") ->  | V100: - | X100: 回答エリア | Y100: =IF(【M】エリア!$E96<>"",【M】エリア!$E96,"") -> 
A101: =IFERROR(INDEX($AP$6:$BB$125,$V101,$V$1),"") ->  | B101: =IFERROR(INDEX($Y$6:$Y$125,$V101,1),"") ->  | C101: =IFERROR(INDEX($AA$6:$AM$125,$V101,$V$1),"") ->  | D101: =IFERROR(INDEX(【D】NPS!$GP$7:$HB$126,$V101,$V$1),"") ->  | V101: - | X101: 回答エリア | Y101: =IF(【M】エリア!$E97<>"",【M】エリア!$E97,"") -> 
A102: =IFERROR(INDEX($AP$6:$BB$125,$V102,$V$1),"") ->  | B102: =IFERROR(INDEX($Y$6:$Y$125,$V102,1),"") ->  | C102: =IFERROR(INDEX($AA$6:$AM$125,$V102,$V$1),"") ->  | D102: =IFERROR(INDEX(【D】NPS!$GP$7:$HB$126,$V102,$V$1),"") ->  | V102: - | X102: 回答エリア | Y102: =IF(【M】エリア!$E98<>"",【M】エリア!$E98,"") -> 
A103: =IFERROR(INDEX($AP$6:$BB$125,$V103,$V$1),"") ->  | B103: =IFERROR(INDEX($Y$6:$Y$125,$V103,1),"") ->  | C103: =IFERROR(INDEX($AA$6:$AM$125,$V103,$V$1),"") ->  | D103: =IFERROR(INDEX(【D】NPS!$GP$7:$HB$126,$V103,$V$1),"") ->  | V103: - | X103: 回答エリア | Y103: =IF(【M】エリア!$E99<>"",【M】エリア!$E99,"") ->  | AA103: =IF($Y103<>"", INDEX(NPSデータ範囲, MATCH($Y103,NPS表側範囲,0), MATCH(AA$2&$Z$1,NPS表頭範囲,0) ),"") -> 
A104: =IFERROR(INDEX($AP$6:$BB$125,$V104,$V$1),"") ->  | B104: =IFERROR(INDEX($Y$6:$Y$125,$V104,1),"") ->  | C104: =IFERROR(INDEX($AA$6:$AM$125,$V104,$V$1),"") ->  | D104: =IFERROR(INDEX(【D】NPS!$GP$7:$HB$126,$V104,$V$1),"") ->  | V104: - | X104: 回答エリア | Y104: =IF(【M】エリア!$E100<>"",【M】エリア!$E100,"") -> 
A105: =IFERROR(INDEX($AP$6:$BB$125,$V105,$V$1),"") ->  | B105: =IFERROR(INDEX($Y$6:$Y$125,$V105,1),"") ->  | C105: =IFERROR(INDEX($AA$6:$AM$125,$V105,$V$1),"") ->  | D105: =IFERROR(INDEX(【D】NPS!$GP$7:$HB$126,$V105,$V$1),"") ->  | V105: - | X105: 回答エリア | Y105: =IF(【M】エリア!$E101<>"",【M】エリア!$E101,"") -> 
A106: =IFERROR(INDEX($AP$6:$BB$125,$V106,$V$1),"") ->  | B106: =IFERROR(INDEX($Y$6:$Y$125,$V106,1),"") ->  | C106: =IFERROR(INDEX($AA$6:$AM$125,$V106,$V$1),"") ->  | D106: =IFERROR(INDEX(【D】NPS!$GP$7:$HB$126,$V106,$V$1),"") ->  | V106: - | X106: 回答エリア | Y106: =IF(【M】エリア!$E102<>"",【M】エリア!$E102,"") ->  | AP106: =IF($Y106<>"", INDEX(NPSデータ範囲, MATCH($Y106,NPS表側範囲,0), MATCH(AP$2&$AO$1,NPS表頭範囲,0) ),"") ->  | BE106: =IF($Y106<>"", INDEX(NPSデータ範囲, MATCH($Y106,NPS表側範囲,0), MATCH(BE$2&$BD$1,NPS表頭範囲,0) ),"") -> 
A107: =IFERROR(INDEX($AP$6:$BB$125,$V107,$V$1),"") ->  | B107: =IFERROR(INDEX($Y$6:$Y$125,$V107,1),"") ->  | C107: =IFERROR(INDEX($AA$6:$AM$125,$V107,$V$1),"") ->  | D107: =IFERROR(INDEX(【D】NPS!$GP$7:$HB$126,$V107,$V$1),"") ->  | V107: - | X107: 回答エリア | Y107: =IF(【M】エリア!$E103<>"",【M】エリア!$E103,"") -> 
A108: =IFERROR(INDEX($AP$6:$BB$125,$V108,$V$1),"") ->  | B108: =IFERROR(INDEX($Y$6:$Y$125,$V108,1),"") ->  | C108: =IFERROR(INDEX($AA$6:$AM$125,$V108,$V$1),"") ->  | D108: =IFERROR(INDEX(【D】NPS!$GP$7:$HB$126,$V108,$V$1),"") ->  | V108: - | X108: 回答エリア | Y108: =IF(【M】エリア!$E104<>"",【M】エリア!$E104,"") -> 
A109: =IFERROR(INDEX($AP$6:$BB$125,$V109,$V$1),"") ->  | B109: =IFERROR(INDEX($Y$6:$Y$125,$V109,1),"") ->  | C109: =IFERROR(INDEX($AA$6:$AM$125,$V109,$V$1),"") ->  | D109: =IFERROR(INDEX(【D】NPS!$GP$7:$HB$126,$V109,$V$1),"") ->  | V109: - | X109: 回答エリア | Y109: =IF(【M】エリア!$E105<>"",【M】エリア!$E105,"") -> 
A110: =IFERROR(INDEX($AP$6:$BB$125,$V110,$V$1),"") ->  | B110: =IFERROR(INDEX($Y$6:$Y$125,$V110,1),"") ->  | C110: =IFERROR(INDEX($AA$6:$AM$125,$V110,$V$1),"") ->  | D110: =IFERROR(INDEX(【D】NPS!$GP$7:$HB$126,$V110,$V$1),"") ->  | V110: - | X110: 回答エリア | Y110: =IF(【M】エリア!$E106<>"",【M】エリア!$E106,"") -> 
A111: =IFERROR(INDEX($AP$6:$BB$125,$V111,$V$1),"") ->  | B111: =IFERROR(INDEX($Y$6:$Y$125,$V111,1),"") ->  | C111: =IFERROR(INDEX($AA$6:$AM$125,$V111,$V$1),"") ->  | D111: =IFERROR(INDEX(【D】NPS!$GP$7:$HB$126,$V111,$V$1),"") ->  | V111: - | X111: 回答エリア | Y111: =IF(【M】エリア!$E107<>"",【M】エリア!$E107,"") -> 
A112: =IFERROR(INDEX($AP$6:$BB$125,$V112,$V$1),"") ->  | B112: =IFERROR(INDEX($Y$6:$Y$125,$V112,1),"") ->  | C112: =IFERROR(INDEX($AA$6:$AM$125,$V112,$V$1),"") ->  | D112: =IFERROR(INDEX(【D】NPS!$GP$7:$HB$126,$V112,$V$1),"") ->  | V112: - | X112: 回答エリア | Y112: =IF(【M】エリア!$E108<>"",【M】エリア!$E108,"") -> 
A113: =IFERROR(INDEX($AP$6:$BB$125,$V113,$V$1),"") ->  | B113: =IFERROR(INDEX($Y$6:$Y$125,$V113,1),"") ->  | C113: =IFERROR(INDEX($AA$6:$AM$125,$V113,$V$1),"") ->  | D113: =IFERROR(INDEX(【D】NPS!$GP$7:$HB$126,$V113,$V$1),"") ->  | V113: - | X113: 回答エリア | Y113: =IF(【M】エリア!$E109<>"",【M】エリア!$E109,"") ->  | AA113: =IF($Y113<>"", INDEX(NPSデータ範囲, MATCH($Y113,NPS表側範囲,0), MATCH(AA$2&$Z$1,NPS表頭範囲,0) ),"") -> 
A114: =IFERROR(INDEX($AP$6:$BB$125,$V114,$V$1),"") ->  | B114: =IFERROR(INDEX($Y$6:$Y$125,$V114,1),"") ->  | C114: =IFERROR(INDEX($AA$6:$AM$125,$V114,$V$1),"") ->  | D114: =IFERROR(INDEX(【D】NPS!$GP$7:$HB$126,$V114,$V$1),"") ->  | V114: - | X114: 回答エリア | Y114: =IF(【M】エリア!$E110<>"",【M】エリア!$E110,"") -> 
A115: =IFERROR(INDEX($AP$6:$BB$125,$V115,$V$1),"") ->  | B115: =IFERROR(INDEX($Y$6:$Y$125,$V115,1),"") ->  | C115: =IFERROR(INDEX($AA$6:$AM$125,$V115,$V$1),"") ->  | D115: =IFERROR(INDEX(【D】NPS!$GP$7:$HB$126,$V115,$V$1),"") ->  | V115: - | X115: 回答エリア | Y115: =IF(【M】エリア!$E111<>"",【M】エリア!$E111,"") -> 
A116: =IFERROR(INDEX($AP$6:$BB$125,$V116,$V$1),"") ->  | B116: =IFERROR(INDEX($Y$6:$Y$125,$V116,1),"") ->  | C116: =IFERROR(INDEX($AA$6:$AM$125,$V116,$V$1),"") ->  | D116: =IFERROR(INDEX(【D】NPS!$GP$7:$HB$126,$V116,$V$1),"") ->  | V116: - | X116: 回答エリア | Y116: =IF(【M】エリア!$E112<>"",【M】エリア!$E112,"") ->  | AP116: =IF($Y116<>"", INDEX(NPSデータ範囲, MATCH($Y116,NPS表側範囲,0), MATCH(AP$2&$AO$1,NPS表頭範囲,0) ),"") ->  | BE116: =IF($Y116<>"", INDEX(NPSデータ範囲, MATCH($Y116,NPS表側範囲,0), MATCH(BE$2&$BD$1,NPS表頭範囲,0) ),"") -> 
A117: =IFERROR(INDEX($AP$6:$BB$125,$V117,$V$1),"") ->  | B117: =IFERROR(INDEX($Y$6:$Y$125,$V117,1),"") ->  | C117: =IFERROR(INDEX($AA$6:$AM$125,$V117,$V$1),"") ->  | D117: =IFERROR(INDEX(【D】NPS!$GP$7:$HB$126,$V117,$V$1),"") ->  | V117: - | X117: 回答エリア | Y117: =IF(【M】エリア!$E113<>"",【M】エリア!$E113,"") -> 
A118: =IFERROR(INDEX($AP$6:$BB$125,$V118,$V$1),"") ->  | B118: =IFERROR(INDEX($Y$6:$Y$125,$V118,1),"") ->  | C118: =IFERROR(INDEX($AA$6:$AM$125,$V118,$V$1),"") ->  | D118: =IFERROR(INDEX(【D】NPS!$GP$7:$HB$126,$V118,$V$1),"") ->  | V118: - | X118: 回答エリア | Y118: =IF(【M】エリア!$E114<>"",【M】エリア!$E114,"") -> 
A119: =IFERROR(INDEX($AP$6:$BB$125,$V119,$V$1),"") ->  | B119: =IFERROR(INDEX($Y$6:$Y$125,$V119,1),"") ->  | C119: =IFERROR(INDEX($AA$6:$AM$125,$V119,$V$1),"") ->  | D119: =IFERROR(INDEX(【D】NPS!$GP$7:$HB$126,$V119,$V$1),"") ->  | V119: - | X119: 回答エリア | Y119: =IF(【M】エリア!$E115<>"",【M】エリア!$E115,"") -> 
A120: =IFERROR(INDEX($AP$6:$BB$125,$V120,$V$1),"") ->  | B120: =IFERROR(INDEX($Y$6:$Y$125,$V120,1),"") ->  | C120: =IFERROR(INDEX($AA$6:$AM$125,$V120,$V$1),"") ->  | D120: =IFERROR(INDEX(【D】NPS!$GP$7:$HB$126,$V120,$V$1),"") ->  | V120: - | X120: 回答エリア | Y120: =IF(【M】エリア!$E116<>"",【M】エリア!$E116,"") -> 
A121: =IFERROR(INDEX($AP$6:$BB$125,$V121,$V$1),"") ->  | B121: =IFERROR(INDEX($Y$6:$Y$125,$V121,1),"") ->  | C121: =IFERROR(INDEX($AA$6:$AM$125,$V121,$V$1),"") ->  | D121: =IFERROR(INDEX(【D】NPS!$GP$7:$HB$126,$V121,$V$1),"") ->  | V121: - | X121: 回答エリア | Y121: =IF(【M】エリア!$E117<>"",【M】エリア!$E117,"") -> 
A122: =IFERROR(INDEX($AP$6:$BB$125,$V122,$V$1),"") ->  | B122: =IFERROR(INDEX($Y$6:$Y$125,$V122,1),"") ->  | C122: =IFERROR(INDEX($AA$6:$AM$125,$V122,$V$1),"") ->  | D122: =IFERROR(INDEX(【D】NPS!$GP$7:$HB$126,$V122,$V$1),"") ->  | V122: - | X122: 回答エリア | Y122: =IF(【M】エリア!$E118<>"",【M】エリア!$E118,"") -> 
V123: - | X123: 回答エリア | Y123: =IF(【M】エリア!$E119<>"",【M】エリア!$E119,"") -> 
V124: - | X124: 回答エリア | Y124: =IF(【M】エリア!$E120<>"",【M】エリア!$E120,"") -> 
X125: 回答エリア | Y125: =IF(【M】エリア!$E121<>"",【M】エリア!$E121,"") -> 

Sheet 満足度(商品・サービス)
A1: =施設コード!$A$2 -> 3月 | B1: =【M】エリア!$L$2 -> 福井県 | C1: =【M】エリア!$L$3 -> 福井市・永平寺町 | D1: =【M】エリア!$L$4 -> 福井市 | E1: =【M】エリア!$L$5 -> 福井駅前 エリア | G1: =AF16 -> 満足度スコア | H1: 4月 | I1: 5月 | J1: 6月 | K1: 7月 | L1: 8月 | M1: 9月 | N1: 10月 | O1: 11月 | P1: 12月 | Q1: 1月 | R1: 2月 | S1: 3月 | T1: 通年 | AA1: =AF16&"（推移）" -> 満足度スコア（推移） | AC1: 集計区分 | AE1: 満足度(商品・サービス) | AF1: 回答数 | AG1: 回答月 | AH1: 回答月 | AI1: 回答月 | AJ1: 回答月 | AK1: 回答月 | AL1: 回答月 | AM1: 回答月 | AN1: 回答月 | AO1: 回答月 | AP1: 回答月 | AQ1: 回答月 | AR1: 回答月 | AS1: 回答月 | AT1: 回答月 | AU1: 回答月 | AV1: 回答月 | AW1: 回答月 | AX1: 回答月 | AY1: 回答月 | AZ1: 回答月 | BA1: 回答月 | BB1: 回答月 | BC1: 回答月 | BD1: 回答月 | BE1: 回答月 | BF1: 回答月
A2: =IF(AE3<>"",AE3,"") -> とても満足 | B2: =IFERROR(OFFSET(INDEX($AG$3:$BF$14, MATCH($A2,$A$2:$A$13,0),MATCH($A$1,$AG$2:$BF$2,0)),0,1),"") -> 42.1% | C2: =IFERROR(OFFSET(INDEX($AG$18:$BF$29, MATCH($A2,$A$2:$A$13,0),MATCH($A$1,$AG$2:$BF$2,0)),0,1),"") -> 37.4% | D2: =IFERROR(OFFSET(INDEX($AG$33:$BF$44, MATCH($A2,$A$2:$A$13,0),MATCH($A$1,$AG$2:$BF$2,0)),0,1),"") -> 37.5% | E2: =IFERROR(OFFSET(INDEX($AG$48:$BF$59, MATCH($A2,$A$2:$A$13,0),MATCH($A$1,$AG$2:$BF$2,0)),0,1),"") -> 39.1% | G2: =【M】エリア!$L$2 -> 福井県 | H2: =AG16 -> 4.16 | I2: =AI16 -> 4.18 | J2: =AK16 -> 4.18 | K2: =AM16 -> 4.21 | L2: =AO16 -> 4.24 | M2: =AQ16 -> 4.24 | N2: =AS16 -> 4.21 | O2: =AU16 -> 4.18 | P2: =AW16 -> 4.26 | Q2: =AY16 -> 4.28 | R2: =BA16 -> 4.24 | S2: =BC16 -> 4.29 | T2: =BE16 -> 4.22 | AC2: 都道府県 | AD2: =【M】エリア!$L$2 -> 福井県 | AG2: 4月 | AI2: 5月 | AK2: 6月 | AM2: 7月 | AO2: 8月 | AQ2: 9月 | AS2: 10月 | AU2: 11月 | AW2: 12月 | AY2: 1月 | BA2: 2月 | BC2: 3月 | BE2: 通年
A3: =IF(AE4<>"",AE4,"") -> 満足 | B3: =IFERROR(OFFSET(INDEX($AG$3:$BF$14, MATCH($A3,$A$2:$A$13,0),MATCH($A$1,$AG$2:$BF$2,0)),0,1),"") -> 45.5% | C3: =IFERROR(OFFSET(INDEX($AG$18:$BF$29, MATCH($A3,$A$2:$A$13,0),MATCH($A$1,$AG$2:$BF$2,0)),0,1),"") -> 51.0% | D3: =IFERROR(OFFSET(INDEX($AG$33:$BF$44, MATCH($A3,$A$2:$A$13,0),MATCH($A$1,$AG$2:$BF$2,0)),0,1),"") -> 50.7% | E3: =IFERROR(OFFSET(INDEX($AG$48:$BF$59, MATCH($A3,$A$2:$A$13,0),MATCH($A$1,$AG$2:$BF$2,0)),0,1),"") -> 52.2% | G3: =【M】エリア!$L$3 -> 福井市・永平寺町 | H3: =AG31 -> 4.21 | I3: =AI31 -> 4.22 | J3: =AK31 -> 4.23 | K3: =AM31 -> 4.19 | L3: =AO31 -> 4.23 | M3: =AQ31 -> 4.26 | N3: =AS31 -> 4.26 | O3: =AU31 -> 4.17 | P3: =AW31 -> 4.28 | Q3: =AY31 -> 4.28 | R3: =BA31 -> 4.20 | S3: =BC31 -> 4.25 | T3: =BE31 -> 4.23 | AA3: =IF($AE3<>"",VLOOKUP($AE3,【M】満足度!$A$1:$B$5,2,0),"") -> 5 | AC3: =AC2 -> 都道府県 | AD3: =AD2 -> 福井県 | AE3: とても満足 | AG3: =IF(OR(IFERROR(FIND($AD3,"施設コード"),0)>0,$AE3=""), "", COUNTIFS( INDEX(rawデータ範囲, , MATCH($AG$1,表頭範囲, 0)),AG$2, INDEX(rawデータ範囲, , MATCH($AE$1,表頭範囲, 0)),$AE3 ) ) -> 1081件 | AH3: =IFERROR(AG3/AG$15,"") -> 33.4% | AI3: =IF(OR(IFERROR(FIND($AD3,"施設コード"),0)>0,$AE3=""), "", COUNTIFS( INDEX(rawデータ範囲, , MATCH($AG$1,表頭範囲, 0)),AI$2, INDEX(rawデータ範囲, , MATCH($AE$1,表頭範囲, 0)),$AE3 ) ) -> 985件 | AJ3: =IFERROR(AI3/AI$15,"") -> 33.5% | AK3: =IF(OR(IFERROR(FIND($AD3,"施設コード"),0)>0,$AE3=""), "", COUNTIFS( INDEX(rawデータ範囲, , MATCH($AG$1,表頭範囲, 0)),AK$2, INDEX(rawデータ範囲, , MATCH($AE$1,表頭範囲, 0)),$AE3 ) ) -> 784件 | AL3: =IFERROR(AK3/AK$15,"") -> 33.6% | AM3: =IF(OR(IFERROR(FIND($AD3,"施設コード"),0)>0,$AE3=""), "", COUNTIFS( INDEX(rawデータ範囲, , MATCH($AG$1,表頭範囲, 0)),AM$2, INDEX(rawデータ範囲, , MATCH($AE$1,表頭範囲, 0)),$AE3 ) ) -> 657件 | AN3: =IFERROR(AM3/AM$15,"") -> 34.6% | AO3: =IF(OR(IFERROR(FIND($AD3,"施設コード"),0)>0,$AE3=""), "", COUNTIFS( INDEX(rawデータ範囲, , MATCH($AG$1,表頭範囲, 0)),AO$2, INDEX(rawデータ範囲, , MATCH($AE$1,表頭範囲, 0)),$AE3 ) ) -> 971件 | AP3: =IFERROR(AO3/AO$15,"") -> 37.2% | AQ3: =IF(OR(IFERROR(FIND($AD3,"施設コード"),0)>0,$AE3=""), "", COUNTIFS( INDEX(rawデータ範囲, , MATCH($AG$1,表頭範囲, 0)),AQ$2, INDEX(rawデータ範囲, , MATCH($AE$1,表頭範囲, 0)),$AE3 ) ) -> 1020件 | AR3: =IFERROR(AQ3/AQ$15,"") -> 38.3% | AS3: =IF(OR(IFERROR(FIND($AD3,"施設コード"),0)>0,$AE3=""), "", COUNTIFS( INDEX(rawデータ範囲, , MATCH($AG$1,表頭範囲, 0)),AS$2, INDEX(rawデータ範囲, , MATCH($AE$1,表頭範囲, 0)),$AE3 ) ) -> 779件 | AT3: =IFERROR(AS3/AS$15,"") -> 35.1% | AU3: =IF(OR(IFERROR(FIND($AD3,"施設コード"),0)>0,$AE3=""), "", COUNTIFS( INDEX(rawデータ範囲, , MATCH($AG$1,表頭範囲, 0)),AU$2, INDEX(rawデータ範囲, , MATCH($AE$1,表頭範囲, 0)),$AE3 ) ) -> 817件 | AV3: =IFERROR(AU3/AU$15,"") -> 32.1% | AW3: =IF(OR(IFERROR(FIND($AD3,"施設コード"),0)>0,$AE3=""), "", COUNTIFS( INDEX(rawデータ範囲, , MATCH($AG$1,表頭範囲, 0)),AW$2, INDEX(rawデータ範囲, , MATCH($AE$1,表頭範囲, 0)),$AE3 ) ) -> 771件 | AX3: =IFERROR(AW3/AW$15,"") -> 39.6% | AY3: =IF(OR(IFERROR(FIND($AD3,"施設コード"),0)>0,$AE3=""), "", COUNTIFS( INDEX(rawデータ範囲, , MATCH($AG$1,表頭範囲, 0)),AY$2, INDEX(rawデータ範囲, , MATCH($AE$1,表頭範囲, 0)),$AE3 ) ) -> 579件 | AZ3: =IFERROR(AY3/AY$15,"") -> 39.5% | BA3: =IF(OR(IFERROR(FIND($AD3,"施設コード"),0)>0,$AE3=""), "", COUNTIFS( INDEX(rawデータ範囲, , MATCH($AG$1,表頭範囲, 0)),BA$2, INDEX(rawデータ範囲, , MATCH($AE$1,表頭範囲, 0)),$AE3 ) ) -> 512件 | BB3: =IFERROR(BA3/BA$15,"") -> 37.3% | BC3: =IF(OR(IFERROR(FIND($AD3,"施設コード"),0)>0,$AE3=""), "", COUNTIFS( INDEX(rawデータ範囲, , MATCH($AG$1,表頭範囲, 0)),BC$2, INDEX(rawデータ範囲, , MATCH($AE$1,表頭範囲, 0)),$AE3 ) ) -> 1148件 | BD3: =IFERROR(BC3/BC$15,"") -> 42.1% | BE3: =IFERROR(AG3+AI3+AK3+AM3+AO3+AQ3+AS3+AU3+AW3+AY3+BA3+BC3,"") -> 10104件 | BF3: =IFERROR(BE3/BE$15,"") -> 36.1%
A4: どちらでもない | B4: 11.5% | C4: 11.0% | D4: 11.1% | E4: 7.8% | G4: =【M】エリア!$L$4 -> 福井市 | H4: =AG46 -> 4.23 | I4: =AI46 -> 4.17 | J4: =AK46 -> 4.20 | K4: =AM46 -> 4.13 | L4: =AO46 -> 4.19 | M4: =AQ46 -> 4.24 | N4: =AS46 -> 4.28 | O4: =AU46 -> 4.14 | P4: =AW46 -> 4.24 | Q4: =AY46 -> 4.27 | R4: =BA46 -> 4.17 | S4: =BC46 -> 4.25 | T4: =BE46 -> 4.21 | AA4: =IF($AE4<>"",VLOOKUP($AE4,【M】満足度!$A$1:$B$5,2,0),"") -> 4 | AC4: =AC3 -> 都道府県 | AD4: 福井県 | AE4: 満足 | AG4: 1674件 | AH4: 51.7% | AI4: 1562件 | AJ4: 53.1% | AK4: 1216件 | AL4: 52.2% | AM4: 1010件 | AN4: 53.2% | AO4: 1357件 | AP4: 52.0% | AQ4: 1322件 | AR4: 49.6% | AS4: 1182件 | AT4: 53.2% | AU4: 1409件 | AV4: 55.3% | AW4: 961件 | AX4: 49.3% | AY4: 740件 | AZ4: 50.5% | BA4: 711件 | BB4: 51.8% | BC4: 1240件 | BD4: 45.5% | BE4: =IFERROR(AG4+AI4+AK4+AM4+AO4+AQ4+AS4+AU4+AW4+AY4+BA4+BC4,"") -> 14384件 | BF4: 51.4%
A5: 不満 | B5: 0.6% | C5: 0.6% | D5: 0.7% | E5: 0.9% | G5: =【M】エリア!$L$5 -> 福井駅前 エリア | H5: =AG61 -> 4.22 | I5: =AI61 -> 4.18 | J5: =AK61 -> 4.25 | K5: =AM61 -> 4.09 | L5: =AO61 -> 4.23 | M5: =AQ61 -> 4.16 | N5: =AS61 -> 4.31 | O5: =AU61 -> 4.13 | P5: =AW61 -> 4.23 | Q5: =AY61 -> 4.34 | R5: =BA61 -> 4.19 | S5: =BC61 -> 4.30 | T5: =BE61 -> 4.22 | AA5: =IF($AE5<>"",VLOOKUP($AE5,【M】満足度!$A$1:$B$5,2,0),"") -> 3 | AC5: 都道府県 | AD5: 福井県 | AE5: どちらでもない | AG5: 434件 | AH5: 13.4% | AI5: 350件 | AJ5: 11.9% | AK5: 299件 | AL5: 12.8% | AM5: 206件 | AN5: 10.8% | AO5: 238件 | AP5: 9.1% | AQ5: 286件 | AR5: 10.7% | AS5: 224件 | AT5: 10.1% | AU5: 286件 | AV5: 11.2% | AW5: 183件 | AX5: 9.4% | AY5: 128件 | AZ5: 8.7% | BA5: 128件 | BB5: 9.3% | BC5: 313件 | BD5: 11.5% | BE5: 3075件 | BF5: 11.0%
A6: とても不満 | B6: 0.3% | C6: 0.0% | D6: 0.0% | E6: 0.0% | AA6: =IF($AE6<>"",VLOOKUP($AE6,【M】満足度!$A$1:$B$5,2,0),"") -> 2 | AC6: 都道府県 | AD6: 福井県 | AE6: 不満 | AG6: 37件 | AH6: 1.1% | AI6: 32件 | AJ6: 1.1% | AK6: 28件 | AL6: 1.2% | AM6: 21件 | AN6: 1.1% | AO6: 37件 | AP6: 1.4% | AQ6: 29件 | AR6: 1.1% | AS6: 24件 | AT6: 1.1% | AU6: 29件 | AV6: 1.1% | AW6: 20件 | AX6: 1.0% | AY6: 11件 | AZ6: 0.8% | BA6: 17件 | BB6: 1.2% | BC6: 16件 | BD6: 0.6% | BE6: 301件 | BF6: 1.1%
AA7: =IF($AE7<>"",VLOOKUP($AE7,【M】満足度!$A$1:$B$5,2,0),"") -> 1 | AC7: 都道府県 | AD7: 福井県 | AE7: とても不満 | AG7: 15件 | AH7: 0.5% | AI7: 10件 | AJ7: 0.3% | AK7: 3件 | AL7: 0.1% | AM7: 6件 | AN7: 0.3% | AO7: 7件 | AP7: 0.3% | AQ7: 8件 | AR7: 0.3% | AS7: 11件 | AT7: 0.5% | AU7: 7件 | AV7: 0.3% | AW7: 13件 | AX7: 0.7% | AY7: 7件 | AZ7: 0.5% | BA7: 5件 | BB7: 0.4% | BC7: 8件 | BD7: 0.3% | BE7: 100件 | BF7: 0.4%
AA8: =IF($AE8<>"",VLOOKUP($AE8,【M】満足度!$A$1:$B$5,2,0),"") ->  | AC8: 都道府県 | AD8: 福井県
AA9: =IF($AE9<>"",VLOOKUP($AE9,【M】満足度!$A$1:$B$5,2,0),"") ->  | AC9: 都道府県 | AD9: 福井県
AA10: =IF($AE10<>"",VLOOKUP($AE10,【M】満足度!$A$1:$B$5,2,0),"") ->  | AC10: =AC9 -> 都道府県 | AD10: =AD9 -> 福井県
AA11: =IF($AE11<>"",VLOOKUP($AE11,【M】満足度!$A$1:$B$5,2,0),"") ->  | AC11: 都道府県 | AD11: 福井県
AA12: =IF($AE12<>"",VLOOKUP($AE12,【M】満足度!$A$1:$B$5,2,0),"") ->  | AC12: 都道府県 | AD12: 福井県
AA13: =IF($AE13<>"",VLOOKUP($AE13,【M】満足度!$A$1:$B$5,2,0),"") ->  | AC13: 都道府県 | AD13: 福井県 | BE13: =IFERROR(AG13+AI13+AK13+AM13+AO13+AQ13+AS13+AU13+AW13+AY13+BA13+BC13,"") -> 
AA14: =IF($AE14<>"",VLOOKUP($AE14,【M】満足度!$A$1:$B$5,2,0),"") ->  | AC14: =AC12 -> 都道府県 | AD14: =AD12 -> 福井県 | AH14: =IFERROR(AG14/AG$15,"") ->  | AJ14: =IFERROR(AI14/AI$15,"") ->  | AL14: =IFERROR(AK14/AK$15,"") ->  | AN14: =IFERROR(AM14/AM$15,"") ->  | AP14: =IFERROR(AO14/AO$15,"") ->  | AR14: =IFERROR(AQ14/AQ$15,"") ->  | AT14: =IFERROR(AS14/AS$15,"") ->  | AV14: =IFERROR(AU14/AU$15,"") ->  | AX14: =IFERROR(AW14/AW$15,"") ->  | AZ14: =IFERROR(AY14/AY$15,"") ->  | BB14: =IFERROR(BA14/BA$15,"") ->  | BD14: =IFERROR(BC14/BC$15,"") ->  | BF14: =IFERROR(BE14/BE$15,"") -> 
AF15: 合計 | AG15: =SUM(AG3:AG14) -> 3,241件 | AH15: 100.0% | AI15: 2,939件 | AJ15: 100.0% | AK15: 2,330件 | AL15: 100.0% | AM15: 1,900件 | AN15: 100.0% | AO15: 2,610件 | AP15: 100.0% | AQ15: 2,665件 | AR15: 100.0% | AS15: 2,220件 | AT15: 100.0% | AU15: 2,548件 | AV15: 100.0% | AW15: 1,948件 | AX15: 100.0% | AY15: 1,465件 | AZ15: 100.0% | BA15: 1,373件 | BB15: 100.0% | BC15: 2,725件 | BD15: 100.0% | BE15: =AG15+AI15+AK15+AM15+AO15+AQ15+AS15+AU15+AW15+AY15+BA15+BC15 -> 27,964件 | BF15: =SUM(BF3:BF14) -> 100.0%
AF16: 満足度スコア | AG16: =IF(AG15>0,SUMPRODUCT($AA3:$AA14,AG3:AG14)/AG15,"-") -> 4.16 | AI16: =IF(AI15>0,SUMPRODUCT($AA3:$AA14,AI3:AI14)/AI15,"-") -> 4.18 | AK16: =IF(AK15>0,SUMPRODUCT($AA3:$AA14,AK3:AK14)/AK15,"-") -> 4.18 | AM16: =IF(AM15>0,SUMPRODUCT($AA3:$AA14,AM3:AM14)/AM15,"-") -> 4.21 | AO16: =IF(AO15>0,SUMPRODUCT($AA3:$AA14,AO3:AO14)/AO15,"-") -> 4.24 | AQ16: =IF(AQ15>0,SUMPRODUCT($AA3:$AA14,AQ3:AQ14)/AQ15,"-") -> 4.24 | AS16: =IF(AS15>0,SUMPRODUCT($AA3:$AA14,AS3:AS14)/AS15,"-") -> 4.21 | AU16: =IF(AU15>0,SUMPRODUCT($AA3:$AA14,AU3:AU14)/AU15,"-") -> 4.18 | AW16: =IF(AW15>0,SUMPRODUCT($AA3:$AA14,AW3:AW14)/AW15,"-") -> 4.26 | AY16: =IF(AY15>0,SUMPRODUCT($AA3:$AA14,AY3:AY14)/AY15,"-") -> 4.28 | BA16: =IF(BA15>0,SUMPRODUCT($AA3:$AA14,BA3:BA14)/BA15,"-") -> 4.24 | BC16: =IF(BC15>0,SUMPRODUCT($AA3:$AA14,BC3:BC14)/BC15,"-") -> 4.29 | BE16: =IF(BE15>0,SUMPRODUCT($AA3:$AA14,BE3:BE14)/BE15,"-") -> 4.22
AC17: =【M】エリア!$J$2 -> 6分類 | AD17: =【M】エリア!$L$3 -> 福井市・永平寺町
AA18: =IF($AE18<>"",VLOOKUP($AE18,【M】満足度!$A$1:$B$5,2,0),"") -> 5 | AC18: =AC17 -> 6分類 | AD18: =AD17 -> 福井市・永平寺町 | AE18: =IF(AE3<>"",AE3,"") -> とても満足 | AG18: =IF(OR(IFERROR(FIND($AD18,"施設コード"),0)>0,$AE18=""), "", COUNTIFS( INDEX(rawデータ範囲, , MATCH($AG$1,表頭範囲, 0)),AG$2, INDEX(rawデータ範囲, , MATCH($AE$1,表頭範囲, 0)),$AE18, INDEX(rawデータ範囲, , MATCH($AC18,表頭範囲, 0)),$AD18 ) ) -> 171件 | AH18: =IFERROR(AG18/AG$30,"") -> 34.4% | AI18: =IF(OR(IFERROR(FIND($AD18,"施設コード"),0)>0,$AE18=""), "", COUNTIFS( INDEX(rawデータ範囲, , MATCH($AG$1,表頭範囲, 0)),AI$2, INDEX(rawデータ範囲, , MATCH($AE$1,表頭範囲, 0)),$AE18, INDEX(rawデータ範囲, , MATCH($AC18,表頭範囲, 0)),$AD18 ) ) -> 206件 | AJ18: =IFERROR(AI18/AI$30,"") -> 35.8% | AK18: =IF(OR(IFERROR(FIND($AD18,"施設コード"),0)>0,$AE18=""), "", COUNTIFS( INDEX(rawデータ範囲, , MATCH($AG$1,表頭範囲, 0)),AK$2, INDEX(rawデータ範囲, , MATCH($AE$1,表頭範囲, 0)),$AE18, INDEX(rawデータ範囲, , MATCH($AC18,表頭範囲, 0)),$AD18 ) ) -> 183件 | AL18: =IFERROR(AK18/AK$30,"") -> 35.6% | AM18: =IF(OR(IFERROR(FIND($AD18,"施設コード"),0)>0,$AE18=""), "", COUNTIFS( INDEX(rawデータ範囲, , MATCH($AG$1,表頭範囲, 0)),AM$2, INDEX(rawデータ範囲, , MATCH($AE$1,表頭範囲, 0)),$AE18, INDEX(rawデータ範囲, , MATCH($AC18,表頭範囲, 0)),$AD18 ) ) -> 130件 | AN18: =IFERROR(AM18/AM$30,"") -> 33.9% | AO18: =IF(OR(IFERROR(FIND($AD18,"施設コード"),0)>0,$AE18=""), "", COUNTIFS( INDEX(rawデータ範囲, , MATCH($AG$1,表頭範囲, 0)),AO$2, INDEX(rawデータ範囲, , MATCH($AE$1,表頭範囲, 0)),$AE18, INDEX(rawデータ範囲, , MATCH($AC18,表頭範囲, 0)),$AD18 ) ) -> 197件 | AP18: =IFERROR(AO18/AO$30,"") -> 36.0% | AQ18: =IF(OR(IFERROR(FIND($AD18,"施設コード"),0)>0,$AE18=""), "", COUNTIFS( INDEX(rawデータ範囲, , MATCH($AG$1,表頭範囲, 0)),AQ$2, INDEX(rawデータ範囲, , MATCH($AE$1,表頭範囲, 0)),$AE18, INDEX(rawデータ範囲, , MATCH($AC18,表頭範囲, 0)),$AD18 ) ) -> 223件 | AR18: =IFERROR(AQ18/AQ$30,"") -> 38.4% | AS18: =IF(OR(IFERROR(FIND($AD18,"施設コード"),0)>0,$AE18=""), "", COUNTIFS( INDEX(rawデータ範囲, , MATCH($AG$1,表頭範囲, 0)),AS$2, INDEX(rawデータ範囲, , MATCH($AE$1,表頭範囲, 0)),$AE18, INDEX(rawデータ範囲, , MATCH($AC18,表頭範囲, 0)),$AD18 ) ) -> 163件 | AT18: =IFERROR(AS18/AS$30,"") -> 36.5% | AU18: =IF(OR(IFERROR(FIND($AD18,"施設コード"),0)>0,$AE18=""), "", COUNTIFS( INDEX(rawデータ範囲, , MATCH($AG$1,表頭範囲, 0)),AU$2, INDEX(rawデータ範囲, , MATCH($AE$1,表頭範囲, 0)),$AE18, INDEX(rawデータ範囲, , MATCH($AC18,表頭範囲, 0)),$AD18 ) ) -> 186件 | AV18: =IFERROR(AU18/AU$30,"") -> 30.5% | AW18: =IF(OR(IFERROR(FIND($AD18,"施設コード"),0)>0,$AE18=""), "", COUNTIFS( INDEX(rawデータ範囲, , MATCH($AG$1,表頭範囲, 0)),AW$2, INDEX(rawデータ範囲, , MATCH($AE$1,表頭範囲, 0)),$AE18, INDEX(rawデータ範囲, , MATCH($AC18,表頭範囲, 0)),$AD18 ) ) -> 144件 | AX18: =IFERROR(AW18/AW$30,"") -> 39.1% | AY18: =IF(OR(IFERROR(FIND($AD18,"施設コード"),0)>0,$AE18=""), "", COUNTIFS( INDEX(rawデータ範囲, , MATCH($AG$1,表頭範囲, 0)),AY$2, INDEX(rawデータ範囲, , MATCH($AE$1,表頭範囲, 0)),$AE18, INDEX(rawデータ範囲, , MATCH($AC18,表頭範囲, 0)),$AD18 ) ) -> 113件 | AZ18: =IFERROR(AY18/AY$30,"") -> 37.5% | BA18: =IF(OR(IFERROR(FIND($AD18,"施設コード"),0)>0,$AE18=""), "", COUNTIFS( INDEX(rawデータ範囲, , MATCH($AG$1,表頭範囲, 0)),BA$2, INDEX(rawデータ範囲, , MATCH($AE$1,表頭範囲, 0)),$AE18, INDEX(rawデータ範囲, , MATCH($AC18,表頭範囲, 0)),$AD18 ) ) -> 87件 | BB18: =IFERROR(BA18/BA$30,"") -> 33.1% | BC18: =IF(OR(IFERROR(FIND($AD18,"施設コード"),0)>0,$AE18=""), "", COUNTIFS( INDEX(rawデータ範囲, , MATCH($AG$1,表頭範囲, 0)),BC$2, INDEX(rawデータ範囲, , MATCH($AE$1,表頭範囲, 0)),$AE18, INDEX(rawデータ範囲, , MATCH($AC18,表頭範囲, 0)),$AD18 ) ) -> 200件 | BD18: =IFERROR(BC18/BC$30,"") -> 37.4% | BE18: =IFERROR(AG18+AI18+AK18+AM18+AO18+AQ18+AS18+AU18+AW18+AY18+BA18+BC18,"") -> 2003件 | BF18: =IFERROR(BE18/BE$30,"") -> 35.6%
AA19: =IF($AE19<>"",VLOOKUP($AE19,【M】満足度!$A$1:$B$5,2,0),"") -> 4 | AC19: =AC18 -> 6分類 | AD19: 福井市・永平寺町 | AE19: 満足 | AG19: 262件 | AH19: 52.7% | AI19: 296件 | AJ19: 51.5% | AK19: 275件 | AL19: 53.5% | AM19: 205件 | AN19: 53.5% | AO19: 292件 | AP19: 53.4% | AQ19: 290件 | AR19: 50.0% | AS19: 243件 | AT19: 54.4% | AU19: 355件 | AV19: 58.3% | AW19: 185件 | AX19: 50.3% | AY19: 161件 | AZ19: 53.5% | BA19: 147件 | BB19: 55.9% | BC19: 273件 | BD19: 51.0% | BE19: =IFERROR(AG19+AI19+AK19+AM19+AO19+AQ19+AS19+AU19+AW19+AY19+BA19+BC19,"") -> 2984件 | BF19: 53.1%
AA20: =IF($AE20<>"",VLOOKUP($AE20,【M】満足度!$A$1:$B$5,2,0),"") -> 3 | AC20: 6分類 | AD20: 福井市・永平寺町 | AE20: どちらでもない | AG20: 61件 | AH20: 12.3% | AI20: 69件 | AJ20: 12.0% | AK20: 50件 | AL20: 9.7% | AM20: 42件 | AN20: 11.0% | AO20: 47件 | AP20: 8.6% | AQ20: 61件 | AR20: 10.5% | AS20: 37件 | AT20: 8.3% | AU20: 58件 | AV20: 9.5% | AW20: 37件 | AX20: 10.1% | AY20: 25件 | AZ20: 8.3% | BA20: 24件 | BB20: 9.1% | BC20: 59件 | BD20: 11.0% | BE20: 570件 | BF20: 10.1%
AA21: =IF($AE21<>"",VLOOKUP($AE21,【M】満足度!$A$1:$B$5,2,0),"") -> 2 | AC21: 6分類 | AD21: 福井市・永平寺町 | AE21: 不満 | AG21: 2件 | AH21: 0.4% | AI21: 4件 | AJ21: 0.7% | AK21: 5件 | AL21: 1.0% | AM21: 4件 | AN21: 1.0% | AO21: 11件 | AP21: 2.0% | AQ21: 6件 | AR21: 1.0% | AS21: 3件 | AT21: 0.7% | AU21: 6件 | AV21: 1.0% | AW21: 1件 | AX21: 0.3% | AY21: 2件 | AZ21: 0.7% | BA21: 4件 | BB21: 1.5% | BC21: 3件 | BD21: 0.6% | BE21: 51件 | BF21: 0.9%
AA22: =IF($AE22<>"",VLOOKUP($AE22,【M】満足度!$A$1:$B$5,2,0),"") -> 1 | AC22: 6分類 | AD22: 福井市・永平寺町 | AE22: とても不満 | AG22: 1件 | AH22: 0.2% | AI22: 0件 | AJ22: 0.0% | AK22: 1件 | AL22: 0.2% | AM22: 2件 | AN22: 0.5% | AO22: 0件 | AP22: 0.0% | AQ22: 0件 | AR22: 0.0% | AS22: 1件 | AT22: 0.2% | AU22: 4件 | AV22: 0.7% | AW22: 1件 | AX22: 0.3% | AY22: 0件 | AZ22: 0.0% | BA22: 1件 | BB22: 0.4% | BC22: 0件 | BD22: 0.0% | BE22: 11件 | BF22: 0.2%
AA23: =IF($AE23<>"",VLOOKUP($AE23,【M】満足度!$A$1:$B$5,2,0),"") ->  | AC23: 6分類 | AD23: 福井市・永平寺町
AA24: =IF($AE24<>"",VLOOKUP($AE24,【M】満足度!$A$1:$B$5,2,0),"") ->  | AC24: 6分類 | AD24: 福井市・永平寺町
AA25: =IF($AE25<>"",VLOOKUP($AE25,【M】満足度!$A$1:$B$5,2,0),"") ->  | AC25: =AC24 -> 6分類 | AD25: =AD24 -> 福井市・永平寺町
AA26: =IF($AE26<>"",VLOOKUP($AE26,【M】満足度!$A$1:$B$5,2,0),"") ->  | AC26: 6分類 | AD26: 福井市・永平寺町
AA27: =IF($AE27<>"",VLOOKUP($AE27,【M】満足度!$A$1:$B$5,2,0),"") ->  | AC27: 6分類 | AD27: 福井市・永平寺町
AA28: =IF($AE28<>"",VLOOKUP($AE28,【M】満足度!$A$1:$B$5,2,0),"") ->  | AC28: 6分類 | AD28: 福井市・永平寺町 | BE28: =IFERROR(AG28+AI28+AK28+AM28+AO28+AQ28+AS28+AU28+AW28+AY28+BA28+BC28,"") -> 
AA29: =IF($AE29<>"",VLOOKUP($AE29,【M】満足度!$A$1:$B$5,2,0),"") ->  | AC29: =AC27 -> 6分類 | AD29: =AD27 -> 福井市・永平寺町 | AE29: =IF(AE14<>"",AE14,"") ->  | AH29: =IFERROR(AG29/AG$30,"") ->  | AJ29: =IFERROR(AI29/AI$30,"") ->  | AL29: =IFERROR(AK29/AK$30,"") ->  | AN29: =IFERROR(AM29/AM$30,"") ->  | AP29: =IFERROR(AO29/AO$30,"") ->  | AR29: =IFERROR(AQ29/AQ$30,"") ->  | AT29: =IFERROR(AS29/AS$30,"") ->  | AV29: =IFERROR(AU29/AU$30,"") ->  | AX29: =IFERROR(AW29/AW$30,"") ->  | AZ29: =IFERROR(AY29/AY$30,"") ->  | BB29: =IFERROR(BA29/BA$30,"") ->  | BD29: =IFERROR(BC29/BC$30,"") ->  | BF29: =IFERROR(BE29/BE$30,"") -> 
AF30: 合計 | AG30: =SUM(AG18:AG29) -> 497件 | AH30: 100.0% | AI30: 575件 | AJ30: 100.0% | AK30: 514件 | AL30: 100.0% | AM30: 383件 | AN30: 100.0% | AO30: 547件 | AP30: 100.0% | AQ30: 580件 | AR30: 100.0% | AS30: 447件 | AT30: 100.0% | AU30: 609件 | AV30: 100.0% | AW30: 368件 | AX30: 100.0% | AY30: 301件 | AZ30: 100.0% | BA30: 263件 | BB30: 100.0% | BC30: 535件 | BD30: 100.0% | BE30: 5,619件 | BF30: 100.0%
AF31: =IF(AF$16<>"",AF$16,"") -> 満足度スコア | AG31: =IF(AG30>0,SUMPRODUCT($AA18:$AA29,AG18:AG29)/AG30,"-") -> 4.21 | AI31: =IF(AI30>0,SUMPRODUCT($AA18:$AA29,AI18:AI29)/AI30,"-") -> 4.22 | AK31: =IF(AK30>0,SUMPRODUCT($AA18:$AA29,AK18:AK29)/AK30,"-") -> 4.23 | AM31: =IF(AM30>0,SUMPRODUCT($AA18:$AA29,AM18:AM29)/AM30,"-") -> 4.19 | AO31: =IF(AO30>0,SUMPRODUCT($AA18:$AA29,AO18:AO29)/AO30,"-") -> 4.23 | AQ31: =IF(AQ30>0,SUMPRODUCT($AA18:$AA29,AQ18:AQ29)/AQ30,"-") -> 4.26 | AS31: =IF(AS30>0,SUMPRODUCT($AA18:$AA29,AS18:AS29)/AS30,"-") -> 4.26 | AU31: =IF(AU30>0,SUMPRODUCT($AA18:$AA29,AU18:AU29)/AU30,"-") -> 4.17 | AW31: =IF(AW30>0,SUMPRODUCT($AA18:$AA29,AW18:AW29)/AW30,"-") -> 4.28 | AY31: =IF(AY30>0,SUMPRODUCT($AA18:$AA29,AY18:AY29)/AY30,"-") -> 4.28 | BA31: =IF(BA30>0,SUMPRODUCT($AA18:$AA29,BA18:BA29)/BA30,"-") -> 4.20 | BC31: =IF(BC30>0,SUMPRODUCT($AA18:$AA29,BC18:BC29)/BC30,"-") -> 4.25 | BE31: =IF(BE30>0,SUMPRODUCT($AA18:$AA29,BE18:BE29)/BE30,"-") -> 4.23
AC32: 市町村 | AD32: =【M】エリア!$L$4 -> 福井市
AA33: =IF($AE33<>"",VLOOKUP($AE33,【M】満足度!$A$1:$B$5,2,0),"") -> 5 | AC33: =AC32 -> 市町村 | AD33: =AD32 -> 福井市 | AE33: =IF(AE3<>"",AE3,"") -> とても満足 | AG33: =IF(OR(IFERROR(FIND($AD33,"施設コード"),0)>0,$AE33=""), "", COUNTIFS( INDEX(rawデータ範囲, , MATCH($AG$1,表頭範囲, 0)),AG$2, INDEX(rawデータ範囲, , MATCH($AE$1,表頭範囲, 0)),$AE33, INDEX(rawデータ範囲, , MATCH($AC33,表頭範囲, 0)),$AD33 ) ) -> 136件 | AH33: =IFERROR(AG33/AG$45,"") -> 35.4% | AI33: =IF(OR(IFERROR(FIND($AD33,"施設コード"),0)>0,$AE33=""), "", COUNTIFS( INDEX(rawデータ範囲, , MATCH($AG$1,表頭範囲, 0)),AI$2, INDEX(rawデータ範囲, , MATCH($AE$1,表頭範囲, 0)),$AE33, INDEX(rawデータ範囲, , MATCH($AC33,表頭範囲, 0)),$AD33 ) ) -> 99件 | AJ33: =IFERROR(AI33/AI$45,"") -> 30.7% | AK33: =IF(OR(IFERROR(FIND($AD33,"施設コード"),0)>0,$AE33=""), "", COUNTIFS( INDEX(rawデータ範囲, , MATCH($AG$1,表頭範囲, 0)),AK$2, INDEX(rawデータ範囲, , MATCH($AE$1,表頭範囲, 0)),$AE33, INDEX(rawデータ範囲, , MATCH($AC33,表頭範囲, 0)),$AD33 ) ) -> 95件 | AL33: =IFERROR(AK33/AK$45,"") -> 33.1% | AM33: =IF(OR(IFERROR(FIND($AD33,"施設コード"),0)>0,$AE33=""), "", COUNTIFS( INDEX(rawデータ範囲, , MATCH($AG$1,表頭範囲, 0)),AM$2, INDEX(rawデータ範囲, , MATCH($AE$1,表頭範囲, 0)),$AE33, INDEX(rawデータ範囲, , MATCH($AC33,表頭範囲, 0)),$AD33 ) ) -> 63件 | AN33: =IFERROR(AM33/AM$45,"") -> 29.9% | AO33: =IF(OR(IFERROR(FIND($AD33,"施設コード"),0)>0,$AE33=""), "", COUNTIFS( INDEX(rawデータ範囲, , MATCH($AG$1,表頭範囲, 0)),AO$2, INDEX(rawデータ範囲, , MATCH($AE$1,表頭範囲, 0)),$AE33, INDEX(rawデータ範囲, , MATCH($AC33,表頭範囲, 0)),$AD33 ) ) -> 98件 | AP33: =IFERROR(AO33/AO$45,"") -> 34.4% | AQ33: =IF(OR(IFERROR(FIND($AD33,"施設コード"),0)>0,$AE33=""), "", COUNTIFS( INDEX(rawデータ範囲, , MATCH($AG$1,表頭範囲, 0)),AQ$2, INDEX(rawデータ範囲, , MATCH($AE$1,表頭範囲, 0)),$AE33, INDEX(rawデータ範囲, , MATCH($AC33,表頭範囲, 0)),$AD33 ) ) -> 120件 | AR33: =IFERROR(AQ33/AQ$45,"") -> 38.0% | AS33: =IF(OR(IFERROR(FIND($AD33,"施設コード"),0)>0,$AE33=""), "", COUNTIFS( INDEX(rawデータ範囲, , MATCH($AG$1,表頭範囲, 0)),AS$2, INDEX(rawデータ範囲, , MATCH($AE$1,表頭範囲, 0)),$AE33, INDEX(rawデータ範囲, , MATCH($AC33,表頭範囲, 0)),$AD33 ) ) -> 94件 | AT33: =IFERROR(AS33/AS$45,"") -> 37.9% | AU33: =IF(OR(IFERROR(FIND($AD33,"施設コード"),0)>0,$AE33=""), "", COUNTIFS( INDEX(rawデータ範囲, , MATCH($AG$1,表頭範囲, 0)),AU$2, INDEX(rawデータ範囲, , MATCH($AE$1,表頭範囲, 0)),$AE33, INDEX(rawデータ範囲, , MATCH($AC33,表頭範囲, 0)),$AD33 ) ) -> 88件 | AV33: =IFERROR(AU33/AU$45,"") -> 27.2% | AW33: =IF(OR(IFERROR(FIND($AD33,"施設コード"),0)>0,$AE33=""), "", COUNTIFS( INDEX(rawデータ範囲, , MATCH($AG$1,表頭範囲, 0)),AW$2, INDEX(rawデータ範囲, , MATCH($AE$1,表頭範囲, 0)),$AE33, INDEX(rawデータ範囲, , MATCH($AC33,表頭範囲, 0)),$AD33 ) ) -> 80件 | AX33: =IFERROR(AW33/AW$45,"") -> 36.5% | AY33: =IF(OR(IFERROR(FIND($AD33,"施設コード"),0)>0,$AE33=""), "", COUNTIFS( INDEX(rawデータ範囲, , MATCH($AG$1,表頭範囲, 0)),AY$2, INDEX(rawデータ範囲, , MATCH($AE$1,表頭範囲, 0)),$AE33, INDEX(rawデータ範囲, , MATCH($AC33,表頭範囲, 0)),$AD33 ) ) -> 59件 | AZ33: =IFERROR(AY33/AY$45,"") -> 36.6% | BA33: =IF(OR(IFERROR(FIND($AD33,"施設コード"),0)>0,$AE33=""), "", COUNTIFS( INDEX(rawデータ範囲, , MATCH($AG$1,表頭範囲, 0)),BA$2, INDEX(rawデータ範囲, , MATCH($AE$1,表頭範囲, 0)),$AE33, INDEX(rawデータ範囲, , MATCH($AC33,表頭範囲, 0)),$AD33 ) ) -> 50件 | BB33: =IFERROR(BA33/BA$45,"") -> 33.1% | BC33: =IF(OR(IFERROR(FIND($AD33,"施設コード"),0)>0,$AE33=""), "", COUNTIFS( INDEX(rawデータ範囲, , MATCH($AG$1,表頭範囲, 0)),BC$2, INDEX(rawデータ範囲, , MATCH($AE$1,表頭範囲, 0)),$AE33, INDEX(rawデータ範囲, , MATCH($AC33,表頭範囲, 0)),$AD33 ) ) -> 108件 | BD33: =IFERROR(BC33/BC$45,"") -> 37.5% | BE33: =IFERROR(AG33+AI33+AK33+AM33+AO33+AQ33+AS33+AU33+AW33+AY33+BA33+BC33,"") -> 1090件 | BF33: =IFERROR(BE33/BE$45,"") -> 34.1%
AA34: =IF($AE34<>"",VLOOKUP($AE34,【M】満足度!$A$1:$B$5,2,0),"") -> 4 | AC34: =AC33 -> 市町村 | AD34: 福井市 | AE34: 満足 | AG34: 202件 | AH34: 52.6% | AI34: 182件 | AJ34: 56.5% | AK34: 158件 | AL34: 55.1% | AM34: 119件 | AN34: 56.4% | AO34: 152件 | AP34: 53.3% | AQ34: 156件 | AR34: 49.4% | AS34: 133件 | AT34: 53.6% | AU34: 201件 | AV34: 62.0% | AW34: 114件 | AX34: 52.1% | AY34: 88件 | AZ34: 54.7% | BA34: 81件 | BB34: 53.6% | BC34: 146件 | BD34: 50.7% | BE34: =IFERROR(AG34+AI34+AK34+AM34+AO34+AQ34+AS34+AU34+AW34+AY34+BA34+BC34,"") -> 1732件 | BF34: 54.2%
AA35: =IF($AE35<>"",VLOOKUP($AE35,【M】満足度!$A$1:$B$5,2,0),"") -> 3 | AC35: 市町村 | AD35: 福井市 | AE35: どちらでもない | AG35: 44件 | AH35: 11.5% | AI35: 38件 | AJ35: 11.8% | AK35: 31件 | AL35: 10.8% | AM35: 24件 | AN35: 11.4% | AO35: 27件 | AP35: 9.5% | AQ35: 37件 | AR35: 11.7% | AS35: 18件 | AT35: 7.3% | AU35: 30件 | AV35: 9.3% | AW35: 23件 | AX35: 10.5% | AY35: 12件 | AZ35: 7.5% | BA35: 16件 | BB35: 10.6% | BC35: 32件 | BD35: 11.1% | BE35: 332件 | BF35: 10.4%
AA36: =IF($AE36<>"",VLOOKUP($AE36,【M】満足度!$A$1:$B$5,2,0),"") -> 2 | AC36: 市町村 | AD36: 福井市 | AE36: 不満 | AG36: 1件 | AH36: 0.3% | AI36: 3件 | AJ36: 0.9% | AK36: 3件 | AL36: 1.0% | AM36: 3件 | AN36: 1.4% | AO36: 8件 | AP36: 2.8% | AQ36: 3件 | AR36: 0.9% | AS36: 2件 | AT36: 0.8% | AU36: 3件 | AV36: 0.9% | AW36: 1件 | AX36: 0.5% | AY36: 2件 | AZ36: 1.2% | BA36: 3件 | BB36: 2.0% | BC36: 2件 | BD36: 0.7% | BE36: 34件 | BF36: 1.1%
AA37: =IF($AE37<>"",VLOOKUP($AE37,【M】満足度!$A$1:$B$5,2,0),"") -> 1 | AC37: 市町村 | AD37: 福井市 | AE37: とても不満 | AG37: 1件 | AH37: 0.3% | AI37: 0件 | AJ37: 0.0% | AK37: 0件 | AL37: 0.0% | AM37: 2件 | AN37: 0.9% | AO37: 0件 | AP37: 0.0% | AQ37: 0件 | AR37: 0.0% | AS37: 1件 | AT37: 0.4% | AU37: 2件 | AV37: 0.6% | AW37: 1件 | AX37: 0.5% | AY37: 0件 | AZ37: 0.0% | BA37: 1件 | BB37: 0.7% | BC37: 0件 | BD37: 0.0% | BE37: 8件 | BF37: 0.3%
AA38: =IF($AE38<>"",VLOOKUP($AE38,【M】満足度!$A$1:$B$5,2,0),"") ->  | AC38: 市町村 | AD38: 福井市
AA39: =IF($AE39<>"",VLOOKUP($AE39,【M】満足度!$A$1:$B$5,2,0),"") ->  | AC39: 市町村 | AD39: 福井市
AA40: =IF($AE40<>"",VLOOKUP($AE40,【M】満足度!$A$1:$B$5,2,0),"") ->  | AC40: =AC39 -> 市町村 | AD40: =AD39 -> 福井市
AA41: =IF($AE41<>"",VLOOKUP($AE41,【M】満足度!$A$1:$B$5,2,0),"") ->  | AC41: 市町村 | AD41: 福井市
AA42: =IF($AE42<>"",VLOOKUP($AE42,【M】満足度!$A$1:$B$5,2,0),"") ->  | AC42: 市町村 | AD42: 福井市
AA43: =IF($AE43<>"",VLOOKUP($AE43,【M】満足度!$A$1:$B$5,2,0),"") ->  | AC43: 市町村 | AD43: 福井市 | BE43: =IFERROR(AG43+AI43+AK43+AM43+AO43+AQ43+AS43+AU43+AW43+AY43+BA43+BC43,"") -> 
AA44: =IF($AE44<>"",VLOOKUP($AE44,【M】満足度!$A$1:$B$5,2,0),"") ->  | AC44: =AC42 -> 市町村 | AD44: =AD42 -> 福井市 | AE44: =IF(AE14<>"",AE14,"") ->  | AH44: =IFERROR(AG44/AG$45,"") ->  | AJ44: =IFERROR(AI44/AI$45,"") ->  | AL44: =IFERROR(AK44/AK$45,"") ->  | AN44: =IFERROR(AM44/AM$45,"") ->  | AP44: =IFERROR(AO44/AO$45,"") ->  | AR44: =IFERROR(AQ44/AQ$45,"") ->  | AT44: =IFERROR(AS44/AS$45,"") ->  | AV44: =IFERROR(AU44/AU$45,"") ->  | AX44: =IFERROR(AW44/AW$45,"") ->  | AZ44: =IFERROR(AY44/AY$45,"") ->  | BB44: =IFERROR(BA44/BA$45,"") ->  | BD44: =IFERROR(BC44/BC$45,"") -> 
AF45: 合計 | AG45: =SUM(AG33:AG44) -> 384件 | AH45: 100.0% | AI45: 322件 | AJ45: 100.0% | AK45: 287件 | AL45: 100.0% | AM45: 211件 | AN45: 100.0% | AO45: 285件 | AP45: 100.0% | AQ45: 316件 | AR45: 100.0% | AS45: 248件 | AT45: 100.0% | AU45: 324件 | AV45: 100.0% | AW45: 219件 | AX45: 100.0% | AY45: 161件 | AZ45: 100.0% | BA45: 151件 | BB45: 100.0% | BC45: 288件 | BD45: 100.0% | BE45: 3,196件 | BF45: 100.0%
AF46: =IF(AF$16<>"",AF$16,"") -> 満足度スコア | AG46: =IF(AG45>0,SUMPRODUCT($AA33:$AA44,AG33:AG44)/AG45,"-") -> 4.23 | AI46: =IF(AI45>0,SUMPRODUCT($AA33:$AA44,AI33:AI44)/AI45,"-") -> 4.17 | AK46: =IF(AK45>0,SUMPRODUCT($AA33:$AA44,AK33:AK44)/AK45,"-") -> 4.20 | AM46: =IF(AM45>0,SUMPRODUCT($AA33:$AA44,AM33:AM44)/AM45,"-") -> 4.13 | AO46: =IF(AO45>0,SUMPRODUCT($AA33:$AA44,AO33:AO44)/AO45,"-") -> 4.19 | AQ46: =IF(AQ45>0,SUMPRODUCT($AA33:$AA44,AQ33:AQ44)/AQ45,"-") -> 4.24 | AS46: =IF(AS45>0,SUMPRODUCT($AA33:$AA44,AS33:AS44)/AS45,"-") -> 4.28 | AU46: =IF(AU45>0,SUMPRODUCT($AA33:$AA44,AU33:AU44)/AU45,"-") -> 4.14 | AW46: =IF(AW45>0,SUMPRODUCT($AA33:$AA44,AW33:AW44)/AW45,"-") -> 4.24 | AY46: =IF(AY45>0,SUMPRODUCT($AA33:$AA44,AY33:AY44)/AY45,"-") -> 4.27 | BA46: =IF(BA45>0,SUMPRODUCT($AA33:$AA44,BA33:BA44)/BA45,"-") -> 4.17 | BC46: =IF(BC45>0,SUMPRODUCT($AA33:$AA44,BC33:BC44)/BC45,"-") -> 4.25 | BE46: =IF(BE45>0,SUMPRODUCT($AA33:$AA44,BE33:BE44)/BE45,"-") -> 4.21
AC47: 回答エリア | AD47: =【M】エリア!$L$5 -> 福井駅前 エリア
AA48: =IF($AE48<>"",VLOOKUP($AE48,【M】満足度!$A$1:$B$5,2,0),"") -> 5 | AC48: =AC47 -> 回答エリア | AD48: =AD47 -> 福井駅前 エリア | AE48: =IF(AE3<>"",AE3,"") -> とても満足 | AG48: =IF(OR(IFERROR(FIND($AD48,"施設コード"),0)>0,$AE48=""), "", COUNTIFS( INDEX(rawデータ範囲, , MATCH($AG$1,表頭範囲, 0)),AG$2, INDEX(rawデータ範囲, , MATCH($AE$1,表頭範囲, 0)),$AE48, INDEX(rawデータ範囲, , MATCH($AC48,表頭範囲, 0)),$AD48 ) ) -> 52件 | AH48: =IFERROR(AG48/AG$60,"") -> 31.7% | AI48: =IF(OR(IFERROR(FIND($AD48,"施設コード"),0)>0,$AE48=""), "", COUNTIFS( INDEX(rawデータ範囲, , MATCH($AG$1,表頭範囲, 0)),AI$2, INDEX(rawデータ範囲, , MATCH($AE$1,表頭範囲, 0)),$AE48, INDEX(rawデータ範囲, , MATCH($AC48,表頭範囲, 0)),$AD48 ) ) -> 45件 | AJ48: =IFERROR(AI48/AI$60,"") -> 28.5% | AK48: =IF(OR(IFERROR(FIND($AD48,"施設コード"),0)>0,$AE48=""), "", COUNTIFS( INDEX(rawデータ範囲, , MATCH($AG$1,表頭範囲, 0)),AK$2, INDEX(rawデータ範囲, , MATCH($AE$1,表頭範囲, 0)),$AE48, INDEX(rawデータ範囲, , MATCH($AC48,表頭範囲, 0)),$AD48 ) ) -> 44件 | AL48: =IFERROR(AK48/AK$60,"") -> 35.8% | AM48: =IF(OR(IFERROR(FIND($AD48,"施設コード"),0)>0,$AE48=""), "", COUNTIFS( INDEX(rawデータ範囲, , MATCH($AG$1,表頭範囲, 0)),AM$2, INDEX(rawデータ範囲, , MATCH($AE$1,表頭範囲, 0)),$AE48, INDEX(rawデータ範囲, , MATCH($AC48,表頭範囲, 0)),$AD48 ) ) -> 24件 | AN48: =IFERROR(AM48/AM$60,"") -> 32.0% | AO48: =IF(OR(IFERROR(FIND($AD48,"施設コード"),0)>0,$AE48=""), "", COUNTIFS( INDEX(rawデータ範囲, , MATCH($AG$1,表頭範囲, 0)),AO$2, INDEX(rawデータ範囲, , MATCH($AE$1,表頭範囲, 0)),$AE48, INDEX(rawデータ範囲, , MATCH($AC48,表頭範囲, 0)),$AD48 ) ) -> 40件 | AP48: =IFERROR(AO48/AO$60,"") -> 38.8% | AQ48: =IF(OR(IFERROR(FIND($AD48,"施設コード"),0)>0,$AE48=""), "", COUNTIFS( INDEX(rawデータ範囲, , MATCH($AG$1,表頭範囲, 0)),AQ$2, INDEX(rawデータ範囲, , MATCH($AE$1,表頭範囲, 0)),$AE48, INDEX(rawデータ範囲, , MATCH($AC48,表頭範囲, 0)),$AD48 ) ) -> 34件 | AR48: =IFERROR(AQ48/AQ$60,"") -> 30.9% | AS48: =IF(OR(IFERROR(FIND($AD48,"施設コード"),0)>0,$AE48=""), "", COUNTIFS( INDEX(rawデータ範囲, , MATCH($AG$1,表頭範囲, 0)),AS$2, INDEX(rawデータ範囲, , MATCH($AE$1,表頭範囲, 0)),$AE48, INDEX(rawデータ範囲, , MATCH($AC48,表頭範囲, 0)),$AD48 ) ) -> 41件 | AT48: =IFERROR(AS48/AS$60,"") -> 39.8% | AU48: =IF(OR(IFERROR(FIND($AD48,"施設コード"),0)>0,$AE48=""), "", COUNTIFS( INDEX(rawデータ範囲, , MATCH($AG$1,表頭範囲, 0)),AU$2, INDEX(rawデータ範囲, , MATCH($AE$1,表頭範囲, 0)),$AE48, INDEX(rawデータ範囲, , MATCH($AC48,表頭範囲, 0)),$AD48 ) ) -> 37件 | AV48: =IFERROR(AU48/AU$60,"") -> 28.9% | AW48: =IF(OR(IFERROR(FIND($AD48,"施設コード"),0)>0,$AE48=""), "", COUNTIFS( INDEX(rawデータ範囲, , MATCH($AG$1,表頭範囲, 0)),AW$2, INDEX(rawデータ範囲, , MATCH($AE$1,表頭範囲, 0)),$AE48, INDEX(rawデータ範囲, , MATCH($AC48,表頭範囲, 0)),$AD48 ) ) -> 35件 | AX48: =IFERROR(AW48/AW$60,"") -> 35.0% | AY48: =IF(OR(IFERROR(FIND($AD48,"施設コード"),0)>0,$AE48=""), "", COUNTIFS( INDEX(rawデータ範囲, , MATCH($AG$1,表頭範囲, 0)),AY$2, INDEX(rawデータ範囲, , MATCH($AE$1,表頭範囲, 0)),$AE48, INDEX(rawデータ範囲, , MATCH($AC48,表頭範囲, 0)),$AD48 ) ) -> 32件 | AZ48: =IFERROR(AY48/AY$60,"") -> 45.1% | BA48: =IF(OR(IFERROR(FIND($AD48,"施設コード"),0)>0,$AE48=""), "", COUNTIFS( INDEX(rawデータ範囲, , MATCH($AG$1,表頭範囲, 0)),BA$2, INDEX(rawデータ範囲, , MATCH($AE$1,表頭範囲, 0)),$AE48, INDEX(rawデータ範囲, , MATCH($AC48,表頭範囲, 0)),$AD48 ) ) -> 26件 | BB48: =IFERROR(BA48/BA$60,"") -> 38.2% | BC48: =IF(OR(IFERROR(FIND($AD48,"施設コード"),0)>0,$AE48=""), "", COUNTIFS( INDEX(rawデータ範囲, , MATCH($AG$1,表頭範囲, 0)),BC$2, INDEX(rawデータ範囲, , MATCH($AE$1,表頭範囲, 0)),$AE48, INDEX(rawデータ範囲, , MATCH($AC48,表頭範囲, 0)),$AD48 ) ) -> 45件 | BD48: =IFERROR(BC48/BC$60,"") -> 39.1% | BE48: =IFERROR(AG48+AI48+AK48+AM48+AO48+AQ48+AS48+AU48+AW48+AY48+BA48+BC48,"") -> 455件 | BF48: =IFERROR(BE48/BE$60,"") -> 34.5%
AA49: =IF($AE49<>"",VLOOKUP($AE49,【M】満足度!$A$1:$B$5,2,0),"") -> 4 | AC49: =AC48 -> 回答エリア | AD49: 福井駅前 エリア | AE49: 満足 | AG49: 96件 | AH49: 58.5% | AI49: 97件 | AJ49: 61.4% | AK49: 67件 | AL49: 54.5% | AM49: 37件 | AN49: 49.3% | AO49: 50件 | AP49: 48.5% | AQ49: 62件 | AR49: 56.4% | AS49: 53件 | AT49: 51.5% | AU49: 76件 | AV49: 59.4% | AW49: 53件 | AX49: 53.0% | AY49: 32件 | AZ49: 45.1% | BA49: 33件 | BB49: 48.5% | BC49: 60件 | BD49: 52.2% | BE49: =IFERROR(AG49+AI49+AK49+AM49+AO49+AQ49+AS49+AU49+AW49+AY49+BA49+BC49,"") -> 716件 | BF49: 54.3%
AA50: =IF($AE50<>"",VLOOKUP($AE50,【M】満足度!$A$1:$B$5,2,0),"") -> 3 | AC50: 回答エリア | AD50: 福井駅前 エリア | AE50: どちらでもない | AG50: 16件 | AH50: 9.8% | AI50: 15件 | AJ50: 9.5% | AK50: 11件 | AL50: 8.9% | AM50: 12件 | AN50: 16.0% | AO50: 10件 | AP50: 9.7% | AQ50: 12件 | AR50: 10.9% | AS50: 9件 | AT50: 8.7% | AU50: 12件 | AV50: 9.4% | AW50: 12件 | AX50: 12.0% | AY50: 6件 | AZ50: 8.5% | BA50: 6件 | BB50: 8.8% | BC50: 9件 | BD50: 7.8% | BE50: 130件 | BF50: 9.9%
AA51: =IF($AE51<>"",VLOOKUP($AE51,【M】満足度!$A$1:$B$5,2,0),"") -> 2 | AC51: 回答エリア | AD51: 福井駅前 エリア | AE51: 不満 | AG51: 0件 | AH51: 0.0% | AI51: 1件 | AJ51: 0.6% | AK51: 1件 | AL51: 0.8% | AM51: 1件 | AN51: 1.3% | AO51: 3件 | AP51: 2.9% | AQ51: 2件 | AR51: 1.8% | AS51: 0件 | AT51: 0.0% | AU51: 1件 | AV51: 0.8% | AW51: 0件 | AX51: 0.0% | AY51: 1件 | AZ51: 1.4% | BA51: 2件 | BB51: 2.9% | BC51: 1件 | BD51: 0.9% | BE51: 13件 | BF51: 1.0%
AA52: =IF($AE52<>"",VLOOKUP($AE52,【M】満足度!$A$1:$B$5,2,0),"") -> 1 | AC52: 回答エリア | AD52: 福井駅前 エリア | AE52: とても不満 | AG52: 0件 | AH52: 0.0% | AI52: 0件 | AJ52: 0.0% | AK52: 0件 | AL52: 0.0% | AM52: 1件 | AN52: 1.3% | AO52: 0件 | AP52: 0.0% | AQ52: 0件 | AR52: 0.0% | AS52: 0件 | AT52: 0.0% | AU52: 2件 | AV52: 1.6% | AW52: 0件 | AX52: 0.0% | AY52: 0件 | AZ52: 0.0% | BA52: 1件 | BB52: 1.5% | BC52: 0件 | BD52: 0.0% | BE52: 4件 | BF52: 0.3%
AA53: =IF($AE53<>"",VLOOKUP($AE53,【M】満足度!$A$1:$B$5,2,0),"") ->  | AC53: 回答エリア | AD53: 福井駅前 エリア
AA54: =IF($AE54<>"",VLOOKUP($AE54,【M】満足度!$A$1:$B$5,2,0),"") ->  | AC54: 回答エリア | AD54: 福井駅前 エリア
AA55: =IF($AE55<>"",VLOOKUP($AE55,【M】満足度!$A$1:$B$5,2,0),"") ->  | AC55: =AC54 -> 回答エリア | AD55: =AD54 -> 福井駅前 エリア
AA56: =IF($AE56<>"",VLOOKUP($AE56,【M】満足度!$A$1:$B$5,2,0),"") ->  | AC56: 回答エリア | AD56: 福井駅前 エリア
AA57: =IF($AE57<>"",VLOOKUP($AE57,【M】満足度!$A$1:$B$5,2,0),"") ->  | AC57: 回答エリア | AD57: 福井駅前 エリア
AA58: =IF($AE58<>"",VLOOKUP($AE58,【M】満足度!$A$1:$B$5,2,0),"") ->  | AC58: 回答エリア | AD58: 福井駅前 エリア | BE58: =IFERROR(AG58+AI58+AK58+AM58+AO58+AQ58+AS58+AU58+AW58+AY58+BA58+BC58,"") -> 
AA59: =IF($AE59<>"",VLOOKUP($AE59,【M】満足度!$A$1:$B$5,2,0),"") ->  | AC59: =AC57 -> 回答エリア | AD59: =AD57 -> 福井駅前 エリア | AE59: =IF(AE14<>"",AE14,"") ->  | AH59: =IFERROR(AG59/AG$60,"") ->  | AJ59: =IFERROR(AI59/AI$60,"") ->  | AL59: =IFERROR(AK59/AK$60,"") ->  | AN59: =IFERROR(AM59/AM$60,"") ->  | AP59: =IFERROR(AO59/AO$60,"") ->  | AR59: =IFERROR(AQ59/AQ$60,"") ->  | AT59: =IFERROR(AS59/AS$60,"") ->  | AV59: =IFERROR(AU59/AU$60,"") ->  | AX59: =IFERROR(AW59/AW$60,"") ->  | AZ59: =IFERROR(AY59/AY$60,"") ->  | BB59: =IFERROR(BA59/BA$60,"") ->  | BD59: =IFERROR(BC59/BC$60,"") ->  | BF59: =IFERROR(BE59/BE$60,"") -> 
AF60: 合計 | AG60: =SUM(AG48:AG59) -> 164件 | AH60: 100.0% | AI60: 158件 | AJ60: 100.0% | AK60: 123件 | AL60: 100.0% | AM60: 75件 | AN60: 100.0% | AO60: 103件 | AP60: 100.0% | AQ60: 110件 | AR60: 100.0% | AS60: 103件 | AT60: 100.0% | AU60: 128件 | AV60: 100.0% | AW60: 100件 | AX60: 100.0% | AY60: 71件 | AZ60: 100.0% | BA60: 68件 | BB60: 100.0% | BC60: 115件 | BD60: 100.0% | BE60: 1,318件 | BF60: 100.0%
AF61: =IF(AF$16<>"",AF$16,"") -> 満足度スコア | AG61: =IF(AG60>0,SUMPRODUCT($AA48:$AA59,AG48:AG59)/AG60,"-") -> 4.22 | AI61: =IF(AI60>0,SUMPRODUCT($AA48:$AA59,AI48:AI59)/AI60,"-") -> 4.18 | AK61: =IF(AK60>0,SUMPRODUCT($AA48:$AA59,AK48:AK59)/AK60,"-") -> 4.25 | AM61: =IF(AM60>0,SUMPRODUCT($AA48:$AA59,AM48:AM59)/AM60,"-") -> 4.09 | AO61: =IF(AO60>0,SUMPRODUCT($AA48:$AA59,AO48:AO59)/AO60,"-") -> 4.23 | AQ61: =IF(AQ60>0,SUMPRODUCT($AA48:$AA59,AQ48:AQ59)/AQ60,"-") -> 4.16 | AS61: =IF(AS60>0,SUMPRODUCT($AA48:$AA59,AS48:AS59)/AS60,"-") -> 4.31 | AU61: =IF(AU60>0,SUMPRODUCT($AA48:$AA59,AU48:AU59)/AU60,"-") -> 4.13 | AW61: =IF(AW60>0,SUMPRODUCT($AA48:$AA59,AW48:AW59)/AW60,"-") -> 4.23 | AY61: =IF(AY60>0,SUMPRODUCT($AA48:$AA59,AY48:AY59)/AY60,"-") -> 4.34 | BA61: =IF(BA60>0,SUMPRODUCT($AA48:$AA59,BA48:BA59)/BA60,"-") -> 4.19 | BC61: =IF(BC60>0,SUMPRODUCT($AA48:$AA59,BC48:BC59)/BC60,"-") -> 4.30 | BE61: =IF(BE60>0,SUMPRODUCT($AA48:$AA59,BE48:BE59)/BE60,"-") -> 4.22

Sheet 満足度(施設全体)
A1: =施設コード!$A$2 -> 3月 | B1: =【M】エリア!$L$2 -> 福井県 | C1: =【M】エリア!$L$3 -> 福井市・永平寺町 | D1: =【M】エリア!$L$4 -> 福井市 | E1: =【M】エリア!$L$5 -> 福井駅前 エリア | G1: =AF16 -> 満足度スコア | H1: 4月 | I1: 5月 | J1: 6月 | K1: 7月 | L1: 8月 | M1: 9月 | N1: 10月 | O1: 11月 | P1: 12月 | Q1: 1月 | R1: 2月 | S1: 3月 | T1: 通年 | AA1: =AF16&"（推移）" -> 満足度スコア（推移） | AC1: 集計区分 | AE1: 満足度(施設全体) | AF1: 回答数 | AG1: 回答月 | AH1: 回答月 | AI1: 回答月 | AJ1: 回答月 | AK1: 回答月 | AL1: 回答月 | AM1: 回答月 | AN1: 回答月 | AO1: 回答月 | AP1: 回答月 | AQ1: 回答月 | AR1: 回答月 | AS1: 回答月 | AT1: 回答月 | AU1: 回答月 | AV1: 回答月 | AW1: 回答月 | AX1: 回答月 | AY1: 回答月 | AZ1: 回答月 | BA1: 回答月 | BB1: 回答月 | BC1: 回答月 | BD1: 回答月 | BE1: 回答月 | BF1: 回答月
A2: =IF(AE3<>"",AE3,"") -> とても満足 | B2: =IFERROR(OFFSET(INDEX($AG$3:$BF$14, MATCH($A2,$A$2:$A$13,0),MATCH($A$1,$AG$2:$BF$2,0)),0,1),"") -> 42.9% | C2: =IFERROR(OFFSET(INDEX($AG$18:$BF$29, MATCH($A2,$A$2:$A$13,0),MATCH($A$1,$AG$2:$BF$2,0)),0,1),"") -> 40.0% | D2: =IFERROR(OFFSET(INDEX($AG$33:$BF$44, MATCH($A2,$A$2:$A$13,0),MATCH($A$1,$AG$2:$BF$2,0)),0,1),"") -> 37.2% | E2: =IFERROR(OFFSET(INDEX($AG$48:$BF$59, MATCH($A2,$A$2:$A$13,0),MATCH($A$1,$AG$2:$BF$2,0)),0,1),"") -> 41.7% | G2: =【M】エリア!$L$2 -> 福井県 | H2: =AG16 -> 4.18 | I2: =AI16 -> 4.21 | J2: =AK16 -> 4.21 | K2: =AM16 -> 4.23 | L2: =AO16 -> 4.27 | M2: =AQ16 -> 4.27 | N2: =AS16 -> 4.26 | O2: =AU16 -> 4.20 | P2: =AW16 -> 4.29 | Q2: =AY16 -> 4.31 | R2: =BA16 -> 4.26 | S2: =BC16 -> 4.31 | T2: =BE16 -> 4.25 | AC2: 都道府県 | AD2: =【M】エリア!$L$2 -> 福井県 | AG2: 4月 | AI2: 5月 | AK2: 6月 | AM2: 7月 | AO2: 8月 | AQ2: 9月 | AS2: 10月 | AU2: 11月 | AW2: 12月 | AY2: 1月 | BA2: 2月 | BC2: 3月 | BE2: 通年
A3: =IF(AE4<>"",AE4,"") -> 満足 | B3: =IFERROR(OFFSET(INDEX($AG$3:$BF$14, MATCH($A3,$A$2:$A$13,0),MATCH($A$1,$AG$2:$BF$2,0)),0,1),"") -> 46.1% | C3: =IFERROR(OFFSET(INDEX($AG$18:$BF$29, MATCH($A3,$A$2:$A$13,0),MATCH($A$1,$AG$2:$BF$2,0)),0,1),"") -> 49.2% | D3: =IFERROR(OFFSET(INDEX($AG$33:$BF$44, MATCH($A3,$A$2:$A$13,0),MATCH($A$1,$AG$2:$BF$2,0)),0,1),"") -> 50.7% | E3: =IFERROR(OFFSET(INDEX($AG$48:$BF$59, MATCH($A3,$A$2:$A$13,0),MATCH($A$1,$AG$2:$BF$2,0)),0,1),"") -> 47.8% | G3: =【M】エリア!$L$3 -> 福井市・永平寺町 | H3: =AG31 -> 4.23 | I3: =AI31 -> 4.27 | J3: =AK31 -> 4.30 | K3: =AM31 -> 4.26 | L3: =AO31 -> 4.29 | M3: =AQ31 -> 4.30 | N3: =AS31 -> 4.37 | O3: =AU31 -> 4.21 | P3: =AW31 -> 4.33 | Q3: =AY31 -> 4.31 | R3: =BA31 -> 4.25 | S3: =BC31 -> 4.28 | T3: =BE31 -> 4.28 | AA3: =IF($AE3<>"",VLOOKUP($AE3,【M】満足度!$A$1:$B$5,2,0),"") -> 5 | AC3: =AC2 -> 都道府県 | AD3: =AD2 -> 福井県 | AE3: とても満足 | AG3: =IF(OR(IFERROR(FIND($AD3,"施設コード"),0)>0,$AE3=""), "", COUNTIFS( INDEX(rawデータ範囲, , MATCH($AG$1,表頭範囲, 0)),AG$2, INDEX(rawデータ範囲, , MATCH($AE$1,表頭範囲, 0)),$AE3 ) ) -> 1105件 | AH3: =IFERROR(AG3/AG$15,"") -> 34.1% | AI3: =IF(OR(IFERROR(FIND($AD3,"施設コード"),0)>0,$AE3=""), "", COUNTIFS( INDEX(rawデータ範囲, , MATCH($AG$1,表頭範囲, 0)),AI$2, INDEX(rawデータ範囲, , MATCH($AE$1,表頭範囲, 0)),$AE3 ) ) -> 1022件 | AJ3: =IFERROR(AI3/AI$15,"") -> 34.8% | AK3: =IF(OR(IFERROR(FIND($AD3,"施設コード"),0)>0,$AE3=""), "", COUNTIFS( INDEX(rawデータ範囲, , MATCH($AG$1,表頭範囲, 0)),AK$2, INDEX(rawデータ範囲, , MATCH($AE$1,表頭範囲, 0)),$AE3 ) ) -> 807件 | AL3: =IFERROR(AK3/AK$15,"") -> 34.6% | AM3: =IF(OR(IFERROR(FIND($AD3,"施設コード"),0)>0,$AE3=""), "", COUNTIFS( INDEX(rawデータ範囲, , MATCH($AG$1,表頭範囲, 0)),AM$2, INDEX(rawデータ範囲, , MATCH($AE$1,表頭範囲, 0)),$AE3 ) ) -> 684件 | AN3: =IFERROR(AM3/AM$15,"") -> 36.0% | AO3: =IF(OR(IFERROR(FIND($AD3,"施設コード"),0)>0,$AE3=""), "", COUNTIFS( INDEX(rawデータ範囲, , MATCH($AG$1,表頭範囲, 0)),AO$2, INDEX(rawデータ範囲, , MATCH($AE$1,表頭範囲, 0)),$AE3 ) ) -> 1025件 | AP3: =IFERROR(AO3/AO$15,"") -> 39.3% | AQ3: =IF(OR(IFERROR(FIND($AD3,"施設コード"),0)>0,$AE3=""), "", COUNTIFS( INDEX(rawデータ範囲, , MATCH($AG$1,表頭範囲, 0)),AQ$2, INDEX(rawデータ範囲, , MATCH($AE$1,表頭範囲, 0)),$AE3 ) ) -> 1050件 | AR3: =IFERROR(AQ3/AQ$15,"") -> 39.4% | AS3: =IF(OR(IFERROR(FIND($AD3,"施設コード"),0)>0,$AE3=""), "", COUNTIFS( INDEX(rawデータ範囲, , MATCH($AG$1,表頭範囲, 0)),AS$2, INDEX(rawデータ範囲, , MATCH($AE$1,表頭範囲, 0)),$AE3 ) ) -> 829件 | AT3: =IFERROR(AS3/AS$15,"") -> 37.3% | AU3: =IF(OR(IFERROR(FIND($AD3,"施設コード"),0)>0,$AE3=""), "", COUNTIFS( INDEX(rawデータ範囲, , MATCH($AG$1,表頭範囲, 0)),AU$2, INDEX(rawデータ範囲, , MATCH($AE$1,表頭範囲, 0)),$AE3 ) ) -> 845件 | AV3: =IFERROR(AU3/AU$15,"") -> 33.2% | AW3: =IF(OR(IFERROR(FIND($AD3,"施設コード"),0)>0,$AE3=""), "", COUNTIFS( INDEX(rawデータ範囲, , MATCH($AG$1,表頭範囲, 0)),AW$2, INDEX(rawデータ範囲, , MATCH($AE$1,表頭範囲, 0)),$AE3 ) ) -> 792件 | AX3: =IFERROR(AW3/AW$15,"") -> 40.7% | AY3: =IF(OR(IFERROR(FIND($AD3,"施設コード"),0)>0,$AE3=""), "", COUNTIFS( INDEX(rawデータ範囲, , MATCH($AG$1,表頭範囲, 0)),AY$2, INDEX(rawデータ範囲, , MATCH($AE$1,表頭範囲, 0)),$AE3 ) ) -> 604件 | AZ3: =IFERROR(AY3/AY$15,"") -> 41.2% | BA3: =IF(OR(IFERROR(FIND($AD3,"施設コード"),0)>0,$AE3=""), "", COUNTIFS( INDEX(rawデータ範囲, , MATCH($AG$1,表頭範囲, 0)),BA$2, INDEX(rawデータ範囲, , MATCH($AE$1,表頭範囲, 0)),$AE3 ) ) -> 525件 | BB3: =IFERROR(BA3/BA$15,"") -> 38.2% | BC3: =IF(OR(IFERROR(FIND($AD3,"施設コード"),0)>0,$AE3=""), "", COUNTIFS( INDEX(rawデータ範囲, , MATCH($AG$1,表頭範囲, 0)),BC$2, INDEX(rawデータ範囲, , MATCH($AE$1,表頭範囲, 0)),$AE3 ) ) -> 1170件 | BD3: =IFERROR(BC3/BC$15,"") -> 42.9% | BE3: =IFERROR(AG3+AI3+AK3+AM3+AO3+AQ3+AS3+AU3+AW3+AY3+BA3+BC3,"") -> 10458件 | BF3: =IFERROR(BE3/BE$15,"") -> 37.4%
A4: どちらでもない | B4: 9.9% | C4: 9.9% | D4: 11.5% | E4: 8.7% | G4: =【M】エリア!$L$4 -> 福井市 | H4: =AG46 -> 4.24 | I4: =AI46 -> 4.17 | J4: =AK46 -> 4.21 | K4: =AM46 -> 4.18 | L4: =AO46 -> 4.22 | M4: =AQ46 -> 4.25 | N4: =AS46 -> 4.35 | O4: =AU46 -> 4.16 | P4: =AW46 -> 4.29 | Q4: =AY46 -> 4.27 | R4: =BA46 -> 4.19 | S4: =BC46 -> 4.24 | T4: =BE46 -> 4.23 | AA4: =IF($AE4<>"",VLOOKUP($AE4,【M】満足度!$A$1:$B$5,2,0),"") -> 4 | AC4: =AC3 -> 都道府県 | AD4: 福井県 | AE4: 満足 | AG4: 1674件 | AH4: 51.7% | AI4: 1560件 | AJ4: 53.1% | AK4: 1237件 | AL4: 53.1% | AM4: 1006件 | AN4: 52.9% | AO4: 1316件 | AP4: 50.4% | AQ4: 1320件 | AR4: 49.5% | AS4: 1167件 | AT4: 52.6% | AU4: 1413件 | AV4: 55.5% | AW4: 967件 | AX4: 49.6% | AY4: 737件 | AZ4: 50.3% | BA4: 703件 | BB4: 51.2% | BC4: 1256件 | BD4: 46.1% | BE4: =IFERROR(AG4+AI4+AK4+AM4+AO4+AQ4+AS4+AU4+AW4+AY4+BA4+BC4,"") -> 14356件 | BF4: 51.3%
A5: 不満 | B5: 0.9% | C5: 0.9% | D5: 0.7% | E5: 1.7% | G5: =【M】エリア!$L$5 -> 福井駅前 エリア | H5: =AG61 -> 4.27 | I5: =AI61 -> 4.22 | J5: =AK61 -> 4.22 | K5: =AM61 -> 4.09 | L5: =AO61 -> 4.20 | M5: =AQ61 -> 4.15 | N5: =AS61 -> 4.38 | O5: =AU61 -> 4.18 | P5: =AW61 -> 4.30 | Q5: =AY61 -> 4.32 | R5: =BA61 -> 4.18 | S5: =BC61 -> 4.30 | T5: =BE61 -> 4.24 | AA5: =IF($AE5<>"",VLOOKUP($AE5,【M】満足度!$A$1:$B$5,2,0),"") -> 3 | AC5: 都道府県 | AD5: 福井県 | AE5: どちらでもない | AG5: 410件 | AH5: 12.7% | AI5: 322件 | AJ5: 11.0% | AK5: 257件 | AL5: 11.0% | AM5: 187件 | AN5: 9.8% | AO5: 236件 | AP5: 9.0% | AQ5: 259件 | AR5: 9.7% | AS5: 202件 | AT5: 9.1% | AU5: 260件 | AV5: 10.2% | AW5: 162件 | AX5: 8.3% | AY5: 107件 | AZ5: 7.3% | BA5: 127件 | BB5: 9.2% | BC5: 270件 | BD5: 9.9% | BE5: 2799件 | BF5: 10.0%
A6: とても不満 | B6: 0.2% | C6: 0.0% | D6: 0.0% | E6: 0.0% | AA6: =IF($AE6<>"",VLOOKUP($AE6,【M】満足度!$A$1:$B$5,2,0),"") -> 2 | AC6: 都道府県 | AD6: 福井県 | AE6: 不満 | AG6: 41件 | AH6: 1.3% | AI6: 28件 | AJ6: 1.0% | AK6: 26件 | AL6: 1.1% | AM6: 17件 | AN6: 0.9% | AO6: 23件 | AP6: 0.9% | AQ6: 28件 | AR6: 1.1% | AS6: 16件 | AT6: 0.7% | AU6: 25件 | AV6: 1.0% | AW6: 16件 | AX6: 0.8% | AY6: 10件 | AZ6: 0.7% | BA6: 17件 | BB6: 1.2% | BC6: 24件 | BD6: 0.9% | BE6: 271件 | BF6: 1.0%
AA7: =IF($AE7<>"",VLOOKUP($AE7,【M】満足度!$A$1:$B$5,2,0),"") -> 1 | AC7: 都道府県 | AD7: 福井県 | AE7: とても不満 | AG7: 11件 | AH7: 0.3% | AI7: 7件 | AJ7: 0.2% | AK7: 3件 | AL7: 0.1% | AM7: 6件 | AN7: 0.3% | AO7: 10件 | AP7: 0.4% | AQ7: 8件 | AR7: 0.3% | AS7: 6件 | AT7: 0.3% | AU7: 5件 | AV7: 0.2% | AW7: 11件 | AX7: 0.6% | AY7: 7件 | AZ7: 0.5% | BA7: 1件 | BB7: 0.1% | BC7: 5件 | BD7: 0.2% | BE7: 80件 | BF7: 0.3%
AA8: =IF($AE8<>"",VLOOKUP($AE8,【M】満足度!$A$1:$B$5,2,0),"") ->  | AC8: 都道府県 | AD8: 福井県
AA9: =IF($AE9<>"",VLOOKUP($AE9,【M】満足度!$A$1:$B$5,2,0),"") ->  | AC9: 都道府県 | AD9: 福井県
AA10: =IF($AE10<>"",VLOOKUP($AE10,【M】満足度!$A$1:$B$5,2,0),"") ->  | AC10: =AC9 -> 都道府県 | AD10: =AD9 -> 福井県
AA11: =IF($AE11<>"",VLOOKUP($AE11,【M】満足度!$A$1:$B$5,2,0),"") ->  | AC11: 都道府県 | AD11: 福井県
AA12: =IF($AE12<>"",VLOOKUP($AE12,【M】満足度!$A$1:$B$5,2,0),"") ->  | AC12: 都道府県 | AD12: 福井県
AA13: =IF($AE13<>"",VLOOKUP($AE13,【M】満足度!$A$1:$B$5,2,0),"") ->  | AC13: 都道府県 | AD13: 福井県
AA14: =IF($AE14<>"",VLOOKUP($AE14,【M】満足度!$A$1:$B$5,2,0),"") ->  | AC14: =AC12 -> 都道府県 | AD14: =AD12 -> 福井県 | AH14: =IFERROR(AG14/AG$15,"") ->  | AJ14: =IFERROR(AI14/AI$15,"") -> 
AF15: 合計 | AG15: =SUM(AG3:AG14) -> 3,241件 | AH15: 100.0% | AI15: 2,939件 | AJ15: 100.0% | AK15: 2,330件 | AL15: 100.0% | AM15: 1,900件 | AN15: 100.0% | AO15: 2,610件 | AP15: 100.0% | AQ15: 2,665件 | AR15: 100.0% | AS15: 2,220件 | AT15: 100.0% | AU15: 2,548件 | AV15: 100.0% | AW15: 1,948件 | AX15: 100.0% | AY15: 1,465件 | AZ15: 100.0% | BA15: 1,373件 | BB15: 100.0% | BC15: 2,725件 | BD15: 100.0% | BE15: =AG15+AI15+AK15+AM15+AO15+AQ15+AS15+AU15+AW15+AY15+BA15+BC15 -> 27,964件 | BF15: =SUM(BF3:BF14) -> 100.0%
AF16: 満足度スコア | AG16: =IF(AG15>0,SUMPRODUCT($AA3:$AA14,AG3:AG14)/AG15,"-") -> 4.18 | AI16: =IF(AI15>0,SUMPRODUCT($AA3:$AA14,AI3:AI14)/AI15,"-") -> 4.21 | AK16: =IF(AK15>0,SUMPRODUCT($AA3:$AA14,AK3:AK14)/AK15,"-") -> 4.21 | AM16: =IF(AM15>0,SUMPRODUCT($AA3:$AA14,AM3:AM14)/AM15,"-") -> 4.23 | AO16: =IF(AO15>0,SUMPRODUCT($AA3:$AA14,AO3:AO14)/AO15,"-") -> 4.27 | AQ16: =IF(AQ15>0,SUMPRODUCT($AA3:$AA14,AQ3:AQ14)/AQ15,"-") -> 4.27 | AS16: =IF(AS15>0,SUMPRODUCT($AA3:$AA14,AS3:AS14)/AS15,"-") -> 4.26 | AU16: =IF(AU15>0,SUMPRODUCT($AA3:$AA14,AU3:AU14)/AU15,"-") -> 4.20 | AW16: =IF(AW15>0,SUMPRODUCT($AA3:$AA14,AW3:AW14)/AW15,"-") -> 4.29 | AY16: =IF(AY15>0,SUMPRODUCT($AA3:$AA14,AY3:AY14)/AY15,"-") -> 4.31 | BA16: =IF(BA15>0,SUMPRODUCT($AA3:$AA14,BA3:BA14)/BA15,"-") -> 4.26 | BC16: =IF(BC15>0,SUMPRODUCT($AA3:$AA14,BC3:BC14)/BC15,"-") -> 4.31 | BE16: =IF(BE15>0,SUMPRODUCT($AA3:$AA14,BE3:BE14)/BE15,"-") -> 4.25
AC17: =【M】エリア!$J$2 -> 6分類 | AD17: =【M】エリア!$L$3 -> 福井市・永平寺町
AA18: =IF($AE18<>"",VLOOKUP($AE18,【M】満足度!$A$1:$B$5,2,0),"") -> 5 | AC18: =AC17 -> 6分類 | AD18: =AD17 -> 福井市・永平寺町 | AE18: =IF(AE3<>"",AE3,"") -> とても満足 | AG18: =IF(OR(IFERROR(FIND($AD18,"施設コード"),0)>0,$AE18=""), "", COUNTIFS( INDEX(rawデータ範囲, , MATCH($AG$1,表頭範囲, 0)),AG$2, INDEX(rawデータ範囲, , MATCH($AE$1,表頭範囲, 0)),$AE18, INDEX(rawデータ範囲, , MATCH($AC18,表頭範囲, 0)),$AD18 ) ) -> 170件 | AH18: =IFERROR(AG18/AG$30,"") -> 34.2% | AI18: =IF(OR(IFERROR(FIND($AD18,"施設コード"),0)>0,$AE18=""), "", COUNTIFS( INDEX(rawデータ範囲, , MATCH($AG$1,表頭範囲, 0)),AI$2, INDEX(rawデータ範囲, , MATCH($AE$1,表頭範囲, 0)),$AE18, INDEX(rawデータ範囲, , MATCH($AC18,表頭範囲, 0)),$AD18 ) ) -> 222件 | AJ18: =IFERROR(AI18/AI$30,"") -> 38.6% | AK18: =IF(OR(IFERROR(FIND($AD18,"施設コード"),0)>0,$AE18=""), "", COUNTIFS( INDEX(rawデータ範囲, , MATCH($AG$1,表頭範囲, 0)),AK$2, INDEX(rawデータ範囲, , MATCH($AE$1,表頭範囲, 0)),$AE18, INDEX(rawデータ範囲, , MATCH($AC18,表頭範囲, 0)),$AD18 ) ) -> 207件 | AL18: =IFERROR(AK18/AK$30,"") -> 40.3% | AM18: =IF(OR(IFERROR(FIND($AD18,"施設コード"),0)>0,$AE18=""), "", COUNTIFS( INDEX(rawデータ範囲, , MATCH($AG$1,表頭範囲, 0)),AM$2, INDEX(rawデータ範囲, , MATCH($AE$1,表頭範囲, 0)),$AE18, INDEX(rawデータ範囲, , MATCH($AC18,表頭範囲, 0)),$AD18 ) ) -> 145件 | AN18: =IFERROR(AM18/AM$30,"") -> 37.9% | AO18: =IF(OR(IFERROR(FIND($AD18,"施設コード"),0)>0,$AE18=""), "", COUNTIFS( INDEX(rawデータ範囲, , MATCH($AG$1,表頭範囲, 0)),AO$2, INDEX(rawデータ範囲, , MATCH($AE$1,表頭範囲, 0)),$AE18, INDEX(rawデータ範囲, , MATCH($AC18,表頭範囲, 0)),$AD18 ) ) -> 214件 | AP18: =IFERROR(AO18/AO$30,"") -> 39.1% | AQ18: =IF(OR(IFERROR(FIND($AD18,"施設コード"),0)>0,$AE18=""), "", COUNTIFS( INDEX(rawデータ範囲, , MATCH($AG$1,表頭範囲, 0)),AQ$2, INDEX(rawデータ範囲, , MATCH($AE$1,表頭範囲, 0)),$AE18, INDEX(rawデータ範囲, , MATCH($AC18,表頭範囲, 0)),$AD18 ) ) -> 244件 | AR18: =IFERROR(AQ18/AQ$30,"") -> 42.1% | AS18: =IF(OR(IFERROR(FIND($AD18,"施設コード"),0)>0,$AE18=""), "", COUNTIFS( INDEX(rawデータ範囲, , MATCH($AG$1,表頭範囲, 0)),AS$2, INDEX(rawデータ範囲, , MATCH($AE$1,表頭範囲, 0)),$AE18, INDEX(rawデータ範囲, , MATCH($AC18,表頭範囲, 0)),$AD18 ) ) -> 191件 | AT18: =IFERROR(AS18/AS$30,"") -> 42.7% | AU18: =IF(OR(IFERROR(FIND($AD18,"施設コード"),0)>0,$AE18=""), "", COUNTIFS( INDEX(rawデータ範囲, , MATCH($AG$1,表頭範囲, 0)),AU$2, INDEX(rawデータ範囲, , MATCH($AE$1,表頭範囲, 0)),$AE18, INDEX(rawデータ範囲, , MATCH($AC18,表頭範囲, 0)),$AD18 ) ) -> 198件 | AV18: =IFERROR(AU18/AU$30,"") -> 32.5% | AW18: =IF(OR(IFERROR(FIND($AD18,"施設コード"),0)>0,$AE18=""), "", COUNTIFS( INDEX(rawデータ範囲, , MATCH($AG$1,表頭範囲, 0)),AW$2, INDEX(rawデータ範囲, , MATCH($AE$1,表頭範囲, 0)),$AE18, INDEX(rawデータ範囲, , MATCH($AC18,表頭範囲, 0)),$AD18 ) ) -> 150件 | AX18: =IFERROR(AW18/AW$30,"") -> 40.8% | AY18: =IF(OR(IFERROR(FIND($AD18,"施設コード"),0)>0,$AE18=""), "", COUNTIFS( INDEX(rawデータ範囲, , MATCH($AG$1,表頭範囲, 0)),AY$2, INDEX(rawデータ範囲, , MATCH($AE$1,表頭範囲, 0)),$AE18, INDEX(rawデータ範囲, , MATCH($AC18,表頭範囲, 0)),$AD18 ) ) -> 117件 | AZ18: =IFERROR(AY18/AY$30,"") -> 38.9% | BA18: =IF(OR(IFERROR(FIND($AD18,"施設コード"),0)>0,$AE18=""), "", COUNTIFS( INDEX(rawデータ範囲, , MATCH($AG$1,表頭範囲, 0)),BA$2, INDEX(rawデータ範囲, , MATCH($AE$1,表頭範囲, 0)),$AE18, INDEX(rawデータ範囲, , MATCH($AC18,表頭範囲, 0)),$AD18 ) ) -> 97件 | BB18: =IFERROR(BA18/BA$30,"") -> 36.9% | BC18: =IF(OR(IFERROR(FIND($AD18,"施設コード"),0)>0,$AE18=""), "", COUNTIFS( INDEX(rawデータ範囲, , MATCH($AG$1,表頭範囲, 0)),BC$2, INDEX(rawデータ範囲, , MATCH($AE$1,表頭範囲, 0)),$AE18, INDEX(rawデータ範囲, , MATCH($AC18,表頭範囲, 0)),$AD18 ) ) -> 214件 | BD18: =IFERROR(BC18/BC$30,"") -> 40.0% | BE18: =IFERROR(AG18+AI18+AK18+AM18+AO18+AQ18+AS18+AU18+AW18+AY18+BA18+BC18,"") -> 2169件 | BF18: =IFERROR(BE18/BE$30,"") -> 38.6%
AA19: =IF($AE19<>"",VLOOKUP($AE19,【M】満足度!$A$1:$B$5,2,0),"") -> 4 | AC19: =AC18 -> 6分類 | AD19: 福井市・永平寺町 | AE19: 満足 | AG19: 277件 | AH19: 55.7% | AI19: 288件 | AJ19: 50.1% | AK19: 259件 | AL19: 50.4% | AM19: 201件 | AN19: 52.5% | AO19: 286件 | AP19: 52.3% | AQ19: 271件 | AR19: 46.7% | AS19: 231件 | AT19: 51.7% | AU19: 353件 | AV19: 58.0% | AW19: 190件 | AX19: 51.6% | AY19: 160件 | AZ19: 53.2% | BA19: 138件 | BB19: 52.5% | BC19: 263件 | BD19: 49.2% | BE19: =IFERROR(AG19+AI19+AK19+AM19+AO19+AQ19+AS19+AU19+AW19+AY19+BA19+BC19,"") -> 2917件 | BF19: 51.9%
AA20: =IF($AE20<>"",VLOOKUP($AE20,【M】満足度!$A$1:$B$5,2,0),"") -> 3 | AC20: 6分類 | AD20: 福井市・永平寺町 | AE20: どちらでもない | AG20: 45件 | AH20: 9.1% | AI20: 61件 | AJ20: 10.6% | AK20: 43件 | AL20: 8.4% | AM20: 31件 | AN20: 8.1% | AO20: 42件 | AP20: 7.7% | AQ20: 58件 | AR20: 10.0% | AS20: 23件 | AT20: 5.1% | AU20: 50件 | AV20: 8.2% | AW20: 27件 | AX20: 7.3% | AY20: 23件 | AZ20: 7.6% | BA20: 25件 | BB20: 9.5% | BC20: 53件 | BD20: 9.9% | BE20: 481件 | BF20: 8.6%
AA21: =IF($AE21<>"",VLOOKUP($AE21,【M】満足度!$A$1:$B$5,2,0),"") -> 2 | AC21: 6分類 | AD21: 福井市・永平寺町 | AE21: 不満 | AG21: 5件 | AH21: 1.0% | AI21: 4件 | AJ21: 0.7% | AK21: 5件 | AL21: 1.0% | AM21: 4件 | AN21: 1.0% | AO21: 4件 | AP21: 0.7% | AQ21: 7件 | AR21: 1.2% | AS21: 2件 | AT21: 0.4% | AU21: 5件 | AV21: 0.8% | AW21: 1件 | AX21: 0.3% | AY21: 1件 | AZ21: 0.3% | BA21: 3件 | BB21: 1.1% | BC21: 5件 | BD21: 0.9% | BE21: 46件 | BF21: 0.8%
AA22: =IF($AE22<>"",VLOOKUP($AE22,【M】満足度!$A$1:$B$5,2,0),"") -> 1 | AC22: 6分類 | AD22: 福井市・永平寺町 | AE22: とても不満 | AG22: 0件 | AH22: 0.0% | AI22: 0件 | AJ22: 0.0% | AK22: 0件 | AL22: 0.0% | AM22: 2件 | AN22: 0.5% | AO22: 1件 | AP22: 0.2% | AQ22: 0件 | AR22: 0.0% | AS22: 0件 | AT22: 0.0% | AU22: 3件 | AV22: 0.5% | AW22: 0件 | AX22: 0.0% | AY22: 0件 | AZ22: 0.0% | BA22: 0件 | BB22: 0.0% | BC22: 0件 | BD22: 0.0% | BE22: 6件 | BF22: 0.1%
AA23: =IF($AE23<>"",VLOOKUP($AE23,【M】満足度!$A$1:$B$5,2,0),"") ->  | AC23: 6分類 | AD23: 福井市・永平寺町
AA24: =IF($AE24<>"",VLOOKUP($AE24,【M】満足度!$A$1:$B$5,2,0),"") ->  | AC24: 6分類 | AD24: 福井市・永平寺町
AA25: =IF($AE25<>"",VLOOKUP($AE25,【M】満足度!$A$1:$B$5,2,0),"") ->  | AC25: =AC24 -> 6分類 | AD25: =AD24 -> 福井市・永平寺町
AA26: =IF($AE26<>"",VLOOKUP($AE26,【M】満足度!$A$1:$B$5,2,0),"") ->  | AC26: 6分類 | AD26: 福井市・永平寺町
AA27: =IF($AE27<>"",VLOOKUP($AE27,【M】満足度!$A$1:$B$5,2,0),"") ->  | AC27: 6分類 | AD27: 福井市・永平寺町
AA28: =IF($AE28<>"",VLOOKUP($AE28,【M】満足度!$A$1:$B$5,2,0),"") ->  | AC28: 6分類 | AD28: 福井市・永平寺町
AA29: =IF($AE29<>"",VLOOKUP($AE29,【M】満足度!$A$1:$B$5,2,0),"") ->  | AC29: =AC27 -> 6分類 | AD29: =AD27 -> 福井市・永平寺町 | AE29: =IF(AE14<>"",AE14,"") ->  | AH29: =IFERROR(AG29/AG$30,"") ->  | AJ29: =IFERROR(AI29/AI$30,"") -> 
AF30: 合計 | AG30: =SUM(AG18:AG29) -> 497件 | AH30: 100.0% | AI30: 575件 | AJ30: 100.0% | AK30: 514件 | AL30: 100.0% | AM30: 383件 | AN30: 100.0% | AO30: 547件 | AP30: 100.0% | AQ30: 580件 | AR30: 100.0% | AS30: 447件 | AT30: 100.0% | AU30: 609件 | AV30: 100.0% | AW30: 368件 | AX30: 100.0% | AY30: 301件 | AZ30: 100.0% | BA30: 263件 | BB30: 100.0% | BC30: 535件 | BD30: 100.0% | BE30: 5,619件 | BF30: 100.0%
AF31: =IF(AF$16<>"",AF$16,"") -> 満足度スコア | AG31: =IF(AG30>0,SUMPRODUCT($AA18:$AA29,AG18:AG29)/AG30,"-") -> 4.23 | AI31: =IF(AI30>0,SUMPRODUCT($AA18:$AA29,AI18:AI29)/AI30,"-") -> 4.27 | AK31: =IF(AK30>0,SUMPRODUCT($AA18:$AA29,AK18:AK29)/AK30,"-") -> 4.30 | AM31: =IF(AM30>0,SUMPRODUCT($AA18:$AA29,AM18:AM29)/AM30,"-") -> 4.26 | AO31: =IF(AO30>0,SUMPRODUCT($AA18:$AA29,AO18:AO29)/AO30,"-") -> 4.29 | AQ31: =IF(AQ30>0,SUMPRODUCT($AA18:$AA29,AQ18:AQ29)/AQ30,"-") -> 4.30 | AS31: =IF(AS30>0,SUMPRODUCT($AA18:$AA29,AS18:AS29)/AS30,"-") -> 4.37 | AU31: =IF(AU30>0,SUMPRODUCT($AA18:$AA29,AU18:AU29)/AU30,"-") -> 4.21 | AW31: =IF(AW30>0,SUMPRODUCT($AA18:$AA29,AW18:AW29)/AW30,"-") -> 4.33 | AY31: =IF(AY30>0,SUMPRODUCT($AA18:$AA29,AY18:AY29)/AY30,"-") -> 4.31 | BA31: =IF(BA30>0,SUMPRODUCT($AA18:$AA29,BA18:BA29)/BA30,"-") -> 4.25 | BC31: =IF(BC30>0,SUMPRODUCT($AA18:$AA29,BC18:BC29)/BC30,"-") -> 4.28 | BE31: =IF(BE30>0,SUMPRODUCT($AA18:$AA29,BE18:BE29)/BE30,"-") -> 4.28
AC32: 市町村 | AD32: =【M】エリア!$L$4 -> 福井市
AA33: =IF($AE33<>"",VLOOKUP($AE33,【M】満足度!$A$1:$B$5,2,0),"") -> 5 | AC33: =AC32 -> 市町村 | AD33: =AD32 -> 福井市 | AE33: =IF(AE3<>"",AE3,"") -> とても満足 | AG33: =IF(OR(IFERROR(FIND($AD33,"施設コード"),0)>0,$AE33=""), "", COUNTIFS( INDEX(rawデータ範囲, , MATCH($AG$1,表頭範囲, 0)),AG$2, INDEX(rawデータ範囲, , MATCH($AE$1,表頭範囲, 0)),$AE33, INDEX(rawデータ範囲, , MATCH($AC33,表頭範囲, 0)),$AD33 ) ) -> 132件 | AH33: =IFERROR(AG33/AG$45,"") -> 34.4% | AI33: =IF(OR(IFERROR(FIND($AD33,"施設コード"),0)>0,$AE33=""), "", COUNTIFS( INDEX(rawデータ範囲, , MATCH($AG$1,表頭範囲, 0)),AI$2, INDEX(rawデータ範囲, , MATCH($AE$1,表頭範囲, 0)),$AE33, INDEX(rawデータ範囲, , MATCH($AC33,表頭範囲, 0)),$AD33 ) ) -> 105件 | AJ33: =IFERROR(AI33/AI$45,"") -> 32.6% | AK33: =IF(OR(IFERROR(FIND($AD33,"施設コード"),0)>0,$AE33=""), "", COUNTIFS( INDEX(rawデータ範囲, , MATCH($AG$1,表頭範囲, 0)),AK$2, INDEX(rawデータ範囲, , MATCH($AE$1,表頭範囲, 0)),$AE33, INDEX(rawデータ範囲, , MATCH($AC33,表頭範囲, 0)),$AD33 ) ) -> 96件 | AL33: =IFERROR(AK33/AK$45,"") -> 33.4% | AM33: =IF(OR(IFERROR(FIND($AD33,"施設コード"),0)>0,$AE33=""), "", COUNTIFS( INDEX(rawデータ範囲, , MATCH($AG$1,表頭範囲, 0)),AM$2, INDEX(rawデータ範囲, , MATCH($AE$1,表頭範囲, 0)),$AE33, INDEX(rawデータ範囲, , MATCH($AC33,表頭範囲, 0)),$AD33 ) ) -> 70件 | AN33: =IFERROR(AM33/AM$45,"") -> 33.2% | AO33: =IF(OR(IFERROR(FIND($AD33,"施設コード"),0)>0,$AE33=""), "", COUNTIFS( INDEX(rawデータ範囲, , MATCH($AG$1,表頭範囲, 0)),AO$2, INDEX(rawデータ範囲, , MATCH($AE$1,表頭範囲, 0)),$AE33, INDEX(rawデータ範囲, , MATCH($AC33,表頭範囲, 0)),$AD33 ) ) -> 103件 | AP33: =IFERROR(AO33/AO$45,"") -> 36.1% | AQ33: =IF(OR(IFERROR(FIND($AD33,"施設コード"),0)>0,$AE33=""), "", COUNTIFS( INDEX(rawデータ範囲, , MATCH($AG$1,表頭範囲, 0)),AQ$2, INDEX(rawデータ範囲, , MATCH($AE$1,表頭範囲, 0)),$AE33, INDEX(rawデータ範囲, , MATCH($AC33,表頭範囲, 0)),$AD33 ) ) -> 127件 | AR33: =IFERROR(AQ33/AQ$45,"") -> 40.2% | AS33: =IF(OR(IFERROR(FIND($AD33,"施設コード"),0)>0,$AE33=""), "", COUNTIFS( INDEX(rawデータ範囲, , MATCH($AG$1,表頭範囲, 0)),AS$2, INDEX(rawデータ範囲, , MATCH($AE$1,表頭範囲, 0)),$AE33, INDEX(rawデータ範囲, , MATCH($AC33,表頭範囲, 0)),$AD33 ) ) -> 104件 | AT33: =IFERROR(AS33/AS$45,"") -> 41.9% | AU33: =IF(OR(IFERROR(FIND($AD33,"施設コード"),0)>0,$AE33=""), "", COUNTIFS( INDEX(rawデータ範囲, , MATCH($AG$1,表頭範囲, 0)),AU$2, INDEX(rawデータ範囲, , MATCH($AE$1,表頭範囲, 0)),$AE33, INDEX(rawデータ範囲, , MATCH($AC33,表頭範囲, 0)),$AD33 ) ) -> 90件 | AV33: =IFERROR(AU33/AU$45,"") -> 27.8% | AW33: =IF(OR(IFERROR(FIND($AD33,"施設コード"),0)>0,$AE33=""), "", COUNTIFS( INDEX(rawデータ範囲, , MATCH($AG$1,表頭範囲, 0)),AW$2, INDEX(rawデータ範囲, , MATCH($AE$1,表頭範囲, 0)),$AE33, INDEX(rawデータ範囲, , MATCH($AC33,表頭範囲, 0)),$AD33 ) ) -> 84件 | AX33: =IFERROR(AW33/AW$45,"") -> 38.4% | AY33: =IF(OR(IFERROR(FIND($AD33,"施設コード"),0)>0,$AE33=""), "", COUNTIFS( INDEX(rawデータ範囲, , MATCH($AG$1,表頭範囲, 0)),AY$2, INDEX(rawデータ範囲, , MATCH($AE$1,表頭範囲, 0)),$AE33, INDEX(rawデータ範囲, , MATCH($AC33,表頭範囲, 0)),$AD33 ) ) -> 59件 | AZ33: =IFERROR(AY33/AY$45,"") -> 36.6% | BA33: =IF(OR(IFERROR(FIND($AD33,"施設コード"),0)>0,$AE33=""), "", COUNTIFS( INDEX(rawデータ範囲, , MATCH($AG$1,表頭範囲, 0)),BA$2, INDEX(rawデータ範囲, , MATCH($AE$1,表頭範囲, 0)),$AE33, INDEX(rawデータ範囲, , MATCH($AC33,表頭範囲, 0)),$AD33 ) ) -> 52件 | BB33: =IFERROR(BA33/BA$45,"") -> 34.4% | BC33: =IF(OR(IFERROR(FIND($AD33,"施設コード"),0)>0,$AE33=""), "", COUNTIFS( INDEX(rawデータ範囲, , MATCH($AG$1,表頭範囲, 0)),BC$2, INDEX(rawデータ範囲, , MATCH($AE$1,表頭範囲, 0)),$AE33, INDEX(rawデータ範囲, , MATCH($AC33,表頭範囲, 0)),$AD33 ) ) -> 107件 | BD33: =IFERROR(BC33/BC$45,"") -> 37.2% | BE33: =IFERROR(AG33+AI33+AK33+AM33+AO33+AQ33+AS33+AU33+AW33+AY33+BA33+BC33,"") -> 1129件 | BF33: =IFERROR(BE33/BE$45,"") -> 35.3%
AA34: =IF($AE34<>"",VLOOKUP($AE34,【M】満足度!$A$1:$B$5,2,0),"") -> 4 | AC34: =AC33 -> 市町村 | AD34: 福井市 | AE34: 満足 | AG34: 217件 | AH34: 56.5% | AI34: 170件 | AJ34: 52.8% | AK34: 158件 | AL34: 55.1% | AM34: 114件 | AN34: 54.0% | AO34: 148件 | AP34: 51.9% | AQ34: 146件 | AR34: 46.2% | AS34: 128件 | AT34: 51.6% | AU34: 200件 | AV34: 61.7% | AW34: 116件 | AX34: 53.0% | AY34: 87件 | AZ34: 54.0% | BA34: 77件 | BB34: 51.0% | BC34: 146件 | BD34: 50.7% | BE34: =IFERROR(AG34+AI34+AK34+AM34+AO34+AQ34+AS34+AU34+AW34+AY34+BA34+BC34,"") -> 1707件 | BF34: 53.4%
AA35: =IF($AE35<>"",VLOOKUP($AE35,【M】満足度!$A$1:$B$5,2,0),"") -> 3 | AC35: 市町村 | AD35: 福井市 | AE35: どちらでもない | AG35: 30件 | AH35: 7.8% | AI35: 45件 | AJ35: 14.0% | AK35: 29件 | AL35: 10.1% | AM35: 22件 | AN35: 10.4% | AO35: 30件 | AP35: 10.5% | AQ35: 38件 | AR35: 12.0% | AS35: 14件 | AT35: 5.6% | AU35: 32件 | AV35: 9.9% | AW35: 18件 | AX35: 8.2% | AY35: 15件 | AZ35: 9.3% | BA35: 20件 | BB35: 13.2% | BC35: 33件 | BD35: 11.5% | BE35: 326件 | BF35: 10.2%
AA36: =IF($AE36<>"",VLOOKUP($AE36,【M】満足度!$A$1:$B$5,2,0),"") -> 2 | AC36: 市町村 | AD36: 福井市 | AE36: 不満 | AG36: 5件 | AH36: 1.3% | AI36: 2件 | AJ36: 0.6% | AK36: 4件 | AL36: 1.4% | AM36: 4件 | AN36: 1.9% | AO36: 3件 | AP36: 1.1% | AQ36: 5件 | AR36: 1.6% | AS36: 2件 | AT36: 0.8% | AU36: 1件 | AV36: 0.3% | AW36: 1件 | AX36: 0.5% | AY36: 0件 | AZ36: 0.0% | BA36: 2件 | BB36: 1.3% | BC36: 2件 | BD36: 0.7% | BE36: 31件 | BF36: 1.0%
AA37: =IF($AE37<>"",VLOOKUP($AE37,【M】満足度!$A$1:$B$5,2,0),"") -> 1 | AC37: 市町村 | AD37: 福井市 | AE37: とても不満 | AG37: 0件 | AH37: 0.0% | AI37: 0件 | AJ37: 0.0% | AK37: 0件 | AL37: 0.0% | AM37: 1件 | AN37: 0.5% | AO37: 1件 | AP37: 0.4% | AQ37: 0件 | AR37: 0.0% | AS37: 0件 | AT37: 0.0% | AU37: 1件 | AV37: 0.3% | AW37: 0件 | AX37: 0.0% | AY37: 0件 | AZ37: 0.0% | BA37: 0件 | BB37: 0.0% | BC37: 0件 | BD37: 0.0% | BE37: 3件 | BF37: 0.1%
AA38: =IF($AE38<>"",VLOOKUP($AE38,【M】満足度!$A$1:$B$5,2,0),"") ->  | AC38: 市町村 | AD38: 福井市
AA39: =IF($AE39<>"",VLOOKUP($AE39,【M】満足度!$A$1:$B$5,2,0),"") ->  | AC39: 市町村 | AD39: 福井市
AA40: =IF($AE40<>"",VLOOKUP($AE40,【M】満足度!$A$1:$B$5,2,0),"") ->  | AC40: =AC39 -> 市町村 | AD40: =AD39 -> 福井市
AA41: =IF($AE41<>"",VLOOKUP($AE41,【M】満足度!$A$1:$B$5,2,0),"") ->  | AC41: 市町村 | AD41: 福井市
AA42: =IF($AE42<>"",VLOOKUP($AE42,【M】満足度!$A$1:$B$5,2,0),"") ->  | AC42: 市町村 | AD42: 福井市
AA43: =IF($AE43<>"",VLOOKUP($AE43,【M】満足度!$A$1:$B$5,2,0),"") ->  | AC43: 市町村 | AD43: 福井市
AA44: =IF($AE44<>"",VLOOKUP($AE44,【M】満足度!$A$1:$B$5,2,0),"") ->  | AC44: =AC42 -> 市町村 | AD44: =AD42 -> 福井市 | AE44: =IF(AE14<>"",AE14,"") ->  | AH44: =IFERROR(AG44/AG$45,"") ->  | AJ44: =IFERROR(AI44/AI$45,"") -> 
AF45: 合計 | AG45: =SUM(AG33:AG44) -> 384件 | AH45: 100.0% | AI45: 322件 | AJ45: 100.0% | AK45: 287件 | AL45: 100.0% | AM45: 211件 | AN45: 100.0% | AO45: 285件 | AP45: 100.0% | AQ45: 316件 | AR45: 100.0% | AS45: 248件 | AT45: 100.0% | AU45: 324件 | AV45: 100.0% | AW45: 219件 | AX45: 100.0% | AY45: 161件 | AZ45: 100.0% | BA45: 151件 | BB45: 100.0% | BC45: 288件 | BD45: 100.0% | BE45: 3,196件 | BF45: 100.0%
AF46: =IF(AF$16<>"",AF$16,"") -> 満足度スコア | AG46: =IF(AG45>0,SUMPRODUCT($AA33:$AA44,AG33:AG44)/AG45,"-") -> 4.24 | AI46: =IF(AI45>0,SUMPRODUCT($AA33:$AA44,AI33:AI44)/AI45,"-") -> 4.17 | AK46: =IF(AK45>0,SUMPRODUCT($AA33:$AA44,AK33:AK44)/AK45,"-") -> 4.21 | AM46: =IF(AM45>0,SUMPRODUCT($AA33:$AA44,AM33:AM44)/AM45,"-") -> 4.18 | AO46: =IF(AO45>0,SUMPRODUCT($AA33:$AA44,AO33:AO44)/AO45,"-") -> 4.22 | AQ46: =IF(AQ45>0,SUMPRODUCT($AA33:$AA44,AQ33:AQ44)/AQ45,"-") -> 4.25 | AS46: =IF(AS45>0,SUMPRODUCT($AA33:$AA44,AS33:AS44)/AS45,"-") -> 4.35 | AU46: =IF(AU45>0,SUMPRODUCT($AA33:$AA44,AU33:AU44)/AU45,"-") -> 4.16 | AW46: =IF(AW45>0,SUMPRODUCT($AA33:$AA44,AW33:AW44)/AW45,"-") -> 4.29 | AY46: =IF(AY45>0,SUMPRODUCT($AA33:$AA44,AY33:AY44)/AY45,"-") -> 4.27 | BA46: =IF(BA45>0,SUMPRODUCT($AA33:$AA44,BA33:BA44)/BA45,"-") -> 4.19 | BC46: =IF(BC45>0,SUMPRODUCT($AA33:$AA44,BC33:BC44)/BC45,"-") -> 4.24 | BE46: =IF(BE45>0,SUMPRODUCT($AA33:$AA44,BE33:BE44)/BE45,"-") -> 4.23
AC47: 回答エリア | AD47: =【M】エリア!$L$5 -> 福井駅前 エリア
AA48: =IF($AE48<>"",VLOOKUP($AE48,【M】満足度!$A$1:$B$5,2,0),"") -> 5 | AC48: =AC47 -> 回答エリア | AD48: =AD47 -> 福井駅前 エリア | AE48: =IF(AE3<>"",AE3,"") -> とても満足 | AG48: =IF(OR(IFERROR(FIND($AD48,"施設コード"),0)>0,$AE48=""), "", COUNTIFS( INDEX(rawデータ範囲, , MATCH($AG$1,表頭範囲, 0)),AG$2, INDEX(rawデータ範囲, , MATCH($AE$1,表頭範囲, 0)),$AE48, INDEX(rawデータ範囲, , MATCH($AC48,表頭範囲, 0)),$AD48 ) ) -> 58件 | AH48: =IFERROR(AG48/AG$60,"") -> 35.4% | AI48: =IF(OR(IFERROR(FIND($AD48,"施設コード"),0)>0,$AE48=""), "", COUNTIFS( INDEX(rawデータ範囲, , MATCH($AG$1,表頭範囲, 0)),AI$2, INDEX(rawデータ範囲, , MATCH($AE$1,表頭範囲, 0)),$AE48, INDEX(rawデータ範囲, , MATCH($AC48,表頭範囲, 0)),$AD48 ) ) -> 50件 | AJ48: =IFERROR(AI48/AI$60,"") -> 31.6% | AK48: =IF(OR(IFERROR(FIND($AD48,"施設コード"),0)>0,$AE48=""), "", COUNTIFS( INDEX(rawデータ範囲, , MATCH($AG$1,表頭範囲, 0)),AK$2, INDEX(rawデータ範囲, , MATCH($AE$1,表頭範囲, 0)),$AE48, INDEX(rawデータ範囲, , MATCH($AC48,表頭範囲, 0)),$AD48 ) ) -> 44件 | AL48: =IFERROR(AK48/AK$60,"") -> 35.8% | AM48: =IF(OR(IFERROR(FIND($AD48,"施設コード"),0)>0,$AE48=""), "", COUNTIFS( INDEX(rawデータ範囲, , MATCH($AG$1,表頭範囲, 0)),AM$2, INDEX(rawデータ範囲, , MATCH($AE$1,表頭範囲, 0)),$AE48, INDEX(rawデータ範囲, , MATCH($AC48,表頭範囲, 0)),$AD48 ) ) -> 26件 | AN48: =IFERROR(AM48/AM$60,"") -> 34.7% | AO48: =IF(OR(IFERROR(FIND($AD48,"施設コード"),0)>0,$AE48=""), "", COUNTIFS( INDEX(rawデータ範囲, , MATCH($AG$1,表頭範囲, 0)),AO$2, INDEX(rawデータ範囲, , MATCH($AE$1,表頭範囲, 0)),$AE48, INDEX(rawデータ範囲, , MATCH($AC48,表頭範囲, 0)),$AD48 ) ) -> 37件 | AP48: =IFERROR(AO48/AO$60,"") -> 35.9% | AQ48: =IF(OR(IFERROR(FIND($AD48,"施設コード"),0)>0,$AE48=""), "", COUNTIFS( INDEX(rawデータ範囲, , MATCH($AG$1,表頭範囲, 0)),AQ$2, INDEX(rawデータ範囲, , MATCH($AE$1,表頭範囲, 0)),$AE48, INDEX(rawデータ範囲, , MATCH($AC48,表頭範囲, 0)),$AD48 ) ) -> 35件 | AR48: =IFERROR(AQ48/AQ$60,"") -> 31.8% | AS48: =IF(OR(IFERROR(FIND($AD48,"施設コード"),0)>0,$AE48=""), "", COUNTIFS( INDEX(rawデータ範囲, , MATCH($AG$1,表頭範囲, 0)),AS$2, INDEX(rawデータ範囲, , MATCH($AE$1,表頭範囲, 0)),$AE48, INDEX(rawデータ範囲, , MATCH($AC48,表頭範囲, 0)),$AD48 ) ) -> 44件 | AT48: =IFERROR(AS48/AS$60,"") -> 42.7% | AU48: =IF(OR(IFERROR(FIND($AD48,"施設コード"),0)>0,$AE48=""), "", COUNTIFS( INDEX(rawデータ範囲, , MATCH($AG$1,表頭範囲, 0)),AU$2, INDEX(rawデータ範囲, , MATCH($AE$1,表頭範囲, 0)),$AE48, INDEX(rawデータ範囲, , MATCH($AC48,表頭範囲, 0)),$AD48 ) ) -> 38件 | AV48: =IFERROR(AU48/AU$60,"") -> 29.7% | AW48: =IF(OR(IFERROR(FIND($AD48,"施設コード"),0)>0,$AE48=""), "", COUNTIFS( INDEX(rawデータ範囲, , MATCH($AG$1,表頭範囲, 0)),AW$2, INDEX(rawデータ範囲, , MATCH($AE$1,表頭範囲, 0)),$AE48, INDEX(rawデータ範囲, , MATCH($AC48,表頭範囲, 0)),$AD48 ) ) -> 39件 | AX48: =IFERROR(AW48/AW$60,"") -> 39.0% | AY48: =IF(OR(IFERROR(FIND($AD48,"施設コード"),0)>0,$AE48=""), "", COUNTIFS( INDEX(rawデータ範囲, , MATCH($AG$1,表頭範囲, 0)),AY$2, INDEX(rawデータ範囲, , MATCH($AE$1,表頭範囲, 0)),$AE48, INDEX(rawデータ範囲, , MATCH($AC48,表頭範囲, 0)),$AD48 ) ) -> 31件 | AZ48: =IFERROR(AY48/AY$60,"") -> 43.7% | BA48: =IF(OR(IFERROR(FIND($AD48,"施設コード"),0)>0,$AE48=""), "", COUNTIFS( INDEX(rawデータ範囲, , MATCH($AG$1,表頭範囲, 0)),BA$2, INDEX(rawデータ範囲, , MATCH($AE$1,表頭範囲, 0)),$AE48, INDEX(rawデータ範囲, , MATCH($AC48,表頭範囲, 0)),$AD48 ) ) -> 24件 | BB48: =IFERROR(BA48/BA$60,"") -> 35.3% | BC48: =IF(OR(IFERROR(FIND($AD48,"施設コード"),0)>0,$AE48=""), "", COUNTIFS( INDEX(rawデータ範囲, , MATCH($AG$1,表頭範囲, 0)),BC$2, INDEX(rawデータ範囲, , MATCH($AE$1,表頭範囲, 0)),$AE48, INDEX(rawデータ範囲, , MATCH($AC48,表頭範囲, 0)),$AD48 ) ) -> 48件 | BD48: =IFERROR(BC48/BC$60,"") -> 41.7% | BE48: =IFERROR(AG48+AI48+AK48+AM48+AO48+AQ48+AS48+AU48+AW48+AY48+BA48+BC48,"") -> 474件 | BF48: =IFERROR(BE48/BE$60,"") -> 36.0%
AA49: =IF($AE49<>"",VLOOKUP($AE49,【M】満足度!$A$1:$B$5,2,0),"") -> 4 | AC49: =AC48 -> 回答エリア | AD49: 福井駅前 エリア | AE49: 満足 | AG49: 95件 | AH49: 57.9% | AI49: 94件 | AJ49: 59.5% | AK49: 65件 | AL49: 52.8% | AM49: 34件 | AN49: 45.3% | AO49: 53件 | AP49: 51.5% | AQ49: 60件 | AR49: 54.5% | AS49: 54件 | AT49: 52.4% | AU49: 78件 | AV49: 60.9% | AW49: 52件 | AX49: 52.0% | AY49: 32件 | AZ49: 45.1% | BA49: 33件 | BB49: 48.5% | BC49: 55件 | BD49: 47.8% | BE49: =IFERROR(AG49+AI49+AK49+AM49+AO49+AQ49+AS49+AU49+AW49+AY49+BA49+BC49,"") -> 705件 | BF49: 53.5%
AA50: =IF($AE50<>"",VLOOKUP($AE50,【M】満足度!$A$1:$B$5,2,0),"") -> 3 | AC50: 回答エリア | AD50: 福井駅前 エリア | AE50: どちらでもない | AG50: 9件 | AH50: 5.5% | AI50: 13件 | AJ50: 8.2% | AK50: 11件 | AL50: 8.9% | AM50: 12件 | AN50: 16.0% | AO50: 11件 | AP50: 10.7% | AQ50: 12件 | AR50: 10.9% | AS50: 5件 | AT50: 4.9% | AU50: 10件 | AV50: 7.8% | AW50: 9件 | AX50: 9.0% | AY50: 8件 | AZ50: 11.3% | BA50: 10件 | BB50: 14.7% | BC50: 10件 | BD50: 8.7% | BE50: 120件 | BF50: 9.1%
AA51: =IF($AE51<>"",VLOOKUP($AE51,【M】満足度!$A$1:$B$5,2,0),"") -> 2 | AC51: 回答エリア | AD51: 福井駅前 エリア | AE51: 不満 | AG51: 2件 | AH51: 1.2% | AI51: 1件 | AJ51: 0.6% | AK51: 3件 | AL51: 2.4% | AM51: 2件 | AN51: 2.7% | AO51: 1件 | AP51: 1.0% | AQ51: 3件 | AR51: 2.7% | AS51: 0件 | AT51: 0.0% | AU51: 1件 | AV51: 0.8% | AW51: 0件 | AX51: 0.0% | AY51: 0件 | AZ51: 0.0% | BA51: 1件 | BB51: 1.5% | BC51: 2件 | BD51: 1.7% | BE51: 16件 | BF51: 1.2%
AA52: =IF($AE52<>"",VLOOKUP($AE52,【M】満足度!$A$1:$B$5,2,0),"") -> 1 | AC52: 回答エリア | AD52: 福井駅前 エリア | AE52: とても不満 | AG52: 0件 | AH52: 0.0% | AI52: 0件 | AJ52: 0.0% | AK52: 0件 | AL52: 0.0% | AM52: 1件 | AN52: 1.3% | AO52: 1件 | AP52: 1.0% | AQ52: 0件 | AR52: 0.0% | AS52: 0件 | AT52: 0.0% | AU52: 1件 | AV52: 0.8% | AW52: 0件 | AX52: 0.0% | AY52: 0件 | AZ52: 0.0% | BA52: 0件 | BB52: 0.0% | BC52: 0件 | BD52: 0.0% | BE52: 3件 | BF52: 0.2%
AA53: =IF($AE53<>"",VLOOKUP($AE53,【M】満足度!$A$1:$B$5,2,0),"") ->  | AC53: 回答エリア | AD53: 福井駅前 エリア
AA54: =IF($AE54<>"",VLOOKUP($AE54,【M】満足度!$A$1:$B$5,2,0),"") ->  | AC54: 回答エリア | AD54: 福井駅前 エリア
AA55: =IF($AE55<>"",VLOOKUP($AE55,【M】満足度!$A$1:$B$5,2,0),"") ->  | AC55: =AC54 -> 回答エリア | AD55: =AD54 -> 福井駅前 エリア
AA56: =IF($AE56<>"",VLOOKUP($AE56,【M】満足度!$A$1:$B$5,2,0),"") ->  | AC56: 回答エリア | AD56: 福井駅前 エリア
AA57: =IF($AE57<>"",VLOOKUP($AE57,【M】満足度!$A$1:$B$5,2,0),"") ->  | AC57: 回答エリア | AD57: 福井駅前 エリア
AA58: =IF($AE58<>"",VLOOKUP($AE58,【M】満足度!$A$1:$B$5,2,0),"") ->  | AC58: 回答エリア | AD58: 福井駅前 エリア
AA59: =IF($AE59<>"",VLOOKUP($AE59,【M】満足度!$A$1:$B$5,2,0),"") ->  | AC59: =AC57 -> 回答エリア | AD59: =AD57 -> 福井駅前 エリア | AE59: =IF(AE14<>"",AE14,"") ->  | AH59: =IFERROR(AG59/AG$60,"") ->  | AJ59: =IFERROR(AI59/AI$60,"") ->  | BF59: =IFERROR(BE59/BE$60,"") -> 
AF60: 合計 | AG60: =SUM(AG48:AG59) -> 164件 | AH60: 100.0% | AI60: 158件 | AJ60: 100.0% | AK60: 123件 | AL60: 100.0% | AM60: 75件 | AN60: 100.0% | AO60: 103件 | AP60: 100.0% | AQ60: 110件 | AR60: 100.0% | AS60: 103件 | AT60: 100.0% | AU60: 128件 | AV60: 100.0% | AW60: 100件 | AX60: 100.0% | AY60: 71件 | AZ60: 100.0% | BA60: 68件 | BB60: 100.0% | BC60: 115件 | BD60: 100.0% | BE60: 1,318件 | BF60: 100.0%
AF61: =IF(AF$16<>"",AF$16,"") -> 満足度スコア | AG61: =IF(AG60>0,SUMPRODUCT($AA48:$AA59,AG48:AG59)/AG60,"-") -> 4.27 | AI61: =IF(AI60>0,SUMPRODUCT($AA48:$AA59,AI48:AI59)/AI60,"-") -> 4.22 | AK61: =IF(AK60>0,SUMPRODUCT($AA48:$AA59,AK48:AK59)/AK60,"-") -> 4.22 | AM61: =IF(AM60>0,SUMPRODUCT($AA48:$AA59,AM48:AM59)/AM60,"-") -> 4.09 | AO61: =IF(AO60>0,SUMPRODUCT($AA48:$AA59,AO48:AO59)/AO60,"-") -> 4.20 | AQ61: =IF(AQ60>0,SUMPRODUCT($AA48:$AA59,AQ48:AQ59)/AQ60,"-") -> 4.15 | AS61: =IF(AS60>0,SUMPRODUCT($AA48:$AA59,AS48:AS59)/AS60,"-") -> 4.38 | AU61: =IF(AU60>0,SUMPRODUCT($AA48:$AA59,AU48:AU59)/AU60,"-") -> 4.18 | AW61: =IF(AW60>0,SUMPRODUCT($AA48:$AA59,AW48:AW59)/AW60,"-") -> 4.30 | AY61: =IF(AY60>0,SUMPRODUCT($AA48:$AA59,AY48:AY59)/AY60,"-") -> 4.32 | BA61: =IF(BA60>0,SUMPRODUCT($AA48:$AA59,BA48:BA59)/BA60,"-") -> 4.18 | BC61: =IF(BC60>0,SUMPRODUCT($AA48:$AA59,BC48:BC59)/BC60,"-") -> 4.30 | BE61: =IF(BE60>0,SUMPRODUCT($AA48:$AA59,BE48:BE59)/BE60,"-") -> 4.24

Sheet 総合満足度
A1: =施設コード!$A$2 -> 3月 | B1: =【M】エリア!$L$2 -> 福井県 | C1: =【M】エリア!$L$3 -> 福井市・永平寺町 | D1: =【M】エリア!$L$4 -> 福井市 | E1: =【M】エリア!$L$5 -> 福井駅前 エリア | G1: =AF16 -> 総合満足度スコア | H1: 4月 | I1: 5月 | J1: 6月 | K1: 7月 | L1: 8月 | M1: 9月 | N1: 10月 | O1: 11月 | P1: 12月 | Q1: 1月 | R1: 2月 | S1: 3月 | T1: 通年 | AA1: =AF16&"（推移）" -> 総合満足度スコア（推移） | AC1: 集計区分 | AE1: 総合満足度 | AF1: 回答数 | AG1: 回答月 | AH1: 回答月 | AI1: 回答月 | AJ1: 回答月 | AK1: 回答月 | AL1: 回答月 | AM1: 回答月 | AN1: 回答月 | AO1: 回答月 | AP1: 回答月 | AQ1: 回答月 | AR1: 回答月 | AS1: 回答月 | AT1: 回答月 | AU1: 回答月 | AV1: 回答月 | AW1: 回答月 | AX1: 回答月 | AY1: 回答月 | AZ1: 回答月 | BA1: 回答月 | BB1: 回答月 | BC1: 回答月 | BD1: 回答月 | BE1: 回答月 | BF1: 回答月
A2: =IF(AE3<>"",AE3,"") -> とても満足 | B2: =IFERROR(OFFSET(INDEX($AG$3:$BF$14, MATCH($A2,$A$2:$A$13,0),MATCH($A$1,$AG$2:$BF$2,0)),0,1),"") -> 42.5% | C2: =IFERROR(OFFSET(INDEX($AG$18:$BF$29, MATCH($A2,$A$2:$A$13,0),MATCH($A$1,$AG$2:$BF$2,0)),0,1),"") -> 38.7% | D2: =IFERROR(OFFSET(INDEX($AG$33:$BF$44, MATCH($A2,$A$2:$A$13,0),MATCH($A$1,$AG$2:$BF$2,0)),0,1),"") -> 37.3% | E2: =IFERROR(OFFSET(INDEX($AG$48:$BF$59, MATCH($A2,$A$2:$A$13,0),MATCH($A$1,$AG$2:$BF$2,0)),0,1),"") -> 40.4% | G2: =【M】エリア!$L$2 -> 福井県 | H2: =AG16 -> 4.17 | I2: =AI16 -> 4.20 | J2: =AK16 -> 4.20 | K2: =AM16 -> 4.22 | L2: =AO16 -> 4.26 | M2: =AQ16 -> 4.26 | N2: =AS16 -> 4.24 | O2: =AU16 -> 4.19 | P2: =AW16 -> 4.28 | Q2: =AY16 -> 4.29 | R2: =BA16 -> 4.25 | S2: =BC16 -> 4.30 | T2: =BE16 -> 4.23 | AC2: 都道府県 | AD2: =【M】エリア!$L$2 -> 福井県 | AG2: 4月 | AI2: 5月 | AK2: 6月 | AM2: 7月 | AO2: 8月 | AQ2: 9月 | AS2: 10月 | AU2: 11月 | AW2: 12月 | AY2: 1月 | BA2: 2月 | BC2: 3月 | BE2: 通年
A3: =IF(AE4<>"",AE4,"") -> 満足 | B3: =IFERROR(OFFSET(INDEX($AG$3:$BF$14, MATCH($A3,$A$2:$A$13,0),MATCH($A$1,$AG$2:$BF$2,0)),0,1),"") -> 45.8% | C3: =IFERROR(OFFSET(INDEX($AG$18:$BF$29, MATCH($A3,$A$2:$A$13,0),MATCH($A$1,$AG$2:$BF$2,0)),0,1),"") -> 50.1% | D3: =IFERROR(OFFSET(INDEX($AG$33:$BF$44, MATCH($A3,$A$2:$A$13,0),MATCH($A$1,$AG$2:$BF$2,0)),0,1),"") -> 50.7% | E3: =IFERROR(OFFSET(INDEX($AG$48:$BF$59, MATCH($A3,$A$2:$A$13,0),MATCH($A$1,$AG$2:$BF$2,0)),0,1),"") -> 50.0% | G3: =【M】エリア!$L$3 -> 福井市・永平寺町 | H3: =AG31 -> 4.22 | I3: =AI31 -> 4.25 | J3: =AK31 -> 4.27 | K3: =AM31 -> 4.23 | L3: =AO31 -> 4.26 | M3: =AQ31 -> 4.28 | N3: =AS31 -> 4.31 | O3: =AU31 -> 4.19 | P3: =AW31 -> 4.30 | Q3: =AY31 -> 4.29 | R3: =BA31 -> 4.22 | S3: =BC31 -> 4.27 | T3: =BE31 -> 4.26 | AA3: =IF($AE3<>"",VLOOKUP($AE3,【M】満足度!$A$1:$B$5,2,0),"") -> 5 | AC3: =AC2 -> 都道府県 | AD3: =AD2 -> 福井県 | AE3: とても満足 | AG3: =IF(OR(IFERROR(FIND($AD3,"施設コード"),0)>0,$AE3=""), "", '満足度(商品・サービス)'!AG3+'満足度(施設全体)'!AG3 ) -> 2186件 | AH3: =IFERROR(AG3/AG$15,"") -> 33.7% | AI3: =IF(OR(IFERROR(FIND($AD3,"施設コード"),0)>0,$AE3=""), "", '満足度(商品・サービス)'!AI3+'満足度(施設全体)'!AI3 ) -> 2007件 | AJ3: =IFERROR(AI3/AI$15,"") -> 34.1% | AK3: =IF(OR(IFERROR(FIND($AD3,"施設コード"),0)>0,$AE3=""), "", '満足度(商品・サービス)'!AK3+'満足度(施設全体)'!AK3 ) -> 1591件 | AL3: =IFERROR(AK3/AK$15,"") -> 34.1% | AM3: =IF(OR(IFERROR(FIND($AD3,"施設コード"),0)>0,$AE3=""), "", '満足度(商品・サービス)'!AM3+'満足度(施設全体)'!AM3 ) -> 1341件 | AN3: =IFERROR(AM3/AM$15,"") -> 35.3% | AO3: =IF(OR(IFERROR(FIND($AD3,"施設コード"),0)>0,$AE3=""), "", '満足度(商品・サービス)'!AO3+'満足度(施設全体)'!AO3 ) -> 1996件 | AP3: =IFERROR(AO3/AO$15,"") -> 38.2% | AQ3: =IF(OR(IFERROR(FIND($AD3,"施設コード"),0)>0,$AE3=""), "", '満足度(商品・サービス)'!AQ3+'満足度(施設全体)'!AQ3 ) -> 2070件 | AR3: =IFERROR(AQ3/AQ$15,"") -> 38.8% | AS3: =IF(OR(IFERROR(FIND($AD3,"施設コード"),0)>0,$AE3=""), "", '満足度(商品・サービス)'!AS3+'満足度(施設全体)'!AS3 ) -> 1608件 | AT3: =IFERROR(AS3/AS$15,"") -> 36.2% | AU3: =IF(OR(IFERROR(FIND($AD3,"施設コード"),0)>0,$AE3=""), "", '満足度(商品・サービス)'!AU3+'満足度(施設全体)'!AU3 ) -> 1662件 | AV3: =IFERROR(AU3/AU$15,"") -> 32.6% | AW3: =IF(OR(IFERROR(FIND($AD3,"施設コード"),0)>0,$AE3=""), "", '満足度(商品・サービス)'!AW3+'満足度(施設全体)'!AW3 ) -> 1563件 | AX3: =IFERROR(AW3/AW$15,"") -> 40.1% | AY3: =IF(OR(IFERROR(FIND($AD3,"施設コード"),0)>0,$AE3=""), "", '満足度(商品・サービス)'!AY3+'満足度(施設全体)'!AY3 ) -> 1183件 | AZ3: =IFERROR(AY3/AY$15,"") -> 40.4% | BA3: =IF(OR(IFERROR(FIND($AD3,"施設コード"),0)>0,$AE3=""), "", '満足度(商品・サービス)'!BA3+'満足度(施設全体)'!BA3 ) -> 1037件 | BB3: =IFERROR(BA3/BA$15,"") -> 37.8% | BC3: =IF(OR(IFERROR(FIND($AD3,"施設コード"),0)>0,$AE3=""), "", '満足度(商品・サービス)'!BC3+'満足度(施設全体)'!BC3 ) -> 2318件 | BD3: =IFERROR(BC3/BC$15,"") -> 42.5% | BE3: =IFERROR(AG3+AI3+AK3+AM3+AO3+AQ3+AS3+AU3+AW3+AY3+BA3+BC3,"") -> 20562件 | BF3: =IFERROR(BE3/BE$15,"") -> 36.8%
A4: どちらでもない | B4: 10.7% | C4: 10.5% | D4: 11.3% | E4: 8.3% | G4: =【M】エリア!$L$4 -> 福井市 | H4: =AG46 -> 4.23 | I4: =AI46 -> 4.17 | J4: =AK46 -> 4.20 | K4: =AM46 -> 4.15 | L4: =AO46 -> 4.21 | M4: =AQ46 -> 4.25 | N4: =AS46 -> 4.31 | O4: =AU46 -> 4.15 | P4: =AW46 -> 4.26 | Q4: =AY46 -> 4.27 | R4: =BA46 -> 4.18 | S4: =BC46 -> 4.25 | T4: =BE46 -> 4.22 | AA4: =IF($AE4<>"",VLOOKUP($AE4,【M】満足度!$A$1:$B$5,2,0),"") -> 4 | AC4: =AC3 -> 都道府県 | AD4: 福井県 | AE4: 満足 | AG4: =IF(OR(IFERROR(FIND($AD4,"施設コード"),0)>0,$AE4=""), "", '満足度(商品・サービス)'!AG4+'満足度(施設全体)'!AG4 ) -> 3348件 | AH4: 51.7% | AI4: =IF(OR(IFERROR(FIND($AD4,"施設コード"),0)>0,$AE4=""), "", '満足度(商品・サービス)'!AI4+'満足度(施設全体)'!AI4 ) -> 3122件 | AJ4: 53.1% | AK4: =IF(OR(IFERROR(FIND($AD4,"施設コード"),0)>0,$AE4=""), "", '満足度(商品・サービス)'!AK4+'満足度(施設全体)'!AK4 ) -> 2453件 | AL4: 52.6% | AM4: =IF(OR(IFERROR(FIND($AD4,"施設コード"),0)>0,$AE4=""), "", '満足度(商品・サービス)'!AM4+'満足度(施設全体)'!AM4 ) -> 2016件 | AN4: 53.1% | AO4: =IF(OR(IFERROR(FIND($AD4,"施設コード"),0)>0,$AE4=""), "", '満足度(商品・サービス)'!AO4+'満足度(施設全体)'!AO4 ) -> 2673件 | AP4: 51.2% | AQ4: =IF(OR(IFERROR(FIND($AD4,"施設コード"),0)>0,$AE4=""), "", '満足度(商品・サービス)'!AQ4+'満足度(施設全体)'!AQ4 ) -> 2642件 | AR4: 49.6% | AS4: =IF(OR(IFERROR(FIND($AD4,"施設コード"),0)>0,$AE4=""), "", '満足度(商品・サービス)'!AS4+'満足度(施設全体)'!AS4 ) -> 2349件 | AT4: 52.9% | AU4: =IF(OR(IFERROR(FIND($AD4,"施設コード"),0)>0,$AE4=""), "", '満足度(商品・サービス)'!AU4+'満足度(施設全体)'!AU4 ) -> 2822件 | AV4: 55.4% | AW4: =IF(OR(IFERROR(FIND($AD4,"施設コード"),0)>0,$AE4=""), "", '満足度(商品・サービス)'!AW4+'満足度(施設全体)'!AW4 ) -> 1928件 | AX4: 49.5% | AY4: =IF(OR(IFERROR(FIND($AD4,"施設コード"),0)>0,$AE4=""), "", '満足度(商品・サービス)'!AY4+'満足度(施設全体)'!AY4 ) -> 1477件 | AZ4: 50.4% | BA4: =IF(OR(IFERROR(FIND($AD4,"施設コード"),0)>0,$AE4=""), "", '満足度(商品・サービス)'!BA4+'満足度(施設全体)'!BA4 ) -> 1414件 | BB4: 51.5% | BC4: =IF(OR(IFERROR(FIND($AD4,"施設コード"),0)>0,$AE4=""), "", '満足度(商品・サービス)'!BC4+'満足度(施設全体)'!BC4 ) -> 2496件 | BD4: 45.8% | BE4: =IFERROR(AG4+AI4+AK4+AM4+AO4+AQ4+AS4+AU4+AW4+AY4+BA4+BC4,"") -> 28740件 | BF4: 51.4%
A5: 不満 | B5: 0.7% | C5: 0.7% | D5: 0.7% | E5: 1.3% | G5: =【M】エリア!$L$5 -> 福井駅前 エリア | H5: =AG61 -> 4.25 | I5: =AI61 -> 4.20 | J5: =AK61 -> 4.24 | K5: =AM61 -> 4.09 | L5: =AO61 -> 4.22 | M5: =AQ61 -> 4.16 | N5: =AS61 -> 4.34 | O5: =AU61 -> 4.16 | P5: =AW61 -> 4.27 | Q5: =AY61 -> 4.33 | R5: =BA61 -> 4.18 | S5: =BC61 -> 4.30 | T5: =BE61 -> 4.23 | AA5: =IF($AE5<>"",VLOOKUP($AE5,【M】満足度!$A$1:$B$5,2,0),"") -> 3 | AC5: 都道府県 | AD5: 福井県 | AE5: どちらでもない | AG5: =IF(OR(IFERROR(FIND($AD5,"施設コード"),0)>0,$AE5=""), "", '満足度(商品・サービス)'!AG5+'満足度(施設全体)'!AG5 ) -> 844件 | AH5: 13.0% | AI5: =IF(OR(IFERROR(FIND($AD5,"施設コード"),0)>0,$AE5=""), "", '満足度(商品・サービス)'!AI5+'満足度(施設全体)'!AI5 ) -> 672件 | AJ5: 11.4% | AK5: =IF(OR(IFERROR(FIND($AD5,"施設コード"),0)>0,$AE5=""), "", '満足度(商品・サービス)'!AK5+'満足度(施設全体)'!AK5 ) -> 556件 | AL5: 11.9% | AM5: =IF(OR(IFERROR(FIND($AD5,"施設コード"),0)>0,$AE5=""), "", '満足度(商品・サービス)'!AM5+'満足度(施設全体)'!AM5 ) -> 393件 | AN5: 10.3% | AO5: =IF(OR(IFERROR(FIND($AD5,"施設コード"),0)>0,$AE5=""), "", '満足度(商品・サービス)'!AO5+'満足度(施設全体)'!AO5 ) -> 474件 | AP5: 9.1% | AQ5: =IF(OR(IFERROR(FIND($AD5,"施設コード"),0)>0,$AE5=""), "", '満足度(商品・サービス)'!AQ5+'満足度(施設全体)'!AQ5 ) -> 545件 | AR5: 10.2% | AS5: =IF(OR(IFERROR(FIND($AD5,"施設コード"),0)>0,$AE5=""), "", '満足度(商品・サービス)'!AS5+'満足度(施設全体)'!AS5 ) -> 426件 | AT5: 9.6% | AU5: =IF(OR(IFERROR(FIND($AD5,"施設コード"),0)>0,$AE5=""), "", '満足度(商品・サービス)'!AU5+'満足度(施設全体)'!AU5 ) -> 546件 | AV5: 10.7% | AW5: =IF(OR(IFERROR(FIND($AD5,"施設コード"),0)>0,$AE5=""), "", '満足度(商品・サービス)'!AW5+'満足度(施設全体)'!AW5 ) -> 345件 | AX5: 8.9% | AY5: =IF(OR(IFERROR(FIND($AD5,"施設コード"),0)>0,$AE5=""), "", '満足度(商品・サービス)'!AY5+'満足度(施設全体)'!AY5 ) -> 235件 | AZ5: 8.0% | BA5: =IF(OR(IFERROR(FIND($AD5,"施設コード"),0)>0,$AE5=""), "", '満足度(商品・サービス)'!BA5+'満足度(施設全体)'!BA5 ) -> 255件 | BB5: 9.3% | BC5: =IF(OR(IFERROR(FIND($AD5,"施設コード"),0)>0,$AE5=""), "", '満足度(商品・サービス)'!BC5+'満足度(施設全体)'!BC5 ) -> 583件 | BD5: 10.7% | BE5: 5874件 | BF5: 10.5%
A6: とても不満 | B6: 0.2% | C6: 0.0% | D6: 0.0% | E6: 0.0% | AA6: =IF($AE6<>"",VLOOKUP($AE6,【M】満足度!$A$1:$B$5,2,0),"") -> 2 | AC6: 都道府県 | AD6: 福井県 | AE6: 不満 | AG6: =IF(OR(IFERROR(FIND($AD6,"施設コード"),0)>0,$AE6=""), "", '満足度(商品・サービス)'!AG6+'満足度(施設全体)'!AG6 ) -> 78件 | AH6: 1.2% | AI6: =IF(OR(IFERROR(FIND($AD6,"施設コード"),0)>0,$AE6=""), "", '満足度(商品・サービス)'!AI6+'満足度(施設全体)'!AI6 ) -> 60件 | AJ6: 1.0% | AK6: =IF(OR(IFERROR(FIND($AD6,"施設コード"),0)>0,$AE6=""), "", '満足度(商品・サービス)'!AK6+'満足度(施設全体)'!AK6 ) -> 54件 | AL6: 1.2% | AM6: =IF(OR(IFERROR(FIND($AD6,"施設コード"),0)>0,$AE6=""), "", '満足度(商品・サービス)'!AM6+'満足度(施設全体)'!AM6 ) -> 38件 | AN6: 1.0% | AO6: =IF(OR(IFERROR(FIND($AD6,"施設コード"),0)>0,$AE6=""), "", '満足度(商品・サービス)'!AO6+'満足度(施設全体)'!AO6 ) -> 60件 | AP6: 1.1% | AQ6: =IF(OR(IFERROR(FIND($AD6,"施設コード"),0)>0,$AE6=""), "", '満足度(商品・サービス)'!AQ6+'満足度(施設全体)'!AQ6 ) -> 57件 | AR6: 1.1% | AS6: =IF(OR(IFERROR(FIND($AD6,"施設コード"),0)>0,$AE6=""), "", '満足度(商品・サービス)'!AS6+'満足度(施設全体)'!AS6 ) -> 40件 | AT6: 0.9% | AU6: =IF(OR(IFERROR(FIND($AD6,"施設コード"),0)>0,$AE6=""), "", '満足度(商品・サービス)'!AU6+'満足度(施設全体)'!AU6 ) -> 54件 | AV6: 1.1% | AW6: =IF(OR(IFERROR(FIND($AD6,"施設コード"),0)>0,$AE6=""), "", '満足度(商品・サービス)'!AW6+'満足度(施設全体)'!AW6 ) -> 36件 | AX6: 0.9% | AY6: =IF(OR(IFERROR(FIND($AD6,"施設コード"),0)>0,$AE6=""), "", '満足度(商品・サービス)'!AY6+'満足度(施設全体)'!AY6 ) -> 21件 | AZ6: 0.7% | BA6: =IF(OR(IFERROR(FIND($AD6,"施設コード"),0)>0,$AE6=""), "", '満足度(商品・サービス)'!BA6+'満足度(施設全体)'!BA6 ) -> 34件 | BB6: 1.2% | BC6: =IF(OR(IFERROR(FIND($AD6,"施設コード"),0)>0,$AE6=""), "", '満足度(商品・サービス)'!BC6+'満足度(施設全体)'!BC6 ) -> 40件 | BD6: 0.7% | BE6: 572件 | BF6: 1.0%
AA7: =IF($AE7<>"",VLOOKUP($AE7,【M】満足度!$A$1:$B$5,2,0),"") -> 1 | AC7: 都道府県 | AD7: 福井県 | AE7: とても不満 | AG7: =IF(OR(IFERROR(FIND($AD7,"施設コード"),0)>0,$AE7=""), "", '満足度(商品・サービス)'!AG7+'満足度(施設全体)'!AG7 ) -> 26件 | AH7: 0.4% | AI7: =IF(OR(IFERROR(FIND($AD7,"施設コード"),0)>0,$AE7=""), "", '満足度(商品・サービス)'!AI7+'満足度(施設全体)'!AI7 ) -> 17件 | AJ7: 0.3% | AK7: =IF(OR(IFERROR(FIND($AD7,"施設コード"),0)>0,$AE7=""), "", '満足度(商品・サービス)'!AK7+'満足度(施設全体)'!AK7 ) -> 6件 | AL7: 0.1% | AM7: =IF(OR(IFERROR(FIND($AD7,"施設コード"),0)>0,$AE7=""), "", '満足度(商品・サービス)'!AM7+'満足度(施設全体)'!AM7 ) -> 12件 | AN7: 0.3% | AO7: =IF(OR(IFERROR(FIND($AD7,"施設コード"),0)>0,$AE7=""), "", '満足度(商品・サービス)'!AO7+'満足度(施設全体)'!AO7 ) -> 17件 | AP7: 0.3% | AQ7: =IF(OR(IFERROR(FIND($AD7,"施設コード"),0)>0,$AE7=""), "", '満足度(商品・サービス)'!AQ7+'満足度(施設全体)'!AQ7 ) -> 16件 | AR7: 0.3% | AS7: =IF(OR(IFERROR(FIND($AD7,"施設コード"),0)>0,$AE7=""), "", '満足度(商品・サービス)'!AS7+'満足度(施設全体)'!AS7 ) -> 17件 | AT7: 0.4% | AU7: =IF(OR(IFERROR(FIND($AD7,"施設コード"),0)>0,$AE7=""), "", '満足度(商品・サービス)'!AU7+'満足度(施設全体)'!AU7 ) -> 12件 | AV7: 0.2% | AW7: =IF(OR(IFERROR(FIND($AD7,"施設コード"),0)>0,$AE7=""), "", '満足度(商品・サービス)'!AW7+'満足度(施設全体)'!AW7 ) -> 24件 | AX7: 0.6% | AY7: =IF(OR(IFERROR(FIND($AD7,"施設コード"),0)>0,$AE7=""), "", '満足度(商品・サービス)'!AY7+'満足度(施設全体)'!AY7 ) -> 14件 | AZ7: 0.5% | BA7: =IF(OR(IFERROR(FIND($AD7,"施設コード"),0)>0,$AE7=""), "", '満足度(商品・サービス)'!BA7+'満足度(施設全体)'!BA7 ) -> 6件 | BB7: 0.2% | BC7: =IF(OR(IFERROR(FIND($AD7,"施設コード"),0)>0,$AE7=""), "", '満足度(商品・サービス)'!BC7+'満足度(施設全体)'!BC7 ) -> 13件 | BD7: 0.2% | BE7: 180件 | BF7: 0.3%
AA8: =IF($AE8<>"",VLOOKUP($AE8,【M】満足度!$A$1:$B$5,2,0),"") ->  | AC8: 都道府県 | AD8: 福井県 | AG8: =IF(OR(IFERROR(FIND($AD8,"施設コード"),0)>0,$AE8=""), "", '満足度(商品・サービス)'!AG8+'満足度(施設全体)'!AG8 ) ->  | AI8: =IF(OR(IFERROR(FIND($AD8,"施設コード"),0)>0,$AE8=""), "", '満足度(商品・サービス)'!AI8+'満足度(施設全体)'!AI8 ) ->  | AK8: =IF(OR(IFERROR(FIND($AD8,"施設コード"),0)>0,$AE8=""), "", '満足度(商品・サービス)'!AK8+'満足度(施設全体)'!AK8 ) ->  | AM8: =IF(OR(IFERROR(FIND($AD8,"施設コード"),0)>0,$AE8=""), "", '満足度(商品・サービス)'!AM8+'満足度(施設全体)'!AM8 ) ->  | AO8: =IF(OR(IFERROR(FIND($AD8,"施設コード"),0)>0,$AE8=""), "", '満足度(商品・サービス)'!AO8+'満足度(施設全体)'!AO8 ) ->  | AQ8: =IF(OR(IFERROR(FIND($AD8,"施設コード"),0)>0,$AE8=""), "", '満足度(商品・サービス)'!AQ8+'満足度(施設全体)'!AQ8 ) ->  | AS8: =IF(OR(IFERROR(FIND($AD8,"施設コード"),0)>0,$AE8=""), "", '満足度(商品・サービス)'!AS8+'満足度(施設全体)'!AS8 ) ->  | AU8: =IF(OR(IFERROR(FIND($AD8,"施設コード"),0)>0,$AE8=""), "", '満足度(商品・サービス)'!AU8+'満足度(施設全体)'!AU8 ) ->  | AW8: =IF(OR(IFERROR(FIND($AD8,"施設コード"),0)>0,$AE8=""), "", '満足度(商品・サービス)'!AW8+'満足度(施設全体)'!AW8 ) ->  | AY8: =IF(OR(IFERROR(FIND($AD8,"施設コード"),0)>0,$AE8=""), "", '満足度(商品・サービス)'!AY8+'満足度(施設全体)'!AY8 ) ->  | BA8: =IF(OR(IFERROR(FIND($AD8,"施設コード"),0)>0,$AE8=""), "", '満足度(商品・サービス)'!BA8+'満足度(施設全体)'!BA8 ) ->  | BC8: =IF(OR(IFERROR(FIND($AD8,"施設コード"),0)>0,$AE8=""), "", '満足度(商品・サービス)'!BC8+'満足度(施設全体)'!BC8 ) -> 
AA9: =IF($AE9<>"",VLOOKUP($AE9,【M】満足度!$A$1:$B$5,2,0),"") ->  | AC9: 都道府県 | AD9: 福井県 | AG9: =IF(OR(IFERROR(FIND($AD9,"施設コード"),0)>0,$AE9=""), "", '満足度(商品・サービス)'!AG9+'満足度(施設全体)'!AG9 ) ->  | AI9: =IF(OR(IFERROR(FIND($AD9,"施設コード"),0)>0,$AE9=""), "", '満足度(商品・サービス)'!AI9+'満足度(施設全体)'!AI9 ) ->  | AK9: =IF(OR(IFERROR(FIND($AD9,"施設コード"),0)>0,$AE9=""), "", '満足度(商品・サービス)'!AK9+'満足度(施設全体)'!AK9 ) ->  | AM9: =IF(OR(IFERROR(FIND($AD9,"施設コード"),0)>0,$AE9=""), "", '満足度(商品・サービス)'!AM9+'満足度(施設全体)'!AM9 ) ->  | AO9: =IF(OR(IFERROR(FIND($AD9,"施設コード"),0)>0,$AE9=""), "", '満足度(商品・サービス)'!AO9+'満足度(施設全体)'!AO9 ) ->  | AQ9: =IF(OR(IFERROR(FIND($AD9,"施設コード"),0)>0,$AE9=""), "", '満足度(商品・サービス)'!AQ9+'満足度(施設全体)'!AQ9 ) ->  | AS9: =IF(OR(IFERROR(FIND($AD9,"施設コード"),0)>0,$AE9=""), "", '満足度(商品・サービス)'!AS9+'満足度(施設全体)'!AS9 ) ->  | AU9: =IF(OR(IFERROR(FIND($AD9,"施設コード"),0)>0,$AE9=""), "", '満足度(商品・サービス)'!AU9+'満足度(施設全体)'!AU9 ) ->  | AW9: =IF(OR(IFERROR(FIND($AD9,"施設コード"),0)>0,$AE9=""), "", '満足度(商品・サービス)'!AW9+'満足度(施設全体)'!AW9 ) ->  | AY9: =IF(OR(IFERROR(FIND($AD9,"施設コード"),0)>0,$AE9=""), "", '満足度(商品・サービス)'!AY9+'満足度(施設全体)'!AY9 ) ->  | BA9: =IF(OR(IFERROR(FIND($AD9,"施設コード"),0)>0,$AE9=""), "", '満足度(商品・サービス)'!BA9+'満足度(施設全体)'!BA9 ) ->  | BC9: =IF(OR(IFERROR(FIND($AD9,"施設コード"),0)>0,$AE9=""), "", '満足度(商品・サービス)'!BC9+'満足度(施設全体)'!BC9 ) -> 
AA10: =IF($AE10<>"",VLOOKUP($AE10,【M】満足度!$A$1:$B$5,2,0),"") ->  | AC10: =AC9 -> 都道府県 | AD10: =AD9 -> 福井県 | AG10: =IF(OR(IFERROR(FIND($AD10,"施設コード"),0)>0,$AE10=""), "", '満足度(商品・サービス)'!AG10+'満足度(施設全体)'!AG10 ) ->  | AI10: =IF(OR(IFERROR(FIND($AD10,"施設コード"),0)>0,$AE10=""), "", '満足度(商品・サービス)'!AI10+'満足度(施設全体)'!AI10 ) ->  | AK10: =IF(OR(IFERROR(FIND($AD10,"施設コード"),0)>0,$AE10=""), "", '満足度(商品・サービス)'!AK10+'満足度(施設全体)'!AK10 ) ->  | AM10: =IF(OR(IFERROR(FIND($AD10,"施設コード"),0)>0,$AE10=""), "", '満足度(商品・サービス)'!AM10+'満足度(施設全体)'!AM10 ) ->  | AO10: =IF(OR(IFERROR(FIND($AD10,"施設コード"),0)>0,$AE10=""), "", '満足度(商品・サービス)'!AO10+'満足度(施設全体)'!AO10 ) ->  | AQ10: =IF(OR(IFERROR(FIND($AD10,"施設コード"),0)>0,$AE10=""), "", '満足度(商品・サービス)'!AQ10+'満足度(施設全体)'!AQ10 ) ->  | AS10: =IF(OR(IFERROR(FIND($AD10,"施設コード"),0)>0,$AE10=""), "", '満足度(商品・サービス)'!AS10+'満足度(施設全体)'!AS10 ) ->  | AU10: =IF(OR(IFERROR(FIND($AD10,"施設コード"),0)>0,$AE10=""), "", '満足度(商品・サービス)'!AU10+'満足度(施設全体)'!AU10 ) ->  | AW10: =IF(OR(IFERROR(FIND($AD10,"施設コード"),0)>0,$AE10=""), "", '満足度(商品・サービス)'!AW10+'満足度(施設全体)'!AW10 ) ->  | AY10: =IF(OR(IFERROR(FIND($AD10,"施設コード"),0)>0,$AE10=""), "", '満足度(商品・サービス)'!AY10+'満足度(施設全体)'!AY10 ) ->  | BA10: =IF(OR(IFERROR(FIND($AD10,"施設コード"),0)>0,$AE10=""), "", '満足度(商品・サービス)'!BA10+'満足度(施設全体)'!BA10 ) ->  | BC10: =IF(OR(IFERROR(FIND($AD10,"施設コード"),0)>0,$AE10=""), "", '満足度(商品・サービス)'!BC10+'満足度(施設全体)'!BC10 ) -> 
AA11: =IF($AE11<>"",VLOOKUP($AE11,【M】満足度!$A$1:$B$5,2,0),"") ->  | AC11: 都道府県 | AD11: 福井県 | AG11: =IF(OR(IFERROR(FIND($AD11,"施設コード"),0)>0,$AE11=""), "", '満足度(商品・サービス)'!AG11+'満足度(施設全体)'!AG11 ) ->  | AI11: =IF(OR(IFERROR(FIND($AD11,"施設コード"),0)>0,$AE11=""), "", '満足度(商品・サービス)'!AI11+'満足度(施設全体)'!AI11 ) ->  | AK11: =IF(OR(IFERROR(FIND($AD11,"施設コード"),0)>0,$AE11=""), "", '満足度(商品・サービス)'!AK11+'満足度(施設全体)'!AK11 ) ->  | AM11: =IF(OR(IFERROR(FIND($AD11,"施設コード"),0)>0,$AE11=""), "", '満足度(商品・サービス)'!AM11+'満足度(施設全体)'!AM11 ) ->  | AO11: =IF(OR(IFERROR(FIND($AD11,"施設コード"),0)>0,$AE11=""), "", '満足度(商品・サービス)'!AO11+'満足度(施設全体)'!AO11 ) ->  | AQ11: =IF(OR(IFERROR(FIND($AD11,"施設コード"),0)>0,$AE11=""), "", '満足度(商品・サービス)'!AQ11+'満足度(施設全体)'!AQ11 ) ->  | AS11: =IF(OR(IFERROR(FIND($AD11,"施設コード"),0)>0,$AE11=""), "", '満足度(商品・サービス)'!AS11+'満足度(施設全体)'!AS11 ) ->  | AU11: =IF(OR(IFERROR(FIND($AD11,"施設コード"),0)>0,$AE11=""), "", '満足度(商品・サービス)'!AU11+'満足度(施設全体)'!AU11 ) ->  | AW11: =IF(OR(IFERROR(FIND($AD11,"施設コード"),0)>0,$AE11=""), "", '満足度(商品・サービス)'!AW11+'満足度(施設全体)'!AW11 ) ->  | AY11: =IF(OR(IFERROR(FIND($AD11,"施設コード"),0)>0,$AE11=""), "", '満足度(商品・サービス)'!AY11+'満足度(施設全体)'!AY11 ) ->  | BA11: =IF(OR(IFERROR(FIND($AD11,"施設コード"),0)>0,$AE11=""), "", '満足度(商品・サービス)'!BA11+'満足度(施設全体)'!BA11 ) ->  | BC11: =IF(OR(IFERROR(FIND($AD11,"施設コード"),0)>0,$AE11=""), "", '満足度(商品・サービス)'!BC11+'満足度(施設全体)'!BC11 ) -> 
AA12: =IF($AE12<>"",VLOOKUP($AE12,【M】満足度!$A$1:$B$5,2,0),"") ->  | AC12: 都道府県 | AD12: 福井県 | AG12: =IF(OR(IFERROR(FIND($AD12,"施設コード"),0)>0,$AE12=""), "", '満足度(商品・サービス)'!AG12+'満足度(施設全体)'!AG12 ) ->  | AI12: =IF(OR(IFERROR(FIND($AD12,"施設コード"),0)>0,$AE12=""), "", '満足度(商品・サービス)'!AI12+'満足度(施設全体)'!AI12 ) ->  | AK12: =IF(OR(IFERROR(FIND($AD12,"施設コード"),0)>0,$AE12=""), "", '満足度(商品・サービス)'!AK12+'満足度(施設全体)'!AK12 ) ->  | AM12: =IF(OR(IFERROR(FIND($AD12,"施設コード"),0)>0,$AE12=""), "", '満足度(商品・サービス)'!AM12+'満足度(施設全体)'!AM12 ) ->  | AO12: =IF(OR(IFERROR(FIND($AD12,"施設コード"),0)>0,$AE12=""), "", '満足度(商品・サービス)'!AO12+'満足度(施設全体)'!AO12 ) ->  | AQ12: =IF(OR(IFERROR(FIND($AD12,"施設コード"),0)>0,$AE12=""), "", '満足度(商品・サービス)'!AQ12+'満足度(施設全体)'!AQ12 ) ->  | AS12: =IF(OR(IFERROR(FIND($AD12,"施設コード"),0)>0,$AE12=""), "", '満足度(商品・サービス)'!AS12+'満足度(施設全体)'!AS12 ) ->  | AU12: =IF(OR(IFERROR(FIND($AD12,"施設コード"),0)>0,$AE12=""), "", '満足度(商品・サービス)'!AU12+'満足度(施設全体)'!AU12 ) ->  | AW12: =IF(OR(IFERROR(FIND($AD12,"施設コード"),0)>0,$AE12=""), "", '満足度(商品・サービス)'!AW12+'満足度(施設全体)'!AW12 ) ->  | AY12: =IF(OR(IFERROR(FIND($AD12,"施設コード"),0)>0,$AE12=""), "", '満足度(商品・サービス)'!AY12+'満足度(施設全体)'!AY12 ) ->  | BA12: =IF(OR(IFERROR(FIND($AD12,"施設コード"),0)>0,$AE12=""), "", '満足度(商品・サービス)'!BA12+'満足度(施設全体)'!BA12 ) ->  | BC12: =IF(OR(IFERROR(FIND($AD12,"施設コード"),0)>0,$AE12=""), "", '満足度(商品・サービス)'!BC12+'満足度(施設全体)'!BC12 ) -> 
AA13: =IF($AE13<>"",VLOOKUP($AE13,【M】満足度!$A$1:$B$5,2,0),"") ->  | AC13: 都道府県 | AD13: 福井県 | AG13: =IF(OR(IFERROR(FIND($AD13,"施設コード"),0)>0,$AE13=""), "", '満足度(商品・サービス)'!AG13+'満足度(施設全体)'!AG13 ) ->  | AI13: =IF(OR(IFERROR(FIND($AD13,"施設コード"),0)>0,$AE13=""), "", '満足度(商品・サービス)'!AI13+'満足度(施設全体)'!AI13 ) ->  | AK13: =IF(OR(IFERROR(FIND($AD13,"施設コード"),0)>0,$AE13=""), "", '満足度(商品・サービス)'!AK13+'満足度(施設全体)'!AK13 ) ->  | AM13: =IF(OR(IFERROR(FIND($AD13,"施設コード"),0)>0,$AE13=""), "", '満足度(商品・サービス)'!AM13+'満足度(施設全体)'!AM13 ) ->  | AO13: =IF(OR(IFERROR(FIND($AD13,"施設コード"),0)>0,$AE13=""), "", '満足度(商品・サービス)'!AO13+'満足度(施設全体)'!AO13 ) ->  | AQ13: =IF(OR(IFERROR(FIND($AD13,"施設コード"),0)>0,$AE13=""), "", '満足度(商品・サービス)'!AQ13+'満足度(施設全体)'!AQ13 ) ->  | AS13: =IF(OR(IFERROR(FIND($AD13,"施設コード"),0)>0,$AE13=""), "", '満足度(商品・サービス)'!AS13+'満足度(施設全体)'!AS13 ) ->  | AU13: =IF(OR(IFERROR(FIND($AD13,"施設コード"),0)>0,$AE13=""), "", '満足度(商品・サービス)'!AU13+'満足度(施設全体)'!AU13 ) ->  | AW13: =IF(OR(IFERROR(FIND($AD13,"施設コード"),0)>0,$AE13=""), "", '満足度(商品・サービス)'!AW13+'満足度(施設全体)'!AW13 ) ->  | AY13: =IF(OR(IFERROR(FIND($AD13,"施設コード"),0)>0,$AE13=""), "", '満足度(商品・サービス)'!AY13+'満足度(施設全体)'!AY13 ) ->  | BA13: =IF(OR(IFERROR(FIND($AD13,"施設コード"),0)>0,$AE13=""), "", '満足度(商品・サービス)'!BA13+'満足度(施設全体)'!BA13 ) ->  | BC13: =IF(OR(IFERROR(FIND($AD13,"施設コード"),0)>0,$AE13=""), "", '満足度(商品・サービス)'!BC13+'満足度(施設全体)'!BC13 ) -> 
AA14: =IF($AE14<>"",VLOOKUP($AE14,【M】満足度!$A$1:$B$5,2,0),"") ->  | AC14: =AC12 -> 都道府県 | AD14: =AD12 -> 福井県 | AG14: =IF(OR(IFERROR(FIND($AD14,"施設コード"),0)>0,$AE14=""), "", '満足度(商品・サービス)'!AG14+'満足度(施設全体)'!AG14 ) ->  | AH14: =IFERROR(AG14/AG$15,"") ->  | AI14: =IF(OR(IFERROR(FIND($AD14,"施設コード"),0)>0,$AE14=""), "", '満足度(商品・サービス)'!AI14+'満足度(施設全体)'!AI14 ) ->  | AJ14: =IFERROR(AI14/AI$15,"") ->  | AK14: =IF(OR(IFERROR(FIND($AD14,"施設コード"),0)>0,$AE14=""), "", '満足度(商品・サービス)'!AK14+'満足度(施設全体)'!AK14 ) ->  | AL14: =IFERROR(AK14/AK$15,"") ->  | AM14: =IF(OR(IFERROR(FIND($AD14,"施設コード"),0)>0,$AE14=""), "", '満足度(商品・サービス)'!AM14+'満足度(施設全体)'!AM14 ) ->  | AN14: =IFERROR(AM14/AM$15,"") ->  | AO14: =IF(OR(IFERROR(FIND($AD14,"施設コード"),0)>0,$AE14=""), "", '満足度(商品・サービス)'!AO14+'満足度(施設全体)'!AO14 ) ->  | AP14: =IFERROR(AO14/AO$15,"") ->  | AQ14: =IF(OR(IFERROR(FIND($AD14,"施設コード"),0)>0,$AE14=""), "", '満足度(商品・サービス)'!AQ14+'満足度(施設全体)'!AQ14 ) ->  | AR14: =IFERROR(AQ14/AQ$15,"") ->  | AS14: =IF(OR(IFERROR(FIND($AD14,"施設コード"),0)>0,$AE14=""), "", '満足度(商品・サービス)'!AS14+'満足度(施設全体)'!AS14 ) ->  | AT14: =IFERROR(AS14/AS$15,"") ->  | AU14: =IF(OR(IFERROR(FIND($AD14,"施設コード"),0)>0,$AE14=""), "", '満足度(商品・サービス)'!AU14+'満足度(施設全体)'!AU14 ) ->  | AV14: =IFERROR(AU14/AU$15,"") ->  | AW14: =IF(OR(IFERROR(FIND($AD14,"施設コード"),0)>0,$AE14=""), "", '満足度(商品・サービス)'!AW14+'満足度(施設全体)'!AW14 ) ->  | AX14: =IFERROR(AW14/AW$15,"") ->  | AY14: =IF(OR(IFERROR(FIND($AD14,"施設コード"),0)>0,$AE14=""), "", '満足度(商品・サービス)'!AY14+'満足度(施設全体)'!AY14 ) ->  | AZ14: =IFERROR(AY14/AY$15,"") ->  | BA14: =IF(OR(IFERROR(FIND($AD14,"施設コード"),0)>0,$AE14=""), "", '満足度(商品・サービス)'!BA14+'満足度(施設全体)'!BA14 ) ->  | BB14: =IFERROR(BA14/BA$15,"") ->  | BC14: =IF(OR(IFERROR(FIND($AD14,"施設コード"),0)>0,$AE14=""), "", '満足度(商品・サービス)'!BC14+'満足度(施設全体)'!BC14 ) ->  | BD14: =IFERROR(BC14/BC$15,"") ->  | BF14: =IFERROR(BE14/BE$15,"") -> 
AF15: 合計 | AG15: =SUM(AG3:AG14) -> 6,482件 | AH15: 100.0% | AI15: 5,878件 | AJ15: 100.0% | AK15: 4,660件 | AL15: 100.0% | AM15: 3,800件 | AN15: 100.0% | AO15: 5,220件 | AP15: 100.0% | AQ15: 5,330件 | AR15: 100.0% | AS15: 4,440件 | AT15: 100.0% | AU15: 5,096件 | AV15: 100.0% | AW15: 3,896件 | AX15: 100.0% | AY15: 2,930件 | AZ15: 100.0% | BA15: 2,746件 | BB15: 100.0% | BC15: 5,450件 | BD15: 100.0% | BE15: =AG15+AI15+AK15+AM15+AO15+AQ15+AS15+AU15+AW15+AY15+BA15+BC15 -> 55,928件 | BF15: =SUM(BF3:BF14) -> 100.0%
AF16: 総合満足度スコア | AG16: =IF(AG15>0,SUMPRODUCT($AA3:$AA14,AG3:AG14)/AG15,"-") -> 4.17 | AI16: =IF(AI15>0,SUMPRODUCT($AA3:$AA14,AI3:AI14)/AI15,"-") -> 4.20 | AK16: =IF(AK15>0,SUMPRODUCT($AA3:$AA14,AK3:AK14)/AK15,"-") -> 4.20 | AM16: =IF(AM15>0,SUMPRODUCT($AA3:$AA14,AM3:AM14)/AM15,"-") -> 4.22 | AO16: =IF(AO15>0,SUMPRODUCT($AA3:$AA14,AO3:AO14)/AO15,"-") -> 4.26 | AQ16: =IF(AQ15>0,SUMPRODUCT($AA3:$AA14,AQ3:AQ14)/AQ15,"-") -> 4.26 | AS16: =IF(AS15>0,SUMPRODUCT($AA3:$AA14,AS3:AS14)/AS15,"-") -> 4.24 | AU16: =IF(AU15>0,SUMPRODUCT($AA3:$AA14,AU3:AU14)/AU15,"-") -> 4.19 | AW16: =IF(AW15>0,SUMPRODUCT($AA3:$AA14,AW3:AW14)/AW15,"-") -> 4.28 | AY16: =IF(AY15>0,SUMPRODUCT($AA3:$AA14,AY3:AY14)/AY15,"-") -> 4.29 | BA16: =IF(BA15>0,SUMPRODUCT($AA3:$AA14,BA3:BA14)/BA15,"-") -> 4.25 | BC16: =IF(BC15>0,SUMPRODUCT($AA3:$AA14,BC3:BC14)/BC15,"-") -> 4.30 | BE16: =IF(BE15>0,SUMPRODUCT($AA3:$AA14,BE3:BE14)/BE15,"-") -> 4.23
AC17: =【M】エリア!$J$2 -> 6分類 | AD17: =【M】エリア!$L$3 -> 福井市・永平寺町
AA18: =IF($AE18<>"",VLOOKUP($AE18,【M】満足度!$A$1:$B$5,2,0),"") -> 5 | AC18: =AC17 -> 6分類 | AD18: =AD17 -> 福井市・永平寺町 | AE18: =IF(AE3<>"",AE3,"") -> とても満足 | AG18: =IF(OR(IFERROR(FIND($AD18,"施設コード"),0)>0,$AE18=""), "", '満足度(商品・サービス)'!AG18+'満足度(施設全体)'!AG18 ) -> 341件 | AH18: =IFERROR(AG18/AG$30,"") -> 34.3% | AI18: =IF(OR(IFERROR(FIND($AD18,"施設コード"),0)>0,$AE18=""), "", '満足度(商品・サービス)'!AI18+'満足度(施設全体)'!AI18 ) -> 428件 | AJ18: =IFERROR(AI18/AI$30,"") -> 37.2% | AK18: =IF(OR(IFERROR(FIND($AD18,"施設コード"),0)>0,$AE18=""), "", '満足度(商品・サービス)'!AK18+'満足度(施設全体)'!AK18 ) -> 390件 | AL18: =IFERROR(AK18/AK$30,"") -> 37.9% | AM18: =IF(OR(IFERROR(FIND($AD18,"施設コード"),0)>0,$AE18=""), "", '満足度(商品・サービス)'!AM18+'満足度(施設全体)'!AM18 ) -> 275件 | AN18: =IFERROR(AM18/AM$30,"") -> 35.9% | AO18: =IF(OR(IFERROR(FIND($AD18,"施設コード"),0)>0,$AE18=""), "", '満足度(商品・サービス)'!AO18+'満足度(施設全体)'!AO18 ) -> 411件 | AP18: =IFERROR(AO18/AO$30,"") -> 37.6% | AQ18: =IF(OR(IFERROR(FIND($AD18,"施設コード"),0)>0,$AE18=""), "", '満足度(商品・サービス)'!AQ18+'満足度(施設全体)'!AQ18 ) -> 467件 | AR18: =IFERROR(AQ18/AQ$30,"") -> 40.3% | AS18: =IF(OR(IFERROR(FIND($AD18,"施設コード"),0)>0,$AE18=""), "", '満足度(商品・サービス)'!AS18+'満足度(施設全体)'!AS18 ) -> 354件 | AT18: =IFERROR(AS18/AS$30,"") -> 39.6% | AU18: =IF(OR(IFERROR(FIND($AD18,"施設コード"),0)>0,$AE18=""), "", '満足度(商品・サービス)'!AU18+'満足度(施設全体)'!AU18 ) -> 384件 | AV18: =IFERROR(AU18/AU$30,"") -> 31.5% | AW18: =IF(OR(IFERROR(FIND($AD18,"施設コード"),0)>0,$AE18=""), "", '満足度(商品・サービス)'!AW18+'満足度(施設全体)'!AW18 ) -> 294件 | AX18: =IFERROR(AW18/AW$30,"") -> 39.9% | AY18: =IF(OR(IFERROR(FIND($AD18,"施設コード"),0)>0,$AE18=""), "", '満足度(商品・サービス)'!AY18+'満足度(施設全体)'!AY18 ) -> 230件 | AZ18: =IFERROR(AY18/AY$30,"") -> 38.2% | BA18: =IF(OR(IFERROR(FIND($AD18,"施設コード"),0)>0,$AE18=""), "", '満足度(商品・サービス)'!BA18+'満足度(施設全体)'!BA18 ) -> 184件 | BB18: =IFERROR(BA18/BA$30,"") -> 35.0% | BC18: =IF(OR(IFERROR(FIND($AD18,"施設コード"),0)>0,$AE18=""), "", '満足度(商品・サービス)'!BC18+'満足度(施設全体)'!BC18 ) -> 414件 | BD18: =IFERROR(BC18/BC$30,"") -> 38.7% | BE18: =IFERROR(AG18+AI18+AK18+AM18+AO18+AQ18+AS18+AU18+AW18+AY18+BA18+BC18,"") -> 4172件 | BF18: =IFERROR(BE18/BE$30,"") -> 37.1%
AA19: =IF($AE19<>"",VLOOKUP($AE19,【M】満足度!$A$1:$B$5,2,0),"") -> 4 | AC19: =AC18 -> 6分類 | AD19: 福井市・永平寺町 | AE19: 満足 | AG19: =IF(OR(IFERROR(FIND($AD19,"施設コード"),0)>0,$AE19=""), "", '満足度(商品・サービス)'!AG19+'満足度(施設全体)'!AG19 ) -> 539件 | AH19: 54.2% | AI19: =IF(OR(IFERROR(FIND($AD19,"施設コード"),0)>0,$AE19=""), "", '満足度(商品・サービス)'!AI19+'満足度(施設全体)'!AI19 ) -> 584件 | AJ19: 50.8% | AK19: =IF(OR(IFERROR(FIND($AD19,"施設コード"),0)>0,$AE19=""), "", '満足度(商品・サービス)'!AK19+'満足度(施設全体)'!AK19 ) -> 534件 | AL19: 51.9% | AM19: =IF(OR(IFERROR(FIND($AD19,"施設コード"),0)>0,$AE19=""), "", '満足度(商品・サービス)'!AM19+'満足度(施設全体)'!AM19 ) -> 406件 | AN19: 53.0% | AO19: =IF(OR(IFERROR(FIND($AD19,"施設コード"),0)>0,$AE19=""), "", '満足度(商品・サービス)'!AO19+'満足度(施設全体)'!AO19 ) -> 578件 | AP19: 52.8% | AQ19: =IF(OR(IFERROR(FIND($AD19,"施設コード"),0)>0,$AE19=""), "", '満足度(商品・サービス)'!AQ19+'満足度(施設全体)'!AQ19 ) -> 561件 | AR19: 48.4% | AS19: =IF(OR(IFERROR(FIND($AD19,"施設コード"),0)>0,$AE19=""), "", '満足度(商品・サービス)'!AS19+'満足度(施設全体)'!AS19 ) -> 474件 | AT19: 53.0% | AU19: =IF(OR(IFERROR(FIND($AD19,"施設コード"),0)>0,$AE19=""), "", '満足度(商品・サービス)'!AU19+'満足度(施設全体)'!AU19 ) -> 708件 | AV19: 58.1% | AW19: =IF(OR(IFERROR(FIND($AD19,"施設コード"),0)>0,$AE19=""), "", '満足度(商品・サービス)'!AW19+'満足度(施設全体)'!AW19 ) -> 375件 | AX19: 51.0% | AY19: =IF(OR(IFERROR(FIND($AD19,"施設コード"),0)>0,$AE19=""), "", '満足度(商品・サービス)'!AY19+'満足度(施設全体)'!AY19 ) -> 321件 | AZ19: 53.3% | BA19: =IF(OR(IFERROR(FIND($AD19,"施設コード"),0)>0,$AE19=""), "", '満足度(商品・サービス)'!BA19+'満足度(施設全体)'!BA19 ) -> 285件 | BB19: 54.2% | BC19: =IF(OR(IFERROR(FIND($AD19,"施設コード"),0)>0,$AE19=""), "", '満足度(商品・サービス)'!BC19+'満足度(施設全体)'!BC19 ) -> 536件 | BD19: 50.1% | BE19: =IFERROR(AG19+AI19+AK19+AM19+AO19+AQ19+AS19+AU19+AW19+AY19+BA19+BC19,"") -> 5901件 | BF19: 52.5%
AA20: =IF($AE20<>"",VLOOKUP($AE20,【M】満足度!$A$1:$B$5,2,0),"") -> 3 | AC20: 6分類 | AD20: 福井市・永平寺町 | AE20: どちらでもない | AG20: =IF(OR(IFERROR(FIND($AD20,"施設コード"),0)>0,$AE20=""), "", '満足度(商品・サービス)'!AG20+'満足度(施設全体)'!AG20 ) -> 106件 | AH20: 10.7% | AI20: =IF(OR(IFERROR(FIND($AD20,"施設コード"),0)>0,$AE20=""), "", '満足度(商品・サービス)'!AI20+'満足度(施設全体)'!AI20 ) -> 130件 | AJ20: 11.3% | AK20: =IF(OR(IFERROR(FIND($AD20,"施設コード"),0)>0,$AE20=""), "", '満足度(商品・サービス)'!AK20+'満足度(施設全体)'!AK20 ) -> 93件 | AL20: 9.0% | AM20: =IF(OR(IFERROR(FIND($AD20,"施設コード"),0)>0,$AE20=""), "", '満足度(商品・サービス)'!AM20+'満足度(施設全体)'!AM20 ) -> 73件 | AN20: 9.5% | AO20: =IF(OR(IFERROR(FIND($AD20,"施設コード"),0)>0,$AE20=""), "", '満足度(商品・サービス)'!AO20+'満足度(施設全体)'!AO20 ) -> 89件 | AP20: 8.1% | AQ20: =IF(OR(IFERROR(FIND($AD20,"施設コード"),0)>0,$AE20=""), "", '満足度(商品・サービス)'!AQ20+'満足度(施設全体)'!AQ20 ) -> 119件 | AR20: 10.3% | AS20: =IF(OR(IFERROR(FIND($AD20,"施設コード"),0)>0,$AE20=""), "", '満足度(商品・サービス)'!AS20+'満足度(施設全体)'!AS20 ) -> 60件 | AT20: 6.7% | AU20: =IF(OR(IFERROR(FIND($AD20,"施設コード"),0)>0,$AE20=""), "", '満足度(商品・サービス)'!AU20+'満足度(施設全体)'!AU20 ) -> 108件 | AV20: 8.9% | AW20: =IF(OR(IFERROR(FIND($AD20,"施設コード"),0)>0,$AE20=""), "", '満足度(商品・サービス)'!AW20+'満足度(施設全体)'!AW20 ) -> 64件 | AX20: 8.7% | AY20: =IF(OR(IFERROR(FIND($AD20,"施設コード"),0)>0,$AE20=""), "", '満足度(商品・サービス)'!AY20+'満足度(施設全体)'!AY20 ) -> 48件 | AZ20: 8.0% | BA20: =IF(OR(IFERROR(FIND($AD20,"施設コード"),0)>0,$AE20=""), "", '満足度(商品・サービス)'!BA20+'満足度(施設全体)'!BA20 ) -> 49件 | BB20: 9.3% | BC20: =IF(OR(IFERROR(FIND($AD20,"施設コード"),0)>0,$AE20=""), "", '満足度(商品・サービス)'!BC20+'満足度(施設全体)'!BC20 ) -> 112件 | BD20: 10.5% | BE20: 1051件 | BF20: 9.4%
AA21: =IF($AE21<>"",VLOOKUP($AE21,【M】満足度!$A$1:$B$5,2,0),"") -> 2 | AC21: 6分類 | AD21: 福井市・永平寺町 | AE21: 不満 | AG21: =IF(OR(IFERROR(FIND($AD21,"施設コード"),0)>0,$AE21=""), "", '満足度(商品・サービス)'!AG21+'満足度(施設全体)'!AG21 ) -> 7件 | AH21: 0.7% | AI21: =IF(OR(IFERROR(FIND($AD21,"施設コード"),0)>0,$AE21=""), "", '満足度(商品・サービス)'!AI21+'満足度(施設全体)'!AI21 ) -> 8件 | AJ21: 0.7% | AK21: =IF(OR(IFERROR(FIND($AD21,"施設コード"),0)>0,$AE21=""), "", '満足度(商品・サービス)'!AK21+'満足度(施設全体)'!AK21 ) -> 10件 | AL21: 1.0% | AM21: =IF(OR(IFERROR(FIND($AD21,"施設コード"),0)>0,$AE21=""), "", '満足度(商品・サービス)'!AM21+'満足度(施設全体)'!AM21 ) -> 8件 | AN21: 1.0% | AO21: =IF(OR(IFERROR(FIND($AD21,"施設コード"),0)>0,$AE21=""), "", '満足度(商品・サービス)'!AO21+'満足度(施設全体)'!AO21 ) -> 15件 | AP21: 1.4% | AQ21: =IF(OR(IFERROR(FIND($AD21,"施設コード"),0)>0,$AE21=""), "", '満足度(商品・サービス)'!AQ21+'満足度(施設全体)'!AQ21 ) -> 13件 | AR21: 1.1% | AS21: =IF(OR(IFERROR(FIND($AD21,"施設コード"),0)>0,$AE21=""), "", '満足度(商品・サービス)'!AS21+'満足度(施設全体)'!AS21 ) -> 5件 | AT21: 0.6% | AU21: =IF(OR(IFERROR(FIND($AD21,"施設コード"),0)>0,$AE21=""), "", '満足度(商品・サービス)'!AU21+'満足度(施設全体)'!AU21 ) -> 11件 | AV21: 0.9% | AW21: =IF(OR(IFERROR(FIND($AD21,"施設コード"),0)>0,$AE21=""), "", '満足度(商品・サービス)'!AW21+'満足度(施設全体)'!AW21 ) -> 2件 | AX21: 0.3% | AY21: =IF(OR(IFERROR(FIND($AD21,"施設コード"),0)>0,$AE21=""), "", '満足度(商品・サービス)'!AY21+'満足度(施設全体)'!AY21 ) -> 3件 | AZ21: 0.5% | BA21: =IF(OR(IFERROR(FIND($AD21,"施設コード"),0)>0,$AE21=""), "", '満足度(商品・サービス)'!BA21+'満足度(施設全体)'!BA21 ) -> 7件 | BB21: 1.3% | BC21: =IF(OR(IFERROR(FIND($AD21,"施設コード"),0)>0,$AE21=""), "", '満足度(商品・サービス)'!BC21+'満足度(施設全体)'!BC21 ) -> 8件 | BD21: 0.7% | BE21: 97件 | BF21: 0.9%
AA22: =IF($AE22<>"",VLOOKUP($AE22,【M】満足度!$A$1:$B$5,2,0),"") -> 1 | AC22: 6分類 | AD22: 福井市・永平寺町 | AE22: とても不満 | AG22: =IF(OR(IFERROR(FIND($AD22,"施設コード"),0)>0,$AE22=""), "", '満足度(商品・サービス)'!AG22+'満足度(施設全体)'!AG22 ) -> 1件 | AH22: 0.1% | AI22: =IF(OR(IFERROR(FIND($AD22,"施設コード"),0)>0,$AE22=""), "", '満足度(商品・サービス)'!AI22+'満足度(施設全体)'!AI22 ) -> 0件 | AJ22: 0.0% | AK22: =IF(OR(IFERROR(FIND($AD22,"施設コード"),0)>0,$AE22=""), "", '満足度(商品・サービス)'!AK22+'満足度(施設全体)'!AK22 ) -> 1件 | AL22: 0.1% | AM22: =IF(OR(IFERROR(FIND($AD22,"施設コード"),0)>0,$AE22=""), "", '満足度(商品・サービス)'!AM22+'満足度(施設全体)'!AM22 ) -> 4件 | AN22: 0.5% | AO22: =IF(OR(IFERROR(FIND($AD22,"施設コード"),0)>0,$AE22=""), "", '満足度(商品・サービス)'!AO22+'満足度(施設全体)'!AO22 ) -> 1件 | AP22: 0.1% | AQ22: =IF(OR(IFERROR(FIND($AD22,"施設コード"),0)>0,$AE22=""), "", '満足度(商品・サービス)'!AQ22+'満足度(施設全体)'!AQ22 ) -> 0件 | AR22: 0.0% | AS22: =IF(OR(IFERROR(FIND($AD22,"施設コード"),0)>0,$AE22=""), "", '満足度(商品・サービス)'!AS22+'満足度(施設全体)'!AS22 ) -> 1件 | AT22: 0.1% | AU22: =IF(OR(IFERROR(FIND($AD22,"施設コード"),0)>0,$AE22=""), "", '満足度(商品・サービス)'!AU22+'満足度(施設全体)'!AU22 ) -> 7件 | AV22: 0.6% | AW22: =IF(OR(IFERROR(FIND($AD22,"施設コード"),0)>0,$AE22=""), "", '満足度(商品・サービス)'!AW22+'満足度(施設全体)'!AW22 ) -> 1件 | AX22: 0.1% | AY22: =IF(OR(IFERROR(FIND($AD22,"施設コード"),0)>0,$AE22=""), "", '満足度(商品・サービス)'!AY22+'満足度(施設全体)'!AY22 ) -> 0件 | AZ22: 0.0% | BA22: =IF(OR(IFERROR(FIND($AD22,"施設コード"),0)>0,$AE22=""), "", '満足度(商品・サービス)'!BA22+'満足度(施設全体)'!BA22 ) -> 1件 | BB22: 0.2% | BC22: =IF(OR(IFERROR(FIND($AD22,"施設コード"),0)>0,$AE22=""), "", '満足度(商品・サービス)'!BC22+'満足度(施設全体)'!BC22 ) -> 0件 | BD22: 0.0% | BE22: 17件 | BF22: 0.2%
AA23: =IF($AE23<>"",VLOOKUP($AE23,【M】満足度!$A$1:$B$5,2,0),"") ->  | AC23: 6分類 | AD23: 福井市・永平寺町 | AG23: =IF(OR(IFERROR(FIND($AD23,"施設コード"),0)>0,$AE23=""), "", '満足度(商品・サービス)'!AG23+'満足度(施設全体)'!AG23 ) ->  | AI23: =IF(OR(IFERROR(FIND($AD23,"施設コード"),0)>0,$AE23=""), "", '満足度(商品・サービス)'!AI23+'満足度(施設全体)'!AI23 ) ->  | AK23: =IF(OR(IFERROR(FIND($AD23,"施設コード"),0)>0,$AE23=""), "", '満足度(商品・サービス)'!AK23+'満足度(施設全体)'!AK23 ) ->  | AM23: =IF(OR(IFERROR(FIND($AD23,"施設コード"),0)>0,$AE23=""), "", '満足度(商品・サービス)'!AM23+'満足度(施設全体)'!AM23 ) ->  | AO23: =IF(OR(IFERROR(FIND($AD23,"施設コード"),0)>0,$AE23=""), "", '満足度(商品・サービス)'!AO23+'満足度(施設全体)'!AO23 ) ->  | AQ23: =IF(OR(IFERROR(FIND($AD23,"施設コード"),0)>0,$AE23=""), "", '満足度(商品・サービス)'!AQ23+'満足度(施設全体)'!AQ23 ) ->  | AS23: =IF(OR(IFERROR(FIND($AD23,"施設コード"),0)>0,$AE23=""), "", '満足度(商品・サービス)'!AS23+'満足度(施設全体)'!AS23 ) ->  | AU23: =IF(OR(IFERROR(FIND($AD23,"施設コード"),0)>0,$AE23=""), "", '満足度(商品・サービス)'!AU23+'満足度(施設全体)'!AU23 ) ->  | AW23: =IF(OR(IFERROR(FIND($AD23,"施設コード"),0)>0,$AE23=""), "", '満足度(商品・サービス)'!AW23+'満足度(施設全体)'!AW23 ) ->  | AY23: =IF(OR(IFERROR(FIND($AD23,"施設コード"),0)>0,$AE23=""), "", '満足度(商品・サービス)'!AY23+'満足度(施設全体)'!AY23 ) ->  | BA23: =IF(OR(IFERROR(FIND($AD23,"施設コード"),0)>0,$AE23=""), "", '満足度(商品・サービス)'!BA23+'満足度(施設全体)'!BA23 ) ->  | BC23: =IF(OR(IFERROR(FIND($AD23,"施設コード"),0)>0,$AE23=""), "", '満足度(商品・サービス)'!BC23+'満足度(施設全体)'!BC23 ) -> 
AA24: =IF($AE24<>"",VLOOKUP($AE24,【M】満足度!$A$1:$B$5,2,0),"") ->  | AC24: 6分類 | AD24: 福井市・永平寺町 | AG24: =IF(OR(IFERROR(FIND($AD24,"施設コード"),0)>0,$AE24=""), "", '満足度(商品・サービス)'!AG24+'満足度(施設全体)'!AG24 ) ->  | AI24: =IF(OR(IFERROR(FIND($AD24,"施設コード"),0)>0,$AE24=""), "", '満足度(商品・サービス)'!AI24+'満足度(施設全体)'!AI24 ) ->  | AK24: =IF(OR(IFERROR(FIND($AD24,"施設コード"),0)>0,$AE24=""), "", '満足度(商品・サービス)'!AK24+'満足度(施設全体)'!AK24 ) ->  | AM24: =IF(OR(IFERROR(FIND($AD24,"施設コード"),0)>0,$AE24=""), "", '満足度(商品・サービス)'!AM24+'満足度(施設全体)'!AM24 ) ->  | AO24: =IF(OR(IFERROR(FIND($AD24,"施設コード"),0)>0,$AE24=""), "", '満足度(商品・サービス)'!AO24+'満足度(施設全体)'!AO24 ) ->  | AQ24: =IF(OR(IFERROR(FIND($AD24,"施設コード"),0)>0,$AE24=""), "", '満足度(商品・サービス)'!AQ24+'満足度(施設全体)'!AQ24 ) ->  | AS24: =IF(OR(IFERROR(FIND($AD24,"施設コード"),0)>0,$AE24=""), "", '満足度(商品・サービス)'!AS24+'満足度(施設全体)'!AS24 ) ->  | AU24: =IF(OR(IFERROR(FIND($AD24,"施設コード"),0)>0,$AE24=""), "", '満足度(商品・サービス)'!AU24+'満足度(施設全体)'!AU24 ) ->  | AW24: =IF(OR(IFERROR(FIND($AD24,"施設コード"),0)>0,$AE24=""), "", '満足度(商品・サービス)'!AW24+'満足度(施設全体)'!AW24 ) ->  | AY24: =IF(OR(IFERROR(FIND($AD24,"施設コード"),0)>0,$AE24=""), "", '満足度(商品・サービス)'!AY24+'満足度(施設全体)'!AY24 ) ->  | BA24: =IF(OR(IFERROR(FIND($AD24,"施設コード"),0)>0,$AE24=""), "", '満足度(商品・サービス)'!BA24+'満足度(施設全体)'!BA24 ) ->  | BC24: =IF(OR(IFERROR(FIND($AD24,"施設コード"),0)>0,$AE24=""), "", '満足度(商品・サービス)'!BC24+'満足度(施設全体)'!BC24 ) -> 
AA25: =IF($AE25<>"",VLOOKUP($AE25,【M】満足度!$A$1:$B$5,2,0),"") ->  | AC25: =AC24 -> 6分類 | AD25: =AD24 -> 福井市・永平寺町 | AG25: =IF(OR(IFERROR(FIND($AD25,"施設コード"),0)>0,$AE25=""), "", '満足度(商品・サービス)'!AG25+'満足度(施設全体)'!AG25 ) ->  | AI25: =IF(OR(IFERROR(FIND($AD25,"施設コード"),0)>0,$AE25=""), "", '満足度(商品・サービス)'!AI25+'満足度(施設全体)'!AI25 ) ->  | AK25: =IF(OR(IFERROR(FIND($AD25,"施設コード"),0)>0,$AE25=""), "", '満足度(商品・サービス)'!AK25+'満足度(施設全体)'!AK25 ) ->  | AM25: =IF(OR(IFERROR(FIND($AD25,"施設コード"),0)>0,$AE25=""), "", '満足度(商品・サービス)'!AM25+'満足度(施設全体)'!AM25 ) ->  | AO25: =IF(OR(IFERROR(FIND($AD25,"施設コード"),0)>0,$AE25=""), "", '満足度(商品・サービス)'!AO25+'満足度(施設全体)'!AO25 ) ->  | AQ25: =IF(OR(IFERROR(FIND($AD25,"施設コード"),0)>0,$AE25=""), "", '満足度(商品・サービス)'!AQ25+'満足度(施設全体)'!AQ25 ) ->  | AS25: =IF(OR(IFERROR(FIND($AD25,"施設コード"),0)>0,$AE25=""), "", '満足度(商品・サービス)'!AS25+'満足度(施設全体)'!AS25 ) ->  | AU25: =IF(OR(IFERROR(FIND($AD25,"施設コード"),0)>0,$AE25=""), "", '満足度(商品・サービス)'!AU25+'満足度(施設全体)'!AU25 ) ->  | AW25: =IF(OR(IFERROR(FIND($AD25,"施設コード"),0)>0,$AE25=""), "", '満足度(商品・サービス)'!AW25+'満足度(施設全体)'!AW25 ) ->  | AY25: =IF(OR(IFERROR(FIND($AD25,"施設コード"),0)>0,$AE25=""), "", '満足度(商品・サービス)'!AY25+'満足度(施設全体)'!AY25 ) ->  | BA25: =IF(OR(IFERROR(FIND($AD25,"施設コード"),0)>0,$AE25=""), "", '満足度(商品・サービス)'!BA25+'満足度(施設全体)'!BA25 ) ->  | BC25: =IF(OR(IFERROR(FIND($AD25,"施設コード"),0)>0,$AE25=""), "", '満足度(商品・サービス)'!BC25+'満足度(施設全体)'!BC25 ) -> 
AA26: =IF($AE26<>"",VLOOKUP($AE26,【M】満足度!$A$1:$B$5,2,0),"") ->  | AC26: 6分類 | AD26: 福井市・永平寺町 | AG26: =IF(OR(IFERROR(FIND($AD26,"施設コード"),0)>0,$AE26=""), "", '満足度(商品・サービス)'!AG26+'満足度(施設全体)'!AG26 ) ->  | AI26: =IF(OR(IFERROR(FIND($AD26,"施設コード"),0)>0,$AE26=""), "", '満足度(商品・サービス)'!AI26+'満足度(施設全体)'!AI26 ) ->  | AK26: =IF(OR(IFERROR(FIND($AD26,"施設コード"),0)>0,$AE26=""), "", '満足度(商品・サービス)'!AK26+'満足度(施設全体)'!AK26 ) ->  | AM26: =IF(OR(IFERROR(FIND($AD26,"施設コード"),0)>0,$AE26=""), "", '満足度(商品・サービス)'!AM26+'満足度(施設全体)'!AM26 ) ->  | AO26: =IF(OR(IFERROR(FIND($AD26,"施設コード"),0)>0,$AE26=""), "", '満足度(商品・サービス)'!AO26+'満足度(施設全体)'!AO26 ) ->  | AQ26: =IF(OR(IFERROR(FIND($AD26,"施設コード"),0)>0,$AE26=""), "", '満足度(商品・サービス)'!AQ26+'満足度(施設全体)'!AQ26 ) ->  | AS26: =IF(OR(IFERROR(FIND($AD26,"施設コード"),0)>0,$AE26=""), "", '満足度(商品・サービス)'!AS26+'満足度(施設全体)'!AS26 ) ->  | AU26: =IF(OR(IFERROR(FIND($AD26,"施設コード"),0)>0,$AE26=""), "", '満足度(商品・サービス)'!AU26+'満足度(施設全体)'!AU26 ) ->  | AW26: =IF(OR(IFERROR(FIND($AD26,"施設コード"),0)>0,$AE26=""), "", '満足度(商品・サービス)'!AW26+'満足度(施設全体)'!AW26 ) ->  | AY26: =IF(OR(IFERROR(FIND($AD26,"施設コード"),0)>0,$AE26=""), "", '満足度(商品・サービス)'!AY26+'満足度(施設全体)'!AY26 ) ->  | BA26: =IF(OR(IFERROR(FIND($AD26,"施設コード"),0)>0,$AE26=""), "", '満足度(商品・サービス)'!BA26+'満足度(施設全体)'!BA26 ) ->  | BC26: =IF(OR(IFERROR(FIND($AD26,"施設コード"),0)>0,$AE26=""), "", '満足度(商品・サービス)'!BC26+'満足度(施設全体)'!BC26 ) -> 
AA27: =IF($AE27<>"",VLOOKUP($AE27,【M】満足度!$A$1:$B$5,2,0),"") ->  | AC27: 6分類 | AD27: 福井市・永平寺町 | AG27: =IF(OR(IFERROR(FIND($AD27,"施設コード"),0)>0,$AE27=""), "", '満足度(商品・サービス)'!AG27+'満足度(施設全体)'!AG27 ) ->  | AI27: =IF(OR(IFERROR(FIND($AD27,"施設コード"),0)>0,$AE27=""), "", '満足度(商品・サービス)'!AI27+'満足度(施設全体)'!AI27 ) ->  | AK27: =IF(OR(IFERROR(FIND($AD27,"施設コード"),0)>0,$AE27=""), "", '満足度(商品・サービス)'!AK27+'満足度(施設全体)'!AK27 ) ->  | AM27: =IF(OR(IFERROR(FIND($AD27,"施設コード"),0)>0,$AE27=""), "", '満足度(商品・サービス)'!AM27+'満足度(施設全体)'!AM27 ) ->  | AO27: =IF(OR(IFERROR(FIND($AD27,"施設コード"),0)>0,$AE27=""), "", '満足度(商品・サービス)'!AO27+'満足度(施設全体)'!AO27 ) ->  | AQ27: =IF(OR(IFERROR(FIND($AD27,"施設コード"),0)>0,$AE27=""), "", '満足度(商品・サービス)'!AQ27+'満足度(施設全体)'!AQ27 ) ->  | AS27: =IF(OR(IFERROR(FIND($AD27,"施設コード"),0)>0,$AE27=""), "", '満足度(商品・サービス)'!AS27+'満足度(施設全体)'!AS27 ) ->  | AU27: =IF(OR(IFERROR(FIND($AD27,"施設コード"),0)>0,$AE27=""), "", '満足度(商品・サービス)'!AU27+'満足度(施設全体)'!AU27 ) ->  | AW27: =IF(OR(IFERROR(FIND($AD27,"施設コード"),0)>0,$AE27=""), "", '満足度(商品・サービス)'!AW27+'満足度(施設全体)'!AW27 ) ->  | AY27: =IF(OR(IFERROR(FIND($AD27,"施設コード"),0)>0,$AE27=""), "", '満足度(商品・サービス)'!AY27+'満足度(施設全体)'!AY27 ) ->  | BA27: =IF(OR(IFERROR(FIND($AD27,"施設コード"),0)>0,$AE27=""), "", '満足度(商品・サービス)'!BA27+'満足度(施設全体)'!BA27 ) ->  | BC27: =IF(OR(IFERROR(FIND($AD27,"施設コード"),0)>0,$AE27=""), "", '満足度(商品・サービス)'!BC27+'満足度(施設全体)'!BC27 ) -> 
AA28: =IF($AE28<>"",VLOOKUP($AE28,【M】満足度!$A$1:$B$5,2,0),"") ->  | AC28: 6分類 | AD28: 福井市・永平寺町 | AG28: =IF(OR(IFERROR(FIND($AD28,"施設コード"),0)>0,$AE28=""), "", '満足度(商品・サービス)'!AG28+'満足度(施設全体)'!AG28 ) ->  | AI28: =IF(OR(IFERROR(FIND($AD28,"施設コード"),0)>0,$AE28=""), "", '満足度(商品・サービス)'!AI28+'満足度(施設全体)'!AI28 ) ->  | AK28: =IF(OR(IFERROR(FIND($AD28,"施設コード"),0)>0,$AE28=""), "", '満足度(商品・サービス)'!AK28+'満足度(施設全体)'!AK28 ) ->  | AM28: =IF(OR(IFERROR(FIND($AD28,"施設コード"),0)>0,$AE28=""), "", '満足度(商品・サービス)'!AM28+'満足度(施設全体)'!AM28 ) ->  | AO28: =IF(OR(IFERROR(FIND($AD28,"施設コード"),0)>0,$AE28=""), "", '満足度(商品・サービス)'!AO28+'満足度(施設全体)'!AO28 ) ->  | AQ28: =IF(OR(IFERROR(FIND($AD28,"施設コード"),0)>0,$AE28=""), "", '満足度(商品・サービス)'!AQ28+'満足度(施設全体)'!AQ28 ) ->  | AS28: =IF(OR(IFERROR(FIND($AD28,"施設コード"),0)>0,$AE28=""), "", '満足度(商品・サービス)'!AS28+'満足度(施設全体)'!AS28 ) ->  | AU28: =IF(OR(IFERROR(FIND($AD28,"施設コード"),0)>0,$AE28=""), "", '満足度(商品・サービス)'!AU28+'満足度(施設全体)'!AU28 ) ->  | AW28: =IF(OR(IFERROR(FIND($AD28,"施設コード"),0)>0,$AE28=""), "", '満足度(商品・サービス)'!AW28+'満足度(施設全体)'!AW28 ) ->  | AY28: =IF(OR(IFERROR(FIND($AD28,"施設コード"),0)>0,$AE28=""), "", '満足度(商品・サービス)'!AY28+'満足度(施設全体)'!AY28 ) ->  | BA28: =IF(OR(IFERROR(FIND($AD28,"施設コード"),0)>0,$AE28=""), "", '満足度(商品・サービス)'!BA28+'満足度(施設全体)'!BA28 ) ->  | BC28: =IF(OR(IFERROR(FIND($AD28,"施設コード"),0)>0,$AE28=""), "", '満足度(商品・サービス)'!BC28+'満足度(施設全体)'!BC28 ) -> 
AA29: =IF($AE29<>"",VLOOKUP($AE29,【M】満足度!$A$1:$B$5,2,0),"") ->  | AC29: =AC27 -> 6分類 | AD29: =AD27 -> 福井市・永平寺町 | AE29: =IF(AE14<>"",AE14,"") ->  | AG29: =IF(OR(IFERROR(FIND($AD29,"施設コード"),0)>0,$AE29=""), "", '満足度(商品・サービス)'!AG29+'満足度(施設全体)'!AG29 ) ->  | AH29: =IFERROR(AG29/AG$30,"") ->  | AI29: =IF(OR(IFERROR(FIND($AD29,"施設コード"),0)>0,$AE29=""), "", '満足度(商品・サービス)'!AI29+'満足度(施設全体)'!AI29 ) ->  | AJ29: =IFERROR(AI29/AI$30,"") ->  | AK29: =IF(OR(IFERROR(FIND($AD29,"施設コード"),0)>0,$AE29=""), "", '満足度(商品・サービス)'!AK29+'満足度(施設全体)'!AK29 ) ->  | AL29: =IFERROR(AK29/AK$30,"") ->  | AM29: =IF(OR(IFERROR(FIND($AD29,"施設コード"),0)>0,$AE29=""), "", '満足度(商品・サービス)'!AM29+'満足度(施設全体)'!AM29 ) ->  | AN29: =IFERROR(AM29/AM$30,"") ->  | AO29: =IF(OR(IFERROR(FIND($AD29,"施設コード"),0)>0,$AE29=""), "", '満足度(商品・サービス)'!AO29+'満足度(施設全体)'!AO29 ) ->  | AP29: =IFERROR(AO29/AO$30,"") ->  | AQ29: =IF(OR(IFERROR(FIND($AD29,"施設コード"),0)>0,$AE29=""), "", '満足度(商品・サービス)'!AQ29+'満足度(施設全体)'!AQ29 ) ->  | AR29: =IFERROR(AQ29/AQ$30,"") ->  | AS29: =IF(OR(IFERROR(FIND($AD29,"施設コード"),0)>0,$AE29=""), "", '満足度(商品・サービス)'!AS29+'満足度(施設全体)'!AS29 ) ->  | AT29: =IFERROR(AS29/AS$30,"") ->  | AU29: =IF(OR(IFERROR(FIND($AD29,"施設コード"),0)>0,$AE29=""), "", '満足度(商品・サービス)'!AU29+'満足度(施設全体)'!AU29 ) ->  | AV29: =IFERROR(AU29/AU$30,"") ->  | AW29: =IF(OR(IFERROR(FIND($AD29,"施設コード"),0)>0,$AE29=""), "", '満足度(商品・サービス)'!AW29+'満足度(施設全体)'!AW29 ) ->  | AX29: =IFERROR(AW29/AW$30,"") ->  | AY29: =IF(OR(IFERROR(FIND($AD29,"施設コード"),0)>0,$AE29=""), "", '満足度(商品・サービス)'!AY29+'満足度(施設全体)'!AY29 ) ->  | AZ29: =IFERROR(AY29/AY$30,"") ->  | BA29: =IF(OR(IFERROR(FIND($AD29,"施設コード"),0)>0,$AE29=""), "", '満足度(商品・サービス)'!BA29+'満足度(施設全体)'!BA29 ) ->  | BB29: =IFERROR(BA29/BA$30,"") ->  | BC29: =IF(OR(IFERROR(FIND($AD29,"施設コード"),0)>0,$AE29=""), "", '満足度(商品・サービス)'!BC29+'満足度(施設全体)'!BC29 ) ->  | BD29: =IFERROR(BC29/BC$30,"") ->  | BF29: =IFERROR(BE29/BE$30,"") -> 
AF30: 合計 | AG30: =SUM(AG18:AG29) -> 994件 | AH30: 100.0% | AI30: 1,150件 | AJ30: 100.0% | AK30: 1,028件 | AL30: 100.0% | AM30: 766件 | AN30: 100.0% | AO30: 1,094件 | AP30: 100.0% | AQ30: 1,160件 | AR30: 100.0% | AS30: 894件 | AT30: 100.0% | AU30: 1,218件 | AV30: 100.0% | AW30: 736件 | AX30: 100.0% | AY30: 602件 | AZ30: 100.0% | BA30: 526件 | BB30: 100.0% | BC30: 1,070件 | BD30: 100.0% | BE30: 11,238件 | BF30: 100.0%
AF31: =IF(AF$16<>"",AF$16,"") -> 総合満足度スコア | AG31: =IF(AG30>0,SUMPRODUCT($AA18:$AA29,AG18:AG29)/AG30,"-") -> 4.22 | AI31: =IF(AI30>0,SUMPRODUCT($AA18:$AA29,AI18:AI29)/AI30,"-") -> 4.25 | AK31: =IF(AK30>0,SUMPRODUCT($AA18:$AA29,AK18:AK29)/AK30,"-") -> 4.27 | AM31: =IF(AM30>0,SUMPRODUCT($AA18:$AA29,AM18:AM29)/AM30,"-") -> 4.23 | AO31: =IF(AO30>0,SUMPRODUCT($AA18:$AA29,AO18:AO29)/AO30,"-") -> 4.26 | AQ31: =IF(AQ30>0,SUMPRODUCT($AA18:$AA29,AQ18:AQ29)/AQ30,"-") -> 4.28 | AS31: =IF(AS30>0,SUMPRODUCT($AA18:$AA29,AS18:AS29)/AS30,"-") -> 4.31 | AU31: =IF(AU30>0,SUMPRODUCT($AA18:$AA29,AU18:AU29)/AU30,"-") -> 4.19 | AW31: =IF(AW30>0,SUMPRODUCT($AA18:$AA29,AW18:AW29)/AW30,"-") -> 4.30 | AY31: =IF(AY30>0,SUMPRODUCT($AA18:$AA29,AY18:AY29)/AY30,"-") -> 4.29 | BA31: =IF(BA30>0,SUMPRODUCT($AA18:$AA29,BA18:BA29)/BA30,"-") -> 4.22 | BC31: =IF(BC30>0,SUMPRODUCT($AA18:$AA29,BC18:BC29)/BC30,"-") -> 4.27 | BE31: =IF(BE30>0,SUMPRODUCT($AA18:$AA29,BE18:BE29)/BE30,"-") -> 4.26
AC32: 市町村 | AD32: =【M】エリア!$L$4 -> 福井市
AA33: =IF($AE33<>"",VLOOKUP($AE33,【M】満足度!$A$1:$B$5,2,0),"") -> 5 | AC33: =AC32 -> 市町村 | AD33: =AD32 -> 福井市 | AE33: =IF(AE3<>"",AE3,"") -> とても満足 | AG33: =IF(OR(IFERROR(FIND($AD33,"施設コード"),0)>0,$AE33=""), "", '満足度(商品・サービス)'!AG33+'満足度(施設全体)'!AG33 ) -> 268件 | AH33: =IFERROR(AG33/AG$45,"") -> 34.9% | AI33: =IF(OR(IFERROR(FIND($AD33,"施設コード"),0)>0,$AE33=""), "", '満足度(商品・サービス)'!AI33+'満足度(施設全体)'!AI33 ) -> 204件 | AJ33: =IFERROR(AI33/AI$45,"") -> 31.7% | AK33: =IF(OR(IFERROR(FIND($AD33,"施設コード"),0)>0,$AE33=""), "", '満足度(商品・サービス)'!AK33+'満足度(施設全体)'!AK33 ) -> 191件 | AL33: =IFERROR(AK33/AK$45,"") -> 33.3% | AM33: =IF(OR(IFERROR(FIND($AD33,"施設コード"),0)>0,$AE33=""), "", '満足度(商品・サービス)'!AM33+'満足度(施設全体)'!AM33 ) -> 133件 | AN33: =IFERROR(AM33/AM$45,"") -> 31.5% | AO33: =IF(OR(IFERROR(FIND($AD33,"施設コード"),0)>0,$AE33=""), "", '満足度(商品・サービス)'!AO33+'満足度(施設全体)'!AO33 ) -> 201件 | AP33: =IFERROR(AO33/AO$45,"") -> 35.3% | AQ33: =IF(OR(IFERROR(FIND($AD33,"施設コード"),0)>0,$AE33=""), "", '満足度(商品・サービス)'!AQ33+'満足度(施設全体)'!AQ33 ) -> 247件 | AR33: =IFERROR(AQ33/AQ$45,"") -> 39.1% | AS33: =IF(OR(IFERROR(FIND($AD33,"施設コード"),0)>0,$AE33=""), "", '満足度(商品・サービス)'!AS33+'満足度(施設全体)'!AS33 ) -> 198件 | AT33: =IFERROR(AS33/AS$45,"") -> 39.9% | AU33: =IF(OR(IFERROR(FIND($AD33,"施設コード"),0)>0,$AE33=""), "", '満足度(商品・サービス)'!AU33+'満足度(施設全体)'!AU33 ) -> 178件 | AV33: =IFERROR(AU33/AU$45,"") -> 27.5% | AW33: =IF(OR(IFERROR(FIND($AD33,"施設コード"),0)>0,$AE33=""), "", '満足度(商品・サービス)'!AW33+'満足度(施設全体)'!AW33 ) -> 164件 | AX33: =IFERROR(AW33/AW$45,"") -> 37.4% | AY33: =IF(OR(IFERROR(FIND($AD33,"施設コード"),0)>0,$AE33=""), "", '満足度(商品・サービス)'!AY33+'満足度(施設全体)'!AY33 ) -> 118件 | AZ33: =IFERROR(AY33/AY$45,"") -> 36.6% | BA33: =IF(OR(IFERROR(FIND($AD33,"施設コード"),0)>0,$AE33=""), "", '満足度(商品・サービス)'!BA33+'満足度(施設全体)'!BA33 ) -> 102件 | BB33: =IFERROR(BA33/BA$45,"") -> 33.8% | BC33: =IF(OR(IFERROR(FIND($AD33,"施設コード"),0)>0,$AE33=""), "", '満足度(商品・サービス)'!BC33+'満足度(施設全体)'!BC33 ) -> 215件 | BD33: =IFERROR(BC33/BC$45,"") -> 37.3% | BE33: =IFERROR(AG33+AI33+AK33+AM33+AO33+AQ33+AS33+AU33+AW33+AY33+BA33+BC33,"") -> 2219件 | BF33: =IFERROR(BE33/BE$45,"") -> 34.7%
AA34: =IF($AE34<>"",VLOOKUP($AE34,【M】満足度!$A$1:$B$5,2,0),"") -> 4 | AC34: =AC33 -> 市町村 | AD34: 福井市 | AE34: 満足 | AG34: =IF(OR(IFERROR(FIND($AD34,"施設コード"),0)>0,$AE34=""), "", '満足度(商品・サービス)'!AG34+'満足度(施設全体)'!AG34 ) -> 419件 | AH34: 54.6% | AI34: =IF(OR(IFERROR(FIND($AD34,"施設コード"),0)>0,$AE34=""), "", '満足度(商品・サービス)'!AI34+'満足度(施設全体)'!AI34 ) -> 352件 | AJ34: 54.7% | AK34: =IF(OR(IFERROR(FIND($AD34,"施設コード"),0)>0,$AE34=""), "", '満足度(商品・サービス)'!AK34+'満足度(施設全体)'!AK34 ) -> 316件 | AL34: 55.1% | AM34: =IF(OR(IFERROR(FIND($AD34,"施設コード"),0)>0,$AE34=""), "", '満足度(商品・サービス)'!AM34+'満足度(施設全体)'!AM34 ) -> 233件 | AN34: 55.2% | AO34: =IF(OR(IFERROR(FIND($AD34,"施設コード"),0)>0,$AE34=""), "", '満足度(商品・サービス)'!AO34+'満足度(施設全体)'!AO34 ) -> 300件 | AP34: 52.6% | AQ34: =IF(OR(IFERROR(FIND($AD34,"施設コード"),0)>0,$AE34=""), "", '満足度(商品・サービス)'!AQ34+'満足度(施設全体)'!AQ34 ) -> 302件 | AR34: 47.8% | AS34: =IF(OR(IFERROR(FIND($AD34,"施設コード"),0)>0,$AE34=""), "", '満足度(商品・サービス)'!AS34+'満足度(施設全体)'!AS34 ) -> 261件 | AT34: 52.6% | AU34: =IF(OR(IFERROR(FIND($AD34,"施設コード"),0)>0,$AE34=""), "", '満足度(商品・サービス)'!AU34+'満足度(施設全体)'!AU34 ) -> 401件 | AV34: 61.9% | AW34: =IF(OR(IFERROR(FIND($AD34,"施設コード"),0)>0,$AE34=""), "", '満足度(商品・サービス)'!AW34+'満足度(施設全体)'!AW34 ) -> 230件 | AX34: 52.5% | AY34: =IF(OR(IFERROR(FIND($AD34,"施設コード"),0)>0,$AE34=""), "", '満足度(商品・サービス)'!AY34+'満足度(施設全体)'!AY34 ) -> 175件 | AZ34: 54.3% | BA34: =IF(OR(IFERROR(FIND($AD34,"施設コード"),0)>0,$AE34=""), "", '満足度(商品・サービス)'!BA34+'満足度(施設全体)'!BA34 ) -> 158件 | BB34: 52.3% | BC34: =IF(OR(IFERROR(FIND($AD34,"施設コード"),0)>0,$AE34=""), "", '満足度(商品・サービス)'!BC34+'満足度(施設全体)'!BC34 ) -> 292件 | BD34: 50.7% | BE34: =IFERROR(AG34+AI34+AK34+AM34+AO34+AQ34+AS34+AU34+AW34+AY34+BA34+BC34,"") -> 3439件 | BF34: 53.8%
AA35: =IF($AE35<>"",VLOOKUP($AE35,【M】満足度!$A$1:$B$5,2,0),"") -> 3 | AC35: 市町村 | AD35: 福井市 | AE35: どちらでもない | AG35: =IF(OR(IFERROR(FIND($AD35,"施設コード"),0)>0,$AE35=""), "", '満足度(商品・サービス)'!AG35+'満足度(施設全体)'!AG35 ) -> 74件 | AH35: 9.6% | AI35: =IF(OR(IFERROR(FIND($AD35,"施設コード"),0)>0,$AE35=""), "", '満足度(商品・サービス)'!AI35+'満足度(施設全体)'!AI35 ) -> 83件 | AJ35: 12.9% | AK35: =IF(OR(IFERROR(FIND($AD35,"施設コード"),0)>0,$AE35=""), "", '満足度(商品・サービス)'!AK35+'満足度(施設全体)'!AK35 ) -> 60件 | AL35: 10.5% | AM35: =IF(OR(IFERROR(FIND($AD35,"施設コード"),0)>0,$AE35=""), "", '満足度(商品・サービス)'!AM35+'満足度(施設全体)'!AM35 ) -> 46件 | AN35: 10.9% | AO35: =IF(OR(IFERROR(FIND($AD35,"施設コード"),0)>0,$AE35=""), "", '満足度(商品・サービス)'!AO35+'満足度(施設全体)'!AO35 ) -> 57件 | AP35: 10.0% | AQ35: =IF(OR(IFERROR(FIND($AD35,"施設コード"),0)>0,$AE35=""), "", '満足度(商品・サービス)'!AQ35+'満足度(施設全体)'!AQ35 ) -> 75件 | AR35: 11.9% | AS35: =IF(OR(IFERROR(FIND($AD35,"施設コード"),0)>0,$AE35=""), "", '満足度(商品・サービス)'!AS35+'満足度(施設全体)'!AS35 ) -> 32件 | AT35: 6.5% | AU35: =IF(OR(IFERROR(FIND($AD35,"施設コード"),0)>0,$AE35=""), "", '満足度(商品・サービス)'!AU35+'満足度(施設全体)'!AU35 ) -> 62件 | AV35: 9.6% | AW35: =IF(OR(IFERROR(FIND($AD35,"施設コード"),0)>0,$AE35=""), "", '満足度(商品・サービス)'!AW35+'満足度(施設全体)'!AW35 ) -> 41件 | AX35: 9.4% | AY35: =IF(OR(IFERROR(FIND($AD35,"施設コード"),0)>0,$AE35=""), "", '満足度(商品・サービス)'!AY35+'満足度(施設全体)'!AY35 ) -> 27件 | AZ35: 8.4% | BA35: =IF(OR(IFERROR(FIND($AD35,"施設コード"),0)>0,$AE35=""), "", '満足度(商品・サービス)'!BA35+'満足度(施設全体)'!BA35 ) -> 36件 | BB35: 11.9% | BC35: =IF(OR(IFERROR(FIND($AD35,"施設コード"),0)>0,$AE35=""), "", '満足度(商品・サービス)'!BC35+'満足度(施設全体)'!BC35 ) -> 65件 | BD35: 11.3% | BE35: 658件 | BF35: 10.3%
AA36: =IF($AE36<>"",VLOOKUP($AE36,【M】満足度!$A$1:$B$5,2,0),"") -> 2 | AC36: 市町村 | AD36: 福井市 | AE36: 不満 | AG36: =IF(OR(IFERROR(FIND($AD36,"施設コード"),0)>0,$AE36=""), "", '満足度(商品・サービス)'!AG36+'満足度(施設全体)'!AG36 ) -> 6件 | AH36: 0.8% | AI36: =IF(OR(IFERROR(FIND($AD36,"施設コード"),0)>0,$AE36=""), "", '満足度(商品・サービス)'!AI36+'満足度(施設全体)'!AI36 ) -> 5件 | AJ36: 0.8% | AK36: =IF(OR(IFERROR(FIND($AD36,"施設コード"),0)>0,$AE36=""), "", '満足度(商品・サービス)'!AK36+'満足度(施設全体)'!AK36 ) -> 7件 | AL36: 1.2% | AM36: =IF(OR(IFERROR(FIND($AD36,"施設コード"),0)>0,$AE36=""), "", '満足度(商品・サービス)'!AM36+'満足度(施設全体)'!AM36 ) -> 7件 | AN36: 1.7% | AO36: =IF(OR(IFERROR(FIND($AD36,"施設コード"),0)>0,$AE36=""), "", '満足度(商品・サービス)'!AO36+'満足度(施設全体)'!AO36 ) -> 11件 | AP36: 1.9% | AQ36: =IF(OR(IFERROR(FIND($AD36,"施設コード"),0)>0,$AE36=""), "", '満足度(商品・サービス)'!AQ36+'満足度(施設全体)'!AQ36 ) -> 8件 | AR36: 1.3% | AS36: =IF(OR(IFERROR(FIND($AD36,"施設コード"),0)>0,$AE36=""), "", '満足度(商品・サービス)'!AS36+'満足度(施設全体)'!AS36 ) -> 4件 | AT36: 0.8% | AU36: =IF(OR(IFERROR(FIND($AD36,"施設コード"),0)>0,$AE36=""), "", '満足度(商品・サービス)'!AU36+'満足度(施設全体)'!AU36 ) -> 4件 | AV36: 0.6% | AW36: =IF(OR(IFERROR(FIND($AD36,"施設コード"),0)>0,$AE36=""), "", '満足度(商品・サービス)'!AW36+'満足度(施設全体)'!AW36 ) -> 2件 | AX36: 0.5% | AY36: =IF(OR(IFERROR(FIND($AD36,"施設コード"),0)>0,$AE36=""), "", '満足度(商品・サービス)'!AY36+'満足度(施設全体)'!AY36 ) -> 2件 | AZ36: 0.6% | BA36: =IF(OR(IFERROR(FIND($AD36,"施設コード"),0)>0,$AE36=""), "", '満足度(商品・サービス)'!BA36+'満足度(施設全体)'!BA36 ) -> 5件 | BB36: 1.7% | BC36: =IF(OR(IFERROR(FIND($AD36,"施設コード"),0)>0,$AE36=""), "", '満足度(商品・サービス)'!BC36+'満足度(施設全体)'!BC36 ) -> 4件 | BD36: 0.7% | BE36: 65件 | BF36: 1.0%
AA37: =IF($AE37<>"",VLOOKUP($AE37,【M】満足度!$A$1:$B$5,2,0),"") -> 1 | AC37: 市町村 | AD37: 福井市 | AE37: とても不満 | AG37: =IF(OR(IFERROR(FIND($AD37,"施設コード"),0)>0,$AE37=""), "", '満足度(商品・サービス)'!AG37+'満足度(施設全体)'!AG37 ) -> 1件 | AH37: 0.1% | AI37: =IF(OR(IFERROR(FIND($AD37,"施設コード"),0)>0,$AE37=""), "", '満足度(商品・サービス)'!AI37+'満足度(施設全体)'!AI37 ) -> 0件 | AJ37: 0.0% | AK37: =IF(OR(IFERROR(FIND($AD37,"施設コード"),0)>0,$AE37=""), "", '満足度(商品・サービス)'!AK37+'満足度(施設全体)'!AK37 ) -> 0件 | AL37: 0.0% | AM37: =IF(OR(IFERROR(FIND($AD37,"施設コード"),0)>0,$AE37=""), "", '満足度(商品・サービス)'!AM37+'満足度(施設全体)'!AM37 ) -> 3件 | AN37: 0.7% | AO37: =IF(OR(IFERROR(FIND($AD37,"施設コード"),0)>0,$AE37=""), "", '満足度(商品・サービス)'!AO37+'満足度(施設全体)'!AO37 ) -> 1件 | AP37: 0.2% | AQ37: =IF(OR(IFERROR(FIND($AD37,"施設コード"),0)>0,$AE37=""), "", '満足度(商品・サービス)'!AQ37+'満足度(施設全体)'!AQ37 ) -> 0件 | AR37: 0.0% | AS37: =IF(OR(IFERROR(FIND($AD37,"施設コード"),0)>0,$AE37=""), "", '満足度(商品・サービス)'!AS37+'満足度(施設全体)'!AS37 ) -> 1件 | AT37: 0.2% | AU37: =IF(OR(IFERROR(FIND($AD37,"施設コード"),0)>0,$AE37=""), "", '満足度(商品・サービス)'!AU37+'満足度(施設全体)'!AU37 ) -> 3件 | AV37: 0.5% | AW37: =IF(OR(IFERROR(FIND($AD37,"施設コード"),0)>0,$AE37=""), "", '満足度(商品・サービス)'!AW37+'満足度(施設全体)'!AW37 ) -> 1件 | AX37: 0.2% | AY37: =IF(OR(IFERROR(FIND($AD37,"施設コード"),0)>0,$AE37=""), "", '満足度(商品・サービス)'!AY37+'満足度(施設全体)'!AY37 ) -> 0件 | AZ37: 0.0% | BA37: =IF(OR(IFERROR(FIND($AD37,"施設コード"),0)>0,$AE37=""), "", '満足度(商品・サービス)'!BA37+'満足度(施設全体)'!BA37 ) -> 1件 | BB37: 0.3% | BC37: =IF(OR(IFERROR(FIND($AD37,"施設コード"),0)>0,$AE37=""), "", '満足度(商品・サービス)'!BC37+'満足度(施設全体)'!BC37 ) -> 0件 | BD37: 0.0% | BE37: 11件 | BF37: 0.2%
AA38: =IF($AE38<>"",VLOOKUP($AE38,【M】満足度!$A$1:$B$5,2,0),"") ->  | AC38: 市町村 | AD38: 福井市 | AG38: =IF(OR(IFERROR(FIND($AD38,"施設コード"),0)>0,$AE38=""), "", '満足度(商品・サービス)'!AG38+'満足度(施設全体)'!AG38 ) ->  | AI38: =IF(OR(IFERROR(FIND($AD38,"施設コード"),0)>0,$AE38=""), "", '満足度(商品・サービス)'!AI38+'満足度(施設全体)'!AI38 ) ->  | AK38: =IF(OR(IFERROR(FIND($AD38,"施設コード"),0)>0,$AE38=""), "", '満足度(商品・サービス)'!AK38+'満足度(施設全体)'!AK38 ) ->  | AM38: =IF(OR(IFERROR(FIND($AD38,"施設コード"),0)>0,$AE38=""), "", '満足度(商品・サービス)'!AM38+'満足度(施設全体)'!AM38 ) ->  | AO38: =IF(OR(IFERROR(FIND($AD38,"施設コード"),0)>0,$AE38=""), "", '満足度(商品・サービス)'!AO38+'満足度(施設全体)'!AO38 ) ->  | AQ38: =IF(OR(IFERROR(FIND($AD38,"施設コード"),0)>0,$AE38=""), "", '満足度(商品・サービス)'!AQ38+'満足度(施設全体)'!AQ38 ) ->  | AS38: =IF(OR(IFERROR(FIND($AD38,"施設コード"),0)>0,$AE38=""), "", '満足度(商品・サービス)'!AS38+'満足度(施設全体)'!AS38 ) ->  | AU38: =IF(OR(IFERROR(FIND($AD38,"施設コード"),0)>0,$AE38=""), "", '満足度(商品・サービス)'!AU38+'満足度(施設全体)'!AU38 ) ->  | AW38: =IF(OR(IFERROR(FIND($AD38,"施設コード"),0)>0,$AE38=""), "", '満足度(商品・サービス)'!AW38+'満足度(施設全体)'!AW38 ) ->  | AY38: =IF(OR(IFERROR(FIND($AD38,"施設コード"),0)>0,$AE38=""), "", '満足度(商品・サービス)'!AY38+'満足度(施設全体)'!AY38 ) ->  | BA38: =IF(OR(IFERROR(FIND($AD38,"施設コード"),0)>0,$AE38=""), "", '満足度(商品・サービス)'!BA38+'満足度(施設全体)'!BA38 ) ->  | BC38: =IF(OR(IFERROR(FIND($AD38,"施設コード"),0)>0,$AE38=""), "", '満足度(商品・サービス)'!BC38+'満足度(施設全体)'!BC38 ) -> 
AA39: =IF($AE39<>"",VLOOKUP($AE39,【M】満足度!$A$1:$B$5,2,0),"") ->  | AC39: 市町村 | AD39: 福井市 | AG39: =IF(OR(IFERROR(FIND($AD39,"施設コード"),0)>0,$AE39=""), "", '満足度(商品・サービス)'!AG39+'満足度(施設全体)'!AG39 ) ->  | AI39: =IF(OR(IFERROR(FIND($AD39,"施設コード"),0)>0,$AE39=""), "", '満足度(商品・サービス)'!AI39+'満足度(施設全体)'!AI39 ) ->  | AK39: =IF(OR(IFERROR(FIND($AD39,"施設コード"),0)>0,$AE39=""), "", '満足度(商品・サービス)'!AK39+'満足度(施設全体)'!AK39 ) ->  | AM39: =IF(OR(IFERROR(FIND($AD39,"施設コード"),0)>0,$AE39=""), "", '満足度(商品・サービス)'!AM39+'満足度(施設全体)'!AM39 ) ->  | AO39: =IF(OR(IFERROR(FIND($AD39,"施設コード"),0)>0,$AE39=""), "", '満足度(商品・サービス)'!AO39+'満足度(施設全体)'!AO39 ) ->  | AQ39: =IF(OR(IFERROR(FIND($AD39,"施設コード"),0)>0,$AE39=""), "", '満足度(商品・サービス)'!AQ39+'満足度(施設全体)'!AQ39 ) ->  | AS39: =IF(OR(IFERROR(FIND($AD39,"施設コード"),0)>0,$AE39=""), "", '満足度(商品・サービス)'!AS39+'満足度(施設全体)'!AS39 ) ->  | AU39: =IF(OR(IFERROR(FIND($AD39,"施設コード"),0)>0,$AE39=""), "", '満足度(商品・サービス)'!AU39+'満足度(施設全体)'!AU39 ) ->  | AW39: =IF(OR(IFERROR(FIND($AD39,"施設コード"),0)>0,$AE39=""), "", '満足度(商品・サービス)'!AW39+'満足度(施設全体)'!AW39 ) ->  | AY39: =IF(OR(IFERROR(FIND($AD39,"施設コード"),0)>0,$AE39=""), "", '満足度(商品・サービス)'!AY39+'満足度(施設全体)'!AY39 ) ->  | BA39: =IF(OR(IFERROR(FIND($AD39,"施設コード"),0)>0,$AE39=""), "", '満足度(商品・サービス)'!BA39+'満足度(施設全体)'!BA39 ) ->  | BC39: =IF(OR(IFERROR(FIND($AD39,"施設コード"),0)>0,$AE39=""), "", '満足度(商品・サービス)'!BC39+'満足度(施設全体)'!BC39 ) -> 
AA40: =IF($AE40<>"",VLOOKUP($AE40,【M】満足度!$A$1:$B$5,2,0),"") ->  | AC40: =AC39 -> 市町村 | AD40: =AD39 -> 福井市 | AG40: =IF(OR(IFERROR(FIND($AD40,"施設コード"),0)>0,$AE40=""), "", '満足度(商品・サービス)'!AG40+'満足度(施設全体)'!AG40 ) ->  | AI40: =IF(OR(IFERROR(FIND($AD40,"施設コード"),0)>0,$AE40=""), "", '満足度(商品・サービス)'!AI40+'満足度(施設全体)'!AI40 ) ->  | AK40: =IF(OR(IFERROR(FIND($AD40,"施設コード"),0)>0,$AE40=""), "", '満足度(商品・サービス)'!AK40+'満足度(施設全体)'!AK40 ) ->  | AM40: =IF(OR(IFERROR(FIND($AD40,"施設コード"),0)>0,$AE40=""), "", '満足度(商品・サービス)'!AM40+'満足度(施設全体)'!AM40 ) ->  | AO40: =IF(OR(IFERROR(FIND($AD40,"施設コード"),0)>0,$AE40=""), "", '満足度(商品・サービス)'!AO40+'満足度(施設全体)'!AO40 ) ->  | AQ40: =IF(OR(IFERROR(FIND($AD40,"施設コード"),0)>0,$AE40=""), "", '満足度(商品・サービス)'!AQ40+'満足度(施設全体)'!AQ40 ) ->  | AS40: =IF(OR(IFERROR(FIND($AD40,"施設コード"),0)>0,$AE40=""), "", '満足度(商品・サービス)'!AS40+'満足度(施設全体)'!AS40 ) ->  | AU40: =IF(OR(IFERROR(FIND($AD40,"施設コード"),0)>0,$AE40=""), "", '満足度(商品・サービス)'!AU40+'満足度(施設全体)'!AU40 ) ->  | AW40: =IF(OR(IFERROR(FIND($AD40,"施設コード"),0)>0,$AE40=""), "", '満足度(商品・サービス)'!AW40+'満足度(施設全体)'!AW40 ) ->  | AY40: =IF(OR(IFERROR(FIND($AD40,"施設コード"),0)>0,$AE40=""), "", '満足度(商品・サービス)'!AY40+'満足度(施設全体)'!AY40 ) ->  | BA40: =IF(OR(IFERROR(FIND($AD40,"施設コード"),0)>0,$AE40=""), "", '満足度(商品・サービス)'!BA40+'満足度(施設全体)'!BA40 ) ->  | BC40: =IF(OR(IFERROR(FIND($AD40,"施設コード"),0)>0,$AE40=""), "", '満足度(商品・サービス)'!BC40+'満足度(施設全体)'!BC40 ) -> 
AA41: =IF($AE41<>"",VLOOKUP($AE41,【M】満足度!$A$1:$B$5,2,0),"") ->  | AC41: 市町村 | AD41: 福井市 | AG41: =IF(OR(IFERROR(FIND($AD41,"施設コード"),0)>0,$AE41=""), "", '満足度(商品・サービス)'!AG41+'満足度(施設全体)'!AG41 ) ->  | AI41: =IF(OR(IFERROR(FIND($AD41,"施設コード"),0)>0,$AE41=""), "", '満足度(商品・サービス)'!AI41+'満足度(施設全体)'!AI41 ) ->  | AK41: =IF(OR(IFERROR(FIND($AD41,"施設コード"),0)>0,$AE41=""), "", '満足度(商品・サービス)'!AK41+'満足度(施設全体)'!AK41 ) ->  | AM41: =IF(OR(IFERROR(FIND($AD41,"施設コード"),0)>0,$AE41=""), "", '満足度(商品・サービス)'!AM41+'満足度(施設全体)'!AM41 ) ->  | AO41: =IF(OR(IFERROR(FIND($AD41,"施設コード"),0)>0,$AE41=""), "", '満足度(商品・サービス)'!AO41+'満足度(施設全体)'!AO41 ) ->  | AQ41: =IF(OR(IFERROR(FIND($AD41,"施設コード"),0)>0,$AE41=""), "", '満足度(商品・サービス)'!AQ41+'満足度(施設全体)'!AQ41 ) ->  | AS41: =IF(OR(IFERROR(FIND($AD41,"施設コード"),0)>0,$AE41=""), "", '満足度(商品・サービス)'!AS41+'満足度(施設全体)'!AS41 ) ->  | AU41: =IF(OR(IFERROR(FIND($AD41,"施設コード"),0)>0,$AE41=""), "", '満足度(商品・サービス)'!AU41+'満足度(施設全体)'!AU41 ) ->  | AW41: =IF(OR(IFERROR(FIND($AD41,"施設コード"),0)>0,$AE41=""), "", '満足度(商品・サービス)'!AW41+'満足度(施設全体)'!AW41 ) ->  | AY41: =IF(OR(IFERROR(FIND($AD41,"施設コード"),0)>0,$AE41=""), "", '満足度(商品・サービス)'!AY41+'満足度(施設全体)'!AY41 ) ->  | BA41: =IF(OR(IFERROR(FIND($AD41,"施設コード"),0)>0,$AE41=""), "", '満足度(商品・サービス)'!BA41+'満足度(施設全体)'!BA41 ) ->  | BC41: =IF(OR(IFERROR(FIND($AD41,"施設コード"),0)>0,$AE41=""), "", '満足度(商品・サービス)'!BC41+'満足度(施設全体)'!BC41 ) -> 
AA42: =IF($AE42<>"",VLOOKUP($AE42,【M】満足度!$A$1:$B$5,2,0),"") ->  | AC42: 市町村 | AD42: 福井市 | AG42: =IF(OR(IFERROR(FIND($AD42,"施設コード"),0)>0,$AE42=""), "", '満足度(商品・サービス)'!AG42+'満足度(施設全体)'!AG42 ) ->  | AI42: =IF(OR(IFERROR(FIND($AD42,"施設コード"),0)>0,$AE42=""), "", '満足度(商品・サービス)'!AI42+'満足度(施設全体)'!AI42 ) ->  | AK42: =IF(OR(IFERROR(FIND($AD42,"施設コード"),0)>0,$AE42=""), "", '満足度(商品・サービス)'!AK42+'満足度(施設全体)'!AK42 ) ->  | AM42: =IF(OR(IFERROR(FIND($AD42,"施設コード"),0)>0,$AE42=""), "", '満足度(商品・サービス)'!AM42+'満足度(施設全体)'!AM42 ) ->  | AO42: =IF(OR(IFERROR(FIND($AD42,"施設コード"),0)>0,$AE42=""), "", '満足度(商品・サービス)'!AO42+'満足度(施設全体)'!AO42 ) ->  | AQ42: =IF(OR(IFERROR(FIND($AD42,"施設コード"),0)>0,$AE42=""), "", '満足度(商品・サービス)'!AQ42+'満足度(施設全体)'!AQ42 ) ->  | AS42: =IF(OR(IFERROR(FIND($AD42,"施設コード"),0)>0,$AE42=""), "", '満足度(商品・サービス)'!AS42+'満足度(施設全体)'!AS42 ) ->  | AU42: =IF(OR(IFERROR(FIND($AD42,"施設コード"),0)>0,$AE42=""), "", '満足度(商品・サービス)'!AU42+'満足度(施設全体)'!AU42 ) ->  | AW42: =IF(OR(IFERROR(FIND($AD42,"施設コード"),0)>0,$AE42=""), "", '満足度(商品・サービス)'!AW42+'満足度(施設全体)'!AW42 ) ->  | AY42: =IF(OR(IFERROR(FIND($AD42,"施設コード"),0)>0,$AE42=""), "", '満足度(商品・サービス)'!AY42+'満足度(施設全体)'!AY42 ) ->  | BA42: =IF(OR(IFERROR(FIND($AD42,"施設コード"),0)>0,$AE42=""), "", '満足度(商品・サービス)'!BA42+'満足度(施設全体)'!BA42 ) ->  | BC42: =IF(OR(IFERROR(FIND($AD42,"施設コード"),0)>0,$AE42=""), "", '満足度(商品・サービス)'!BC42+'満足度(施設全体)'!BC42 ) -> 
AA43: =IF($AE43<>"",VLOOKUP($AE43,【M】満足度!$A$1:$B$5,2,0),"") ->  | AC43: 市町村 | AD43: 福井市 | AG43: =IF(OR(IFERROR(FIND($AD43,"施設コード"),0)>0,$AE43=""), "", '満足度(商品・サービス)'!AG43+'満足度(施設全体)'!AG43 ) ->  | AI43: =IF(OR(IFERROR(FIND($AD43,"施設コード"),0)>0,$AE43=""), "", '満足度(商品・サービス)'!AI43+'満足度(施設全体)'!AI43 ) ->  | AK43: =IF(OR(IFERROR(FIND($AD43,"施設コード"),0)>0,$AE43=""), "", '満足度(商品・サービス)'!AK43+'満足度(施設全体)'!AK43 ) ->  | AM43: =IF(OR(IFERROR(FIND($AD43,"施設コード"),0)>0,$AE43=""), "", '満足度(商品・サービス)'!AM43+'満足度(施設全体)'!AM43 ) ->  | AO43: =IF(OR(IFERROR(FIND($AD43,"施設コード"),0)>0,$AE43=""), "", '満足度(商品・サービス)'!AO43+'満足度(施設全体)'!AO43 ) ->  | AQ43: =IF(OR(IFERROR(FIND($AD43,"施設コード"),0)>0,$AE43=""), "", '満足度(商品・サービス)'!AQ43+'満足度(施設全体)'!AQ43 ) ->  | AS43: =IF(OR(IFERROR(FIND($AD43,"施設コード"),0)>0,$AE43=""), "", '満足度(商品・サービス)'!AS43+'満足度(施設全体)'!AS43 ) ->  | AU43: =IF(OR(IFERROR(FIND($AD43,"施設コード"),0)>0,$AE43=""), "", '満足度(商品・サービス)'!AU43+'満足度(施設全体)'!AU43 ) ->  | AW43: =IF(OR(IFERROR(FIND($AD43,"施設コード"),0)>0,$AE43=""), "", '満足度(商品・サービス)'!AW43+'満足度(施設全体)'!AW43 ) ->  | AY43: =IF(OR(IFERROR(FIND($AD43,"施設コード"),0)>0,$AE43=""), "", '満足度(商品・サービス)'!AY43+'満足度(施設全体)'!AY43 ) ->  | BA43: =IF(OR(IFERROR(FIND($AD43,"施設コード"),0)>0,$AE43=""), "", '満足度(商品・サービス)'!BA43+'満足度(施設全体)'!BA43 ) ->  | BC43: =IF(OR(IFERROR(FIND($AD43,"施設コード"),0)>0,$AE43=""), "", '満足度(商品・サービス)'!BC43+'満足度(施設全体)'!BC43 ) -> 
AA44: =IF($AE44<>"",VLOOKUP($AE44,【M】満足度!$A$1:$B$5,2,0),"") ->  | AC44: =AC42 -> 市町村 | AD44: =AD42 -> 福井市 | AE44: =IF(AE14<>"",AE14,"") ->  | AG44: =IF(OR(IFERROR(FIND($AD44,"施設コード"),0)>0,$AE44=""), "", '満足度(商品・サービス)'!AG44+'満足度(施設全体)'!AG44 ) ->  | AH44: =IFERROR(AG44/AG$45,"") ->  | AI44: =IF(OR(IFERROR(FIND($AD44,"施設コード"),0)>0,$AE44=""), "", '満足度(商品・サービス)'!AI44+'満足度(施設全体)'!AI44 ) ->  | AJ44: =IFERROR(AI44/AI$45,"") ->  | AK44: =IF(OR(IFERROR(FIND($AD44,"施設コード"),0)>0,$AE44=""), "", '満足度(商品・サービス)'!AK44+'満足度(施設全体)'!AK44 ) ->  | AL44: =IFERROR(AK44/AK$45,"") ->  | AM44: =IF(OR(IFERROR(FIND($AD44,"施設コード"),0)>0,$AE44=""), "", '満足度(商品・サービス)'!AM44+'満足度(施設全体)'!AM44 ) ->  | AN44: =IFERROR(AM44/AM$45,"") ->  | AO44: =IF(OR(IFERROR(FIND($AD44,"施設コード"),0)>0,$AE44=""), "", '満足度(商品・サービス)'!AO44+'満足度(施設全体)'!AO44 ) ->  | AP44: =IFERROR(AO44/AO$45,"") ->  | AQ44: =IF(OR(IFERROR(FIND($AD44,"施設コード"),0)>0,$AE44=""), "", '満足度(商品・サービス)'!AQ44+'満足度(施設全体)'!AQ44 ) ->  | AR44: =IFERROR(AQ44/AQ$45,"") ->  | AS44: =IF(OR(IFERROR(FIND($AD44,"施設コード"),0)>0,$AE44=""), "", '満足度(商品・サービス)'!AS44+'満足度(施設全体)'!AS44 ) ->  | AT44: =IFERROR(AS44/AS$45,"") ->  | AU44: =IF(OR(IFERROR(FIND($AD44,"施設コード"),0)>0,$AE44=""), "", '満足度(商品・サービス)'!AU44+'満足度(施設全体)'!AU44 ) ->  | AV44: =IFERROR(AU44/AU$45,"") ->  | AW44: =IF(OR(IFERROR(FIND($AD44,"施設コード"),0)>0,$AE44=""), "", '満足度(商品・サービス)'!AW44+'満足度(施設全体)'!AW44 ) ->  | AX44: =IFERROR(AW44/AW$45,"") ->  | AY44: =IF(OR(IFERROR(FIND($AD44,"施設コード"),0)>0,$AE44=""), "", '満足度(商品・サービス)'!AY44+'満足度(施設全体)'!AY44 ) ->  | AZ44: =IFERROR(AY44/AY$45,"") ->  | BA44: =IF(OR(IFERROR(FIND($AD44,"施設コード"),0)>0,$AE44=""), "", '満足度(商品・サービス)'!BA44+'満足度(施設全体)'!BA44 ) ->  | BB44: =IFERROR(BA44/BA$45,"") ->  | BC44: =IF(OR(IFERROR(FIND($AD44,"施設コード"),0)>0,$AE44=""), "", '満足度(商品・サービス)'!BC44+'満足度(施設全体)'!BC44 ) ->  | BD44: =IFERROR(BC44/BC$45,"") ->  | BF44: =IFERROR(BE44/BE$45,"") -> 
AF45: 合計 | AG45: =SUM(AG33:AG44) -> 768件 | AH45: 100.0% | AI45: 644件 | AJ45: 100.0% | AK45: 574件 | AL45: 100.0% | AM45: 422件 | AN45: 100.0% | AO45: 570件 | AP45: 100.0% | AQ45: 632件 | AR45: 100.0% | AS45: 496件 | AT45: 100.0% | AU45: 648件 | AV45: 100.0% | AW45: 438件 | AX45: 100.0% | AY45: 322件 | AZ45: 100.0% | BA45: 302件 | BB45: 100.0% | BC45: 576件 | BD45: 100.0% | BE45: 6,392件 | BF45: 100.0%
AF46: =IF(AF$16<>"",AF$16,"") -> 総合満足度スコア | AG46: =IF(AG45>0,SUMPRODUCT($AA33:$AA44,AG33:AG44)/AG45,"-") -> 4.23 | AI46: =IF(AI45>0,SUMPRODUCT($AA33:$AA44,AI33:AI44)/AI45,"-") -> 4.17 | AK46: =IF(AK45>0,SUMPRODUCT($AA33:$AA44,AK33:AK44)/AK45,"-") -> 4.20 | AM46: =IF(AM45>0,SUMPRODUCT($AA33:$AA44,AM33:AM44)/AM45,"-") -> 4.15 | AO46: =IF(AO45>0,SUMPRODUCT($AA33:$AA44,AO33:AO44)/AO45,"-") -> 4.21 | AQ46: =IF(AQ45>0,SUMPRODUCT($AA33:$AA44,AQ33:AQ44)/AQ45,"-") -> 4.25 | AS46: =IF(AS45>0,SUMPRODUCT($AA33:$AA44,AS33:AS44)/AS45,"-") -> 4.31 | AU46: =IF(AU45>0,SUMPRODUCT($AA33:$AA44,AU33:AU44)/AU45,"-") -> 4.15 | AW46: =IF(AW45>0,SUMPRODUCT($AA33:$AA44,AW33:AW44)/AW45,"-") -> 4.26 | AY46: =IF(AY45>0,SUMPRODUCT($AA33:$AA44,AY33:AY44)/AY45,"-") -> 4.27 | BA46: =IF(BA45>0,SUMPRODUCT($AA33:$AA44,BA33:BA44)/BA45,"-") -> 4.18 | BC46: =IF(BC45>0,SUMPRODUCT($AA33:$AA44,BC33:BC44)/BC45,"-") -> 4.25 | BE46: =IF(BE45>0,SUMPRODUCT($AA33:$AA44,BE33:BE44)/BE45,"-") -> 4.22
AC47: 回答エリア | AD47: =【M】エリア!$L$5 -> 福井駅前 エリア
AA48: =IF($AE48<>"",VLOOKUP($AE48,【M】満足度!$A$1:$B$5,2,0),"") -> 5 | AC48: =AC47 -> 回答エリア | AD48: =AD47 -> 福井駅前 エリア | AE48: =IF(AE3<>"",AE3,"") -> とても満足 | AG48: =IF(OR(IFERROR(FIND($AD48,"施設コード"),0)>0,$AE48=""), "", '満足度(商品・サービス)'!AG48+'満足度(施設全体)'!AG48 ) -> 110件 | AH48: =IFERROR(AG48/AG$60,"") -> 33.5% | AI48: =IF(OR(IFERROR(FIND($AD48,"施設コード"),0)>0,$AE48=""), "", '満足度(商品・サービス)'!AI48+'満足度(施設全体)'!AI48 ) -> 95件 | AJ48: =IFERROR(AI48/AI$60,"") -> 30.1% | AK48: =IF(OR(IFERROR(FIND($AD48,"施設コード"),0)>0,$AE48=""), "", '満足度(商品・サービス)'!AK48+'満足度(施設全体)'!AK48 ) -> 88件 | AL48: =IFERROR(AK48/AK$60,"") -> 35.8% | AM48: =IF(OR(IFERROR(FIND($AD48,"施設コード"),0)>0,$AE48=""), "", '満足度(商品・サービス)'!AM48+'満足度(施設全体)'!AM48 ) -> 50件 | AN48: =IFERROR(AM48/AM$60,"") -> 33.3% | AO48: =IF(OR(IFERROR(FIND($AD48,"施設コード"),0)>0,$AE48=""), "", '満足度(商品・サービス)'!AO48+'満足度(施設全体)'!AO48 ) -> 77件 | AP48: =IFERROR(AO48/AO$60,"") -> 37.4% | AQ48: =IF(OR(IFERROR(FIND($AD48,"施設コード"),0)>0,$AE48=""), "", '満足度(商品・サービス)'!AQ48+'満足度(施設全体)'!AQ48 ) -> 69件 | AR48: =IFERROR(AQ48/AQ$60,"") -> 31.4% | AS48: =IF(OR(IFERROR(FIND($AD48,"施設コード"),0)>0,$AE48=""), "", '満足度(商品・サービス)'!AS48+'満足度(施設全体)'!AS48 ) -> 85件 | AT48: =IFERROR(AS48/AS$60,"") -> 41.3% | AU48: =IF(OR(IFERROR(FIND($AD48,"施設コード"),0)>0,$AE48=""), "", '満足度(商品・サービス)'!AU48+'満足度(施設全体)'!AU48 ) -> 75件 | AV48: =IFERROR(AU48/AU$60,"") -> 29.3% | AW48: =IF(OR(IFERROR(FIND($AD48,"施設コード"),0)>0,$AE48=""), "", '満足度(商品・サービス)'!AW48+'満足度(施設全体)'!AW48 ) -> 74件 | AX48: =IFERROR(AW48/AW$60,"") -> 37.0% | AY48: =IF(OR(IFERROR(FIND($AD48,"施設コード"),0)>0,$AE48=""), "", '満足度(商品・サービス)'!AY48+'満足度(施設全体)'!AY48 ) -> 63件 | AZ48: =IFERROR(AY48/AY$60,"") -> 44.4% | BA48: =IF(OR(IFERROR(FIND($AD48,"施設コード"),0)>0,$AE48=""), "", '満足度(商品・サービス)'!BA48+'満足度(施設全体)'!BA48 ) -> 50件 | BB48: =IFERROR(BA48/BA$60,"") -> 36.8% | BC48: =IF(OR(IFERROR(FIND($AD48,"施設コード"),0)>0,$AE48=""), "", '満足度(商品・サービス)'!BC48+'満足度(施設全体)'!BC48 ) -> 93件 | BD48: =IFERROR(BC48/BC$60,"") -> 40.4% | BE48: =IFERROR(AG48+AI48+AK48+AM48+AO48+AQ48+AS48+AU48+AW48+AY48+BA48+BC48,"") -> 929件 | BF48: =IFERROR(BE48/BE$60,"") -> 35.2%
AA49: =IF($AE49<>"",VLOOKUP($AE49,【M】満足度!$A$1:$B$5,2,0),"") -> 4 | AC49: =AC48 -> 回答エリア | AD49: 福井駅前 エリア | AE49: 満足 | AG49: =IF(OR(IFERROR(FIND($AD49,"施設コード"),0)>0,$AE49=""), "", '満足度(商品・サービス)'!AG49+'満足度(施設全体)'!AG49 ) -> 191件 | AH49: 58.2% | AI49: =IF(OR(IFERROR(FIND($AD49,"施設コード"),0)>0,$AE49=""), "", '満足度(商品・サービス)'!AI49+'満足度(施設全体)'!AI49 ) -> 191件 | AJ49: 60.4% | AK49: =IF(OR(IFERROR(FIND($AD49,"施設コード"),0)>0,$AE49=""), "", '満足度(商品・サービス)'!AK49+'満足度(施設全体)'!AK49 ) -> 132件 | AL49: 53.7% | AM49: =IF(OR(IFERROR(FIND($AD49,"施設コード"),0)>0,$AE49=""), "", '満足度(商品・サービス)'!AM49+'満足度(施設全体)'!AM49 ) -> 71件 | AN49: 47.3% | AO49: =IF(OR(IFERROR(FIND($AD49,"施設コード"),0)>0,$AE49=""), "", '満足度(商品・サービス)'!AO49+'満足度(施設全体)'!AO49 ) -> 103件 | AP49: 50.0% | AQ49: =IF(OR(IFERROR(FIND($AD49,"施設コード"),0)>0,$AE49=""), "", '満足度(商品・サービス)'!AQ49+'満足度(施設全体)'!AQ49 ) -> 122件 | AR49: 55.5% | AS49: =IF(OR(IFERROR(FIND($AD49,"施設コード"),0)>0,$AE49=""), "", '満足度(商品・サービス)'!AS49+'満足度(施設全体)'!AS49 ) -> 107件 | AT49: 51.9% | AU49: =IF(OR(IFERROR(FIND($AD49,"施設コード"),0)>0,$AE49=""), "", '満足度(商品・サービス)'!AU49+'満足度(施設全体)'!AU49 ) -> 154件 | AV49: 60.2% | AW49: =IF(OR(IFERROR(FIND($AD49,"施設コード"),0)>0,$AE49=""), "", '満足度(商品・サービス)'!AW49+'満足度(施設全体)'!AW49 ) -> 105件 | AX49: 52.5% | AY49: =IF(OR(IFERROR(FIND($AD49,"施設コード"),0)>0,$AE49=""), "", '満足度(商品・サービス)'!AY49+'満足度(施設全体)'!AY49 ) -> 64件 | AZ49: 45.1% | BA49: =IF(OR(IFERROR(FIND($AD49,"施設コード"),0)>0,$AE49=""), "", '満足度(商品・サービス)'!BA49+'満足度(施設全体)'!BA49 ) -> 66件 | BB49: 48.5% | BC49: =IF(OR(IFERROR(FIND($AD49,"施設コード"),0)>0,$AE49=""), "", '満足度(商品・サービス)'!BC49+'満足度(施設全体)'!BC49 ) -> 115件 | BD49: 50.0% | BE49: =IFERROR(AG49+AI49+AK49+AM49+AO49+AQ49+AS49+AU49+AW49+AY49+BA49+BC49,"") -> 1421件 | BF49: 53.9%
AA50: =IF($AE50<>"",VLOOKUP($AE50,【M】満足度!$A$1:$B$5,2,0),"") -> 3 | AC50: 回答エリア | AD50: 福井駅前 エリア | AE50: どちらでもない | AG50: =IF(OR(IFERROR(FIND($AD50,"施設コード"),0)>0,$AE50=""), "", '満足度(商品・サービス)'!AG50+'満足度(施設全体)'!AG50 ) -> 25件 | AH50: 7.6% | AI50: =IF(OR(IFERROR(FIND($AD50,"施設コード"),0)>0,$AE50=""), "", '満足度(商品・サービス)'!AI50+'満足度(施設全体)'!AI50 ) -> 28件 | AJ50: 8.9% | AK50: =IF(OR(IFERROR(FIND($AD50,"施設コード"),0)>0,$AE50=""), "", '満足度(商品・サービス)'!AK50+'満足度(施設全体)'!AK50 ) -> 22件 | AL50: 8.9% | AM50: =IF(OR(IFERROR(FIND($AD50,"施設コード"),0)>0,$AE50=""), "", '満足度(商品・サービス)'!AM50+'満足度(施設全体)'!AM50 ) -> 24件 | AN50: 16.0% | AO50: =IF(OR(IFERROR(FIND($AD50,"施設コード"),0)>0,$AE50=""), "", '満足度(商品・サービス)'!AO50+'満足度(施設全体)'!AO50 ) -> 21件 | AP50: 10.2% | AQ50: =IF(OR(IFERROR(FIND($AD50,"施設コード"),0)>0,$AE50=""), "", '満足度(商品・サービス)'!AQ50+'満足度(施設全体)'!AQ50 ) -> 24件 | AR50: 10.9% | AS50: =IF(OR(IFERROR(FIND($AD50,"施設コード"),0)>0,$AE50=""), "", '満足度(商品・サービス)'!AS50+'満足度(施設全体)'!AS50 ) -> 14件 | AT50: 6.8% | AU50: =IF(OR(IFERROR(FIND($AD50,"施設コード"),0)>0,$AE50=""), "", '満足度(商品・サービス)'!AU50+'満足度(施設全体)'!AU50 ) -> 22件 | AV50: 8.6% | AW50: =IF(OR(IFERROR(FIND($AD50,"施設コード"),0)>0,$AE50=""), "", '満足度(商品・サービス)'!AW50+'満足度(施設全体)'!AW50 ) -> 21件 | AX50: 10.5% | AY50: =IF(OR(IFERROR(FIND($AD50,"施設コード"),0)>0,$AE50=""), "", '満足度(商品・サービス)'!AY50+'満足度(施設全体)'!AY50 ) -> 14件 | AZ50: 9.9% | BA50: =IF(OR(IFERROR(FIND($AD50,"施設コード"),0)>0,$AE50=""), "", '満足度(商品・サービス)'!BA50+'満足度(施設全体)'!BA50 ) -> 16件 | BB50: 11.8% | BC50: =IF(OR(IFERROR(FIND($AD50,"施設コード"),0)>0,$AE50=""), "", '満足度(商品・サービス)'!BC50+'満足度(施設全体)'!BC50 ) -> 19件 | BD50: 8.3% | BE50: 250件 | BF50: 9.5%
AA51: =IF($AE51<>"",VLOOKUP($AE51,【M】満足度!$A$1:$B$5,2,0),"") -> 2 | AC51: 回答エリア | AD51: 福井駅前 エリア | AE51: 不満 | AG51: =IF(OR(IFERROR(FIND($AD51,"施設コード"),0)>0,$AE51=""), "", '満足度(商品・サービス)'!AG51+'満足度(施設全体)'!AG51 ) -> 2件 | AH51: 0.6% | AI51: =IF(OR(IFERROR(FIND($AD51,"施設コード"),0)>0,$AE51=""), "", '満足度(商品・サービス)'!AI51+'満足度(施設全体)'!AI51 ) -> 2件 | AJ51: 0.6% | AK51: =IF(OR(IFERROR(FIND($AD51,"施設コード"),0)>0,$AE51=""), "", '満足度(商品・サービス)'!AK51+'満足度(施設全体)'!AK51 ) -> 4件 | AL51: 1.6% | AM51: =IF(OR(IFERROR(FIND($AD51,"施設コード"),0)>0,$AE51=""), "", '満足度(商品・サービス)'!AM51+'満足度(施設全体)'!AM51 ) -> 3件 | AN51: 2.0% | AO51: =IF(OR(IFERROR(FIND($AD51,"施設コード"),0)>0,$AE51=""), "", '満足度(商品・サービス)'!AO51+'満足度(施設全体)'!AO51 ) -> 4件 | AP51: 1.9% | AQ51: =IF(OR(IFERROR(FIND($AD51,"施設コード"),0)>0,$AE51=""), "", '満足度(商品・サービス)'!AQ51+'満足度(施設全体)'!AQ51 ) -> 5件 | AR51: 2.3% | AS51: =IF(OR(IFERROR(FIND($AD51,"施設コード"),0)>0,$AE51=""), "", '満足度(商品・サービス)'!AS51+'満足度(施設全体)'!AS51 ) -> 0件 | AT51: 0.0% | AU51: =IF(OR(IFERROR(FIND($AD51,"施設コード"),0)>0,$AE51=""), "", '満足度(商品・サービス)'!AU51+'満足度(施設全体)'!AU51 ) -> 2件 | AV51: 0.8% | AW51: =IF(OR(IFERROR(FIND($AD51,"施設コード"),0)>0,$AE51=""), "", '満足度(商品・サービス)'!AW51+'満足度(施設全体)'!AW51 ) -> 0件 | AX51: 0.0% | AY51: =IF(OR(IFERROR(FIND($AD51,"施設コード"),0)>0,$AE51=""), "", '満足度(商品・サービス)'!AY51+'満足度(施設全体)'!AY51 ) -> 1件 | AZ51: 0.7% | BA51: =IF(OR(IFERROR(FIND($AD51,"施設コード"),0)>0,$AE51=""), "", '満足度(商品・サービス)'!BA51+'満足度(施設全体)'!BA51 ) -> 3件 | BB51: 2.2% | BC51: =IF(OR(IFERROR(FIND($AD51,"施設コード"),0)>0,$AE51=""), "", '満足度(商品・サービス)'!BC51+'満足度(施設全体)'!BC51 ) -> 3件 | BD51: 1.3% | BE51: 29件 | BF51: 1.1%
AA52: =IF($AE52<>"",VLOOKUP($AE52,【M】満足度!$A$1:$B$5,2,0),"") -> 1 | AC52: 回答エリア | AD52: 福井駅前 エリア | AE52: とても不満 | AG52: =IF(OR(IFERROR(FIND($AD52,"施設コード"),0)>0,$AE52=""), "", '満足度(商品・サービス)'!AG52+'満足度(施設全体)'!AG52 ) -> 0件 | AH52: 0.0% | AI52: =IF(OR(IFERROR(FIND($AD52,"施設コード"),0)>0,$AE52=""), "", '満足度(商品・サービス)'!AI52+'満足度(施設全体)'!AI52 ) -> 0件 | AJ52: 0.0% | AK52: =IF(OR(IFERROR(FIND($AD52,"施設コード"),0)>0,$AE52=""), "", '満足度(商品・サービス)'!AK52+'満足度(施設全体)'!AK52 ) -> 0件 | AL52: 0.0% | AM52: =IF(OR(IFERROR(FIND($AD52,"施設コード"),0)>0,$AE52=""), "", '満足度(商品・サービス)'!AM52+'満足度(施設全体)'!AM52 ) -> 2件 | AN52: 1.3% | AO52: =IF(OR(IFERROR(FIND($AD52,"施設コード"),0)>0,$AE52=""), "", '満足度(商品・サービス)'!AO52+'満足度(施設全体)'!AO52 ) -> 1件 | AP52: 0.5% | AQ52: =IF(OR(IFERROR(FIND($AD52,"施設コード"),0)>0,$AE52=""), "", '満足度(商品・サービス)'!AQ52+'満足度(施設全体)'!AQ52 ) -> 0件 | AR52: 0.0% | AS52: =IF(OR(IFERROR(FIND($AD52,"施設コード"),0)>0,$AE52=""), "", '満足度(商品・サービス)'!AS52+'満足度(施設全体)'!AS52 ) -> 0件 | AT52: 0.0% | AU52: =IF(OR(IFERROR(FIND($AD52,"施設コード"),0)>0,$AE52=""), "", '満足度(商品・サービス)'!AU52+'満足度(施設全体)'!AU52 ) -> 3件 | AV52: 1.2% | AW52: =IF(OR(IFERROR(FIND($AD52,"施設コード"),0)>0,$AE52=""), "", '満足度(商品・サービス)'!AW52+'満足度(施設全体)'!AW52 ) -> 0件 | AX52: 0.0% | AY52: =IF(OR(IFERROR(FIND($AD52,"施設コード"),0)>0,$AE52=""), "", '満足度(商品・サービス)'!AY52+'満足度(施設全体)'!AY52 ) -> 0件 | AZ52: 0.0% | BA52: =IF(OR(IFERROR(FIND($AD52,"施設コード"),0)>0,$AE52=""), "", '満足度(商品・サービス)'!BA52+'満足度(施設全体)'!BA52 ) -> 1件 | BB52: 0.7% | BC52: =IF(OR(IFERROR(FIND($AD52,"施設コード"),0)>0,$AE52=""), "", '満足度(商品・サービス)'!BC52+'満足度(施設全体)'!BC52 ) -> 0件 | BD52: 0.0% | BE52: 7件 | BF52: 0.3%
AA53: =IF($AE53<>"",VLOOKUP($AE53,【M】満足度!$A$1:$B$5,2,0),"") ->  | AC53: 回答エリア | AD53: 福井駅前 エリア | AG53: =IF(OR(IFERROR(FIND($AD53,"施設コード"),0)>0,$AE53=""), "", '満足度(商品・サービス)'!AG53+'満足度(施設全体)'!AG53 ) ->  | AI53: =IF(OR(IFERROR(FIND($AD53,"施設コード"),0)>0,$AE53=""), "", '満足度(商品・サービス)'!AI53+'満足度(施設全体)'!AI53 ) ->  | AK53: =IF(OR(IFERROR(FIND($AD53,"施設コード"),0)>0,$AE53=""), "", '満足度(商品・サービス)'!AK53+'満足度(施設全体)'!AK53 ) ->  | AM53: =IF(OR(IFERROR(FIND($AD53,"施設コード"),0)>0,$AE53=""), "", '満足度(商品・サービス)'!AM53+'満足度(施設全体)'!AM53 ) ->  | AO53: =IF(OR(IFERROR(FIND($AD53,"施設コード"),0)>0,$AE53=""), "", '満足度(商品・サービス)'!AO53+'満足度(施設全体)'!AO53 ) ->  | AQ53: =IF(OR(IFERROR(FIND($AD53,"施設コード"),0)>0,$AE53=""), "", '満足度(商品・サービス)'!AQ53+'満足度(施設全体)'!AQ53 ) ->  | AS53: =IF(OR(IFERROR(FIND($AD53,"施設コード"),0)>0,$AE53=""), "", '満足度(商品・サービス)'!AS53+'満足度(施設全体)'!AS53 ) ->  | AU53: =IF(OR(IFERROR(FIND($AD53,"施設コード"),0)>0,$AE53=""), "", '満足度(商品・サービス)'!AU53+'満足度(施設全体)'!AU53 ) ->  | AW53: =IF(OR(IFERROR(FIND($AD53,"施設コード"),0)>0,$AE53=""), "", '満足度(商品・サービス)'!AW53+'満足度(施設全体)'!AW53 ) ->  | AY53: =IF(OR(IFERROR(FIND($AD53,"施設コード"),0)>0,$AE53=""), "", '満足度(商品・サービス)'!AY53+'満足度(施設全体)'!AY53 ) ->  | BA53: =IF(OR(IFERROR(FIND($AD53,"施設コード"),0)>0,$AE53=""), "", '満足度(商品・サービス)'!BA53+'満足度(施設全体)'!BA53 ) ->  | BC53: =IF(OR(IFERROR(FIND($AD53,"施設コード"),0)>0,$AE53=""), "", '満足度(商品・サービス)'!BC53+'満足度(施設全体)'!BC53 ) -> 
AA54: =IF($AE54<>"",VLOOKUP($AE54,【M】満足度!$A$1:$B$5,2,0),"") ->  | AC54: 回答エリア | AD54: 福井駅前 エリア | AG54: =IF(OR(IFERROR(FIND($AD54,"施設コード"),0)>0,$AE54=""), "", '満足度(商品・サービス)'!AG54+'満足度(施設全体)'!AG54 ) ->  | AI54: =IF(OR(IFERROR(FIND($AD54,"施設コード"),0)>0,$AE54=""), "", '満足度(商品・サービス)'!AI54+'満足度(施設全体)'!AI54 ) ->  | AK54: =IF(OR(IFERROR(FIND($AD54,"施設コード"),0)>0,$AE54=""), "", '満足度(商品・サービス)'!AK54+'満足度(施設全体)'!AK54 ) ->  | AM54: =IF(OR(IFERROR(FIND($AD54,"施設コード"),0)>0,$AE54=""), "", '満足度(商品・サービス)'!AM54+'満足度(施設全体)'!AM54 ) ->  | AO54: =IF(OR(IFERROR(FIND($AD54,"施設コード"),0)>0,$AE54=""), "", '満足度(商品・サービス)'!AO54+'満足度(施設全体)'!AO54 ) ->  | AQ54: =IF(OR(IFERROR(FIND($AD54,"施設コード"),0)>0,$AE54=""), "", '満足度(商品・サービス)'!AQ54+'満足度(施設全体)'!AQ54 ) ->  | AS54: =IF(OR(IFERROR(FIND($AD54,"施設コード"),0)>0,$AE54=""), "", '満足度(商品・サービス)'!AS54+'満足度(施設全体)'!AS54 ) ->  | AU54: =IF(OR(IFERROR(FIND($AD54,"施設コード"),0)>0,$AE54=""), "", '満足度(商品・サービス)'!AU54+'満足度(施設全体)'!AU54 ) ->  | AW54: =IF(OR(IFERROR(FIND($AD54,"施設コード"),0)>0,$AE54=""), "", '満足度(商品・サービス)'!AW54+'満足度(施設全体)'!AW54 ) ->  | AY54: =IF(OR(IFERROR(FIND($AD54,"施設コード"),0)>0,$AE54=""), "", '満足度(商品・サービス)'!AY54+'満足度(施設全体)'!AY54 ) ->  | BA54: =IF(OR(IFERROR(FIND($AD54,"施設コード"),0)>0,$AE54=""), "", '満足度(商品・サービス)'!BA54+'満足度(施設全体)'!BA54 ) ->  | BC54: =IF(OR(IFERROR(FIND($AD54,"施設コード"),0)>0,$AE54=""), "", '満足度(商品・サービス)'!BC54+'満足度(施設全体)'!BC54 ) -> 
AA55: =IF($AE55<>"",VLOOKUP($AE55,【M】満足度!$A$1:$B$5,2,0),"") ->  | AC55: =AC54 -> 回答エリア | AD55: =AD54 -> 福井駅前 エリア | AG55: =IF(OR(IFERROR(FIND($AD55,"施設コード"),0)>0,$AE55=""), "", '満足度(商品・サービス)'!AG55+'満足度(施設全体)'!AG55 ) ->  | AI55: =IF(OR(IFERROR(FIND($AD55,"施設コード"),0)>0,$AE55=""), "", '満足度(商品・サービス)'!AI55+'満足度(施設全体)'!AI55 ) ->  | AK55: =IF(OR(IFERROR(FIND($AD55,"施設コード"),0)>0,$AE55=""), "", '満足度(商品・サービス)'!AK55+'満足度(施設全体)'!AK55 ) ->  | AM55: =IF(OR(IFERROR(FIND($AD55,"施設コード"),0)>0,$AE55=""), "", '満足度(商品・サービス)'!AM55+'満足度(施設全体)'!AM55 ) ->  | AO55: =IF(OR(IFERROR(FIND($AD55,"施設コード"),0)>0,$AE55=""), "", '満足度(商品・サービス)'!AO55+'満足度(施設全体)'!AO55 ) ->  | AQ55: =IF(OR(IFERROR(FIND($AD55,"施設コード"),0)>0,$AE55=""), "", '満足度(商品・サービス)'!AQ55+'満足度(施設全体)'!AQ55 ) ->  | AS55: =IF(OR(IFERROR(FIND($AD55,"施設コード"),0)>0,$AE55=""), "", '満足度(商品・サービス)'!AS55+'満足度(施設全体)'!AS55 ) ->  | AU55: =IF(OR(IFERROR(FIND($AD55,"施設コード"),0)>0,$AE55=""), "", '満足度(商品・サービス)'!AU55+'満足度(施設全体)'!AU55 ) ->  | AW55: =IF(OR(IFERROR(FIND($AD55,"施設コード"),0)>0,$AE55=""), "", '満足度(商品・サービス)'!AW55+'満足度(施設全体)'!AW55 ) ->  | AY55: =IF(OR(IFERROR(FIND($AD55,"施設コード"),0)>0,$AE55=""), "", '満足度(商品・サービス)'!AY55+'満足度(施設全体)'!AY55 ) ->  | BA55: =IF(OR(IFERROR(FIND($AD55,"施設コード"),0)>0,$AE55=""), "", '満足度(商品・サービス)'!BA55+'満足度(施設全体)'!BA55 ) ->  | BC55: =IF(OR(IFERROR(FIND($AD55,"施設コード"),0)>0,$AE55=""), "", '満足度(商品・サービス)'!BC55+'満足度(施設全体)'!BC55 ) -> 
AA56: =IF($AE56<>"",VLOOKUP($AE56,【M】満足度!$A$1:$B$5,2,0),"") ->  | AC56: 回答エリア | AD56: 福井駅前 エリア | AG56: =IF(OR(IFERROR(FIND($AD56,"施設コード"),0)>0,$AE56=""), "", '満足度(商品・サービス)'!AG56+'満足度(施設全体)'!AG56 ) ->  | AI56: =IF(OR(IFERROR(FIND($AD56,"施設コード"),0)>0,$AE56=""), "", '満足度(商品・サービス)'!AI56+'満足度(施設全体)'!AI56 ) ->  | AK56: =IF(OR(IFERROR(FIND($AD56,"施設コード"),0)>0,$AE56=""), "", '満足度(商品・サービス)'!AK56+'満足度(施設全体)'!AK56 ) ->  | AM56: =IF(OR(IFERROR(FIND($AD56,"施設コード"),0)>0,$AE56=""), "", '満足度(商品・サービス)'!AM56+'満足度(施設全体)'!AM56 ) ->  | AO56: =IF(OR(IFERROR(FIND($AD56,"施設コード"),0)>0,$AE56=""), "", '満足度(商品・サービス)'!AO56+'満足度(施設全体)'!AO56 ) ->  | AQ56: =IF(OR(IFERROR(FIND($AD56,"施設コード"),0)>0,$AE56=""), "", '満足度(商品・サービス)'!AQ56+'満足度(施設全体)'!AQ56 ) ->  | AS56: =IF(OR(IFERROR(FIND($AD56,"施設コード"),0)>0,$AE56=""), "", '満足度(商品・サービス)'!AS56+'満足度(施設全体)'!AS56 ) ->  | AU56: =IF(OR(IFERROR(FIND($AD56,"施設コード"),0)>0,$AE56=""), "", '満足度(商品・サービス)'!AU56+'満足度(施設全体)'!AU56 ) ->  | AW56: =IF(OR(IFERROR(FIND($AD56,"施設コード"),0)>0,$AE56=""), "", '満足度(商品・サービス)'!AW56+'満足度(施設全体)'!AW56 ) ->  | AY56: =IF(OR(IFERROR(FIND($AD56,"施設コード"),0)>0,$AE56=""), "", '満足度(商品・サービス)'!AY56+'満足度(施設全体)'!AY56 ) ->  | BA56: =IF(OR(IFERROR(FIND($AD56,"施設コード"),0)>0,$AE56=""), "", '満足度(商品・サービス)'!BA56+'満足度(施設全体)'!BA56 ) ->  | BC56: =IF(OR(IFERROR(FIND($AD56,"施設コード"),0)>0,$AE56=""), "", '満足度(商品・サービス)'!BC56+'満足度(施設全体)'!BC56 ) -> 
AA57: =IF($AE57<>"",VLOOKUP($AE57,【M】満足度!$A$1:$B$5,2,0),"") ->  | AC57: 回答エリア | AD57: 福井駅前 エリア | AG57: =IF(OR(IFERROR(FIND($AD57,"施設コード"),0)>0,$AE57=""), "", '満足度(商品・サービス)'!AG57+'満足度(施設全体)'!AG57 ) ->  | AI57: =IF(OR(IFERROR(FIND($AD57,"施設コード"),0)>0,$AE57=""), "", '満足度(商品・サービス)'!AI57+'満足度(施設全体)'!AI57 ) ->  | AK57: =IF(OR(IFERROR(FIND($AD57,"施設コード"),0)>0,$AE57=""), "", '満足度(商品・サービス)'!AK57+'満足度(施設全体)'!AK57 ) ->  | AM57: =IF(OR(IFERROR(FIND($AD57,"施設コード"),0)>0,$AE57=""), "", '満足度(商品・サービス)'!AM57+'満足度(施設全体)'!AM57 ) ->  | AO57: =IF(OR(IFERROR(FIND($AD57,"施設コード"),0)>0,$AE57=""), "", '満足度(商品・サービス)'!AO57+'満足度(施設全体)'!AO57 ) ->  | AQ57: =IF(OR(IFERROR(FIND($AD57,"施設コード"),0)>0,$AE57=""), "", '満足度(商品・サービス)'!AQ57+'満足度(施設全体)'!AQ57 ) ->  | AS57: =IF(OR(IFERROR(FIND($AD57,"施設コード"),0)>0,$AE57=""), "", '満足度(商品・サービス)'!AS57+'満足度(施設全体)'!AS57 ) ->  | AU57: =IF(OR(IFERROR(FIND($AD57,"施設コード"),0)>0,$AE57=""), "", '満足度(商品・サービス)'!AU57+'満足度(施設全体)'!AU57 ) ->  | AW57: =IF(OR(IFERROR(FIND($AD57,"施設コード"),0)>0,$AE57=""), "", '満足度(商品・サービス)'!AW57+'満足度(施設全体)'!AW57 ) ->  | AY57: =IF(OR(IFERROR(FIND($AD57,"施設コード"),0)>0,$AE57=""), "", '満足度(商品・サービス)'!AY57+'満足度(施設全体)'!AY57 ) ->  | BA57: =IF(OR(IFERROR(FIND($AD57,"施設コード"),0)>0,$AE57=""), "", '満足度(商品・サービス)'!BA57+'満足度(施設全体)'!BA57 ) ->  | BC57: =IF(OR(IFERROR(FIND($AD57,"施設コード"),0)>0,$AE57=""), "", '満足度(商品・サービス)'!BC57+'満足度(施設全体)'!BC57 ) -> 
AA58: =IF($AE58<>"",VLOOKUP($AE58,【M】満足度!$A$1:$B$5,2,0),"") ->  | AC58: 回答エリア | AD58: 福井駅前 エリア | AG58: =IF(OR(IFERROR(FIND($AD58,"施設コード"),0)>0,$AE58=""), "", '満足度(商品・サービス)'!AG58+'満足度(施設全体)'!AG58 ) ->  | AI58: =IF(OR(IFERROR(FIND($AD58,"施設コード"),0)>0,$AE58=""), "", '満足度(商品・サービス)'!AI58+'満足度(施設全体)'!AI58 ) ->  | AK58: =IF(OR(IFERROR(FIND($AD58,"施設コード"),0)>0,$AE58=""), "", '満足度(商品・サービス)'!AK58+'満足度(施設全体)'!AK58 ) ->  | AM58: =IF(OR(IFERROR(FIND($AD58,"施設コード"),0)>0,$AE58=""), "", '満足度(商品・サービス)'!AM58+'満足度(施設全体)'!AM58 ) ->  | AO58: =IF(OR(IFERROR(FIND($AD58,"施設コード"),0)>0,$AE58=""), "", '満足度(商品・サービス)'!AO58+'満足度(施設全体)'!AO58 ) ->  | AQ58: =IF(OR(IFERROR(FIND($AD58,"施設コード"),0)>0,$AE58=""), "", '満足度(商品・サービス)'!AQ58+'満足度(施設全体)'!AQ58 ) ->  | AS58: =IF(OR(IFERROR(FIND($AD58,"施設コード"),0)>0,$AE58=""), "", '満足度(商品・サービス)'!AS58+'満足度(施設全体)'!AS58 ) ->  | AU58: =IF(OR(IFERROR(FIND($AD58,"施設コード"),0)>0,$AE58=""), "", '満足度(商品・サービス)'!AU58+'満足度(施設全体)'!AU58 ) ->  | AW58: =IF(OR(IFERROR(FIND($AD58,"施設コード"),0)>0,$AE58=""), "", '満足度(商品・サービス)'!AW58+'満足度(施設全体)'!AW58 ) ->  | AY58: =IF(OR(IFERROR(FIND($AD58,"施設コード"),0)>0,$AE58=""), "", '満足度(商品・サービス)'!AY58+'満足度(施設全体)'!AY58 ) ->  | BA58: =IF(OR(IFERROR(FIND($AD58,"施設コード"),0)>0,$AE58=""), "", '満足度(商品・サービス)'!BA58+'満足度(施設全体)'!BA58 ) ->  | BC58: =IF(OR(IFERROR(FIND($AD58,"施設コード"),0)>0,$AE58=""), "", '満足度(商品・サービス)'!BC58+'満足度(施設全体)'!BC58 ) -> 
AA59: =IF($AE59<>"",VLOOKUP($AE59,【M】満足度!$A$1:$B$5,2,0),"") ->  | AC59: =AC57 -> 回答エリア | AD59: =AD57 -> 福井駅前 エリア | AE59: =IF(AE14<>"",AE14,"") ->  | AG59: =IF(OR(IFERROR(FIND($AD59,"施設コード"),0)>0,$AE59=""), "", '満足度(商品・サービス)'!AG59+'満足度(施設全体)'!AG59 ) ->  | AH59: =IFERROR(AG59/AG$60,"") ->  | AI59: =IF(OR(IFERROR(FIND($AD59,"施設コード"),0)>0,$AE59=""), "", '満足度(商品・サービス)'!AI59+'満足度(施設全体)'!AI59 ) ->  | AJ59: =IFERROR(AI59/AI$60,"") ->  | AK59: =IF(OR(IFERROR(FIND($AD59,"施設コード"),0)>0,$AE59=""), "", '満足度(商品・サービス)'!AK59+'満足度(施設全体)'!AK59 ) ->  | AL59: =IFERROR(AK59/AK$60,"") ->  | AM59: =IF(OR(IFERROR(FIND($AD59,"施設コード"),0)>0,$AE59=""), "", '満足度(商品・サービス)'!AM59+'満足度(施設全体)'!AM59 ) ->  | AN59: =IFERROR(AM59/AM$60,"") ->  | AO59: =IF(OR(IFERROR(FIND($AD59,"施設コード"),0)>0,$AE59=""), "", '満足度(商品・サービス)'!AO59+'満足度(施設全体)'!AO59 ) ->  | AP59: =IFERROR(AO59/AO$60,"") ->  | AQ59: =IF(OR(IFERROR(FIND($AD59,"施設コード"),0)>0,$AE59=""), "", '満足度(商品・サービス)'!AQ59+'満足度(施設全体)'!AQ59 ) ->  | AR59: =IFERROR(AQ59/AQ$60,"") ->  | AS59: =IF(OR(IFERROR(FIND($AD59,"施設コード"),0)>0,$AE59=""), "", '満足度(商品・サービス)'!AS59+'満足度(施設全体)'!AS59 ) ->  | AT59: =IFERROR(AS59/AS$60,"") ->  | AU59: =IF(OR(IFERROR(FIND($AD59,"施設コード"),0)>0,$AE59=""), "", '満足度(商品・サービス)'!AU59+'満足度(施設全体)'!AU59 ) ->  | AV59: =IFERROR(AU59/AU$60,"") ->  | AW59: =IF(OR(IFERROR(FIND($AD59,"施設コード"),0)>0,$AE59=""), "", '満足度(商品・サービス)'!AW59+'満足度(施設全体)'!AW59 ) ->  | AX59: =IFERROR(AW59/AW$60,"") ->  | AY59: =IF(OR(IFERROR(FIND($AD59,"施設コード"),0)>0,$AE59=""), "", '満足度(商品・サービス)'!AY59+'満足度(施設全体)'!AY59 ) ->  | AZ59: =IFERROR(AY59/AY$60,"") ->  | BA59: =IF(OR(IFERROR(FIND($AD59,"施設コード"),0)>0,$AE59=""), "", '満足度(商品・サービス)'!BA59+'満足度(施設全体)'!BA59 ) ->  | BB59: =IFERROR(BA59/BA$60,"") ->  | BC59: =IF(OR(IFERROR(FIND($AD59,"施設コード"),0)>0,$AE59=""), "", '満足度(商品・サービス)'!BC59+'満足度(施設全体)'!BC59 ) ->  | BD59: =IFERROR(BC59/BC$60,"") ->  | BF59: =IFERROR(BE59/BE$60,"") -> 
AF60: 合計 | AG60: =SUM(AG48:AG59) -> 328件 | AH60: 100.0% | AI60: 316件 | AJ60: 100.0% | AK60: 246件 | AL60: 100.0% | AM60: 150件 | AN60: 100.0% | AO60: 206件 | AP60: 100.0% | AQ60: 220件 | AR60: 100.0% | AS60: 206件 | AT60: 100.0% | AU60: 256件 | AV60: 100.0% | AW60: 200件 | AX60: 100.0% | AY60: 142件 | AZ60: 100.0% | BA60: 136件 | BB60: 100.0% | BC60: 230件 | BD60: 100.0% | BE60: 2,636件 | BF60: 100.0%
AF61: =IF(AF$16<>"",AF$16,"") -> 総合満足度スコア | AG61: =IF(AG60>0,SUMPRODUCT($AA48:$AA59,AG48:AG59)/AG60,"-") -> 4.25 | AI61: =IF(AI60>0,SUMPRODUCT($AA48:$AA59,AI48:AI59)/AI60,"-") -> 4.20 | AK61: =IF(AK60>0,SUMPRODUCT($AA48:$AA59,AK48:AK59)/AK60,"-") -> 4.24 | AM61: =IF(AM60>0,SUMPRODUCT($AA48:$AA59,AM48:AM59)/AM60,"-") -> 4.09 | AO61: =IF(AO60>0,SUMPRODUCT($AA48:$AA59,AO48:AO59)/AO60,"-") -> 4.22 | AQ61: =IF(AQ60>0,SUMPRODUCT($AA48:$AA59,AQ48:AQ59)/AQ60,"-") -> 4.16 | AS61: =IF(AS60>0,SUMPRODUCT($AA48:$AA59,AS48:AS59)/AS60,"-") -> 4.34 | AU61: =IF(AU60>0,SUMPRODUCT($AA48:$AA59,AU48:AU59)/AU60,"-") -> 4.16 | AW61: =IF(AW60>0,SUMPRODUCT($AA48:$AA59,AW48:AW59)/AW60,"-") -> 4.27 | AY61: =IF(AY60>0,SUMPRODUCT($AA48:$AA59,AY48:AY59)/AY60,"-") -> 4.33 | BA61: =IF(BA60>0,SUMPRODUCT($AA48:$AA59,BA48:BA59)/BA60,"-") -> 4.18 | BC61: =IF(BC60>0,SUMPRODUCT($AA48:$AA59,BC48:BC59)/BC60,"-") -> 4.30 | BE61: =IF(BE60>0,SUMPRODUCT($AA48:$AA59,BE48:BE59)/BE60,"-") -> 4.23

Sheet 性年代
A1: =施設コード!$A$2 -> 3月 | B1: =【M】エリア!$L$2 -> 福井県 | C1: =【M】エリア!$L$3 -> 福井市・永平寺町 | D1: =【M】エリア!$L$4 -> 福井市 | E1: =【M】エリア!$L$5 -> 福井駅前 エリア | AA1: =AG22&"（推移）" -> （推移） | AC1: 集計区分 | AE1: 性別 | AF1: 年代 | AG1: 回答数 | AH1: 回答月 | AI1: 回答月 | AJ1: 回答月 | AK1: 回答月 | AL1: 回答月 | AM1: 回答月 | AN1: 回答月 | AO1: 回答月 | AP1: 回答月 | AQ1: 回答月 | AR1: 回答月 | AS1: 回答月 | AT1: 回答月 | AU1: 回答月 | AV1: 回答月 | AW1: 回答月 | AX1: 回答月 | AY1: 回答月 | AZ1: 回答月 | BA1: 回答月 | BB1: 回答月 | BC1: 回答月 | BD1: 回答月 | BE1: 回答月 | BF1: 回答月 | BG1: 回答月
A2: 男・10代以下 | B2: =IFERROR(OFFSET(INDEX($AH$3:$BG$20, MATCH($A2,$AA$3:$AA$20,0),MATCH($A$1,$AH$2:$BG$2,0)),0,1),"") -> 0.0% | C2: =IFERROR(OFFSET(INDEX($AH$24:$BG$41, MATCH($A2,$AA$24:$AA$41,0),MATCH($A$1,$AH$2:$BG$2,0)),0,1),"") -> 0.0% | D2: =IFERROR(OFFSET(INDEX($AH$45:$BG$62, MATCH($A2,$AA$45:$AA$62,0),MATCH($A$1,$AH$2:$BG$2,0)),0,1),"") -> 0.0% | E2: =IFERROR(OFFSET(INDEX($AH$66:$BG$83, MATCH($A2,$AA$66:$AA$83,0),MATCH($A$1,$AH$2:$BG$2,0)),0,1),"") -> 0.0% | AC2: 都道府県 | AD2: =【M】エリア!$L$2 -> 福井県 | AH2: 4月 | AJ2: 5月 | AL2: 6月 | AN2: 7月 | AP2: 8月 | AR2: 9月 | AT2: 10月 | AV2: 11月 | AX2: 12月 | AZ2: 1月 | BB2: 2月 | BD2: 3月 | BF2: 通年
A3: 男・20代 | B3: =IFERROR(OFFSET(INDEX($AH$3:$BG$20, MATCH($A3,$AA$3:$AA$20,0),MATCH($A$1,$AH$2:$BG$2,0)),0,1),"") -> 3.1% | C3: =IFERROR(OFFSET(INDEX($AH$24:$BG$41, MATCH($A3,$AA$24:$AA$41,0),MATCH($A$1,$AH$2:$BG$2,0)),0,1),"") -> 2.1% | D3: =IFERROR(OFFSET(INDEX($AH$45:$BG$62, MATCH($A3,$AA$45:$AA$62,0),MATCH($A$1,$AH$2:$BG$2,0)),0,1),"") -> 2.1% | E3: =IFERROR(OFFSET(INDEX($AH$66:$BG$83, MATCH($A3,$AA$66:$AA$83,0),MATCH($A$1,$AH$2:$BG$2,0)),0,1),"") -> 2.6% | AA3: =AE3&"・"&AF3 -> 男・10代以下 | AC3: =AC2 -> 都道府県 | AD3: =AD2 -> 福井県 | AE3: 男 | AF3: 10代以下 | AH3: =IF(OR(IFERROR(FIND($AD3,"施設コード"),0)>0,$AF3=""), "", COUNTIFS( INDEX(rawデータ範囲, , MATCH($AH$1,表頭範囲, 0)),AH$2, INDEX(rawデータ範囲, , MATCH($AE$1,表頭範囲, 0)),$AE3, INDEX(rawデータ範囲, , MATCH($AF$1,表頭範囲, 0)),$AF3 ) ) -> 0件 | AI3: =IFERROR(AH3/AH$21,"") -> 0.0% | AJ3: =IF(OR(IFERROR(FIND($AD3,"施設コード"),0)>0,$AF3=""), "", COUNTIFS( INDEX(rawデータ範囲, , MATCH($AH$1,表頭範囲, 0)),AJ$2, INDEX(rawデータ範囲, , MATCH($AE$1,表頭範囲, 0)),$AE3, INDEX(rawデータ範囲, , MATCH($AF$1,表頭範囲, 0)),$AF3 ) ) -> 0件 | AK3: =IFERROR(AJ3/AJ$21,"") -> 0.0% | AL3: =IF(OR(IFERROR(FIND($AD3,"施設コード"),0)>0,$AF3=""), "", COUNTIFS( INDEX(rawデータ範囲, , MATCH($AH$1,表頭範囲, 0)),AL$2, INDEX(rawデータ範囲, , MATCH($AE$1,表頭範囲, 0)),$AE3, INDEX(rawデータ範囲, , MATCH($AF$1,表頭範囲, 0)),$AF3 ) ) -> 0件 | AM3: =IFERROR(AL3/AL$21,"") -> 0.0% | AN3: =IF(OR(IFERROR(FIND($AD3,"施設コード"),0)>0,$AF3=""), "", COUNTIFS( INDEX(rawデータ範囲, , MATCH($AH$1,表頭範囲, 0)),AN$2, INDEX(rawデータ範囲, , MATCH($AE$1,表頭範囲, 0)),$AE3, INDEX(rawデータ範囲, , MATCH($AF$1,表頭範囲, 0)),$AF3 ) ) -> 0件 | AO3: =IFERROR(AN3/AN$21,"") -> 0.0% | AP3: =IF(OR(IFERROR(FIND($AD3,"施設コード"),0)>0,$AF3=""), "", COUNTIFS( INDEX(rawデータ範囲, , MATCH($AH$1,表頭範囲, 0)),AP$2, INDEX(rawデータ範囲, , MATCH($AE$1,表頭範囲, 0)),$AE3, INDEX(rawデータ範囲, , MATCH($AF$1,表頭範囲, 0)),$AF3 ) ) -> 0件 | AQ3: =IFERROR(AP3/AP$21,"") -> 0.0% | AR3: =IF(OR(IFERROR(FIND($AD3,"施設コード"),0)>0,$AF3=""), "", COUNTIFS( INDEX(rawデータ範囲, , MATCH($AH$1,表頭範囲, 0)),AR$2, INDEX(rawデータ範囲, , MATCH($AE$1,表頭範囲, 0)),$AE3, INDEX(rawデータ範囲, , MATCH($AF$1,表頭範囲, 0)),$AF3 ) ) -> 0件 | AS3: =IFERROR(AR3/AR$21,"") -> 0.0% | AT3: =IF(OR(IFERROR(FIND($AD3,"施設コード"),0)>0,$AF3=""), "", COUNTIFS( INDEX(rawデータ範囲, , MATCH($AH$1,表頭範囲, 0)),AT$2, INDEX(rawデータ範囲, , MATCH($AE$1,表頭範囲, 0)),$AE3, INDEX(rawデータ範囲, , MATCH($AF$1,表頭範囲, 0)),$AF3 ) ) -> 0件 | AU3: =IFERROR(AT3/AT$21,"") -> 0.0% | AV3: =IF(OR(IFERROR(FIND($AD3,"施設コード"),0)>0,$AF3=""), "", COUNTIFS( INDEX(rawデータ範囲, , MATCH($AH$1,表頭範囲, 0)),AV$2, INDEX(rawデータ範囲, , MATCH($AE$1,表頭範囲, 0)),$AE3, INDEX(rawデータ範囲, , MATCH($AF$1,表頭範囲, 0)),$AF3 ) ) -> 0件 | AW3: =IFERROR(AV3/AV$21,"") -> 0.0% | AX3: =IF(OR(IFERROR(FIND($AD3,"施設コード"),0)>0,$AF3=""), "", COUNTIFS( INDEX(rawデータ範囲, , MATCH($AH$1,表頭範囲, 0)),AX$2, INDEX(rawデータ範囲, , MATCH($AE$1,表頭範囲, 0)),$AE3, INDEX(rawデータ範囲, , MATCH($AF$1,表頭範囲, 0)),$AF3 ) ) -> 0件 | AY3: =IFERROR(AX3/AX$21,"") -> 0.0% | AZ3: =IF(OR(IFERROR(FIND($AD3,"施設コード"),0)>0,$AF3=""), "", COUNTIFS( INDEX(rawデータ範囲, , MATCH($AH$1,表頭範囲, 0)),AZ$2, INDEX(rawデータ範囲, , MATCH($AE$1,表頭範囲, 0)),$AE3, INDEX(rawデータ範囲, , MATCH($AF$1,表頭範囲, 0)),$AF3 ) ) -> 0件 | BA3: =IFERROR(AZ3/AZ$21,"") -> 0.0% | BB3: =IF(OR(IFERROR(FIND($AD3,"施設コード"),0)>0,$AF3=""), "", COUNTIFS( INDEX(rawデータ範囲, , MATCH($AH$1,表頭範囲, 0)),BB$2, INDEX(rawデータ範囲, , MATCH($AE$1,表頭範囲, 0)),$AE3, INDEX(rawデータ範囲, , MATCH($AF$1,表頭範囲, 0)),$AF3 ) ) -> 0件 | BC3: =IFERROR(BB3/BB$21,"") -> 0.0% | BD3: =IF(OR(IFERROR(FIND($AD3,"施設コード"),0)>0,$AF3=""), "", COUNTIFS( INDEX(rawデータ範囲, , MATCH($AH$1,表頭範囲, 0)),BD$2, INDEX(rawデータ範囲, , MATCH($AE$1,表頭範囲, 0)),$AE3, INDEX(rawデータ範囲, , MATCH($AF$1,表頭範囲, 0)),$AF3 ) ) -> 0件 | BE3: =IFERROR(BD3/BD$21,"") -> 0.0% | BF3: =IFERROR(AH3+AJ3+AL3+AN3+AP3+AR3+AT3+AV3+AX3+AZ3+BB3+BD3,"") -> 0件 | BG3: =IFERROR(BF3/BF$21,"") -> 0.0%
A4: 男・30代 | B4: 5.6% | C4: 5.3% | D4: 4.9% | E4: 5.2% | AA4: =AE4&"・"&AF4 -> 男・20代 | AC4: =AC3 -> 都道府県 | AD4: 福井県 | AE4: 男 | AF4: 20代 | AH4: 70件 | AI4: =IFERROR(AH4/AH$21,"") -> 2.2% | AJ4: 64件 | AK4: 2.2% | AL4: 58件 | AM4: =IFERROR(AL4/AL$21,"") -> 2.5% | AN4: 52件 | AO4: =IFERROR(AN4/AN$21,"") -> 2.8% | AP4: 79件 | AQ4: =IFERROR(AP4/AP$21,"") -> 3.1% | AR4: 69件 | AS4: =IFERROR(AR4/AR$21,"") -> 2.6% | AT4: 49件 | AU4: =IFERROR(AT4/AT$21,"") -> 2.2% | AV4: 86件 | AW4: =IFERROR(AV4/AV$21,"") -> 3.4% | AX4: 72件 | AY4: =IFERROR(AX4/AX$21,"") -> 3.7% | AZ4: 47件 | BA4: =IFERROR(AZ4/AZ$21,"") -> 3.2% | BB4: 33件 | BC4: =IFERROR(BB4/BB$21,"") -> 2.4% | BD4: 83件 | BE4: =IFERROR(BD4/BD$21,"") -> 3.1% | BF4: =IFERROR(AH4+AJ4+AL4+AN4+AP4+AR4+AT4+AV4+AX4+AZ4+BB4+BD4,"") -> 762件 | BG4: =IFERROR(BF4/BF$21,"") -> 2.8%
A5: 男・40代 | B5: 7.0% | C5: 11.8% | D5: 15.7% | E5: 14.8% | AA5: 男・30代 | AC5: 都道府県 | AD5: 福井県 | AE5: =AE4 -> 男 | AF5: 30代 | AH5: 152件 | AI5: 4.7% | AJ5: 159件 | AK5: 5.5% | AL5: 108件 | AM5: =IFERROR(AL5/AL$21,"") -> 4.7% | AN5: 110件 | AO5: =IFERROR(AN5/AN$21,"") -> 5.8% | AP5: 158件 | AQ5: =IFERROR(AP5/AP$21,"") -> 6.2% | AR5: 161件 | AS5: =IFERROR(AR5/AR$21,"") -> 6.1% | AT5: 131件 | AU5: =IFERROR(AT5/AT$21,"") -> 6.0% | AV5: 135件 | AW5: =IFERROR(AV5/AV$21,"") -> 5.3% | AX5: 126件 | AY5: =IFERROR(AX5/AX$21,"") -> 6.5% | AZ5: 80件 | BA5: =IFERROR(AZ5/AZ$21,"") -> 5.5% | BB5: 107件 | BC5: =IFERROR(BB5/BB$21,"") -> 7.9% | BD5: 149件 | BE5: =IFERROR(BD5/BD$21,"") -> 5.6% | BF5: 1576件 | BG5: 5.7%
A6: 男・50代 | B6: 16.3% | C6: 14.5% | D6: 11.9% | E6: 9.6% | AA6: 男・40代 | AC6: 都道府県 | AD6: 福井県 | AE6: =AE5 -> 男 | AF6: 40代 | AH6: 238件 | AI6: 7.4% | AJ6: 258件 | AK6: 8.9% | AL6: 160件 | AM6: =IFERROR(AL6/AL$21,"") -> 6.9% | AN6: 165件 | AO6: =IFERROR(AN6/AN$21,"") -> 8.8% | AP6: 211件 | AQ6: =IFERROR(AP6/AP$21,"") -> 8.2% | AR6: 182件 | AS6: =IFERROR(AR6/AR$21,"") -> 6.9% | AT6: 143件 | AU6: =IFERROR(AT6/AT$21,"") -> 6.5% | AV6: 187件 | AW6: =IFERROR(AV6/AV$21,"") -> 7.4% | AX6: 186件 | AY6: =IFERROR(AX6/AX$21,"") -> 9.6% | AZ6: 97件 | BA6: =IFERROR(AZ6/AZ$21,"") -> 6.7% | BB6: 105件 | BC6: =IFERROR(BB6/BB$21,"") -> 7.7% | BD6: 187件 | BE6: =IFERROR(BD6/BD$21,"") -> 7.0% | BF6: 2119件 | BG6: 7.7%
A7: 男・60代 | B7: 11.1% | C7: 15.2% | D7: 17.1% | E7: 10.4% | AA7: 男・50代 | AC7: 都道府県 | AD7: 福井県 | AE7: =AE6 -> 男 | AF7: 50代 | AH7: 354件 | AI7: 11.1% | AJ7: 372件 | AK7: 12.8% | AL7: 268件 | AM7: =IFERROR(AL7/AL$21,"") -> 11.6% | AN7: 219件 | AO7: =IFERROR(AN7/AN$21,"") -> 11.6% | AP7: 325件 | AQ7: =IFERROR(AP7/AP$21,"") -> 12.7% | AR7: 369件 | AS7: =IFERROR(AR7/AR$21,"") -> 13.9% | AT7: 250件 | AU7: =IFERROR(AT7/AT$21,"") -> 11.4% | AV7: 310件 | AW7: =IFERROR(AV7/AV$21,"") -> 12.3% | AX7: 257件 | AY7: =IFERROR(AX7/AX$21,"") -> 13.3% | AZ7: 187件 | BA7: =IFERROR(AZ7/AZ$21,"") -> 12.9% | BB7: 151件 | BC7: =IFERROR(BB7/BB$21,"") -> 11.1% | BD7: 432件 | BE7: =IFERROR(BD7/BD$21,"") -> 16.3% | BF7: 3494件 | BG7: 12.6%
A8: 男・70代 | B8: 3.0% | C8: 1.5% | D8: 1.4% | E8: 0.0% | AA8: 男・60代 | AC8: =AC7 -> 都道府県 | AD8: 福井県 | AE8: 男 | AF8: 60代 | AH8: 427件 | AI8: 13.3% | AJ8: 356件 | AK8: 12.2% | AL8: 337件 | AM8: =IFERROR(AL8/AL$21,"") -> 14.6% | AN8: 252件 | AO8: =IFERROR(AN8/AN$21,"") -> 13.4% | AP8: 261件 | AQ8: =IFERROR(AP8/AP$21,"") -> 10.2% | AR8: 305件 | AS8: =IFERROR(AR8/AR$21,"") -> 11.5% | AT8: 335件 | AU8: =IFERROR(AT8/AT$21,"") -> 15.2% | AV8: 313件 | AW8: =IFERROR(AV8/AV$21,"") -> 12.4% | AX8: 255件 | AY8: =IFERROR(AX8/AX$21,"") -> 13.2% | AZ8: 213件 | BA8: =IFERROR(AZ8/AZ$21,"") -> 14.7% | BB8: 204件 | BC8: =IFERROR(BB8/BB$21,"") -> 15.1% | BD8: 294件 | BE8: =IFERROR(BD8/BD$21,"") -> 11.1% | BF8: 3552件 | BG8: 12.9%
A9: 男・80代以上 | B9: 0.0% | C9: 0.0% | D9: 0.0% | E9: 0.0% | AA9: 男・70代 | AC9: =AC8 -> 都道府県 | AD9: 福井県 | AE9: 男 | AF9: 70代 | AH9: 100件 | AI9: 3.1% | AJ9: 73件 | AK9: 2.5% | AL9: 79件 | AM9: =IFERROR(AL9/AL$21,"") -> 3.4% | AN9: 32件 | AO9: =IFERROR(AN9/AN$21,"") -> 1.7% | AP9: 47件 | AQ9: =IFERROR(AP9/AP$21,"") -> 1.8% | AR9: 62件 | AS9: =IFERROR(AR9/AR$21,"") -> 2.3% | AT9: 64件 | AU9: =IFERROR(AT9/AT$21,"") -> 2.9% | AV9: 50件 | AW9: =IFERROR(AV9/AV$21,"") -> 2.0% | AX9: 54件 | AY9: =IFERROR(AX9/AX$21,"") -> 2.8% | AZ9: 37件 | BA9: =IFERROR(AZ9/AZ$21,"") -> 2.6% | BB9: 32件 | BC9: =IFERROR(BB9/BB$21,"") -> 2.4% | BD9: 79件 | BE9: =IFERROR(BD9/BD$21,"") -> 3.0% | BF9: 709件 | BG9: 2.6%
A10: 女・10代以下 | B10: 0.0% | C10: 0.0% | D10: 0.0% | E10: 0.0% | AA10: 男・80代以上 | AC10: =AC9 -> 都道府県 | AD10: 福井県 | AE10: 男 | AF10: 80代以上 | AH10: 0件 | AI10: 0.0% | AJ10: 0件 | AK10: 0.0% | AL10: 0件 | AM10: =IFERROR(AL10/AL$21,"") -> 0.0% | AN10: 0件 | AO10: =IFERROR(AN10/AN$21,"") -> 0.0% | AP10: 0件 | AQ10: =IFERROR(AP10/AP$21,"") -> 0.0% | AR10: 0件 | AS10: =IFERROR(AR10/AR$21,"") -> 0.0% | AT10: 0件 | AU10: =IFERROR(AT10/AT$21,"") -> 0.0% | AV10: 0件 | AW10: =IFERROR(AV10/AV$21,"") -> 0.0% | AX10: 0件 | AY10: =IFERROR(AX10/AX$21,"") -> 0.0% | AZ10: 0件 | BA10: =IFERROR(AZ10/AZ$21,"") -> 0.0% | BB10: 0件 | BC10: =IFERROR(BB10/BB$21,"") -> 0.0% | BD10: 0件 | BE10: =IFERROR(BD10/BD$21,"") -> 0.0% | BF10: 0件 | BG10: 0.0%
A11: 女・20代 | B11: 4.9% | C11: 4.4% | D11: 3.1% | E11: 5.2% | AA11: 女・10代以下 | AC11: =AC10 -> 都道府県 | AD11: 福井県 | AE11: 女 | AF11: 10代以下 | AH11: 0件 | AI11: 0.0% | AJ11: 0件 | AK11: 0.0% | AL11: 0件 | AM11: =IFERROR(AL11/AL$21,"") -> 0.0% | AN11: 0件 | AO11: =IFERROR(AN11/AN$21,"") -> 0.0% | AP11: 0件 | AQ11: =IFERROR(AP11/AP$21,"") -> 0.0% | AR11: 0件 | AS11: =IFERROR(AR11/AR$21,"") -> 0.0% | AT11: 0件 | AU11: =IFERROR(AT11/AT$21,"") -> 0.0% | AV11: 0件 | AW11: =IFERROR(AV11/AV$21,"") -> 0.0% | AX11: 0件 | AY11: =IFERROR(AX11/AX$21,"") -> 0.0% | AZ11: 0件 | BA11: =IFERROR(AZ11/AZ$21,"") -> 0.0% | BB11: 0件 | BC11: =IFERROR(BB11/BB$21,"") -> 0.0% | BD11: 0件 | BE11: =IFERROR(BD11/BD$21,"") -> 0.0% | BF11: 0件 | BG11: 0.0%
A12: 女・30代 | B12: 8.4% | C12: 6.5% | D12: 5.9% | E12: 7.8% | AA12: 女・20代 | AC12: =AC11 -> 都道府県 | AD12: 福井県 | AE12: 女 | AF12: 20代 | AH12: 116件 | AI12: 3.6% | AJ12: 130件 | AK12: 4.5% | AL12: 98件 | AM12: =IFERROR(AL12/AL$21,"") -> 4.2% | AN12: 64件 | AO12: =IFERROR(AN12/AN$21,"") -> 3.4% | AP12: 120件 | AQ12: =IFERROR(AP12/AP$21,"") -> 4.7% | AR12: 101件 | AS12: =IFERROR(AR12/AR$21,"") -> 3.8% | AT12: 78件 | AU12: =IFERROR(AT12/AT$21,"") -> 3.5% | AV12: 108件 | AW12: =IFERROR(AV12/AV$21,"") -> 4.3% | AX12: 88件 | AY12: =IFERROR(AX12/AX$21,"") -> 4.6% | AZ12: 70件 | BA12: =IFERROR(AZ12/AZ$21,"") -> 4.8% | BB12: 64件 | BC12: =IFERROR(BB12/BB$21,"") -> 4.7% | BD12: 130件 | BE12: =IFERROR(BD12/BD$21,"") -> 4.9% | BF12: 1167件 | BG12: 4.2%
A13: 女・40代 | B13: 9.9% | C13: 9.7% | D13: 9.8% | E13: 13.9% | AA13: 女・30代 | AC13: =AC12 -> 都道府県 | AD13: 福井県 | AE13: 女 | AF13: 30代 | AH13: 241件 | AI13: 7.5% | AJ13: 231件 | AK13: 7.9% | AL13: 151件 | AM13: =IFERROR(AL13/AL$21,"") -> 6.5% | AN13: 176件 | AO13: =IFERROR(AN13/AN$21,"") -> 9.4% | AP13: 227件 | AQ13: =IFERROR(AP13/AP$21,"") -> 8.9% | AR13: 250件 | AS13: =IFERROR(AR13/AR$21,"") -> 9.4% | AT13: 175件 | AU13: =IFERROR(AT13/AT$21,"") -> 8.0% | AV13: 202件 | AW13: =IFERROR(AV13/AV$21,"") -> 8.0% | AX13: 128件 | AY13: =IFERROR(AX13/AX$21,"") -> 6.6% | AZ13: 128件 | BA13: =IFERROR(AZ13/AZ$21,"") -> 8.8% | BB13: 132件 | BC13: =IFERROR(BB13/BB$21,"") -> 9.7% | BD13: 224件 | BE13: =IFERROR(BD13/BD$21,"") -> 8.4% | BF13: 2265件 | BG13: 8.2%
